Workbook

Sheet 小諸市
A1: 第11表 市町村別・資源構成表 （千曲川上流）
A3: =MID(CELL("filename",$A$1),FIND("]",CELL("filename",$A$1))+1,31) -> 小諸市 | O3: 単位 面積 : ha、蓄積 成長量 : ㎥
B4: 樹種 | C4: 針 葉 樹 | J4: 広 葉 樹 | O4: 計
C5: ス ギ | D5: ヒ ノ キ | E5: サ ワ ラ | F5: ア カ マ ツ | G5: カ ラ マ ツ | H5: そ の 他 針 | I5: 小 計 | J5: ク ヌ ギ | K5: ブ ナ | L5: ナ ラ | M5: そ の 他 広 | N5: 小 計
A6: 齢級
A7: 1 | B7: 面積 | D7: 0.56 | G7: 6.42 | I7: 6.98 | L7: 3.38 | N7: 3.38 | O7: =SUM(N7,I7) -> 10.36
B8: 蓄積 | D8: 0 | G8: 0 | I8: 0 | L8: 0 | N8: 0 | O8: 0
B9: 成長 | D9: 0 | G9: 0 | I9: 0 | L9: 0 | N9: 0 | O9: 0
A10: 2 | B10: 面積 | G10: 11.69 | I10: 11.69 | L10: 1.11 | M10: 4.68 | N10: 5.79 | O10: 17.48
B11: 蓄積 | G11: 0 | I11: 0 | L11: 12 | M11: 59 | N11: 71 | O11: 71
B12: 成長 | G12: 0 | I12: 0 | L12: 1.6 | M12: 8.4 | N12: 10 | O12: 10
A13: 3 | B13: 面積 | D13: 1.86 | I13: 1.86 | M13: 1.88 | N13: 1.88 | O13: 3.74
B14: 蓄積 | D14: 85 | I14: 85 | M14: 35 | N14: 35 | O14: 120
B15: 成長 | D15: 16.4 | I15: 16.4 | M15: 3 | N15: 3 | O15: 19.4
A16: 4 | B16: 面積 | D16: 0.42 | I16: 0.42 | M16: 6.04 | N16: 6.04 | O16: 6.46
B17: 蓄積 | D17: 51 | I17: 51 | M17: 186 | N17: 186 | O17: 237
B18: 成長 | D18: 5.5 | I18: 5.5 | M18: 12.5 | N18: 12.5 | O18: 18
A19: 5 | B19: 面積 | D19: 3.16 | G19: 0.66 | I19: 3.82 | M19: 3.17 | N19: 3.17 | O19: 6.99
B20: 蓄積 | D20: 326 | G20: 118 | I20: 444 | M20: 131 | N20: 131 | O20: 575
B21: 成長 | D21: 23.3 | G21: 5.4 | I21: 28.7 | M21: 7.8 | N21: 7.8 | O21: 36.5
A22: 6 | B22: 面積 | D22: 5.62 | F22: 0.48 | I22: 6.1 | L22: 1.21 | M22: 12.78 | N22: 13.99 | O22: 20.09
B23: 蓄積 | D23: 1582 | F23: 72 | I23: 1654 | L23: 61 | M23: 624 | N23: 685 | O23: 2339
B24: 成長 | D24: 90.1 | F24: 2.5 | I24: 92.6 | L24: 2.5 | M24: 25.1 | N24: 27.6 | O24: 120.2
A25: 7 | B25: 面積 | C25: 0.35 | D25: 2.02 | F25: 1.48 | G25: 5.61 | I25: 9.46 | L25: 1.16 | M25: 20.51 | N25: 21.67 | O25: 31.13
B26: 蓄積 | C26: 105 | D26: 1012 | F26: 239 | G26: 1512 | I26: 2868 | L26: 71 | M26: 1254 | N26: 1325 | O26: 4193
B27: 成長 | C27: 2.9 | D27: 45.7 | F27: 5.8 | G27: 30.5 | I27: 84.9 | L27: 2.2 | M27: 38.9 | N27: 41.1 | O27: 126
A28: 8 | B28: 面積 | C28: 0.64 | D28: 4.86 | F28: 9.71 | G28: 24.2 | I28: 39.41 | L28: 1.28 | M28: 10.63 | N28: 11.91 | O28: 51.32
B29: 蓄積 | C29: 212 | D29: 1032 | F29: 1730 | G29: 5567 | I29: 8541 | L29: 91 | M29: 736 | N29: 827 | O29: 9368
B30: 成長 | C30: 5 | D30: 38.3 | F30: 34.7 | G30: 111.6 | I30: 189.6 | L30: 2.7 | M30: 21.7 | N30: 24.4 | O30: 214
A31: 9 | B31: 面積 | C31: 2.36 | D31: 13.49 | F31: 38.6 | G31: 58.33 | H31: 2.42 | I31: 115.2 | L31: 1.62 | M31: 26.24 | N31: 27.86 | O31: 143.06
B32: 蓄積 | C32: 812 | D32: 2600 | F32: 7283 | G32: 15022 | H32: 447 | I32: 26164 | L32: 117 | M32: 2114 | N32: 2231 | O32: 28395
B33: 成長 | C33: 14.9 | D33: 79.2 | F33: 110 | G33: 270.7 | H33: 15.6 | I33: 490.4 | L33: 3.3 | M33: 59.8 | N33: 63.1 | O33: 553.5
A34: 10 | B34: 面積 | C34: 0.1 | D34: 0.42 | E34: 0.11 | F34: 24.02 | G34: 48.82 | I34: 73.47 | L34: 3.31 | M34: 15.08 | N34: 18.39 | O34: 91.86
B35: 蓄積 | C35: 39 | D35: 105 | E35: 32 | F35: 5227 | G35: 14782 | I35: 20185 | L35: 301 | M35: 1278 | N35: 1579 | O35: 21764
B36: 成長 | C36: 0.6 | D36: 3.1 | E36: 0.9 | F36: 67 | G36: 221.1 | I36: 292.7 | L36: 7.8 | M36: 32.8 | N36: 40.6 | O36: 333.3
A37: 11 | B37: 面積 | F37: 15.6 | G37: 50.85 | I37: 66.45 | J37: 0.15 | M37: 18.53 | N37: 18.68 | O37: 85.13
B38: 蓄積 | F38: 3392 | G38: 15017 | I38: 18409 | J38: 12 | M38: 1775 | N38: 1787 | O38: 20196 | P38: 伐 跡 | R38: 0.69
B39: 成長 | F39: 37.2 | G39: 180.9 | I39: 218.1 | J39: 0.2 | M39: 34.2 | N39: 34.4 | O39: 252.5 | P39: 未立木地 | R39: 5.42
A40: 12 | B40: 面積 | F40: 27.59 | G40: 88.63 | I40: 116.22 | J40: 1.26 | M40: 27.38 | N40: 28.64 | O40: 144.86 | P40: 岩石地 | R40: 8
B41: 蓄積 | F41: 5847 | G41: 27443 | I41: 33290 | J41: 108 | M41: 2809 | N41: 2917 | O41: 36207 | P41: 崩壊地 | R41: 3.16
B42: 成長 | F42: 52.8 | G42: 250.4 | I42: 303.2 | J42: 2 | M42: 54.3 | N42: 56.3 | O42: 359.5 | P42: はげ山
A43: 13 | B43: 面積 | C43: 0.43 | D43: 0.29 | F43: 43.21 | G43: 165.34 | H43: 0.01 | I43: 209.28 | J43: 0.83 | L43: 2.47 | M43: 112.03 | N43: 115.33 | O43: 324.61 | P43: 施設敷 | R43: 4.52
B44: 蓄積 | C44: 166 | D44: 112 | F44: 9889 | G44: 49884 | H44: 3 | I44: 60054 | J44: 76 | L44: 281 | M44: 12360 | N44: 12717 | O44: 72771 | P44: 林地開発
B45: 成長 | C45: 2 | D45: 2.4 | F45: 89.9 | G45: 437 | H45: 0.1 | I45: 531.4 | J45: 1.4 | L45: 3.8 | M45: 198.1 | N45: 203.3 | O45: 734.7 | P45: 計 | R45: =SUM(R38:R44) -> 21.79
A46: 14 | B46: 面積 | C46: 0.34 | D46: 0.44 | E46: 0.06 | F46: 43.01 | G46: 116.52 | I46: 160.37 | J46: 2.08 | L46: 2.93 | M46: 165.41 | N46: 170.42 | O46: 330.79 | P46: 竹 林 | R46: 4.63
B47: 蓄積 | C47: 131 | D47: 186 | E47: 12 | F47: 10158 | G47: 36920 | I47: 47407 | J47: 219 | L47: 337 | M47: 19080 | N47: 19636 | O47: 67043 | P47: 更新 困難地 | Q47: 面積 | R47: 0.87
B48: 成長 | C48: 1.2 | D48: 3.3 | E48: 0.2 | F48: 79.1 | G48: 257.3 | I48: 341.1 | J48: 2.9 | L48: 4.1 | M48: 218.2 | N48: 225.2 | O48: 566.3 | Q48: 蓄積 | R48: 102
A49: 15 以上 | B49: 面積 | C49: 8.25 | D49: 7.64 | E49: 2.26 | F49: 286.14 | G49: 287.6 | H49: 0.23 | I49: 592.12 | J49: 4.01 | L49: 3.72 | M49: 266.27 | N49: 274 | O49: 866.12 | Q49: 成長 | R49: 0.5
B50: 蓄積 | C50: 3572 | D50: 3206 | E50: 605 | F50: 70454 | G50: 94409 | H50: 88 | I50: 172334 | J50: 434 | L50: 399 | M50: 32667 | N50: 33500 | O50: 205834
B51: 成長 | C51: 2.3 | D51: 4 | E51: 2.4 | F51: 233.2 | G51: 321.9 | H51: 0 | I51: 563.8 | J51: 3.6 | L51: 2.9 | M51: 197.2 | N51: 203.7 | O51: 767.5 | P51: 総 合 計
A52: 計 | B52: 面積 | C52: =SUM(C7,C10,C13,C16,C19,C22,C25,C28,C31,C34,C37,C40,C43,C46,C49) -> 12.47 | D52: 40.78 | E52: 2.43 | F52: 489.84 | G52: 864.67 | H52: 2.66 | I52: =SUM(C52:H52) -> 1412.85 | J52: =SUM(J7,J10,J13,J16,J19,J22,J25,J28,J31,J34,J37,J40,J43,J46,J49) -> 8.33 | K52: =SUM(K7,K10,K13,K16,K19,K22,K25,K28,K31,K34,K37,K40,K43,K46,K49) -> 0 | L52: =SUM(L7,L10,L13,L16,L19,L22,L25,L28,L31,L34,L37,L40,L43,L46,L49) -> 22.19 | M52: =SUM(M7,M10,M13,M16,M19,M22,M25,M28,M31,M34,M37,M40,M43,M46,M49) -> 690.63 | N52: =SUM(J52:M52) -> 721.15 | O52: 2134 | P52: 面 積 | R52: =SUM(O52,R45,R47,R46) -> 2161.29
B53: 蓄積 | C53: 5037 | D53: 10297 | E53: 649 | F53: 114291 | G53: 260674 | H53: 538 | I53: =SUM(C53:H53) -> 391486 | J53: =SUM(J8,J11,J14,J17,J20,J23,J26,J29,J32,J35,J38,J41,J44,J47,J50) -> 849 | K53: 0 | L53: 1670 | M53: 75108 | N53: =SUM(J53:M53) -> 77627 | O53: 469113 | P53: 蓄積 | R53: =O53+R48 -> 469215
B54: 成長 | C54: 28.9 | D54: 311.3 | E54: 3.5 | F54: 712.2 | G54: 2086.8 | H54: 15.7 | I54: =SUM(C54:H54) -> 3158.4 | J54: 10.1 | K54: 0 | L54: 30.9 | M54: 912 | N54: =SUM(J54:M54) -> 953 | O54: 4111.4 | P54: 成長量 | R54: =O54+R49 -> 4111.9

Sheet 佐久市
A1: 第11表 市町村別・資源構成表 （千曲川上流）
A3: =MID(CELL("filename",$A$1),FIND("]",CELL("filename",$A$1))+1,31) -> 佐久市 | O3: 単位 面積 : ha、蓄積 成長量 : ㎥
B4: 樹種 | C4: 針 葉 樹 | J4: 広 葉 樹 | O4: 計
C5: ス ギ | D5: ヒ ノ キ | E5: サ ワ ラ | F5: ア カ マ ツ | G5: カ ラ マ ツ | H5: そ の 他 針 | I5: 小 計 | J5: ク ヌ ギ | K5: ブ ナ | L5: ナ ラ | M5: そ の 他 広 | N5: 小 計
A6: 齢級
A7: 1 | B7: 面積 | D7: 1.75 | F7: 0.49 | G7: 149.52 | I7: 151.76 | M7: 20.91 | N7: 20.91 | O7: =SUM(N7,I7) -> 172.67
B8: 蓄積 | D8: 0 | F8: 0 | G8: 0 | I8: 0 | M8: 0 | N8: 0 | O8: =SUM(N8,I8) -> 0
B9: 成長 | D9: 0 | F9: 0 | G9: 0 | I9: 0 | M9: 0 | N9: 0 | O9: 0
A10: 2 | B10: 面積 | C10: 0.09 | D10: 3.21 | F10: 0.4 | G10: 78.55 | I10: 82.25 | L10: 2.31 | M10: 56.29 | N10: 58.6 | O10: 140.85
B11: 蓄積 | C11: 0 | D11: 0 | F11: 0 | G11: 0 | I11: 0 | L11: 27 | M11: 685 | N11: 712 | O11: 712
B12: 成長 | C12: 0 | D12: 0 | F12: 0 | G12: 0 | I12: 0 | L12: 3.8 | M12: 98 | N12: 101.8 | O12: 101.8
A13: 3 | B13: 面積 | C13: 0.01 | D13: 8.69 | G13: 6.92 | I13: 15.62 | L13: 0.29 | M13: 23.27 | N13: 23.56 | O13: 39.18
B14: 蓄積 | C14: 1 | D14: 290 | G14: 689 | I14: 980 | L14: 5 | M14: 496 | N14: 501 | O14: 1481
B15: 成長 | C15: 0.2 | D15: 64.8 | G15: 61.1 | I15: 126.1 | L15: 0.5 | M15: 42.1 | N15: 42.6 | O15: 168.7
A16: 4 | B16: 面積 | C16: 0.15 | D16: 7.49 | E16: 0.4 | F16: 0.1 | G16: 25.92 | I16: 34.06 | L16: 7.32 | M16: 21.5 | N16: 28.82 | O16: 62.88
B17: 蓄積 | C17: 27 | D17: 802 | E17: 23 | F17: 10 | G17: 2885 | I17: 3747 | L17: 218 | M17: 621 | N17: 839 | O17: 4586
B18: 成長 | C18: 2.2 | D18: 85 | E18: 2.6 | F18: 0.8 | G18: 171.5 | I18: 262.1 | L18: 14.9 | M18: 42.3 | N18: 57.2 | O18: 319.3
A19: 5 | B19: 面積 | C19: 0.68 | D19: 13.2 | F19: 2.34 | G19: 7.57 | I19: 23.79 | L19: 3.03 | M19: 27.19 | N19: 30.22 | O19: 54.01
B20: 蓄積 | C20: 149 | D20: 1438 | F20: 265 | G20: 1280 | I20: 3132 | L20: 121 | M20: 1099 | N20: 1220 | O20: 4352
B21: 成長 | C21: 7.6 | D21: 102.1 | F21: 13.6 | G21: 59 | I21: 182.3 | L21: 6.6 | M21: 57.3 | N21: 63.9 | O21: 246.2
A22: 6 | B22: 面積 | C22: 2.07 | D22: 25.67 | E22: 0.26 | F22: 3.04 | G22: 15.04 | H22: 0.2 | I22: 46.28 | L22: 14.98 | M22: 84.98 | N22: 99.96 | O22: 146.24
B23: 蓄積 | C23: 504 | D23: 3770 | E23: 33 | F23: 450 | G23: 2628 | H23: 21 | I23: 7406 | L23: 753 | M23: 4349 | N23: 5102 | O23: 12508
B24: 成長 | C24: 18.1 | D24: 207.8 | E24: 1.8 | F24: 16.6 | G24: 62.3 | H24: 1.1 | I24: 307.7 | L24: 30.4 | M24: 177.4 | N24: 207.8 | O24: 515.5
A25: 7 | B25: 面積 | C25: 2.72 | D25: 111.17 | F25: 5.6 | G25: 144.87 | H25: 0.11 | I25: 264.47 | L25: 9.78 | M25: 219.75 | N25: 229.53 | O25: 494
B26: 蓄積 | C26: 858 | D26: 24233 | F26: 834 | G26: 32255 | H26: 17 | I26: 58197 | L26: 551 | M26: 11656 | N26: 12207 | O26: 70404
B27: 成長 | C27: 24 | D27: 1092.7 | F27: 20.9 | G27: 715.2 | H27: 0.8 | I27: 1853.6 | L27: 17.2 | M27: 359.4 | N27: 376.6 | O27: 2230.2
A28: 8 | B28: 面積 | C28: 6.27 | D28: 84.28 | E28: 0.45 | F28: 13.83 | G28: 106.41 | H28: 1.83 | I28: 213.07 | L28: 19.36 | M28: 116.99 | N28: 136.35 | O28: 349.42
B29: 蓄積 | C29: 2236 | D29: 26725 | E29: 105 | F29: 2518 | G29: 22748 | H29: 608 | I29: 54940 | L29: 1316 | M29: 7816 | N29: 9132 | O29: 64072
B30: 成長 | C30: 51.5 | D30: 990.5 | E30: 3.9 | F30: 50 | G30: 484.8 | H30: 23.1 | I30: 1603.8 | L30: 39.4 | M30: 235.4 | N30: 274.8 | O30: 1878.6
A31: 9 | B31: 面積 | C31: 12.47 | D31: 207.34 | F31: 97.15 | G31: 205.61 | H31: 3.96 | I31: 526.53 | L31: 56.05 | M31: 238.22 | N31: 294.27 | O31: 820.8
B32: 蓄積 | C32: 3987 | D32: 53237 | F32: 18513 | G32: 53351 | H32: 745 | I32: 129833 | L32: 4329 | M32: 18534 | N32: 22863 | O32: 152696
B33: 成長 | C33: 75.2 | D33: 1612.4 | F33: 280.6 | G33: 985.8 | H33: 26 | I33: 2980 | L33: 119.9 | M33: 515.4 | N33: 635.3 | O33: 3615.3
A34: 10 | B34: 面積 | C34: 13.99 | D34: 69.8 | E34: 0.34 | F34: 204.84 | G34: 451.14 | H34: 1.14 | I34: 741.25 | L34: 31.94 | M34: 171.71 | N34: 203.65 | O34: 944.9
B35: 蓄積 | C35: 5496 | D35: 20431 | E35: 89 | F35: 43116 | G35: 130749 | H35: 231 | I35: 200112 | L35: 2981 | M35: 15825 | N35: 18806 | O35: 218918
B36: 成長 | C36: 82.4 | D36: 591.5 | E36: 2.5 | F36: 561.3 | G36: 1983 | H36: 6.9 | I36: 3227.6 | L36: 75.3 | M36: 399.9 | N36: 475.2 | O36: 3702.8
A37: 11 | B37: 面積 | C37: 53.28 | D37: 53.82 | F37: 360 | G37: 851.82 | H37: 3.2 | I37: 1322.12 | L37: 59.72 | M37: 241.07 | N37: 300.79 | O37: 1622.91
B38: 蓄積 | C38: 21630 | D38: 18272 | F38: 78106 | G38: 252094 | H38: 640 | I38: 370742 | L38: 5972 | M38: 23275 | N38: 29247 | O38: 399989 | P38: 伐 跡 | R38: 106.41
B39: 成長 | C39: 281 | D39: 438.9 | F39: 864.3 | G39: 3030.9 | H39: 16.1 | I39: 4631.2 | L39: 118.2 | M39: 459.2 | N39: 577.4 | O39: 5208.6 | P39: 未立木地 | R39: 105.76
A40: 12 | B40: 面積 | C40: 86.54 | D40: 8.05 | E40: 0.65 | F40: 544.15 | G40: 1438.78 | H40: 7.56 | I40: 2085.73 | L40: 87.66 | M40: 362.94 | N40: 450.6 | O40: 2536.33 | P40: 岩石地 | R40: 56.24
B41: 蓄積 | C41: 36503 | D41: 2767 | E41: 256 | F41: 124846 | G41: 458580 | H41: 1886 | I41: 624838 | L41: 8827 | M41: 34221 | N41: 43048 | O41: 667886 | P41: 崩壊地 | R41: 35.58
B42: 成長 | C42: 404.2 | D42: 58.7 | E42: 5.3 | F42: 1133.3 | G42: 4181 | H42: 38.3 | I42: 5820.8 | L42: 171.1 | M42: 656.1 | N42: 827.2 | O42: 6648 | P42: はげ山 | R42: 0.47
A43: 13 | B43: 面積 | C43: 125.88 | D43: 3.04 | E43: 2.33 | F43: 316.03 | G43: 2377.05 | H43: 16.98 | I43: 2841.31 | J43: 0.29 | L43: 138.84 | M43: 472.37 | N43: 611.5 | O43: 3452.81 | P43: 施設敷 | R43: 74.19
B44: 蓄積 | C44: 55136 | D44: 1135 | E44: 816 | F44: 73726 | G44: 775479 | H44: 4559 | I44: 910851 | J44: 28 | L44: 15031 | M44: 52963 | N44: 68022 | O44: 978873 | P44: 林地開発
B45: 成長 | C45: 596.6 | D45: 23.2 | E45: 17.1 | F45: 657.5 | G45: 6870.9 | H45: 89.5 | I45: 8254.8 | J45: 0.5 | L45: 240.6 | M45: 861.7 | N45: 1102.8 | O45: 9357.6 | P45: 計 | R45: =SUM(R38:R44) -> 378.65
A46: 14 | B46: 面積 | C46: 38.67 | D46: 3.07 | E46: 13.47 | F46: 217.73 | G46: 2110.11 | H46: 18.56 | I46: 2401.61 | J46: 1.67 | L46: 236.85 | M46: 709.7 | N46: 948.22 | O46: 3349.83 | P46: 竹 林 | R46: 15.58
B47: 蓄積 | C47: 17357 | D47: 1275 | E47: 4009 | F47: 52377 | G47: 707452 | H47: 5823 | I47: 788293 | J47: 172 | L47: 27339 | M47: 82494 | N47: 110005 | O47: 898298 | P47: 更新 困難地 | Q47: 面積 | R47: 4.17
B48: 成長 | C48: 158.6 | D48: 23 | E48: 73.1 | F48: 413.1 | G48: 4975.3 | H48: 98.2 | I48: 5741.3 | J48: 2.3 | L48: 315.1 | M48: 938.4 | N48: 1255.8 | O48: 6997.1 | Q48: 蓄積 | R48: 342
A49: 15 以上 | B49: 面積 | C49: 61.02 | D49: 78.32 | E49: 35.32 | F49: 747.85 | G49: 2260.15 | H49: 231.48 | I49: 3414.14 | J49: 1.49 | L49: 424.58 | M49: 2161.65 | N49: 2587.72 | O49: 6001.86 | Q49: 成長 | R49: 0
B50: 蓄積 | C50: 29111 | D50: 40017 | E50: 13935 | F50: 191409 | G50: 774426 | H50: 79727 | I50: 1128625 | J50: 193 | L50: 52191 | M50: 252274 | N50: 304658 | O50: 1433283
B51: 成長 | C51: 35.3 | D51: 70 | E51: 24.6 | F51: 727.2 | G51: 2602.6 | H51: 192.2 | I51: 3651.9 | J51: 1.2 | L51: 306.1 | M51: 1169.3 | N51: 1476.6 | O51: 5128.5 | P51: 総 合 計
A52: 計 | B52: 面積 | C52: =SUM(C7,C10,C13,C16,C19,C22,C25,C28,C31,C34,C37,C40,C43,C46,C49) -> 403.84 | D52: 678.9 | E52: 53.22 | F52: 2513.55 | G52: 10229.46 | H52: 285.02 | I52: =SUM(C52:H52) -> 14163.99 | J52: =SUM(J7,J10,J13,J16,J19,J22,J25,J28,J31,J34,J37,J40,J43,J46,J49) -> 3.45 | K52: =SUM(K7,K10,K13,K16,K19,K22,K25,K28,K31,K34,K37,K40,K43,K46,K49) -> 0 | L52: =SUM(L7,L10,L13,L16,L19,L22,L25,L28,L31,L34,L37,L40,L43,L46,L49) -> 1092.71 | M52: =SUM(M7,M10,M13,M16,M19,M22,M25,M28,M31,M34,M37,M40,M43,M46,M49) -> 4928.54 | N52: =SUM(J52:M52) -> 6024.7 | O52: 20188.69 | P52: 面 積 | R52: =SUM(O52,R45,R47,R46) -> 20587.09
B53: 蓄積 | C53: 172995 | D53: 194392 | E53: 19266 | F53: 586170 | G53: 3214616 | H53: 94257 | I53: =SUM(C53:H53) -> 4281696 | J53: =SUM(J8,J11,J14,J17,J20,J23,J26,J29,J32,J35,J38,J41,J44,J47,J50) -> 393 | K53: 0 | L53: 119661 | M53: 506308 | N53: =SUM(J53:M53) -> 626362 | O53: 4908058 | P53: 蓄積 | R53: =O53+R48 -> 4908400
B54: 成長 | C54: 1736.9 | D54: 5360.6 | E54: 130.9 | F54: 4739.2 | G54: 26183.4 | H54: 492.2 | I54: =SUM(C54:H54) -> 38643.2 | J54: 4 | K54: 0 | L54: 1459.1 | M54: 6011.9 | N54: =SUM(J54:M54) -> 7475 | O54: 46118.2 | P54: 成長量 | R54: =O54+R49 -> 46118.2

Sheet 小海町
A1: 第11表 市町村別・資源構成表 （千曲川上流）
A3: =MID(CELL("filename",$A$1),FIND("]",CELL("filename",$A$1))+1,31) -> 小海町 | O3: 単位 面積 : ha、蓄積 成長量 : ㎥
B4: 樹種 | C4: 針 葉 樹 | J4: 広 葉 樹 | O4: 計
C5: ス ギ | D5: ヒ ノ キ | E5: サ ワ ラ | F5: ア カ マ ツ | G5: カ ラ マ ツ | H5: そ の 他 針 | I5: 小 計 | J5: ク ヌ ギ | K5: ブ ナ | L5: ナ ラ | M5: そ の 他 広 | N5: 小 計
A6: 齢級
A7: 1 | B7: 面積 | D7: 0.75 | G7: 47.17 | I7: 47.92 | L7: 0.25 | M7: 4.78 | N7: 5.03 | O7: =SUM(N7,I7) -> 52.95
B8: 蓄積 | D8: 0 | G8: 0 | I8: 0 | L8: 0 | M8: 0 | N8: 0 | O8: =SUM(N8,I8) -> 0
B9: 成長 | D9: 0 | G9: 0 | I9: 0 | L9: 0 | M9: 0 | N9: 0 | O9: 0
A10: 2 | B10: 面積 | G10: 45.3 | I10: 45.3 | M10: 33.37 | N10: 33.37 | O10: 78.67
B11: 蓄積 | G11: 0 | I11: 0 | M11: 475 | N11: 475 | O11: 475
B12: 成長 | G12: 0 | I12: 0 | M12: 68.6 | N12: 68.6 | O12: 68.6
A13: 3 | B13: 面積 | G13: 0.05 | I13: 0.05 | M13: 10.96 | N13: 10.96 | O13: 11.01
B14: 蓄積 | G14: 5 | I14: 5 | M14: 223 | N14: 223 | O14: 228
B15: 成長 | G15: 0.5 | I15: 0.5 | M15: 20.4 | N15: 20.4 | O15: 20.9
A16: 4 | B16: 面積 | D16: 0.65 | G16: 0.47 | I16: 1.12 | L16: 0.44 | M16: 29.24 | N16: 29.68 | O16: 30.8
B17: 蓄積 | D17: 53 | G17: 54 | I17: 107 | L17: 16 | M17: 819 | N17: 835 | O17: 942
B18: 成長 | D18: 5.6 | G18: 3.1 | I18: 8.7 | L18: 1.1 | M18: 55.6 | N18: 56.7 | O18: 65.4
A19: 5 | B19: 面積 | D19: 2.24 | F19: 0.73 | G19: 5.68 | I19: 8.65 | J19: 0.21 | L19: 3.54 | M19: 18.95 | N19: 22.7 | O19: 31.35
B20: 蓄積 | D20: 223 | F20: 88 | G20: 845 | I20: 1156 | J20: 8 | L20: 155 | M20: 757 | N20: 920 | O20: 2076
B21: 成長 | D21: 15.9 | F21: 4.5 | G21: 39.3 | I21: 59.7 | J21: 0.4 | L21: 7.9 | M21: 40.4 | N21: 48.7 | O21: 108.4
A22: 6 | B22: 面積 | D22: 0.05 | F22: 2.79 | G22: 5.97 | H22: 1.18 | I22: 9.99 | L22: 5.58 | M22: 28.31 | N22: 33.89 | O22: 43.88
B23: 蓄積 | D23: 966 | E23: 753 | F23: 365 | G23: 1232 | H23: 338 | I23: 3654 | L23: 272 | M23: 1405 | N23: 1677 | O23: 5331
B24: 成長 | D24: 53.2 | E24: 41.4 | F24: 13.5 | G24: 27.3 | H24: 17.9 | I24: 153.3 | L24: 11.1 | M24: 57.6 | N24: 68.7 | O24: 222
A25: 7 | B25: 面積 | D25: 0.32 | F25: 1 | G25: 7.41 | H25: 5.6 | I25: 14.33 | L25: 2.57 | M25: 50.3 | N25: 52.87 | O25: 67.2
B26: 蓄積 | C26: 153 | D26: 54 | E26: 125 | F26: 131 | G26: 1628 | H26: 1051 | I26: 3142 | L26: 158 | M26: 2952 | N26: 3110 | O26: 6252
B27: 成長 | C27: 4.3 | D27: 2.4 | E27: 5.6 | F27: 3.9 | G27: 35.9 | H27: 45 | I27: 97.1 | L27: 4.8 | M27: 91.7 | N27: 96.5 | O27: 193.6
A28: 8 | B28: 面積 | D28: 0.33 | F28: 1.54 | G28: 6.85 | H28: 6.5 | I28: 15.22 | L28: 1.29 | M28: 12.91 | N28: 14.2 | O28: 29.42
B29: 蓄積 | D29: 183 | F29: 279 | G29: 1859 | H29: 5432 | I29: 7753 | L29: 89 | M29: 852 | N29: 941 | O29: 8694
B30: 成長 | D30: 6.8 | F30: 5.6 | G30: 38.3 | H30: 209.5 | I30: 260.2 | L30: 2.7 | M30: 25.8 | N30: 28.5 | O30: 288.7
A31: 9 | B31: 面積 | D31: 1.17 | E31: 0.15 | F31: 4.78 | G31: 74.84 | H31: 0.23 | I31: 81.17 | J31: 0.01 | L31: 5.58 | M31: 30.69 | N31: 36.28 | O31: 117.45
B32: 蓄積 | D32: 853 | E32: 41 | F32: 950 | G32: 19040 | H32: 46 | I32: 20930 | J32: 1 | L32: 465 | M32: 2353 | N32: 2819 | O32: 23749
B33: 成長 | D33: 25.6 | E33: 1.2 | F33: 14.3 | G33: 353.6 | H33: 1.6 | I33: 396.3 | J33: 0 | L33: 13 | M33: 65.5 | N33: 78.5 | O33: 474.8
A34: 10 | B34: 面積 | C34: 0.07 | D34: 0.11 | E34: 0.25 | F34: 33.54 | G34: 135.54 | I34: 169.51 | L34: 5.23 | M34: 32.66 | N34: 37.89 | O34: 207.4
B35: 蓄積 | C35: 28 | D35: 33 | E35: 73 | F35: 6981 | G35: 39819 | I35: 46934 | L35: 471 | M35: 2804 | N35: 3275 | O35: 50209
B36: 成長 | C36: 0.4 | D36: 1 | E36: 2.1 | F36: 91.8 | G36: 604.1 | I36: 699.4 | L36: 12 | M36: 71.2 | N36: 83.2 | O36: 782.6
A37: 11 | B37: 面積 | E37: 0.15 | F37: 55.27 | G37: 335.46 | H37: 2.2 | I37: 393.08 | L37: 10.66 | M37: 59.07 | N37: 69.73 | O37: 462.81
B38: 蓄積 | E38: 48 | F38: 12307 | G38: 102187 | H38: 406 | I38: 114948 | L38: 1029 | M38: 5813 | N38: 6842 | O38: 121790 | P38: 伐 跡 | R38: 8.43
B39: 成長 | E39: 1.2 | F39: 135.9 | G39: 1226.3 | H39: 8.9 | I39: 1372.3 | L39: 20.1 | M39: 114.1 | N39: 134.2 | O39: 1506.5 | P39: 未立木地 | R39: 11.69
A40: 12 | B40: 面積 | C40: 0.2 | F40: 59.95 | G40: 769.65 | I40: 829.8 | L40: 14.1 | M40: 56.89 | N40: 70.99 | O40: 900.79 | P40: 岩石地 | R40: 47.86
B41: 蓄積 | C41: 88 | F41: 13511 | G41: 260623 | I41: 274222 | L41: 1460 | M41: 5611 | N41: 7071 | O41: 281293 | P41: 崩壊地 | R41: 15.57
B42: 成長 | C42: 0.9 | F42: 123.7 | G42: 2400.4 | I42: 2525 | L42: 28.9 | M42: 108.4 | N42: 137.3 | O42: 2662.3 | P42: はげ山
A43: 13 | B43: 面積 | C43: 0.09 | F43: 21.58 | G43: 1226.9 | H43: 0.03 | I43: 1248.6 | J43: 0.19 | L43: 47.27 | M43: 185.79 | N43: 233.25 | O43: 1481.85 | P43: 施設敷 | R43: 30.5
B44: 蓄積 | C44: 41 | F44: 4812 | G44: 409764 | H44: 9 | I44: 414626 | J44: 17 | L44: 5264 | M44: 20411 | N44: 25692 | O44: 440318 | P44: 林地開発
B45: 成長 | C45: 0.5 | F45: 44.1 | G45: 3537.8 | H45: 0.2 | I45: 3582.6 | J45: 0.3 | L45: 82 | M45: 316.9 | N45: 399.2 | O45: 3981.8 | P45: 計 | R45: =SUM(R38:R44) -> 114.05
A46: 14 | B46: 面積 | D46: 0.03 | E46: 0.01 | F46: 28.05 | G46: 1354.04 | H46: 0.06 | I46: 1382.19 | L46: 67.98 | M46: 391.13 | N46: 459.11 | O46: 1841.3 | P46: 竹 林 | R46: 3.5
B47: 蓄積 | D47: 10 | E47: 4 | F47: 6659 | G47: 473541 | H47: 21 | I47: 480235 | L47: 7843 | M47: 42732 | N47: 50575 | O47: 530810 | P47: 更新 困難地 | Q47: 面積 | R47: 1
B48: 成長 | D48: 0.2 | E48: 0.1 | F48: 52.9 | G48: 3292.1 | H48: 0.4 | I48: 3345.7 | L48: 91.6 | M48: 506.8 | N48: 598.4 | O48: 3944.1 | Q48: 蓄積 | R48: 51
A49: 15 以上 | B49: 面積 | C49: 0.34 | D49: 3.84 | E49: 1.44 | F49: 192.21 | G49: 960.59 | H49: 1.13 | I49: 1159.55 | J49: 2.12 | L49: 70.17 | M49: 693.08 | N49: 765.37 | O49: 1924.92 | Q49: 成長 | R49: 0.6
B50: 蓄積 | C50: 169 | D50: 1574 | E50: 633 | F50: 44432 | G50: 338184 | H50: 491 | I50: 385483 | J50: 280 | L50: 8757 | M50: 82273 | N50: 91310 | O50: 476793
B51: 成長 | C51: 1 | D51: 0 | E51: 1.5 | F51: 145.2 | G51: 1261.8 | H51: 4 | I51: 1413.5 | J51: 2.3 | L51: 68.9 | M51: 461.6 | N51: 532.8 | O51: 1946.3 | P51: 総 合 計
A52: 計 | B52: 面積 | C52: =SUM(C7,C10,C13,C16,C19,C22,C25,C28,C31,C34,C37,C40,C43,C46,C49) -> 0.7 | D52: 9.49 | E52: 2 | F52: 401.44 | G52: 4975.92 | H52: 16.93 | I52: =SUM(C52:H52) -> 5406.48 | J52: =SUM(J7,J10,J13,J16,J19,J22,J25,J28,J31,J34,J37,J40,J43,J46,J49) -> 2.53 | K52: =SUM(K7,K10,K13,K16,K19,K22,K25,K28,K31,K34,K37,K40,K43,K46,K49) -> 0 | L52: =SUM(L7,L10,L13,L16,L19,L22,L25,L28,L31,L34,L37,L40,L43,L46,L49) -> 234.66 | M52: =SUM(M7,M10,M13,M16,M19,M22,M25,M28,M31,M34,M37,M40,M43,M46,M49) -> 1638.13 | N52: =SUM(J52:M52) -> 1875.32 | O52: 7281.8 | P52: 面 積 | R52: =SUM(O52,R45,R47,R46) -> 7400.35
B53: 蓄積 | C53: 479 | D53: 3949 | E53: 1677 | F53: 90515 | G53: 1648781 | H53: 7794 | I53: =SUM(C53:H53) -> 1753195 | J53: =SUM(J8,J11,J14,J17,J20,J23,J26,J29,J32,J35,J38,J41,J44,J47,J50) -> 306 | K53: 0 | L53: 25979 | M53: 169480 | N53: =SUM(J53:M53) -> 195765 | O53: 1948960 | P53: 蓄積 | R53: =O53+R48 -> 1949011
B54: 成長 | C54: 7.1 | D54: 110.7 | E54: 53.1 | F54: 635.4 | G54: 12820.5 | H54: 287.5 | I54: =SUM(C54:H54) -> 13914.3 | J54: 3 | K54: 0 | L54: 344.1 | M54: 2004.6 | N54: =SUM(J54:M54) -> 2351.7 | O54: 16266 | P54: 成長量 | R54: =O54+R49 -> 16266.6

Sheet 佐久穂町
A1: 第11表 市町村別・資源構成表 （千曲川上流）
A3: =MID(CELL("filename",$A$1),FIND("]",CELL("filename",$A$1))+1,31) -> 佐久穂町 | O3: 単位 面積 : ha、蓄積 成長量 : ㎥
B4: 樹種 | C4: 針 葉 樹 | J4: 広 葉 樹 | O4: 計
C5: ス ギ | D5: ヒ ノ キ | E5: サ ワ ラ | F5: ア カ マ ツ | G5: カ ラ マ ツ | H5: そ の 他 針 | I5: 小 計 | J5: ク ヌ ギ | K5: ブ ナ | L5: ナ ラ | M5: そ の 他 広 | N5: 小 計
A6: 齢級
A7: 1 | B7: 面積 | D7: 0.1 | G7: 100.88 | I7: 100.98 | L7: 2.35 | M7: 1.55 | N7: 3.9 | O7: =SUM(N7,I7) -> 104.88
B8: 蓄積 | D8: 0 | G8: 0 | I8: 0 | L8: 0 | M8: 0 | N8: 0 | O8: =SUM(N8,I8) -> 0
B9: 成長 | D9: 0 | G9: 0 | I9: 0 | L9: 0 | M9: 0 | N9: 0 | O9: 0
A10: 2 | B10: 面積 | D10: 3.07 | G10: 73.27 | I10: 76.34 | L10: 2.38 | M10: 22.76 | N10: 25.14 | O10: 101.48
B11: 蓄積 | D11: 0 | G11: 0 | I11: 0 | L11: 31 | M11: 322 | N11: 353 | O11: 353
B12: 成長 | D12: 0 | G12: 0 | I12: 0 | L12: 4.4 | M12: 47.9 | N12: 52.3 | O12: 52.3
A13: 3 | B13: 面積 | D13: 0.06 | I13: 0.06 | L13: 0.1 | M13: 9.02 | N13: 9.12 | O13: 9.18
B14: 蓄積 | D14: 2 | I14: 2 | L14: 2 | M14: 208 | N14: 210 | O14: 212
B15: 成長 | D15: 0.4 | I15: 0.4 | L15: 0.2 | M15: 17.7 | N15: 17.9 | O15: 18.3
A16: 4 | B16: 面積 | D16: 1.01 | G16: 1.93 | I16: 2.94 | L16: 5.05 | M16: 34.08 | N16: 39.13 | O16: 42.07
B17: 蓄積 | D17: 80 | G17: 209 | I17: 289 | L17: 147 | M17: 1028 | N17: 1175 | O17: 1464
B18: 成長 | D18: 8.5 | G18: 12.6 | I18: 21.1 | L18: 9.9 | M18: 69.3 | N18: 79.2 | O18: 100.3
A19: 5 | B19: 面積 | C19: 0.05 | D19: 1.7 | F19: 0.28 | G19: 0.62 | I19: 2.65 | L19: 3.58 | M19: 36.35 | N19: 39.93 | O19: 42.58
B20: 蓄積 | C20: 9 | D20: 184 | F20: 35 | G20: 99 | I20: 327 | L20: 162 | M20: 1572 | N20: 1734 | O20: 2061
B21: 成長 | C21: 0.5 | D21: 13.2 | F21: 1.8 | G21: 4.6 | I21: 20.1 | L21: 8.4 | M21: 82.3 | N21: 90.7 | O21: 110.8
A22: 6 | B22: 面積 | C22: 0.05 | D22: 0.51 | F22: 1.42 | G22: 6.59 | I22: 8.57 | L22: 4.7 | M22: 51.35 | N22: 56.05 | O22: 64.62
B23: 蓄積 | C23: 12 | D23: 69 | F23: 185 | G23: 1323 | I23: 1589 | L23: 247 | M23: 2710 | N23: 2957 | O23: 4546
B24: 成長 | C24: 0.4 | D24: 3.8 | F24: 6.8 | G24: 30.5 | I24: 41.5 | L24: 10.3 | M24: 110.8 | N24: 121.1 | O24: 162.6
A25: 7 | B25: 面積 | C25: 0.18 | D25: 3.02 | F25: 2.21 | G25: 6.21 | H25: 0.61 | I25: 12.23 | L25: 15.38 | M25: 106.16 | N25: 121.54 | O25: 133.77
B26: 蓄積 | C26: 53 | D26: 1232 | F26: 341 | G26: 1445 | H26: 81 | I26: 3152 | L26: 962 | M26: 6444 | N26: 7406 | O26: 10558
B27: 成長 | C27: 1.5 | D27: 55.6 | F27: 8.4 | G27: 31.6 | H27: 3.3 | I27: 100.4 | L27: 30 | M27: 200.9 | N27: 230.9 | O27: 331.3
A28: 8 | B28: 面積 | C28: 0.08 | D28: 2.85 | F28: 0.59 | G28: 62.06 | H28: 0.38 | I28: 65.96 | L28: 13.99 | M28: 93.69 | N28: 107.68 | O28: 173.64
B29: 蓄積 | C29: 30 | D29: 1894 | F29: 105 | G29: 14463 | H29: 59 | I29: 16551 | L29: 1001 | M29: 6607 | N29: 7608 | O29: 24159
B30: 成長 | C30: 0.6 | D30: 70.1 | F30: 2.1 | G30: 305.7 | H30: 2.2 | I30: 380.7 | L30: 29.8 | M30: 199.1 | N30: 228.9 | O30: 609.6
A31: 9 | B31: 面積 | C31: 1.67 | D31: 32.12 | F31: 4.43 | G31: 129.17 | H31: 28.92 | I31: 196.31 | J31: 0.36 | L31: 5.21 | M31: 99.6 | N31: 105.17 | O31: 301.48
B32: 蓄積 | C32: 610 | D32: 8328 | F32: 824 | G32: 34685 | H32: 4922 | I32: 49369 | J32: 30 | L32: 431 | M32: 8174 | N32: 8635 | O32: 58004
B33: 成長 | C33: 11.1 | D33: 251.6 | F33: 12.8 | G33: 634.9 | H33: 174.6 | I33: 1085 | J33: 0.8 | L33: 11.9 | M33: 227.1 | N33: 239.8 | O33: 1324.8
A34: 10 | B34: 面積 | C34: 1.09 | D34: 5.35 | F34: 33.69 | G34: 189.58 | H34: 11.48 | I34: 241.19 | L34: 10.88 | M34: 99.01 | N34: 109.89 | O34: 351.08
B35: 蓄積 | C35: 514 | D35: 1600 | F35: 7094 | G35: 57108 | H35: 2244 | I35: 68560 | L35: 988 | M35: 9057 | N35: 10045 | O35: 78605
B36: 成長 | C36: 7.7 | D36: 46.2 | F36: 91.9 | G36: 855.6 | H36: 66.2 | I36: 1067.6 | L36: 25 | M36: 227.8 | N36: 252.8 | O36: 1320.4
A37: 11 | B37: 面積 | C37: 0.38 | D37: 0.13 | E37: 0.27 | F37: 93.19 | G37: 499.27 | H37: 36.19 | I37: 629.43 | J37: 0.11 | L37: 19.6 | M37: 119.16 | N37: 138.87 | O37: 768.3
B38: 蓄積 | C38: 158 | D38: 463 | E38: 106 | F38: 19188 | G38: 161092 | H38: 7946 | I38: 188953 | J38: 11 | L38: 1952 | M38: 11746 | N38: 13709 | O38: 202662 | P38: 伐 跡 | R38: 21.14
B39: 成長 | C39: 2 | D39: 11.2 | E39: 2.5 | F39: 214.4 | G39: 1944.6 | H39: 190.2 | I39: 2364.9 | J39: 0.2 | L39: 38.7 | M39: 229.8 | N39: 268.7 | O39: 2633.6 | P39: 未立木地 | R39: 71.33
A40: 12 | B40: 面積 | C40: 0.7 | F40: 129.57 | G40: 957.21 | H40: 9.24 | I40: 1096.72 | L40: 16.79 | M40: 189.42 | N40: 206.21 | O40: 1302.93 | P40: 岩石地 | R40: 27.23
B41: 蓄積 | C41: 329 | F41: 29672 | G41: 319649 | H41: 2467 | I41: 352117 | L41: 1740 | M41: 20059 | N41: 21799 | O41: 373916 | P41: 崩壊地 | R41: 14.09
B42: 成長 | C42: 3.5 | F42: 270.7 | G42: 2929.1 | H42: 49.4 | I42: 3252.7 | L42: 34.4 | M42: 386.5 | N42: 420.9 | O42: 3673.6 | P42: はげ山
A43: 13 | B43: 面積 | C43: 0.39 | E43: 0.66 | F43: 99.69 | G43: 1844.98 | H43: 5.16 | I43: 1950.88 | L43: 16.16 | M43: 237.21 | N43: 253.37 | O43: 2204.25 | P43: 施設敷 | R43: 67.22
B44: 蓄積 | C44: 197 | E44: 256 | F44: 23733 | G44: 640441 | H44: 1285 | I44: 665912 | L44: 1883 | M44: 26290 | N44: 28173 | O44: 694085 | P44: 林地開発
B45: 成長 | C45: 2.1 | E45: 5.3 | F45: 211.9 | G45: 5639.1 | H45: 26.5 | I45: 5884.9 | L45: 30.4 | M45: 433.2 | N45: 463.6 | O45: 6348.5 | P45: 計 | R45: =SUM(R38:R44) -> 201.01
A46: 14 | B46: 面積 | C46: 0.31 | D46: 0.02 | E46: 0.2 | F46: 51.91 | G46: 1333.95 | H46: 0.27 | I46: 1386.66 | J46: 0.09 | L46: 45.87 | M46: 671.95 | N46: 717.91 | O46: 2104.57 | P46: 竹 林 | R46: 2.96
B47: 蓄積 | C47: 165 | D47: 8 | E47: 84 | F47: 12629 | G47: 478101 | H47: 84 | I47: 491071 | J47: 11 | L47: 5464 | M47: 77843 | N47: 83318 | O47: 574389 | P47: 更新 困難地 | Q47: 面積 | R47: 0.51
B48: 成長 | C48: 1.6 | D48: 0.1 | E48: 1.5 | F48: 100.5 | G48: 3468.6 | H48: 1.4 | I48: 3573.7 | J48: 0.1 | L48: 60.6 | M48: 885.7 | N48: 946.4 | O48: 4520.1 | Q48: 蓄積 | R48: 76
A49: 15 以上 | B49: 面積 | C49: 2.76 | D49: 18.24 | E49: 7.27 | F49: 171.45 | G49: 911 | H49: 370.19 | I49: 1480.91 | J49: 0.46 | L49: 76.39 | M49: 1882.82 | N49: 1959.67 | O49: 3440.58 | Q49: 成長 | R49: 0.7
B50: 蓄積 | C50: 1475 | D50: 5785 | E50: 3799 | F50: 42563 | G50: 324504 | H50: 139808 | I50: 517934 | J50: 51 | L50: 9673 | M50: 232805 | N50: 242529 | O50: 760463
B51: 成長 | C51: 3.4 | D51: 1.2 | E51: 2.8 | F51: 164.3 | G51: 1466.8 | H51: 1099.1 | I51: 2737.6 | J51: 0.5 | L51: 67.7 | M51: 1068.4 | N51: 1136.6 | O51: 3874.2 | P51: 総 合 計
A52: 計 | B52: 面積 | C52: =SUM(C7,C10,C13,C16,C19,C22,C25,C28,C31,C34,C37,C40,C43,C46,C49) -> 7.66 | D52: 68.18 | E52: 8.4 | F52: 588.43 | G52: 6116.72 | H52: 462.44 | I52: =SUM(C52:H52) -> 7251.83 | J52: =SUM(J7,J10,J13,J16,J19,J22,J25,J28,J31,J34,J37,J40,J43,J46,J49) -> 1.02 | K52: =SUM(K7,K10,K13,K16,K19,K22,K25,K28,K31,K34,K37,K40,K43,K46,K49) -> 0 | L52: =SUM(L7,L10,L13,L16,L19,L22,L25,L28,L31,L34,L37,L40,L43,L46,L49) -> 238.43 | M52: =SUM(M7,M10,M13,M16,M19,M22,M25,M28,M31,M34,M37,M40,M43,M46,M49) -> 3654.13 | N52: =SUM(J52:M52) -> 3893.58 | O52: 11145.41 | P52: 面 積 | R52: =SUM(O52,R45,R47,R46) -> 11349.89
B53: 蓄積 | C53: 3552 | D53: 19645 | E53: 4245 | F53: 136369 | G53: 2033119 | H53: 158896 | I53: =SUM(C53:H53) -> 2355826 | J53: =SUM(J8,J11,J14,J17,J20,J23,J26,J29,J32,J35,J38,J41,J44,J47,J50) -> 103 | K53: 0 | L53: 24683 | M53: 404865 | N53: =SUM(J53:M53) -> 429651 | O53: 2785477 | P53: 蓄積 | R53: =O53+R48 -> 2785553
B54: 成長 | C54: 34.4 | D54: 461.9 | E54: 12.1 | F54: 1085.6 | G54: 17323.7 | H54: 1612.9 | I54: =SUM(C54:H54) -> 20530.6 | J54: 1.6 | K54: 0 | L54: 361.7 | M54: 4186.5 | N54: =SUM(J54:M54) -> 4549.8 | O54: 25080.4 | P54: 成長量 | R54: =O54+R49 -> 25081.1

Sheet 川上村
A1: 第11表 市町村別・資源構成表 （千曲川上流）
A3: =MID(CELL("filename",$A$1),FIND("]",CELL("filename",$A$1))+1,31) -> 川上村 | O3: 単位 面積 : ha、蓄積 成長量 : ㎥
B4: 樹種 | C4: 針 葉 樹 | J4: 広 葉 樹 | O4: 計
C5: ス ギ | D5: ヒ ノ キ | E5: サ ワ ラ | F5: ア カ マ ツ | G5: カ ラ マ ツ | H5: そ の 他 針 | I5: 小 計 | J5: ク ヌ ギ | K5: ブ ナ | L5: ナ ラ | M5: そ の 他 広 | N5: 小 計
A6: 齢級
A7: 1 | B7: 面積 | G7: 49.1 | I7: 49.1 | M7: 0.15 | N7: 0.15 | O7: =SUM(N7,I7) -> 49.25
B8: 蓄積 | G8: 0 | I8: 0 | M8: 0 | N8: 0 | O8: =SUM(N8,I8) -> 0
B9: 成長 | G9: 0 | I9: 0 | M9: 0 | N9: 0 | O9: 0
A10: 2 | B10: 面積 | E10: 0.26 | F10: 0.68 | G10: 44.34 | H10: 0.43 | I10: 45.71 | M10: 13.67 | N10: 13.67 | O10: 59.38
B11: 蓄積 | E11: 0 | F11: 0 | G11: 0 | H11: 0 | I11: 0 | M11: 214 | N11: 214 | O11: 214
B12: 成長 | E12: 0 | F12: 0 | G12: 0 | H12: 0 | I12: 0 | M12: 32.5 | N12: 32.5 | O12: 32.5
A13: 3 | B13: 面積 | G13: 18.93 | I13: 18.93 | M13: 0.53 | N13: 0.53 | O13: 19.46
B14: 蓄積 | G14: 2612 | H14: 15 | I14: 2627 | M14: 8 | N14: 8 | O14: 2635
B15: 成長 | G15: 193.2 | H15: 2 | I15: 195.2 | M15: 0.8 | N15: 0.8 | O15: 196
A16: 4 | B16: 面積 | G16: 21.38 | I16: 21.38 | M16: 22.3 | N16: 22.3 | O16: 43.68
B17: 蓄積 | G17: 2446 | I17: 2446 | M17: 682 | N17: 682 | O17: 3128
B18: 成長 | G18: 145.3 | I18: 145.3 | M18: 46.1 | N18: 46.1 | O18: 191.4
A19: 5 | B19: 面積 | D19: 0.64 | G19: 2.55 | I19: 3.19 | L19: 1.5 | M19: 7.16 | N19: 8.66 | O19: 11.85
B20: 蓄積 | D20: 73 | G20: 516 | H20: 200 | I20: 789 | L20: 198 | M20: 795 | N20: 993 | O20: 1782
B21: 成長 | D21: 5.2 | G21: 24.1 | H21: 14.3 | I21: 43.6 | L21: 10.1 | M21: 40.4 | N21: 50.5 | O21: 94.1
A22: 6 | B22: 面積 | D22: 1.05 | E22: 0.41 | G22: 5.59 | H22: 1.43 | I22: 8.48 | L22: 1.26 | M22: 13.86 | N22: 15.12 | O22: 23.6
B23: 蓄積 | C23: 542 | D23: 151 | E23: 48 | G23: 1106 | H23: 2877 | I23: 4724 | L23: 39 | M23: 1476 | N23: 1515 | O23: 6239
B24: 成長 | C24: 19.5 | D24: 8.4 | E24: 2.7 | G24: 25.4 | H24: 152.5 | I24: 208.5 | L24: 1.6 | M24: 60.4 | N24: 62 | O24: 270.5
A25: 7 | B25: 面積 | F25: 0.97 | G25: 16.2 | H25: 15.08 | I25: 32.25 | K25: 0.44 | M25: 30 | N25: 30.44 | O25: 62.69
B26: 蓄積 | D26: 499 | F26: 110 | G26: 3684 | H26: 5370 | I26: 9663 | K26: 20 | L26: 537 | M26: 1852 | N26: 2409 | O26: 12072
B27: 成長 | D27: 22.4 | F27: 3.6 | G27: 81 | H27: 233.5 | I27: 340.5 | K27: 1.1 | L27: 16.1 | M27: 57.5 | N27: 74.7 | O27: 415.2
A28: 8 | B28: 面積 | F28: 2.05 | G28: 24.55 | H28: 0.48 | I28: 27.08 | K28: 0.04 | M28: 18.78 | N28: 18.82 | O28: 45.9
B29: 蓄積 | F29: 284 | G29: 6332 | H29: 6967 | I29: 13583 | K29: 2 | M29: 1047 | N29: 1049 | O29: 14632
B30: 成長 | F30: 7.3 | G30: 132.6 | H30: 264.7 | I30: 404.6 | K30: 0.1 | M30: 31.5 | N30: 31.6 | O30: 436.2
A31: 9 | B31: 面積 | D31: 0.78 | F31: 2.56 | G31: 300.41 | H31: 1.92 | I31: 305.67 | L31: 1.61 | M31: 25.05 | N31: 26.66 | O31: 332.33
B32: 蓄積 | D32: 206 | F32: 470 | G32: 85050 | H32: 1781 | I32: 87507 | L32: 124 | M32: 1854 | N32: 1978 | O32: 89485
B33: 成長 | D33: 6.2 | F33: 6.9 | G33: 1532.6 | H33: 65.1 | I33: 1610.8 | L33: 3.5 | M33: 50.8 | N33: 54.3 | O33: 1665.1
A34: 10 | B34: 面積 | D34: 0.58 | F34: 5.15 | G34: 600.81 | H34: 1.78 | I34: 608.32 | M34: 20.35 | N34: 20.35 | O34: 628.67
B35: 蓄積 | D35: 181 | F35: 877 | G35: 176877 | H35: 469 | I35: 178404 | M35: 1776 | N35: 1776 | O35: 180180
B36: 成長 | D36: 5.2 | F36: 11.3 | G36: 2646.5 | H36: 13.6 | I36: 2676.6 | M36: 44.6 | N36: 44.6 | O36: 2721.2
A37: 11 | B37: 面積 | F37: 6.77 | G37: 1099.91 | H37: 8.35 | I37: 1115.03 | M37: 66.22 | N37: 66.22 | O37: 1181.25
B38: 蓄積 | F38: 1437 | G38: 334160 | H38: 1694 | I38: 337291 | M38: 6382 | N38: 6382 | O38: 343673 | P38: 伐 跡 | R38: 77.35
B39: 成長 | F39: 15.8 | G39: 4032.7 | H39: 40.8 | I39: 4089.3 | M39: 124.1 | N39: 124.1 | O39: 4213.4 | P39: 未立木地 | R39: 81.42
A40: 12 | B40: 面積 | F40: 17.7 | G40: 1385.11 | H40: 9.64 | I40: 1412.45 | L40: 7.78 | M40: 179.46 | N40: 187.24 | O40: 1599.69 | P40: 岩石地 | R40: 271.88
B41: 蓄積 | F41: 5248 | G41: 433562 | H41: 2454 | I41: 441264 | L41: 1027 | M41: 18737 | N41: 19764 | O41: 461028 | P41: 崩壊地 | R41: 73.92
B42: 成長 | F42: 47.2 | G42: 4063.7 | H42: 49.8 | I42: 4160.7 | L42: 20 | M42: 355.6 | N42: 375.6 | O42: 4536.3 | P42: はげ山 | R42: 1.39
A43: 13 | B43: 面積 | F43: 21.4 | G43: 1557.16 | H43: 0.67 | I43: 1579.23 | L43: 51.19 | M43: 312.18 | N43: 363.37 | O43: 1942.6 | P43: 施設敷 | R43: 35.43
B44: 蓄積 | F44: 5211 | G44: 502442 | H44: 168 | I44: 507821 | L44: 5004 | M44: 32577 | N44: 37581 | O44: 545402 | P44: 林地開発
B45: 成長 | F45: 41.7 | G45: 4473.7 | H45: 3.1 | I45: 4518.5 | L45: 74.3 | M45: 515.7 | N45: 590 | O45: 5108.5 | P45: 計 | R45: =SUM(R38:R44) -> 541.39
A46: 14 | B46: 面積 | E46: 0.2 | F46: 15.83 | G46: 1910.24 | H46: 7.51 | I46: 1933.78 | L46: 72.37 | M46: 558.15 | N46: 630.52 | O46: 2564.3 | P46: 竹 林
B47: 蓄積 | E47: 84 | F47: 3382 | G47: 653531 | H47: 1925 | I47: 658922 | L47: 8619 | M47: 62381 | N47: 71000 | O47: 729922 | P47: 更新 困難地 | Q47: 面積 | R47: 54.6
B48: 成長 | E48: 1.5 | F48: 28.1 | G48: 4882.7 | H48: 34.3 | I48: 4946.6 | L48: 96 | M48: 722.2 | N48: 818.2 | O48: 5764.8 | Q48: 蓄積 | R48: 11693
A49: 15 以上 | B49: 面積 | E49: 4.02 | F49: 176.3 | G49: 1414.25 | H49: 382.75 | I49: 1977.32 | L49: 238.45 | M49: 2090.14 | N49: 2328.59 | O49: 4305.91 | Q49: 成長 | R49: 54.7
B50: 蓄積 | E50: 1649 | F50: 44351 | G50: 509544 | H50: 151594 | I50: 707138 | L50: 29038 | M50: 249347 | N50: 278385 | O50: 985523
B51: 成長 | E51: 14.2 | F51: 168.7 | G51: 2381.8 | H51: 687.5 | I51: 3252.2 | L51: 164.6 | M51: 1295.4 | N51: 1460 | O51: 4712.2 | P51: 総 合 計
A52: 計 | B52: 面積 | C52: =SUM(C7,C10,C13,C16,C19,C22,C25,C28,C31,C34,C37,C40,C43,C46,C49) -> 0 | D52: 3.05 | E52: 4.89 | F52: 249.41 | G52: 8450.53 | H52: 430.04 | I52: =SUM(C52:H52) -> 9137.92 | J52: =SUM(J7,J10,J13,J16,J19,J22,J25,J28,J31,J34,J37,J40,J43,J46,J49) -> 0 | K52: =SUM(K7,K10,K13,K16,K19,K22,K25,K28,K31,K34,K37,K40,K43,K46,K49) -> 0.48 | L52: =SUM(L7,L10,L13,L16,L19,L22,L25,L28,L31,L34,L37,L40,L43,L46,L49) -> 374.16 | M52: =SUM(M7,M10,M13,M16,M19,M22,M25,M28,M31,M34,M37,M40,M43,M46,M49) -> 3358 | N52: =SUM(J52:M52) -> 3732.64 | O52: 12870.56 | P52: 面 積 | R52: =SUM(O52,R45,R47,R46) -> 13466.55
B53: 蓄積 | C53: 542 | D53: 1110 | E53: 1781 | F53: 61370 | G53: 2711862 | H53: 175514 | I53: =SUM(C53:H53) -> 2952179 | J53: =SUM(J8,J11,J14,J17,J20,J23,J26,J29,J32,J35,J38,J41,J44,J47,J50) -> 0 | K53: 22 | L53: 44586 | M53: 379128 | N53: =SUM(J53:M53) -> 423736 | O53: 3375915 | P53: 蓄積 | R53: =O53+R48 -> 3387608
B54: 成長 | C54: 19.5 | D54: 47.4 | E54: 18.4 | F54: 330.6 | G54: 24615.3 | H54: 1561.2 | I54: =SUM(C54:H54) -> 26592.4 | J54: 0 | K54: 1.2 | L54: 386.2 | M54: 3377.6 | N54: =SUM(J54:M54) -> 3765 | O54: 30357.4 | P54: 成長量 | R54: =O54+R49 -> 30412.1

Sheet 南牧村
A1: 第11表 市町村別・資源構成表 （千曲川上流）
A3: =MID(CELL("filename",$A$1),FIND("]",CELL("filename",$A$1))+1,31) -> 南牧村 | O3: 単位 面積 : ha、蓄積 成長量 : ㎥
B4: 樹種 | C4: 針 葉 樹 | J4: 広 葉 樹 | O4: 計
C5: ス ギ | D5: ヒ ノ キ | E5: サ ワ ラ | F5: ア カ マ ツ | G5: カ ラ マ ツ | H5: そ の 他 針 | I5: 小 計 | J5: ク ヌ ギ | K5: ブ ナ | L5: ナ ラ | M5: そ の 他 広 | N5: 小 計
A6: 齢級
A7: 1 | B7: 面積 | F7: 0.05 | G7: 8.94 | I7: 8.99 | L7: 2.19 | M7: 42.85 | N7: 45.04 | O7: =SUM(N7,I7) -> 54.03
B8: 蓄積 | F8: 0 | G8: 0 | I8: 0 | L8: 0 | M8: 0 | N8: 0 | O8: =SUM(N8,I8) -> 0
B9: 成長 | F9: 0 | G9: 0 | I9: 0 | L9: 0 | M9: 0 | N9: 0 | O9: 0
A10: 2 | B10: 面積 | G10: 6.4 | I10: 6.4 | K10: 0.43 | M10: 4.91 | N10: 5.34 | O10: 11.74
B11: 蓄積 | G11: 0 | I11: 0 | K11: 0 | M11: 65 | N11: 65 | O11: 65
B12: 成長 | G12: 0 | I12: 0 | K12: 0 | M12: 8.6 | N12: 8.6 | O12: 8.6
A13: 3 | B13: 面積 | I13: 0 | M13: 0.5 | N13: 0.5 | O13: 0.5
B14: 蓄積 | I14: 0 | M14: 11 | N14: 11 | O14: 11
B15: 成長 | I15: 0 | M15: 1 | N15: 1 | O15: 1
A16: 4 | B16: 面積 | I16: 0 | M16: 5.15 | N16: 5.15 | O16: 5.15
B17: 蓄積 | G17: 57 | I17: 57 | M17: 222 | N17: 222 | O17: 279
B18: 成長 | G18: 3.4 | I18: 3.4 | M18: 15 | N18: 15 | O18: 18.4
A19: 5 | B19: 面積 | D19: 0.56 | F19: 0.54 | H19: 2.13 | I19: 3.23 | M19: 1.34 | N19: 1.34 | O19: 4.57
B20: 蓄積 | D20: 64 | F20: 68 | H20: 378 | I20: 510 | M20: 44 | N20: 44 | O20: 554
B21: 成長 | D21: 4.5 | F21: 3.4 | H21: 26.7 | I21: 34.6 | M21: 2.3 | N21: 2.3 | O21: 36.9
A22: 6 | B22: 面積 | D22: 0.64 | F22: 3.03 | G22: 1.95 | H22: 1.39 | I22: 7.01 | M22: 19.15 | N22: 19.15 | O22: 26.16
B23: 蓄積 | D23: 82 | F23: 447 | G23: 352 | H23: 124 | I23: 1005 | M23: 661 | N23: 661 | O23: 1666
B24: 成長 | D24: 4.5 | F24: 16.5 | G24: 8.1 | H24: 6.6 | I24: 35.7 | M24: 26.6 | N24: 26.6 | O24: 62.3
A25: 7 | B25: 面積 | E25: 0.54 | G25: 1.87 | H25: 3.69 | I25: 6.1 | M25: 10.07 | N25: 10.07 | O25: 16.17
B26: 蓄積 | E26: 90 | G26: 414 | H26: 365 | I26: 869 | M26: 426 | N26: 426 | O26: 1295
B27: 成長 | E27: 4.1 | G27: 9.1 | H27: 16 | I27: 29.2 | M27: 13.2 | N27: 13.2 | O27: 42.4
A28: 8 | B28: 面積 | E28: 0.02 | G28: 4.66 | H28: 1.72 | I28: 6.4 | L28: 0.91 | M28: 46.53 | N28: 47.44 | O28: 53.84
B29: 蓄積 | E29: 4 | G29: 984 | H29: 248 | I29: 1236 | L29: 61 | M29: 2451 | N29: 2512 | O29: 3748
B30: 成長 | E30: 0.1 | G30: 21.4 | H30: 9.5 | I30: 31 | L30: 1.8 | M30: 73.8 | N30: 75.6 | O30: 106.6
A31: 9 | B31: 面積 | D31: 0.27 | F31: 4.69 | G31: 29.23 | I31: 34.19 | L31: 0.09 | M31: 12.92 | N31: 13.01 | O31: 47.2
B32: 蓄積 | D32: 72 | F32: 882 | G32: 7539 | I32: 8493 | L32: 8 | M32: 932 | N32: 940 | O32: 9433
B33: 成長 | D33: 2.1 | F33: 13.3 | G33: 140.7 | I33: 156.1 | L33: 0.2 | M33: 25.7 | N33: 25.9 | O33: 182
A34: 10 | B34: 面積 | D34: 0.17 | F34: 4.74 | G34: 94.41 | H34: 1.17 | I34: 100.49 | L34: 1.73 | M34: 66.71 | N34: 68.44 | O34: 168.93
B35: 蓄積 | D35: 40 | F35: 1008 | G35: 25295 | H35: 246 | I35: 26589 | L35: 162 | M35: 5530 | N35: 5692 | O35: 32281
B36: 成長 | D36: 1.1 | F36: 13 | G36: 387.6 | H36: 7.4 | I36: 409.1 | L36: 4.2 | M36: 140.8 | N36: 145 | O36: 554.1
A37: 11 | B37: 面積 | E37: 0.05 | F37: 6.27 | G37: 315.99 | H37: 11.35 | I37: 333.66 | M37: 36.4 | N37: 36.4 | O37: 370.06
B38: 蓄積 | E38: 16 | F38: 1257 | G38: 90371 | H38: 2065 | I38: 93709 | M38: 2581 | N38: 2581 | O38: 96290 | P38: 伐 跡 | R38: 24.64
B39: 成長 | E39: 0.4 | F39: 14.3 | G39: 1086.5 | H39: 48.3 | I39: 1149.5 | M39: 49.4 | N39: 49.4 | O39: 1198.9 | P39: 未立木地 | R39: 61.83
A40: 12 | B40: 面積 | F40: 1.55 | G40: 715.19 | H40: 12.16 | I40: 728.9 | L40: 0.83 | M40: 90.34 | N40: 91.17 | O40: 820.07 | P40: 岩石地 | R40: 21.63
B41: 蓄積 | F41: 345 | G41: 210189 | H41: 2579 | I41: 213113 | L41: 89 | M41: 7502 | N41: 7591 | O41: 220704 | P41: 崩壊地 | R41: 12.13
B42: 成長 | F42: 3.3 | G42: 1935.9 | H42: 54 | I42: 1993.2 | L42: 1.8 | M42: 143.8 | N42: 145.6 | O42: 2138.8 | P42: はげ山
A43: 13 | B43: 面積 | F43: 6.38 | G43: 736.8 | H43: 0.14 | I43: 743.32 | L43: 5.75 | M43: 150.92 | N43: 156.67 | O43: 899.99 | P43: 施設敷 | R43: 17.95
B44: 蓄積 | F44: 1416 | G44: 227237 | H44: 40 | I44: 228693 | L44: 592 | M44: 15392 | N44: 15984 | O44: 244677 | P44: 林地開発
B45: 成長 | F45: 12.9 | G45: 1979 | H45: 0.8 | I45: 1992.7 | L45: 9 | M45: 231.8 | N45: 240.8 | O45: 2233.5 | P45: 計 | R45: =SUM(R38:R44) -> 138.18
A46: 14 | B46: 面積 | F46: 15.74 | G46: 830.24 | H46: 0.25 | I46: 846.23 | L46: 24.74 | M46: 425.09 | N46: 449.83 | O46: 1296.06 | P46: 竹 林
B47: 蓄積 | F47: 3616 | G47: 274210 | H47: 78 | I47: 277904 | L47: 2489 | M47: 44192 | N47: 46681 | O47: 324585 | P47: 更新 困難地 | Q47: 面積
B48: 成長 | F48: 29.6 | G48: 1909.4 | H48: 1.3 | I48: 1940.3 | L48: 31.2 | M48: 546.4 | N48: 577.6 | O48: 2517.9 | Q48: 蓄積
A49: 15 以上 | B49: 面積 | D49: 0.32 | E49: 0.15 | F49: 42.52 | G49: 1091.58 | H49: 32.16 | I49: 1166.73 | L49: 97.35 | M49: 1111.26 | N49: 1208.61 | O49: 2375.34 | Q49: 成長
B50: 蓄積 | D50: 154 | E50: 72 | F50: 10343 | G50: 354684 | H50: 11260 | I50: 376513 | L50: 11317 | M50: 118964 | N50: 130281 | O50: 506794
B51: 成長 | D51: 0.6 | E51: 0.5 | F51: 27.6 | G51: 1493.3 | H51: 105.8 | I51: 1627.8 | L51: 89.3 | M51: 867.9 | N51: 957.2 | O51: 2585 | P51: 総 合 計
A52: 計 | B52: 面積 | C52: =SUM(C7,C10,C13,C16,C19,C22,C25,C28,C31,C34,C37,C40,C43,C46,C49) -> 0 | D52: 1.96 | E52: 0.76 | F52: 85.51 | G52: 3837.26 | H52: 66.16 | I52: =SUM(C52:H52) -> 3991.65 | J52: =SUM(J7,J10,J13,J16,J19,J22,J25,J28,J31,J34,J37,J40,J43,J46,J49) -> 0 | K52: =SUM(K7,K10,K13,K16,K19,K22,K25,K28,K31,K34,K37,K40,K43,K46,K49) -> 0.43 | L52: =SUM(L7,L10,L13,L16,L19,L22,L25,L28,L31,L34,L37,L40,L43,L46,L49) -> 133.59 | M52: =SUM(M7,M10,M13,M16,M19,M22,M25,M28,M31,M34,M37,M40,M43,M46,M49) -> 2024.14 | N52: =SUM(J52:M52) -> 2158.16 | O52: 6149.81 | P52: 面 積 | R52: =SUM(O52,R45,R47,R46) -> 6287.99
B53: 蓄積 | C53: 0 | D53: 412 | E53: 182 | F53: 19382 | G53: 1191332 | H53: 17383 | I53: =SUM(C53:H53) -> 1228691 | J53: =SUM(J8,J11,J14,J17,J20,J23,J26,J29,J32,J35,J38,J41,J44,J47,J50) -> 0 | K53: 0 | L53: 14718 | M53: 198973 | N53: =SUM(J53:M53) -> 213691 | O53: 1442382 | P53: 蓄積 | R53: =O53+R48 -> 1442382
B54: 成長 | C54: 0 | D54: 12.8 | E54: 5.1 | F54: 133.9 | G54: 8974.4 | H54: 276.4 | I54: =SUM(C54:H54) -> 9402.6 | J54: 0 | K54: 0 | L54: 137.5 | M54: 2146.3 | N54: =SUM(J54:M54) -> 2283.8 | O54: 11686.4 | P54: 成長量 | R54: =O54+R49 -> 11686.4

Sheet 南相木村
A1: 第11表 市町村別・資源構成表 （千曲川上流）
A3: =MID(CELL("filename",$A$1),FIND("]",CELL("filename",$A$1))+1,31) -> 南相木村 | O3: 単位 面積 : ha、蓄積 成長量 : ㎥
B4: 樹種 | C4: 針 葉 樹 | J4: 広 葉 樹 | O4: 計
C5: ス ギ | D5: ヒ ノ キ | E5: サ ワ ラ | F5: ア カ マ ツ | G5: カ ラ マ ツ | H5: そ の 他 針 | I5: 小 計 | J5: ク ヌ ギ | K5: ブ ナ | L5: ナ ラ | M5: そ の 他 広 | N5: 小 計
A6: 齢級
A7: 1 | B7: 面積 | G7: 68.58 | I7: 68.58 | L7: 0.79 | M7: 16.27 | N7: 17.06 | O7: =SUM(N7,I7) -> 85.64
B8: 蓄積 | G8: 0 | I8: 0 | L8: 0 | M8: 0 | N8: 0 | O8: =SUM(N8,I8) -> 0
B9: 成長 | G9: 0 | I9: 0 | L9: 0 | M9: 0 | N9: 0 | O9: 0
A10: 2 | B10: 面積 | G10: 22.61 | I10: 22.61 | M10: 12.14 | N10: 12.14 | O10: 34.75
B11: 蓄積 | G11: 0 | I11: 0 | M11: 178 | N11: 178 | O11: 178
B12: 成長 | G12: 0 | I12: 0 | M12: 26.3 | N12: 26.3 | O12: 26.3
A13: 3 | B13: 面積 | I13: 0 | N13: 0 | O13: 0
B14: 蓄積 | I14: 0 | N14: 0 | O14: 0
B15: 成長 | I15: 0 | N15: 0 | O15: 0
A16: 4 | B16: 面積 | D16: 0.56 | G16: 0.77 | I16: 1.33 | M16: 8.26 | N16: 8.26 | O16: 9.59
B17: 蓄積 | D17: 44 | G17: 101 | I17: 145 | M17: 242 | N17: 242 | O17: 387
B18: 成長 | D18: 4.7 | G18: 5.9 | I18: 10.6 | M18: 16.5 | N18: 16.5 | O18: 27.1
A19: 5 | B19: 面積 | I19: 0 | L19: 0.03 | M19: 0.26 | N19: 0.29 | O19: 0.29
B20: 蓄積 | I20: 0 | L20: 0 | M20: 4 | N20: 4 | O20: 4
B21: 成長 | I21: 0 | L21: 0 | M21: 0.2 | N21: 0.2 | O21: 0.2
A22: 6 | B22: 面積 | D22: 3.04 | G22: 10.51 | I22: 13.55 | L22: 0.11 | M22: 7.53 | N22: 7.64 | O22: 21.19
B23: 蓄積 | D23: 304 | G23: 2103 | I23: 2407 | L23: 6 | M23: 374 | N23: 380 | O23: 2787
B24: 成長 | D24: 17.3 | G24: 48.4 | I24: 65.7 | L24: 0.2 | M24: 15.1 | N24: 15.3 | O24: 81
A25: 7 | B25: 面積 | F25: 0.61 | G25: 2.12 | H25: 0.22 | I25: 2.95 | L25: 2.44 | M25: 29.16 | N25: 31.6 | O25: 34.55
B26: 蓄積 | F26: 99 | G26: 437 | H26: 26 | I26: 562 | L26: 146 | M26: 1755 | N26: 1901 | O26: 2463
B27: 成長 | F27: 2.4 | G27: 9.8 | H27: 1.2 | I27: 13.4 | L27: 4.5 | M27: 54.3 | N27: 58.8 | O27: 72.2
A28: 8 | B28: 面積 | D28: 1.01 | F28: 1.9 | G28: 4.34 | H28: 0.33 | I28: 7.58 | L28: 0.82 | M28: 45.5 | N28: 46.32 | O28: 53.9
B29: 蓄積 | D29: 228 | F29: 343 | G29: 1018 | H29: 208 | I29: 1797 | L29: 59 | M29: 3036 | N29: 3095 | O29: 4892
B30: 成長 | D30: 8.4 | F30: 6.9 | G30: 21.8 | H30: 7.9 | I30: 45 | L30: 1.8 | M30: 91.3 | N30: 93.1 | O30: 138.1
A31: 9 | B31: 面積 | D31: 0.07 | F31: 4.47 | G31: 8.15 | H31: 0.23 | I31: 12.92 | L31: 0.22 | M31: 10.55 | N31: 10.77 | O31: 23.69
B32: 蓄積 | D32: 17 | F32: 861 | G32: 2291 | H32: 44 | I32: 3213 | L32: 17 | M32: 847 | N32: 864 | O32: 4077
B33: 成長 | D33: 0.5 | F33: 12.8 | G33: 41.5 | H33: 1.5 | I33: 56.3 | L33: 0.5 | M33: 23.6 | N33: 24.1 | O33: 80.4
A34: 10 | B34: 面積 | F34: 18.89 | G34: 69.77 | H34: 0.09 | I34: 88.75 | L34: 0.78 | M34: 27.25 | N34: 28.03 | O34: 116.78
B35: 蓄積 | F35: 3798 | G35: 19878 | H35: 20 | I35: 23696 | L35: 72 | M35: 2047 | N35: 2119 | O35: 25815
B36: 成長 | F36: 49.8 | G36: 301.6 | H36: 0.7 | I36: 352.1 | L36: 1.7 | M36: 52.1 | N36: 53.8 | O36: 405.9
A37: 11 | B37: 面積 | F37: 59.46 | G37: 160.32 | H37: 0.42 | I37: 220.2 | L37: 0.28 | M37: 7.7 | N37: 7.98 | O37: 228.18
B38: 蓄積 | F38: 12839 | G38: 50406 | H38: 103 | I38: 63348 | L38: 29 | M38: 748 | N38: 777 | O38: 64125 | P38: 伐 跡 | R38: 9.43
B39: 成長 | F39: 142.5 | G39: 605.8 | H39: 2.3 | I39: 750.6 | L39: 0.5 | M39: 14.6 | N39: 15.1 | O39: 765.7 | P39: 未立木地 | R39: 4.04
A40: 12 | B40: 面積 | F40: 74.31 | G40: 296.77 | H40: 0.43 | I40: 371.51 | L40: 0.88 | M40: 22.94 | N40: 23.82 | O40: 395.33 | P40: 岩石地 | R40: 61.89
B41: 蓄積 | F41: 16554 | G41: 98037 | H41: 90 | I41: 114681 | L41: 91 | M41: 2326 | N41: 2417 | O41: 117098 | P41: 崩壊地 | R41: 9.73
B42: 成長 | F42: 153.1 | G42: 892.2 | H42: 1.9 | I42: 1047.2 | L42: 1.7 | M42: 45.2 | N42: 46.9 | O42: 1094.1 | P42: はげ山
A43: 13 | B43: 面積 | F43: 87.37 | G43: 734.37 | I43: 821.74 | L43: 15.59 | M43: 167.24 | N43: 182.83 | O43: 1004.57 | P43: 施設敷 | R43: 17.82
B44: 蓄積 | F44: 20670 | G44: 245944 | I44: 266614 | L44: 1580 | M44: 16957 | N44: 18537 | O44: 285151 | P44: 林地開発
B45: 成長 | F45: 183.2 | G45: 2193.8 | I45: 2377 | L45: 26.8 | M45: 285.4 | N45: 312.2 | O45: 2689.2 | P45: 計 | R45: =SUM(R38:R44) -> 102.91
A46: 14 | B46: 面積 | D46: 0.07 | F46: 81.05 | G46: 555.27 | H46: 6.3 | I46: 642.69 | L46: 27.83 | M46: 248.26 | N46: 276.09 | O46: 918.78 | P46: 竹 林 | R46: 0.65
B47: 蓄積 | D47: 30 | F47: 18838 | G47: 192594 | H47: 1560 | I47: 213022 | L47: 2924 | M47: 26233 | N47: 29157 | O47: 242179 | P47: 更新 困難地 | Q47: 面積 | R47: 32.32
B48: 成長 | D48: 0.5 | F48: 152.7 | G48: 1363.4 | H48: 28 | I48: 1544.6 | L48: 37.4 | M48: 330.7 | N48: 368.1 | O48: 1912.7 | Q48: 蓄積 | R48: 5135
A49: 15 以上 | B49: 面積 | D49: 0.14 | E49: 0.31 | F49: 110.14 | G49: 349.93 | H49: 1.27 | I49: 461.79 | L49: 26.7 | M49: 260.18 | N49: 286.88 | O49: 748.67 | Q49: 成長 | R49: 21.7
B50: 蓄積 | D50: 67 | E50: 141 | F50: 27762 | G50: 127069 | H50: 362 | I50: 155401 | L50: 3390 | M50: 30459 | N50: 33849 | O50: 189250
B51: 成長 | D51: 0.1 | E51: 0.7 | F51: 98.1 | G51: 584.1 | H51: 5.1 | I51: 688.1 | L51: 26.3 | M51: 222.7 | N51: 249 | O51: 937.1 | P51: 総 合 計
A52: 計 | B52: 面積 | C52: =SUM(C7,C10,C13,C16,C19,C22,C25,C28,C31,C34,C37,C40,C43,C46,C49) -> 0 | D52: 4.89 | E52: 0.31 | F52: 438.2 | G52: 2283.51 | H52: 9.29 | I52: =SUM(C52:H52) -> 2736.2 | J52: =SUM(J7,J10,J13,J16,J19,J22,J25,J28,J31,J34,J37,J40,J43,J46,J49) -> 0 | K52: =SUM(K7,K10,K13,K16,K19,K22,K25,K28,K31,K34,K37,K40,K43,K46,K49) -> 0 | L52: =SUM(L7,L10,L13,L16,L19,L22,L25,L28,L31,L34,L37,L40,L43,L46,L49) -> 76.47 | M52: =SUM(M7,M10,M13,M16,M19,M22,M25,M28,M31,M34,M37,M40,M43,M46,M49) -> 863.24 | N52: =SUM(J52:M52) -> 939.71 | O52: 3675.91 | P52: 面 積 | R52: =SUM(O52,R45,R47,R46) -> 3811.79
B53: 蓄積 | C53: 0 | D53: 690 | E53: 141 | F53: 101764 | G53: 739878 | H53: 2413 | I53: =SUM(C53:H53) -> 844886 | J53: =SUM(J8,J11,J14,J17,J20,J23,J26,J29,J32,J35,J38,J41,J44,J47,J50) -> 0 | K53: 0 | L53: 8314 | M53: 85206 | N53: =SUM(J53:M53) -> 93520 | O53: 938406 | P53: 蓄積 | R53: =O53+R48 -> 943541
B54: 成長 | C54: 0 | D54: 31.5 | E54: 0.7 | F54: 801.5 | G54: 6068.3 | H54: 48.6 | I54: =SUM(C54:H54) -> 6950.6 | J54: 0 | K54: 0 | L54: 101.4 | M54: 1178 | N54: =SUM(J54:M54) -> 1279.4 | O54: 8230 | P54: 成長量 | R54: =O54+R49 -> 8251.7

Sheet 北相木村
A1: 第11表 市町村別・資源構成表 （千曲川上流）
A3: =MID(CELL("filename",$A$1),FIND("]",CELL("filename",$A$1))+1,31) -> 北相木村 | O3: 単位 面積 : ha、蓄積 成長量 : ㎥
B4: 樹種 | C4: 針 葉 樹 | J4: 広 葉 樹 | O4: 計
C5: ス ギ | D5: ヒ ノ キ | E5: サ ワ ラ | F5: ア カ マ ツ | G5: カ ラ マ ツ | H5: そ の 他 針 | I5: 小 計 | J5: ク ヌ ギ | K5: ブ ナ | L5: ナ ラ | M5: そ の 他 広 | N5: 小 計
A6: 齢級
A7: 1 | B7: 面積 | G7: 23.79 | I7: 23.79 | M7: 0.85 | N7: 0.85 | O7: =SUM(N7,I7) -> 24.64
B8: 蓄積 | G8: 0 | I8: 0 | M8: 0 | N8: 0 | O8: =SUM(N8,I8) -> 0
B9: 成長 | G9: 0 | I9: 0 | M9: 0 | N9: 0 | O9: 0
A10: 2 | B10: 面積 | E10: 0.05 | G10: 37.4 | I10: 37.45 | L10: 0.4 | M10: 16.66 | N10: 17.06 | O10: 54.51
B11: 蓄積 | E11: 0 | G11: 0 | I11: 0 | L11: 3 | M11: 218 | N11: 221 | O11: 221
B12: 成長 | E12: 0 | G12: 0 | I12: 0 | L12: 0.4 | M12: 30.2 | N12: 30.6 | O12: 30.6
A13: 3 | B13: 面積 | I13: 0 | N13: 0 | O13: 0
B14: 蓄積 | I14: 0 | N14: 0 | O14: 0
B15: 成長 | I15: 0 | N15: 0 | O15: 0
A16: 4 | B16: 面積 | I16: 0 | M16: 0.06 | N16: 0.06 | O16: 0.06
B17: 蓄積 | I17: 0 | M17: 2 | N17: 2 | O17: 2
B18: 成長 | I18: 0 | M18: 0.1 | N18: 0.1 | O18: 0.1
A19: 5 | B19: 面積 | D19: 0.08 | I19: 0.08 | M19: 0.89 | N19: 0.89 | O19: 0.97
B20: 蓄積 | D20: 10 | I20: 10 | M20: 26 | N20: 26 | O20: 36
B21: 成長 | D21: 0.7 | I21: 0.7 | M21: 1.4 | N21: 1.4 | O21: 2.1
A22: 6 | B22: 面積 | D22: 3.81 | H22: 0.45 | I22: 4.26 | M22: 13.12 | N22: 13.12 | O22: 17.38
B23: 蓄積 | D23: 568 | H23: 50 | I23: 618 | M23: 829 | N23: 829 | O23: 1447
B24: 成長 | D24: 31.2 | H24: 2.6 | I24: 33.8 | M24: 34.1 | N24: 34.1 | O24: 67.9
A25: 7 | B25: 面積 | D25: 0.66 | F25: 0.37 | G25: 0.89 | H25: 0.24 | I25: 2.16 | L25: 1.06 | M25: 24.39 | N25: 25.45 | O25: 27.61
B26: 蓄積 | D26: 304 | F26: 60 | G26: 205 | H26: 29 | I26: 598 | L26: 65 | M26: 1460 | N26: 1525 | O26: 2123
B27: 成長 | D27: 13.7 | F27: 1.5 | G27: 4.6 | H27: 1.3 | I27: 21.1 | L27: 2 | M27: 45.4 | N27: 47.4 | O27: 68.5
A28: 8 | B28: 面積 | F28: 2.15 | G28: 2.01 | I28: 4.16 | M28: 27.89 | N28: 27.89 | O28: 32.05
B29: 蓄積 | D29: 93 | F29: 382 | G29: 516 | I29: 991 | M29: 1849 | N29: 1849 | O29: 2840
B30: 成長 | D30: 3.5 | F30: 7.6 | G30: 10.9 | I30: 22 | M30: 55.7 | N30: 55.7 | O30: 77.7
A31: 9 | B31: 面積 | C31: 0.06 | D31: 0.18 | F31: 1.62 | G31: 25.67 | H31: 0.25 | I31: 27.78 | M31: 13.86 | N31: 13.86 | O31: 41.64
B32: 蓄積 | C32: 22 | D32: 48 | F32: 318 | G32: 6983 | H32: 45 | I32: 7416 | M32: 939 | N32: 939 | O32: 8355
B33: 成長 | C33: 0.4 | D33: 1.4 | F33: 4.6 | G33: 126 | H33: 1.6 | I33: 134 | M33: 26.4 | N33: 26.4 | O33: 160.4
A34: 10 | B34: 面積 | D34: 1.76 | F34: 3.95 | G34: 104.24 | H34: 0.4 | I34: 110.35 | L34: 0.32 | M34: 14.29 | N34: 14.61 | O34: 124.96
B35: 蓄積 | D35: 513 | F35: 831 | G35: 31666 | H35: 94 | I35: 33104 | L35: 30 | M35: 1238 | N35: 1268 | O35: 34372
B36: 成長 | D36: 14.7 | F36: 10.6 | G36: 474.3 | H36: 2.8 | I36: 502.4 | L36: 0.8 | M36: 32 | N36: 32.8 | O36: 535.2
A37: 11 | B37: 面積 | D37: 7.3 | F37: 11.78 | G37: 210.49 | I37: 229.57 | L37: 1.16 | M37: 10.77 | N37: 11.93 | O37: 241.5
B38: 蓄積 | D38: 2412 | F38: 2628 | G38: 67205 | I38: 72245 | L38: 109 | M38: 1080 | N38: 1189 | O38: 73434 | P38: 伐 跡 | R38: 11.61
B39: 成長 | D39: 57.8 | F39: 29.5 | G39: 805.6 | I39: 892.9 | L39: 2.2 | M39: 21.4 | N39: 23.6 | O39: 916.5 | P39: 未立木地 | R39: 7.73
A40: 12 | B40: 面積 | D40: 0.03 | F40: 32.79 | G40: 391 | H40: 0.78 | I40: 424.6 | L40: 3.24 | M40: 30.13 | N40: 33.37 | O40: 457.97 | P40: 岩石地 | R40: 59.64
B41: 蓄積 | D41: 11 | F41: 7533 | G41: 130628 | H41: 217 | I41: 138389 | L41: 346 | M41: 3223 | N41: 3569 | O41: 141958 | P41: 崩壊地 | R41: 4.4
B42: 成長 | D42: 0.2 | F42: 67.6 | G42: 1177.6 | H42: 4.3 | I42: 1249.7 | L42: 6.9 | M42: 64 | N42: 70.9 | O42: 1320.6 | P42: はげ山
A43: 13 | B43: 面積 | F43: 47.95 | G43: 529.03 | I43: 576.98 | L43: 11.88 | M43: 51.26 | N43: 63.14 | O43: 640.12 | P43: 施設敷 | R43: 31.28
B44: 蓄積 | F44: 11343 | G44: 180408 | I44: 191751 | L44: 1401 | M44: 5920 | N44: 7321 | O44: 199072 | P44: 林地開発
B45: 成長 | F45: 101.1 | G45: 1548.2 | I45: 1649.3 | L45: 21 | M45: 93.2 | N45: 114.2 | O45: 1763.5 | P45: 計 | R45: =SUM(R38:R44) -> 114.66
A46: 14 | B46: 面積 | E46: 0.53 | F46: 36.75 | G46: 581.16 | H46: 3.99 | I46: 622.43 | L46: 10.83 | M46: 126.52 | N46: 137.35 | O46: 759.78 | P46: 竹 林 | R46: 0.52
B47: 蓄積 | E47: 225 | F47: 8884 | G47: 205676 | H47: 1133 | I47: 215918 | L47: 1327 | M47: 15125 | N47: 16452 | O47: 232370 | P47: 更新 困難地 | Q47: 面積 | R47: 27.25
B48: 成長 | E48: 3.9 | F48: 70.9 | G48: 1411.7 | H48: 19.8 | I48: 1506.3 | L48: 14.4 | M48: 167 | N48: 181.4 | O48: 1687.7 | Q48: 蓄積 | R48: 3444
A49: 15 以上 | B49: 面積 | C49: 0.03 | D49: 1.32 | E49: 4.8 | F49: 138.73 | G49: 461.63 | H49: 10.36 | I49: 616.87 | L49: 36.58 | M49: 531.13 | N49: 567.71 | O49: 1184.58 | Q49: 成長 | R49: 6.7
B50: 蓄積 | C50: 15 | D50: 868 | E50: 2597 | F50: 36307 | G50: 165911 | H50: 4648 | I50: 210346 | L50: 4705 | M50: 66693 | N50: 71398 | O50: 281744
B51: 成長 | C51: 0.1 | D51: 1.9 | E51: 12.7 | F51: 99.6 | G51: 787.8 | H51: 4.3 | I51: 906.4 | L51: 26.6 | M51: 358.7 | N51: 385.3 | O51: 1291.7 | P51: 総 合 計
A52: 計 | B52: 面積 | C52: =SUM(C7,C10,C13,C16,C19,C22,C25,C28,C31,C34,C37,C40,C43,C46,C49) -> 0.09 | D52: 15.14 | E52: 5.38 | F52: 276.09 | G52: 2367.31 | H52: 16.47 | I52: =SUM(C52:H52) -> 2680.48 | J52: =SUM(J7,J10,J13,J16,J19,J22,J25,J28,J31,J34,J37,J40,J43,J46,J49) -> 0 | K52: =SUM(K7,K10,K13,K16,K19,K22,K25,K28,K31,K34,K37,K40,K43,K46,K49) -> 0 | L52: =SUM(L7,L10,L13,L16,L19,L22,L25,L28,L31,L34,L37,L40,L43,L46,L49) -> 65.47 | M52: =SUM(M7,M10,M13,M16,M19,M22,M25,M28,M31,M34,M37,M40,M43,M46,M49) -> 861.82 | N52: =SUM(J52:M52) -> 927.29 | O52: 3607.77 | P52: 面 積 | R52: =SUM(O52,R45,R47,R46) -> 3750.2
B53: 蓄積 | C53: 37 | D53: 4827 | E53: 2822 | F53: 68286 | G53: 789198 | H53: 6216 | I53: =SUM(C53:H53) -> 871386 | J53: =SUM(J8,J11,J14,J17,J20,J23,J26,J29,J32,J35,J38,J41,J44,J47,J50) -> 0 | K53: 0 | L53: 7986 | M53: 98602 | N53: =SUM(J53:M53) -> 106588 | O53: 977974 | P53: 蓄積 | R53: =O53+R48 -> 981418
B54: 成長 | C54: 0.5 | D54: 125.1 | E54: 16.6 | F54: 393 | G54: 6346.7 | H54: 36.7 | I54: =SUM(C54:H54) -> 6918.6 | J54: 0 | K54: 0 | L54: 74.3 | M54: 929.6 | N54: =SUM(J54:M54) -> 1003.9 | O54: 7922.5 | P54: 成長量 | R54: =O54+R49 -> 7929.2

Sheet 軽井沢町
A1: 第11表 市町村別・資源構成表 （千曲川上流）
A3: =MID(CELL("filename",$A$1),FIND("]",CELL("filename",$A$1))+1,31) -> 軽井沢町 | O3: 単位 面積 : ha、蓄積 成長量 : ㎥
B4: 樹種 | C4: 針 葉 樹 | J4: 広 葉 樹 | O4: 計
C5: ス ギ | D5: ヒ ノ キ | E5: サ ワ ラ | F5: ア カ マ ツ | G5: カ ラ マ ツ | H5: そ の 他 針 | I5: 小 計 | J5: ク ヌ ギ | K5: ブ ナ | L5: ナ ラ | M5: そ の 他 広 | N5: 小 計
A6: 齢級
A7: 1 | B7: 面積 | I7: 0 | N7: 0 | O7: =SUM(N7,I7) -> 0
B8: 蓄積 | I8: 0 | N8: 0 | O8: =SUM(N8,I8) -> 0
B9: 成長 | I9: 0 | N9: 0 | O9: 0
A10: 2 | B10: 面積 | G10: 3.46 | I10: 3.46 | N10: 0 | O10: 3.46
B11: 蓄積 | D11: 0 | G11: 0 | I11: 0 | N11: 0 | O11: 0
B12: 成長 | D12: 0 | G12: 0 | I12: 0 | N12: 0 | O12: 0
A13: 3 | B13: 面積 | I13: 0 | M13: 0.09 | N13: 0.09 | O13: 0.09
B14: 蓄積 | I14: 0 | M14: 1 | N14: 1 | O14: 1
B15: 成長 | I15: 0 | M15: 0.1 | N15: 0.1 | O15: 0.1
A16: 4 | B16: 面積 | D16: 1 | I16: 1 | N16: 0 | O16: 1
B17: 蓄積 | D17: 1045 | I17: 1045 | N17: 0 | O17: 1045
B18: 成長 | D18: 111 | I18: 111 | N18: 0 | O18: 111
A19: 5 | B19: 面積 | D19: 1.1 | G19: 0.19 | I19: 1.29 | M19: 3.42 | N19: 3.42 | O19: 4.71
B20: 蓄積 | D20: 405 | G20: 32 | I20: 437 | M20: 142 | N20: 142 | O20: 579
B21: 成長 | D21: 28.8 | G21: 1.5 | I21: 30.3 | M21: 7.5 | N21: 7.5 | O21: 37.8
A22: 6 | B22: 面積 | D22: 1.03 | G22: 5.81 | I22: 6.84 | M22: 5.37 | N22: 5.37 | O22: 12.21
B23: 蓄積 | D23: 7137 | G23: 1879 | I23: 9016 | M23: 253 | N23: 253 | O23: 9269
B24: 成長 | D24: 392.4 | G24: 43.4 | I24: 435.8 | M24: 10.3 | N24: 10.3 | O24: 446.1
A25: 7 | B25: 面積 | D25: 9.9 | F25: 0.22 | G25: 30.31 | I25: 40.43 | M25: 18.21 | N25: 18.21 | O25: 58.64
B26: 蓄積 | D26: 2133 | F26: 35 | G26: 7286 | I26: 9454 | M26: 1035 | N26: 1035 | O26: 10489
B27: 成長 | D27: 96.3 | F27: 0.9 | G27: 163.1 | I27: 260.3 | M27: 32.2 | N27: 32.2 | O27: 292.5
A28: 8 | B28: 面積 | D28: 0.36 | E28: 0.06 | F28: 0.73 | G28: 20.93 | I28: 22.08 | L28: 0.72 | M28: 19.82 | N28: 20.54 | O28: 42.62
B29: 蓄積 | D29: 75 | E29: 14 | F29: 124 | G29: 4078 | I29: 4291 | L29: 53 | M29: 1292 | N29: 1345 | O29: 5636
B30: 成長 | D30: 2.7 | E30: 0.5 | F30: 2.6 | G30: 87 | I30: 92.8 | L30: 1.6 | M30: 39.2 | N30: 40.8 | O30: 133.6
A31: 9 | B31: 面積 | D31: 1.08 | E31: 0.36 | F31: 0.67 | G31: 15.27 | H31: 1.62 | I31: 19 | M31: 19.92 | N31: 19.92 | O31: 38.92
B32: 蓄積 | D32: 287 | E32: 68 | F32: 131 | G32: 3827 | H32: 301 | I32: 4614 | M32: 1567 | N32: 1567 | O32: 6181
B33: 成長 | D33: 8.8 | E33: 2.1 | F33: 1.9 | G33: 69.2 | H33: 10.6 | I33: 92.6 | M33: 44.1 | N33: 44.1 | O33: 136.7
A34: 10 | B34: 面積 | D34: 0.26 | F34: 0.85 | G34: 5.37 | H34: 1.4 | I34: 7.88 | M34: 11.91 | N34: 11.91 | O34: 19.79
B35: 蓄積 | D35: 73 | F35: 176 | G35: 1606 | H35: 271 | I35: 2126 | M35: 1026 | N35: 1026 | O35: 3152
B36: 成長 | D36: 2.1 | F36: 2.3 | G36: 24.2 | H36: 8.2 | I36: 36.8 | M36: 26.3 | N36: 26.3 | O36: 63.1
A37: 11 | B37: 面積 | F37: 0.47 | G37: 26.16 | I37: 26.63 | L37: 0.52 | M37: 20.82 | N37: 21.34 | O37: 47.97
B38: 蓄積 | F38: 103 | G38: 7047 | I38: 7150 | L38: 41 | M38: 1650 | N38: 1691 | O38: 8841 | P38: 伐 跡
B39: 成長 | F39: 1.1 | G39: 84.5 | I39: 85.6 | L39: 0.7 | M39: 32.3 | N39: 33 | O39: 118.6 | P39: 未立木地 | R39: 4.41
A40: 12 | B40: 面積 | C40: 2.7 | D40: 0.19 | F40: 5.41 | G40: 63.2 | H40: 1.95 | I40: 73.45 | L40: 2.58 | M40: 54.85 | N40: 57.43 | O40: 130.88 | P40: 岩石地
B41: 蓄積 | C41: 1204 | D41: 72 | F41: 1271 | G41: 19546 | H41: 507 | I41: 22600 | L41: 240 | M41: 5549 | N41: 5789 | O41: 28389 | P41: 崩壊地 | R41: 3.92
B42: 成長 | C42: 13.3 | D42: 1.5 | F42: 11.5 | G42: 177.1 | H42: 10.1 | I42: 213.5 | L42: 4.4 | M42: 107.1 | N42: 111.5 | O42: 325 | P42: はげ山
A43: 13 | B43: 面積 | C43: 2.48 | E43: 2.34 | F43: 5.92 | G43: 175.22 | H43: 0.71 | I43: 186.67 | L43: 6.8 | M43: 112.1 | N43: 118.9 | O43: 305.57 | P43: 施設敷 | R43: 7.98
B44: 蓄積 | C44: 667 | E44: 879 | F44: 1346 | G44: 52630 | H44: 195 | I44: 55717 | L44: 768 | M44: 11722 | N44: 12490 | O44: 68207 | P44: 林地開発
B45: 成長 | C45: 7.2 | E45: 16.6 | F45: 11.8 | G45: 431.6 | H45: 3.8 | I45: 471 | L45: 12.6 | M45: 173.9 | N45: 186.5 | O45: 657.5 | P45: 計 | R45: =SUM(R38:R44) -> 16.31
A46: 14 | B46: 面積 | C46: 0.73 | D46: 0.83 | E46: 0.84 | F46: 12.6 | G46: 309.38 | H46: 14.62 | I46: 339 | L46: 9.33 | M46: 271.21 | N46: 280.54 | O46: 619.54 | P46: 竹 林 | R46: 0.05
B47: 蓄積 | C47: 346 | D47: 350 | E47: 352 | F47: 2259 | G47: 92671 | H47: 4038 | I47: 100016 | L47: 1142 | M47: 31241 | N47: 32383 | O47: 132399 | P47: 更新 困難地 | Q47: 面積
B48: 成長 | C48: 3.1 | D48: 6.3 | E48: 6.4 | F48: 17.7 | G48: 643.7 | H48: 65.9 | I48: 743.1 | L48: 12.4 | M48: 351.4 | N48: 363.8 | O48: 1106.9 | Q48: 蓄積
A49: 15 以上 | B49: 面積 | C49: 1.27 | D49: 0.61 | E49: 5.35 | F49: 25.78 | G49: 399.13 | H49: 16.28 | I49: 448.42 | L49: 35.72 | M49: 1102.53 | N49: 1138.25 | O49: 1586.67 | Q49: 成長
B50: 蓄積 | C50: 632 | D50: 243 | E50: 2578 | F50: 5114 | G50: 125949 | H50: 7169 | I50: 141685 | L50: 4458 | M50: 132109 | N50: 136567 | O50: 278252
B51: 成長 | C51: 0 | D51: 0.8 | E51: 14.5 | F51: 14.6 | G51: 507.5 | H51: 52.5 | I51: 589.9 | L51: 35.1 | M51: 661.4 | N51: 696.5 | O51: 1286.4 | P51: 総 合 計
A52: 計 | B52: 面積 | C52: =SUM(C7,C10,C13,C16,C19,C22,C25,C28,C31,C34,C37,C40,C43,C46,C49) -> 7.18 | D52: 16.36 | E52: 8.95 | F52: 52.65 | G52: 1054.43 | H52: 36.58 | I52: =SUM(C52:H52) -> 1176.15 | J52: =SUM(J7,J10,J13,J16,J19,J22,J25,J28,J31,J34,J37,J40,J43,J46,J49) -> 0 | K52: =SUM(K7,K10,K13,K16,K19,K22,K25,K28,K31,K34,K37,K40,K43,K46,K49) -> 0 | L52: =SUM(L7,L10,L13,L16,L19,L22,L25,L28,L31,L34,L37,L40,L43,L46,L49) -> 55.67 | M52: =SUM(M7,M10,M13,M16,M19,M22,M25,M28,M31,M34,M37,M40,M43,M46,M49) -> 1640.25 | N52: =SUM(J52:M52) -> 1695.92 | O52: 2872.07 | P52: 面 積 | R52: =SUM(O52,R45,R47,R46) -> 2888.43
B53: 蓄積 | C53: 2849 | D53: 11820 | E53: 3891 | F53: 10559 | G53: 316551 | H53: 12481 | I53: =SUM(C53:H53) -> 358151 | J53: =SUM(J8,J11,J14,J17,J20,J23,J26,J29,J32,J35,J38,J41,J44,J47,J50) -> 0 | K53: 0 | L53: 6702 | M53: 187587 | N53: =SUM(J53:M53) -> 194289 | O53: 552440 | P53: 蓄積 | R53: =O53+R48 -> 552440
B54: 成長 | C54: 23.6 | D54: 650.7 | E54: 40.1 | F54: 64.4 | G54: 2232.8 | H54: 151.1 | I54: =SUM(C54:H54) -> 3162.7 | J54: 0 | K54: 0 | L54: 66.8 | M54: 1485.8 | N54: =SUM(J54:M54) -> 1552.6 | O54: 4715.3 | P54: 成長量 | R54: =O54+R49 -> 4715.3

Sheet 御代田町
A1: 第11表 市町村別・資源構成表 （千曲川上流）
A3: =MID(CELL("filename",$A$1),FIND("]",CELL("filename",$A$1))+1,31) -> 御代田町 | O3: 単位 面積 : ha、蓄積 成長量 : ㎥
B4: 樹種 | C4: 針 葉 樹 | J4: 広 葉 樹 | O4: 計
C5: ス ギ | D5: ヒ ノ キ | E5: サ ワ ラ | F5: ア カ マ ツ | G5: カ ラ マ ツ | H5: そ の 他 針 | I5: 小 計 | J5: ク ヌ ギ | K5: ブ ナ | L5: ナ ラ | M5: そ の 他 広 | N5: 小 計
A6: 齢級
A7: 1 | B7: 面積 | G7: 9.01 | I7: 9.01 | N7: 0 | O7: =SUM(N7,I7) -> 9.01
B8: 蓄積 | G8: 0 | I8: 0 | N8: 0 | O8: =SUM(N8,I8) -> 0
B9: 成長 | G9: 0 | I9: 0 | N9: 0 | O9: 0
A10: 2 | B10: 面積 | D10: 4.79 | G10: 5.27 | I10: 10.06 | L10: 7.1 | M10: 0.91 | N10: 8.01 | O10: 18.07
B11: 蓄積 | D11: 0 | G11: 0 | I11: 0 | L11: 119 | M11: 12 | N11: 131 | O11: 131
B12: 成長 | D12: 0 | G12: 0 | I12: 0 | L12: 17.6 | M12: 1.7 | N12: 19.3 | O12: 19.3
A13: 3 | B13: 面積 | I13: 0 | L13: 5.14 | M13: 1.49 | N13: 6.63 | O13: 6.63
B14: 蓄積 | I14: 0 | L14: 114 | M14: 29 | N14: 143 | O14: 143
B15: 成長 | I15: 0 | L15: 9.7 | M15: 2.5 | N15: 12.2 | O15: 12.2
A16: 4 | B16: 面積 | D16: 2.64 | I16: 2.64 | M16: 12.41 | N16: 12.41 | O16: 15.05
B17: 蓄積 | D17: 174 | I17: 174 | M17: 746 | N17: 746 | O17: 920
B18: 成長 | D18: 19.1 | I18: 19.1 | M18: 50.6 | N18: 50.6 | O18: 69.7
A19: 5 | B19: 面積 | D19: 6.84 | G19: 0.58 | I19: 7.42 | M19: 1.57 | N19: 1.57 | O19: 8.99
B20: 蓄積 | D20: 1078 | G20: 104 | I20: 1182 | M20: 147 | N20: 147 | O20: 1329
B21: 成長 | D21: 76.6 | G21: 4.8 | I21: 81.4 | M21: 7.4 | N21: 7.4 | O21: 88.8
A22: 6 | B22: 面積 | C22: 0.03 | F22: 2 | G22: 2.01 | I22: 4.04 | M22: 1.79 | N22: 1.79 | O22: 5.83
B23: 蓄積 | C23: 8 | F23: 208 | G23: 380 | I23: 596 | M23: 85 | N23: 85 | O23: 681
B24: 成長 | C24: 0.3 | F24: 10.2 | G24: 8.8 | I24: 19.3 | M24: 3.3 | N24: 3.3 | O24: 22.6
A25: 7 | B25: 面積 | D25: 2.62 | F25: 0.21 | G25: 12.46 | I25: 15.29 | M25: 12.98 | N25: 12.98 | O25: 28.27
B26: 蓄積 | D26: 606 | F26: 34 | G26: 2922 | I26: 3562 | M26: 748 | N26: 748 | O26: 4310
B27: 成長 | D27: 27.3 | F27: 0.8 | G27: 64.3 | I27: 92.4 | M27: 23.4 | N27: 23.4 | O27: 115.8
A28: 8 | B28: 面積 | D28: 0.91 | F28: 1.11 | G28: 49.28 | I28: 51.3 | L28: 4.13 | M28: 33.81 | N28: 37.94 | O28: 89.24
B29: 蓄積 | D29: 208 | F29: 198 | G29: 11986 | I29: 12392 | L29: 301 | M29: 2232 | N29: 2533 | O29: 14925
B30: 成長 | D30: 7.8 | F30: 4 | G30: 253.4 | I30: 265.2 | L30: 9 | M30: 68.7 | N30: 77.7 | O30: 342.9
A31: 9 | B31: 面積 | C31: 0.32 | D31: 26.08 | E31: 0.2 | F31: 1.81 | G31: 8.64 | H31: 2.46 | I31: 39.51 | L31: 0.58 | M31: 6.13 | N31: 6.71 | O31: 46.22
B32: 蓄積 | C32: 148 | D32: 6556 | E32: 50 | F32: 345 | G32: 2331 | H32: 438 | I32: 9868 | L32: 46 | M32: 463 | N32: 509 | O32: 10377
B33: 成長 | C33: 2.7 | D33: 197.5 | E33: 1.5 | F33: 5.4 | G33: 42.3 | H33: 15.3 | I33: 264.7 | L33: 1.4 | M33: 13.3 | N33: 14.7 | O33: 279.4
A34: 10 | B34: 面積 | C34: 0.42 | D34: 0.77 | F34: 2.4 | G34: 11.14 | H34: 0.11 | I34: 14.84 | L34: 0.36 | M34: 7.78 | N34: 8.14 | O34: 22.98
B35: 蓄積 | C35: 158 | D35: 216 | F35: 349 | G35: 3064 | H35: 25 | I35: 3812 | L35: 32 | M35: 673 | N35: 705 | O35: 4517
B36: 成長 | C36: 2.5 | D36: 6.1 | F36: 4.5 | G36: 45.9 | H36: 0.8 | I36: 59.8 | L36: 0.9 | M36: 17.3 | N36: 18.2 | O36: 78
A37: 11 | B37: 面積 | C37: 0.81 | D37: 0.72 | F37: 0.74 | G37: 27.27 | I37: 29.54 | L37: 2.47 | M37: 15.74 | N37: 18.21 | O37: 47.75
B38: 蓄積 | C38: 337 | D38: 245 | F38: 234 | G38: 7889 | I38: 8705 | L38: 252 | M38: 1527 | N38: 1779 | O38: 10484 | P38: 伐 跡 | R38: 0.43
B39: 成長 | C39: 4.4 | D39: 5.9 | F39: 2.6 | G39: 94.7 | I39: 107.6 | L39: 5 | M39: 29.7 | N39: 34.7 | O39: 142.3 | P39: 未立木地 | R39: 5.66
A40: 12 | B40: 面積 | C40: 0.06 | D40: 0.16 | F40: 12.6 | G40: 101.64 | H40: 0.16 | I40: 114.62 | L40: 3.56 | M40: 25.06 | N40: 28.62 | O40: 143.24 | P40: 岩石地 | R40: 10.26
B41: 蓄積 | C41: 26 | D41: 50 | F41: 2552 | G41: 31345 | H41: 45 | I41: 34018 | L41: 315 | M41: 2463 | N41: 2778 | O41: 36796 | P41: 崩壊地 | R41: 2.99
B42: 成長 | C42: 0.3 | D42: 1 | F42: 24.2 | G42: 283.8 | H42: 0.9 | I42: 310.2 | L42: 5.7 | M42: 46.6 | N42: 52.3 | O42: 362.5 | P42: はげ山
A43: 13 | B43: 面積 | C43: 0.26 | D43: 0.06 | F43: 22.69 | G43: 164.3 | H43: 0.05 | I43: 187.36 | L43: 6.74 | M43: 68.09 | N43: 74.83 | O43: 262.19 | P43: 施設敷 | R43: 5.77
B44: 蓄積 | C44: 94 | D44: 23 | F44: 4794 | G44: 48547 | H44: 14 | I44: 53472 | L44: 749 | M44: 6890 | N44: 7639 | O44: 61111 | P44: 林地開発
B45: 成長 | C45: 1.2 | D45: 0.5 | F45: 44.8 | G45: 425.9 | H45: 0.2 | I45: 472.6 | L45: 12.6 | M45: 111.2 | N45: 123.8 | O45: 596.4 | P45: 計 | R45: =SUM(R38:R44) -> 25.11
A46: 14 | B46: 面積 | C46: 0.93 | F46: 13.68 | G46: 130.11 | H46: 1.58 | I46: 146.3 | J46: 0.11 | L46: 11.86 | M46: 82.87 | N46: 94.84 | O46: 241.14 | P46: 竹 林 | R46: 0.56
B47: 蓄積 | C47: 637 | F47: 2648 | G47: 42973 | H47: 472 | I47: 46730 | J47: 14 | L47: 1296 | M47: 9402 | N47: 10712 | O47: 57442 | P47: 更新 困難地 | Q47: 面積
B48: 成長 | C48: 5.8 | F48: 22.3 | G48: 302.9 | H48: 7.9 | I48: 338.9 | J48: 0.1 | L48: 16 | M48: 108.8 | N48: 124.9 | O48: 463.8 | Q48: 蓄積
A49: 15 以上 | B49: 面積 | C49: 3.39 | D49: 1.67 | E49: 2.44 | F49: 21.45 | G49: 208.77 | H49: 1.86 | I49: 239.58 | L49: 39.25 | M49: 191.82 | N49: 231.07 | O49: 470.65 | Q49: 成長
B50: 蓄積 | C50: 1709 | D50: 756 | E50: 1098 | F50: 5188 | G50: 72912 | H50: 626 | I50: 82289 | L50: 4682 | M50: 22844 | N50: 27526 | O50: 109815
B51: 成長 | C51: 4.3 | D51: 1.9 | E51: 4.4 | F51: 13.9 | G51: 280.1 | H51: 7.9 | I51: 312.5 | L51: 39.3 | M51: 167.3 | N51: 206.6 | O51: 519.1 | P51: 総 合 計
A52: 計 | B52: 面積 | C52: =SUM(C7,C10,C13,C16,C19,C22,C25,C28,C31,C34,C37,C40,C43,C46,C49) -> 6.22 | D52: 47.26 | E52: 2.64 | F52: 78.69 | G52: 730.48 | H52: 6.22 | I52: =SUM(C52:H52) -> 871.51 | J52: =SUM(J7,J10,J13,J16,J19,J22,J25,J28,J31,J34,J37,J40,J43,J46,J49) -> 0.11 | K52: =SUM(K7,K10,K13,K16,K19,K22,K25,K28,K31,K34,K37,K40,K43,K46,K49) -> 0 | L52: =SUM(L7,L10,L13,L16,L19,L22,L25,L28,L31,L34,L37,L40,L43,L46,L49) -> 81.19 | M52: =SUM(M7,M10,M13,M16,M19,M22,M25,M28,M31,M34,M37,M40,M43,M46,M49) -> 462.45 | N52: =SUM(J52:M52) -> 543.75 | O52: 1415.26 | P52: 面 積 | R52: =SUM(O52,R45,R47,R46) -> 1440.93
B53: 蓄積 | C53: 3117 | D53: 9912 | E53: 1148 | F53: 16550 | G53: 224453 | H53: 1620 | I53: =SUM(C53:H53) -> 256800 | J53: =SUM(J8,J11,J14,J17,J20,J23,J26,J29,J32,J35,J38,J41,J44,J47,J50) -> 14 | K53: 0 | L53: 7906 | M53: 48261 | N53: =SUM(J53:M53) -> 56181 | O53: 312981 | P53: 蓄積 | R53: =O53+R48 -> 312981
B54: 成長 | C54: 21.5 | D54: 343.7 | E54: 5.9 | F54: 132.7 | G54: 1806.9 | H54: 33 | I54: =SUM(C54:H54) -> 2343.7 | J54: 0.1 | K54: 0 | L54: 117.2 | M54: 651.8 | N54: =SUM(J54:M54) -> 769.1 | O54: 3112.8 | P54: 成長量 | R54: =O54+R49 -> 3112.8

Sheet 立科町
A1: 第11表 市町村別・資源構成表 （千曲川上流）
A3: =MID(CELL("filename",$A$1),FIND("]",CELL("filename",$A$1))+1,31) -> 立科町 | O3: 単位 面積 : ha、蓄積 成長量 : ㎥
B4: 樹種 | C4: 針 葉 樹 | J4: 広 葉 樹 | O4: 計
C5: ス ギ | D5: ヒ ノ キ | E5: サ ワ ラ | F5: ア カ マ ツ | G5: カ ラ マ ツ | H5: そ の 他 針 | I5: 小 計 | J5: ク ヌ ギ | K5: ブ ナ | L5: ナ ラ | M5: そ の 他 広 | N5: 小 計
A6: 齢級
A7: 1 | B7: 面積 | D7: 3.29 | F7: 2.11 | G7: 7.31 | I7: 12.71 | N7: 0 | O7: =SUM(N7,I7) -> 12.71
B8: 蓄積 | D8: 0 | F8: 0 | G8: 0 | I8: 0 | N8: 0 | O8: =SUM(N8,I8) -> 0
B9: 成長 | D9: 0 | F9: 0 | G9: 0 | I9: 0 | N9: 0 | O9: 0
A10: 2 | B10: 面積 | G10: 20.74 | I10: 20.74 | M10: 5.03 | N10: 5.03 | O10: 25.77
B11: 蓄積 | G11: 0 | I11: 0 | M11: 35 | N11: 35 | O11: 35
B12: 成長 | G12: 0 | I12: 0 | M12: 4.6 | N12: 4.6 | O12: 4.6
A13: 3 | B13: 面積 | D13: 6.33 | F13: 0.43 | I13: 6.76 | L13: 2.39 | M13: 3.1 | N13: 5.49 | O13: 12.25
B14: 蓄積 | D14: 359 | F14: 26 | I14: 385 | L14: 59 | M14: 71 | N14: 130 | O14: 515
B15: 成長 | D15: 80 | F15: 3.4 | I15: 83.4 | L15: 5.1 | M15: 6 | N15: 11.1 | O15: 94.5
A16: 4 | B16: 面積 | D16: 18.82 | G16: 0.94 | I16: 19.76 | L16: 1.83 | M16: 2.11 | N16: 3.94 | O16: 23.7
B17: 蓄積 | D17: 1367 | G17: 107 | I17: 1474 | L17: 55 | M17: 72 | N17: 127 | O17: 1601
B18: 成長 | D18: 144.6 | G18: 6.3 | I18: 150.9 | L18: 3.7 | M18: 5 | N18: 8.7 | O18: 159.6
A19: 5 | B19: 面積 | D19: 15.6 | F19: 2.71 | G19: 0.17 | I19: 18.48 | J19: 0.66 | L19: 0.45 | M19: 26.52 | N19: 27.63 | O19: 46.11
B20: 蓄積 | D20: 1702 | F20: 325 | G20: 15 | I20: 2042 | J20: 29 | L20: 19 | M20: 962 | N20: 1010 | O20: 3052
B21: 成長 | D21: 120.9 | F21: 16.3 | G21: 0.7 | I21: 137.9 | J21: 1.6 | L21: 1.1 | M21: 49.9 | N21: 52.6 | O21: 190.5
A22: 6 | B22: 面積 | C22: 0.14 | D22: 13.87 | F22: 0.22 | G22: 9.47 | H22: 1.58 | I22: 25.28 | J22: 1.01 | L22: 1.01 | M22: 15.51 | N22: 17.53 | O22: 42.81
B23: 蓄積 | C23: 34 | D23: 1955 | F23: 32 | G23: 1788 | H23: 167 | I23: 3976 | J23: 54 | L23: 55 | M23: 627 | N23: 736 | O23: 4712
B24: 成長 | C24: 1.2 | D24: 107.5 | F24: 1.2 | G24: 41.5 | H24: 8.9 | I24: 160.3 | J24: 2.2 | L24: 2.2 | M24: 25.2 | N24: 29.6 | O24: 189.9
A25: 7 | B25: 面積 | D25: 35.8 | F25: 1.81 | G25: 10.61 | I25: 48.22 | J25: 1.59 | L25: 10.11 | M25: 14.56 | N25: 26.26 | O25: 74.48
B26: 蓄積 | D26: 7197 | F26: 301 | G26: 2471 | I26: 9969 | J26: 96 | L26: 618 | M26: 869 | N26: 1583 | O26: 11552
B27: 成長 | D27: 323.8 | F27: 7.3 | G27: 54.3 | I27: 385.4 | J27: 3 | L27: 19 | M27: 26.9 | N27: 48.9 | O27: 434.3
A28: 8 | B28: 面積 | C28: 0.45 | D28: 18.57 | F28: 3.2 | G28: 0.82 | H28: 0.39 | I28: 23.43 | J28: 0.27 | L28: 11.42 | M28: 12.01 | N28: 23.7 | O28: 47.13
B29: 蓄積 | C29: 118 | D29: 7620 | F29: 552 | G29: 195 | H29: 34 | I29: 8519 | J29: 19 | L29: 834 | M29: 785 | N29: 1638 | O29: 10157
B30: 成長 | C30: 2.7 | D30: 281.9 | F30: 11.1 | G30: 4.2 | H30: 1.3 | I30: 301.2 | J30: 0.7 | L30: 25.5 | M30: 24 | N30: 50.2 | O30: 351.4
A31: 9 | B31: 面積 | C31: 0.47 | D31: 15.93 | F31: 2.63 | G31: 3.63 | H31: 1.37 | I31: 24.03 | J31: 0.17 | L31: 5.39 | M31: 6.59 | N31: 12.15 | O31: 36.18
B32: 蓄積 | C32: 176 | D32: 5715 | F32: 519 | G32: 922 | H32: 205 | I32: 7537 | J32: 13 | L32: 439 | M32: 467 | N32: 919 | O32: 8456
B33: 成長 | C33: 3.1 | D33: 171.6 | F33: 7.9 | G33: 16.8 | H33: 7.6 | I33: 207 | J33: 0.4 | L33: 12.3 | M33: 13 | N33: 25.7 | O33: 232.7
A34: 10 | B34: 面積 | C34: 0.3 | D34: 1.61 | F34: 11.05 | G34: 16.79 | H34: 12.51 | I34: 42.26 | J34: 0.86 | L34: 6.15 | M34: 13.36 | N34: 20.37 | O34: 62.63
B35: 蓄積 | C35: 119 | D35: 483 | F35: 2323 | G35: 4192 | H35: 2058 | I35: 9175 | J35: 81 | L35: 575 | M35: 959 | N35: 1615 | O35: 10790
B36: 成長 | C36: 1.8 | D36: 14.1 | F36: 30.4 | G36: 65.1 | H36: 59.7 | I36: 171.1 | J36: 2.1 | L36: 14.8 | M36: 24.3 | N36: 41.2 | O36: 212.3
A37: 11 | B37: 面積 | C37: 0.53 | F37: 82.08 | G37: 36.79 | H37: 18.3 | I37: 137.7 | J37: 1.58 | L37: 5.76 | M37: 28.45 | N37: 35.79 | O37: 173.49
B38: 蓄積 | C38: 221 | F38: 18257 | G38: 9139 | H38: 3469 | I38: 31086 | J38: 158 | L38: 599 | M38: 2154 | N38: 2911 | O38: 33997 | P38: 伐 跡 | R38: 1.75
B39: 成長 | C39: 3 | F39: 201.4 | G39: 110 | H39: 87.1 | I39: 401.5 | J39: 3.1 | L39: 11.9 | M39: 41.2 | N39: 56.2 | O39: 457.7 | P39: 未立木地 | R39: 32.6
A40: 12 | B40: 面積 | C40: 0.19 | D40: 0.55 | F40: 114.76 | G40: 83.63 | H40: 6.69 | I40: 205.82 | J40: 0.13 | L40: 4.94 | M40: 29.01 | N40: 34.08 | O40: 239.9 | P40: 岩石地 | R40: 0.38
B41: 蓄積 | C41: 84 | D41: 211 | F41: 26750 | G41: 24315 | H41: 1399 | I41: 52759 | J41: 13 | L41: 528 | M41: 2924 | N41: 3465 | O41: 56224 | P41: 崩壊地 | R41: 9.28
B42: 成長 | C42: 0.9 | D42: 4.4 | F42: 240.9 | G42: 230.6 | H42: 29.3 | I42: 506.1 | J42: 0.2 | L42: 10.5 | M42: 56.2 | N42: 66.9 | O42: 573 | P42: はげ山
A43: 13 | B43: 面積 | D43: 2.48 | F43: 59.92 | G43: 289.82 | H43: 7.19 | I43: 359.41 | J43: 3.24 | L43: 9.48 | M43: 82.29 | N43: 95.01 | O43: 454.42 | P43: 施設敷 | R43: 5.42
B44: 蓄積 | D44: 734 | F44: 14200 | G44: 87105 | H44: 1651 | I44: 103690 | J44: 381 | L44: 1102 | M44: 7564 | N44: 9047 | O44: 112737 | P44: 林地開発
B45: 成長 | D45: 16.2 | F45: 127.7 | G45: 783.5 | H45: 32.8 | I45: 960.2 | J45: 6 | L45: 18.1 | M45: 122.1 | N45: 146.2 | O45: 1106.4 | P45: 計 | R45: =SUM(R38:R44) -> 49.43
A46: 14 | B46: 面積 | C46: 0.07 | F46: 23.9 | G46: 280.36 | H46: 15.5 | I46: 319.83 | J46: 2.18 | L46: 15.03 | M46: 135.11 | N46: 152.32 | O46: 472.15 | P46: 竹 林 | R46: 1.34
B47: 蓄積 | C47: 34 | F47: 5877 | G47: 87696 | H47: 3808 | I47: 97415 | J47: 261 | L47: 1702 | M47: 12426 | N47: 14389 | O47: 111804 | P47: 更新 困難地 | Q47: 面積
B48: 成長 | C48: 0.1 | F48: 46.6 | G48: 632.8 | H48: 68 | I48: 747.5 | J48: 2.4 | L48: 20.3 | M48: 159.5 | N48: 182.2 | O48: 929.7 | Q48: 蓄積
A49: 15 以上 | B49: 面積 | C49: 4.3 | D49: 12.01 | E49: 0.19 | F49: 145.64 | G49: 658.7 | H49: 122.14 | I49: 942.98 | J49: 6.7 | L49: 91.79 | M49: 556.99 | N49: 655.48 | O49: 1598.46 | Q49: 成長
B50: 蓄積 | C50: 2128 | D50: 5527 | E50: 90 | F50: 37234 | G50: 192117 | H50: 44420 | I50: 281516 | J50: 844 | L50: 10723 | M50: 58205 | N50: 69772 | O50: 351288
B51: 成長 | C51: 2 | D51: 8.9 | E51: 0.5 | F51: 151.6 | G51: 597.9 | H51: 170.9 | I51: 931.8 | J51: 5.7 | L51: 40.6 | M51: 200.4 | N51: 246.7 | O51: 1178.5 | P51: 総 合 計
A52: 計 | B52: 面積 | C52: =SUM(C7,C10,C13,C16,C19,C22,C25,C28,C31,C34,C37,C40,C43,C46,C49) -> 6.45 | D52: 144.86 | E52: 0.19 | F52: 450.46 | G52: 1419.78 | H52: 185.67 | I52: =SUM(C52:H52) -> 2207.41 | J52: =SUM(J7,J10,J13,J16,J19,J22,J25,J28,J31,J34,J37,J40,J43,J46,J49) -> 18.39 | K52: =SUM(K7,K10,K13,K16,K19,K22,K25,K28,K31,K34,K37,K40,K43,K46,K49) -> 0 | L52: =SUM(L7,L10,L13,L16,L19,L22,L25,L28,L31,L34,L37,L40,L43,L46,L49) -> 165.75 | M52: =SUM(M7,M10,M13,M16,M19,M22,M25,M28,M31,M34,M37,M40,M43,M46,M49) -> 930.64 | N52: =SUM(J52:M52) -> 1114.78 | O52: 3322.19 | P52: 面 積 | R52: =SUM(O52,R45,R47,R46) -> 3372.96
B53: 蓄積 | C53: 2914 | D53: 32870 | E53: 90 | F53: 106396 | G53: 410062 | H53: 57211 | I53: =SUM(C53:H53) -> 609543 | J53: =SUM(J8,J11,J14,J17,J20,J23,J26,J29,J32,J35,J38,J41,J44,J47,J50) -> 1949 | K53: 0 | L53: 17308 | M53: 88120 | N53: =SUM(J53:M53) -> 107377 | O53: 716920 | P53: 蓄積 | R53: =O53+R48 -> 716920
B54: 成長 | C54: 14.8 | D54: 1273.9 | E54: 0.5 | F54: 845.8 | G54: 2543.7 | H54: 465.6 | I54: =SUM(C54:H54) -> 5144.3 | J54: 27.4 | K54: 0 | L54: 185.1 | M54: 758.3 | N54: =SUM(J54:M54) -> 970.8 | O54: 6115.1 | P54: 成長量 | R54: =O54+R49 -> 6115.1

Sheet 上田市
A1: 第11表 市町村別・資源構成表 （千曲川上流）
A3: =MID(CELL("filename",$A$1),FIND("]",CELL("filename",$A$1))+1,31) -> 上田市 | O3: 単位 面積 : ha、蓄積 成長量 : ㎥
B4: 樹種 | C4: 針 葉 樹 | J4: 広 葉 樹 | O4: 計
C5: ス ギ | D5: ヒ ノ キ | E5: サ ワ ラ | F5: ア カ マ ツ | G5: カ ラ マ ツ | H5: そ の 他 針 | I5: 小 計 | J5: ク ヌ ギ | K5: ブ ナ | L5: ナ ラ | M5: そ の 他 広 | N5: 小 計
A6: 齢級
A7: 1 | B7: 面積 | F7: 0.21 | G7: 131.64 | I7: 131.85 | L7: 4.25 | M7: 26.55 | N7: 30.8 | O7: =SUM(N7,I7) -> 162.65
B8: 蓄積 | F8: 0 | G8: 0 | I8: 0 | L8: 0 | M8: 0 | N8: 0 | O8: =SUM(N8,I8) -> 0
B9: 成長 | F9: 0 | G9: 0 | I9: 0 | L9: 0 | M9: 0 | N9: 0 | O9: 0
A10: 2 | B10: 面積 | D10: 0.05 | G10: 50.15 | H10: 1.08 | I10: 51.28 | K10: 0.1 | L10: 3.82 | M10: 176.66 | N10: 180.58 | O10: 231.86
B11: 蓄積 | D11: 0 | G11: 0 | H11: 0 | I11: 0 | K11: 0 | L11: 55 | M11: 2438 | N11: 2493 | O11: 2493
B12: 成長 | D12: 0 | G12: 0 | H12: 0 | I12: 0 | K12: 0 | L12: 8.1 | M12: 350.5 | N12: 358.6 | O12: 358.6
A13: 3 | B13: 面積 | G13: 1.26 | I13: 1.26 | L13: 2.03 | M13: 27.12 | N13: 29.15 | O13: 30.41
B14: 蓄積 | G14: 97 | I14: 97 | L14: 39 | M14: 565 | N14: 604 | O14: 701
B15: 成長 | G15: 8.9 | I15: 8.9 | L15: 3.3 | M15: 48.1 | N15: 51.4 | O15: 60.3
A16: 4 | B16: 面積 | C16: 0.42 | D16: 48.97 | F16: 0.34 | G16: 10.36 | H16: 0.59 | I16: 60.68 | J16: 1.95 | L16: 1.44 | M16: 49.27 | N16: 52.66 | O16: 113.34
B17: 蓄積 | C17: 75 | D17: 3883 | F17: 31 | G17: 1471 | H17: 33 | I17: 5493 | J17: 67 | L17: 40 | M17: 1722 | N17: 1829 | O17: 7322
B18: 成長 | C18: 6.1 | D18: 410.3 | F18: 2.6 | G18: 86.4 | H18: 2.7 | I18: 508.1 | J18: 4.4 | L18: 2.8 | M18: 117.1 | N18: 124.3 | O18: 632.4
A19: 5 | B19: 面積 | C19: 0.36 | D19: 41.73 | F19: 0.76 | G19: 31.92 | I19: 74.77 | J19: 1.22 | L19: 8.83 | M19: 65.36 | N19: 75.41 | O19: 150.18
B20: 蓄積 | C20: 72 | D20: 5570 | F20: 96 | G20: 5359 | I20: 11097 | J20: 51 | L20: 819 | M20: 2994 | N20: 3864 | O20: 14961
B21: 成長 | C21: 3.6 | D21: 395.6 | F21: 4.9 | G21: 246.3 | I21: 650.4 | J21: 2.6 | L21: 41.9 | M21: 154.7 | N21: 199.2 | O21: 849.6
A22: 6 | B22: 面積 | C22: 4.73 | D22: 32.53 | F22: 3.65 | G22: 25.81 | H22: 0.57 | I22: 67.29 | J22: 0.85 | L22: 23.72 | M22: 98.25 | N22: 122.82 | O22: 190.11
B23: 蓄積 | C23: 1250 | D23: 6857 | F23: 582 | G23: 6349 | H23: 56 | I23: 15094 | J23: 139 | K23: 171 | L23: 1356 | M23: 4953 | N23: 6619 | O23: 21713
B24: 成長 | C24: 45 | D24: 381.3 | F24: 21.5 | G24: 145.8 | H24: 3 | I24: 596.6 | J24: 5.7 | K24: 11.5 | L24: 55.7 | M24: 202.4 | N24: 275.3 | O24: 871.9
A25: 7 | B25: 面積 | C25: 16.13 | D25: 84.93 | F25: 31.33 | G25: 81.3 | H25: 2.04 | I25: 215.73 | J25: 2.32 | L25: 38.67 | M25: 206.71 | N25: 247.7 | O25: 463.43
B26: 蓄積 | C26: 7028 | D26: 18975 | F26: 4973 | G26: 19351 | H26: 397 | I26: 50724 | J26: 129 | K26: 1343 | L26: 2624 | M26: 12487 | N26: 16583 | O26: 67307
B27: 成長 | C27: 195.4 | D27: 854.3 | F27: 119.2 | G27: 425.5 | H27: 17.1 | I27: 1611.5 | J27: 3.8 | K27: 77.9 | L27: 81.5 | M27: 388 | N27: 551.2 | O27: 2162.7
A28: 8 | B28: 面積 | C28: 47.7 | D28: 158.24 | F28: 35.44 | G28: 141.79 | H28: 24.98 | I28: 408.15 | J28: 3.15 | L28: 62.1 | M28: 326.44 | N28: 391.69 | O28: 799.84
B29: 蓄積 | C29: 16746 | D29: 41700 | F29: 6442 | G29: 36452 | H29: 4276 | I29: 105616 | J29: 223 | L29: 4253 | M29: 21541 | N29: 26017 | O29: 131633
B30: 成長 | C30: 386 | D30: 1545.6 | F30: 128.6 | G30: 766.1 | H30: 163 | I30: 2989.3 | J30: 6.7 | L30: 128.8 | M30: 649.5 | N30: 785 | O30: 3774.3
A31: 9 | B31: 面積 | C31: 64.88 | D31: 275.62 | F31: 57.11 | G31: 81.49 | H31: 7.38 | I31: 486.48 | J31: 4.67 | L31: 28.12 | M31: 225.92 | N31: 258.71 | O31: 745.19
B32: 蓄積 | C32: 23903 | D32: 71188 | F32: 11206 | G32: 22732 | H32: 1333 | I32: 130362 | J32: 371 | L32: 2254 | M32: 17492 | N32: 20117 | O32: 150479
B33: 成長 | C33: 430.3 | D33: 2147.7 | F33: 169.5 | G33: 409.1 | H33: 46.6 | I33: 3203.2 | J33: 10.8 | L33: 63.1 | M33: 491 | N33: 564.9 | O33: 3768.1
A34: 10 | B34: 面積 | C34: 114.41 | D34: 205.83 | F34: 257.88 | G34: 149.87 | H34: 8.43 | I34: 736.42 | J34: 3.97 | L34: 12.68 | M34: 341 | N34: 357.65 | O34: 1094.07
B35: 蓄積 | C35: 45036 | D35: 59258 | F35: 53980 | G35: 45666 | H35: 1644 | I35: 205584 | J35: 337 | L35: 1164 | M35: 30018 | N35: 31519 | O35: 237103
B36: 成長 | C36: 677.1 | D36: 1716 | F36: 703.6 | G36: 684.7 | H36: 48.4 | I36: 3829.8 | J36: 8.4 | L36: 29.7 | M36: 763.7 | N36: 801.8 | O36: 4631.6
A37: 11 | B37: 面積 | C37: 171.03 | D37: 123.62 | F37: 705.61 | G37: 383.66 | H37: 12.82 | I37: 1396.74 | J37: 3.41 | L37: 15.55 | M37: 274.27 | N37: 293.23 | O37: 1689.97
B38: 蓄積 | C38: 72088 | D38: 40646 | F38: 154517 | G38: 120134 | H38: 2735 | I38: 390120 | J38: 339 | L38: 1544 | M38: 26311 | N38: 28194 | O38: 418314 | P38: 伐 跡 | R38: 47.51
B39: 成長 | C39: 938.6 | D39: 977.6 | F39: 1706.4 | G39: 1445.1 | H39: 65.4 | I39: 5133.1 | J39: 6.8 | L39: 30.5 | M39: 519.7 | N39: 557 | O39: 5690.1 | P39: 未立木地 | R39: 144.36
A40: 12 | B40: 面積 | C40: 166.81 | D40: 65.5 | E40: 0.12 | F40: 1150.18 | G40: 1070.96 | H40: 14.78 | I40: 2468.35 | J40: 6.96 | L40: 21.22 | M40: 416.2 | N40: 444.38 | O40: 2912.73 | P40: 岩石地 | R40: 114.68
B41: 蓄積 | C41: 74090 | D41: 23793 | E41: 44 | F41: 264734 | G41: 360357 | H41: 3913 | I41: 726931 | J41: 750 | L41: 2215 | M41: 41952 | N41: 44917 | O41: 771848 | P41: 崩壊地 | R41: 47.54
B42: 成長 | C42: 814.5 | D42: 501.2 | E42: 0.9 | F42: 2394.1 | G42: 3273.9 | H42: 78.4 | I42: 7063 | J42: 14.6 | L42: 42.4 | M42: 811.1 | N42: 868.1 | O42: 7931.1 | P42: はげ山 | R42: 1.42
A43: 13 | B43: 面積 | C43: 267.64 | D43: 19.1 | E43: 0.04 | F43: 927.49 | G43: 2145.84 | H43: 28.48 | I43: 3388.59 | J43: 41.18 | L43: 47.35 | M43: 810.18 | N43: 898.71 | O43: 4287.3 | P43: 施設敷 | R43: 300.05
B44: 蓄積 | C44: 121944 | D44: 7126 | E44: 15 | F44: 218100 | G44: 731360 | H44: 7025 | I44: 1085570 | J44: 4400 | L44: 5449 | M44: 91544 | N44: 101393 | O44: 1186963 | P44: 林地開発
B45: 成長 | C45: 1297.1 | D45: 149.3 | E45: 0.3 | F45: 1954.2 | G45: 6402.1 | H45: 138.3 | I45: 9941.3 | J45: 71.1 | L45: 86 | M45: 1469.5 | N45: 1626.6 | O45: 11567.9 | P45: 計 | R45: =SUM(R38:R44) -> 655.56
A46: 14 | B46: 面積 | C46: 228.98 | D46: 11.35 | E46: 0.68 | F46: 420.23 | G46: 1696.56 | H46: 9.5 | I46: 2367.3 | J46: 106.75 | L46: 126.12 | M46: 1665.13 | N46: 1898 | O46: 4265.3 | P46: 竹 林 | R46: 71.65
B47: 蓄積 | C47: 106856 | D47: 4646 | E47: 286 | F47: 100853 | G47: 603623 | H47: 3003 | I47: 819267 | J47: 12102 | L47: 15210 | M47: 199506 | N47: 226818 | O47: 1046085 | P47: 更新 困難地 | Q47: 面積 | R47: 224.13
B48: 成長 | C48: 965.5 | D48: 83.1 | E48: 5 | F48: 797.1 | G48: 4199.5 | H48: 50.1 | I48: 6100.3 | J48: 141.2 | L48: 163.4 | M48: 2192.8 | N48: 2497.4 | O48: 8597.7 | Q48: 蓄積 | R48: 37681
A49: 15 以上 | B49: 面積 | C49: 289.84 | D49: 110.47 | E49: 7.71 | F49: 2217.68 | G49: 1691.36 | H49: 27.88 | I49: 4344.94 | J49: 193.78 | K49: 4 | L49: 255.36 | M49: 4638.64 | N49: 5091.78 | O49: 9436.72 | Q49: 成長 | R49: 38.2
B50: 蓄積 | C50: 142353 | D50: 50730 | E50: 3393 | F50: 573496 | G50: 598855 | H50: 11681 | I50: 1380508 | J50: 23831 | K50: 758 | L50: 32846 | M50: 569017 | N50: 626452 | O50: 2006960
B51: 成長 | C51: 545.3 | D51: 157 | E51: 4.9 | F51: 1849.2 | G51: 2343.6 | H51: 92 | I51: 4992 | J51: 194.1 | K51: 0.4 | L51: 223.2 | M51: 3593.2 | N51: 4010.9 | O51: 9002.9 | P51: 総 合 計
A52: 計 | B52: 面積 | C52: =SUM(C7,C10,C13,C16,C19,C22,C25,C28,C31,C34,C37,C40,C43,C46,C49) -> 1372.93 | D52: 1177.94 | E52: 8.55 | F52: 5807.91 | G52: 7693.97 | H52: 138.53 | I52: =SUM(C52:H52) -> 16199.83 | J52: =SUM(J7,J10,J13,J16,J19,J22,J25,J28,J31,J34,J37,J40,J43,J46,J49) -> 370.21 | K52: =SUM(K7,K10,K13,K16,K19,K22,K25,K28,K31,K34,K37,K40,K43,K46,K49) -> 4.1 | L52: =SUM(L7,L10,L13,L16,L19,L22,L25,L28,L31,L34,L37,L40,L43,L46,L49) -> 651.26 | M52: =SUM(M7,M10,M13,M16,M19,M22,M25,M28,M31,M34,M37,M40,M43,M46,M49) -> 9347.7 | N52: =SUM(J52:M52) -> 10373.27 | O52: 26573.1 | P52: 面 積 | R52: =SUM(O52,R45,R47,R46) -> 27524.44
B53: 蓄積 | C53: 611441 | D53: 334372 | E53: 3738 | F53: 1389010 | G53: 2551806 | H53: 36096 | I53: =SUM(C53:H53) -> 4926463 | J53: =SUM(J8,J11,J14,J17,J20,J23,J26,J29,J32,J35,J38,J41,J44,J47,J50) -> 42739 | K53: 2272 | L53: 69868 | M53: 1022540 | N53: =SUM(J53:M53) -> 1137419 | O53: 6063882 | P53: 蓄積 | R53: =O53+R48 -> 6101563
B54: 成長 | C54: 6304.5 | D54: 9319 | E54: 11.1 | F54: 9850.9 | G54: 20437 | H54: 705 | I54: =SUM(C54:H54) -> 46627.5 | J54: 470.2 | K54: 89.8 | L54: 960.4 | M54: 11751.3 | N54: =SUM(J54:M54) -> 13271.7 | O54: 59899.2 | P54: 成長量 | R54: =O54+R49 -> 59937.4

Sheet 東御市
A1: 第11表 市町村別・資源構成表 （千曲川上流）
A3: =MID(CELL("filename",$A$1),FIND("]",CELL("filename",$A$1))+1,31) -> 東御市 | O3: 単位 面積 : ha、蓄積 成長量 : ㎥
B4: 樹種 | C4: 針 葉 樹 | J4: 広 葉 樹 | O4: 計
C5: ス ギ | D5: ヒ ノ キ | E5: サ ワ ラ | F5: ア カ マ ツ | G5: カ ラ マ ツ | H5: そ の 他 針 | I5: 小 計 | J5: ク ヌ ギ | K5: ブ ナ | L5: ナ ラ | M5: そ の 他 広 | N5: 小 計
A6: 齢級
A7: 1 | B7: 面積 | G7: 13.79 | I7: 13.79 | M7: 0.41 | N7: 0.41 | O7: =SUM(N7,I7) -> 14.2
B8: 蓄積 | G8: 0 | I8: 0 | M8: 0 | N8: 0 | O8: =SUM(N8,I8) -> 0
B9: 成長 | G9: 0 | I9: 0 | M9: 0 | N9: 0 | O9: 0
A10: 2 | B10: 面積 | G10: 21.13 | I10: 21.13 | M10: 1.51 | N10: 1.51 | O10: 22.64
B11: 蓄積 | G11: 0 | I11: 0 | M11: 23 | N11: 23 | O11: 23
B12: 成長 | G12: 0 | I12: 0 | M12: 3.4 | N12: 3.4 | O12: 3.4
A13: 3 | B13: 面積 | G13: 7.12 | I13: 7.12 | M13: 0.4 | N13: 0.4 | O13: 7.52
B14: 蓄積 | G14: 491 | I14: 491 | L14: 19 | M14: 7 | N14: 26 | O14: 517
B15: 成長 | G15: 45.2 | I15: 45.2 | L15: 1.7 | M15: 0.7 | N15: 2.4 | O15: 47.6
A16: 4 | B16: 面積 | D16: 0.46 | F16: 0.6 | G16: 0.1 | I16: 1.16 | M16: 16.01 | N16: 16.01 | O16: 17.17
B17: 蓄積 | D17: 27 | F17: 59 | G17: 15 | I17: 101 | M17: 540 | N17: 540 | O17: 641
B18: 成長 | D18: 2.9 | F18: 4.8 | G18: 0.9 | I18: 8.6 | M18: 36.5 | N18: 36.5 | O18: 45.1
A19: 5 | B19: 面積 | D19: 0.51 | I19: 0.51 | L19: 1.14 | M19: 0.89 | N19: 2.03 | O19: 2.54
B20: 蓄積 | D20: 51 | I20: 51 | L20: 47 | M20: 41 | N20: 88 | O20: 139
B21: 成長 | D21: 3.7 | I21: 3.7 | L21: 2.5 | M21: 2.2 | N21: 4.7 | O21: 8.4
A22: 6 | B22: 面積 | C22: 0.12 | D22: 5.71 | G22: 2.21 | H22: 1.17 | I22: 9.21 | L22: 1.83 | M22: 14.42 | N22: 16.25 | O22: 25.46
B23: 蓄積 | C23: 31 | D23: 753 | G23: 431 | H23: 124 | I23: 1339 | L23: 90 | M23: 756 | N23: 846 | O23: 2185
B24: 成長 | C24: 1.1 | D24: 41.5 | G24: 9.9 | H24: 6.6 | I24: 59.1 | L24: 3.6 | M24: 30.8 | N24: 34.4 | O24: 93.5
A25: 7 | B25: 面積 | C25: 0.1 | D25: 6.95 | F25: 0.1 | G25: 0.7 | I25: 7.85 | J25: 0.11 | M25: 34.07 | N25: 34.18 | O25: 42.03
B26: 蓄積 | C26: 57 | D26: 1159 | F26: 15 | G26: 166 | I26: 1397 | J26: 7 | M26: 2037 | N26: 2044 | O26: 3441
B27: 成長 | C27: 1.6 | D27: 52.2 | F27: 0.4 | G27: 3.7 | I27: 57.9 | J27: 0.2 | M27: 62.9 | N27: 63.1 | O27: 121
A28: 8 | B28: 面積 | C28: 0.42 | D28: 26.7 | F28: 12.47 | G28: 9.72 | I28: 49.31 | J28: 0.39 | L28: 4.53 | M28: 28.4 | N28: 33.32 | O28: 82.63
B29: 蓄積 | C29: 141 | D29: 5854 | F29: 2325 | G29: 2508 | I29: 10828 | J29: 29 | L29: 316 | M29: 2025 | N29: 2370 | O29: 13198
B30: 成長 | C30: 3.3 | D30: 216.5 | F30: 47.1 | G30: 52.7 | I30: 319.6 | J30: 0.8 | L30: 9.6 | M30: 61.2 | N30: 71.6 | O30: 391.2
A31: 9 | B31: 面積 | C31: 4.38 | D31: 69.82 | F31: 34.17 | G31: 49.23 | H31: 8.6 | I31: 166.2 | L31: 8.24 | M31: 52.15 | N31: 60.39 | O31: 226.59
B32: 蓄積 | C32: 1605 | D32: 17087 | F32: 6658 | G32: 13447 | H32: 1378 | I32: 40175 | L32: 649 | M32: 4166 | N32: 4815 | O32: 44990
B33: 成長 | C33: 28.9 | D33: 512.8 | F33: 100 | G33: 242.3 | H33: 48.3 | I33: 932.3 | L33: 18.7 | M33: 118.1 | N33: 136.8 | O33: 1069.1
A34: 10 | B34: 面積 | C34: 1.12 | D34: 0.64 | F34: 15.33 | G34: 32.37 | I34: 49.46 | L34: 2.55 | M34: 38.8 | N34: 41.35 | O34: 90.81
B35: 蓄積 | C35: 443 | D35: 179 | F35: 3135 | G35: 9726 | I35: 13483 | L35: 242 | M35: 3483 | N35: 3725 | O35: 17208
B36: 成長 | C36: 6.7 | D36: 5.2 | F36: 40.9 | G36: 145.9 | I36: 198.7 | L36: 6.3 | M36: 88.7 | N36: 95 | O36: 293.7
A37: 11 | B37: 面積 | F37: 34.46 | G37: 42.1 | I37: 76.56 | J37: 0.22 | L37: 14.56 | M37: 21.2 | N37: 35.98 | O37: 112.54
B38: 蓄積 | F38: 7693 | G38: 13311 | I38: 21004 | J38: 22 | L38: 1481 | M38: 2127 | N38: 3630 | O38: 24634 | P38: 伐 跡 | R38: 3.21
B39: 成長 | F39: 83.3 | G39: 160.3 | I39: 243.6 | J39: 0.4 | L39: 29.9 | M39: 42.4 | N39: 72.7 | O39: 316.3 | P39: 未立木地 | R39: 1.49
A40: 12 | B40: 面積 | C40: 0.04 | D40: 0.06 | F40: 44.82 | G40: 110.59 | I40: 155.51 | L40: 2.38 | M40: 33.33 | N40: 35.71 | O40: 191.22 | P40: 岩石地 | R40: 6.88
B41: 蓄積 | C41: 14 | D41: 18 | F41: 9737 | G41: 35149 | I41: 44918 | L41: 255 | M41: 3559 | N41: 3814 | O41: 48732 | P41: 崩壊地 | R41: 0.07
B42: 成長 | C42: 0.2 | D42: 0.4 | F42: 87.1 | G42: 316.5 | I42: 404.2 | L42: 5.1 | M42: 69.8 | N42: 74.9 | O42: 479.1 | P42: はげ山
A43: 13 | B43: 面積 | C43: 0.04 | D43: 1 | F43: 57.75 | G43: 141.37 | I43: 200.16 | J43: 0.73 | L43: 2.28 | M43: 85.55 | N43: 88.56 | O43: 288.72 | P43: 施設敷 | R43: 9.76
B44: 蓄積 | C44: 18 | D44: 310 | F44: 12273 | G44: 44391 | I44: 56992 | J44: 88 | L44: 255 | M44: 9690 | N44: 10033 | O44: 67025 | P44: 林地開発
B45: 成長 | C45: 0.2 | D45: 6.5 | F45: 109.2 | G45: 390.7 | I45: 506.6 | J45: 1.1 | L45: 3.8 | M45: 155.7 | N45: 160.6 | O45: 667.2 | P45: 計 | R45: =SUM(R38:R44) -> 21.41
A46: 14 | B46: 面積 | C46: 0.18 | F46: 36.59 | G46: 121.93 | I46: 158.7 | J46: 0.3 | L46: 3.54 | M46: 101.82 | N46: 105.66 | O46: 264.36 | P46: 竹 林 | R46: 5.77
B47: 蓄積 | C47: 85 | F47: 8531 | G47: 42987 | I47: 51603 | J47: 37 | L47: 431 | M47: 12078 | N47: 12546 | O47: 64149 | P47: 更新 困難地 | Q47: 面積 | R47: 2.64
B48: 成長 | C48: 0.7 | F48: 68.1 | G48: 312.1 | I48: 380.9 | J48: 0.3 | L48: 4.8 | M48: 130.8 | N48: 135.9 | O48: 516.8 | Q48: 蓄積 | R48: 729
A49: 15 以上 | B49: 面積 | C49: 2.31 | D49: 1.32 | E49: 0.23 | F49: 135.68 | G49: 111.21 | I49: 250.75 | J49: 2.02 | L49: 14.32 | M49: 219.41 | N49: 235.75 | O49: 486.5 | Q49: 成長 | R49: 0
B50: 蓄積 | C50: 1168 | D50: 636 | E50: 106 | F50: 32916 | G50: 39031 | I50: 73857 | J50: 258 | L50: 1765 | M50: 27993 | N50: 30016 | O50: 103873
B51: 成長 | C51: 2 | D51: 0.1 | E51: 1.3 | F51: 137 | G51: 134 | I51: 274.4 | J51: 1.9 | L51: 10.4 | M51: 193.6 | N51: 205.9 | O51: 480.3 | P51: 総 合 計
A52: 計 | B52: 面積 | C52: =SUM(C7,C10,C13,C16,C19,C22,C25,C28,C31,C34,C37,C40,C43,C46,C49) -> 8.71 | D52: 113.17 | E52: 0.23 | F52: 371.97 | G52: 663.57 | H52: 9.77 | I52: =SUM(C52:H52) -> 1167.42 | J52: =SUM(J7,J10,J13,J16,J19,J22,J25,J28,J31,J34,J37,J40,J43,J46,J49) -> 3.77 | K52: =SUM(K7,K10,K13,K16,K19,K22,K25,K28,K31,K34,K37,K40,K43,K46,K49) -> 0 | L52: =SUM(L7,L10,L13,L16,L19,L22,L25,L28,L31,L34,L37,L40,L43,L46,L49) -> 55.37 | M52: =SUM(M7,M10,M13,M16,M19,M22,M25,M28,M31,M34,M37,M40,M43,M46,M49) -> 648.37 | N52: =SUM(J52:M52) -> 707.51 | O52: 1874.93 | P52: 面 積 | R52: =SUM(O52,R45,R47,R46) -> 1904.75
B53: 蓄積 | C53: 3562 | D53: 26074 | E53: 106 | F53: 83342 | G53: 201653 | H53: 1502 | I53: =SUM(C53:H53) -> 316239 | J53: =SUM(J8,J11,J14,J17,J20,J23,J26,J29,J32,J35,J38,J41,J44,J47,J50) -> 441 | K53: 0 | L53: 5550 | M53: 68525 | N53: =SUM(J53:M53) -> 74516 | O53: 390755 | P53: 蓄積 | R53: =O53+R48 -> 391484
B54: 成長 | C54: 44.7 | D54: 841.8 | E54: 1.3 | F54: 677.9 | G54: 1814.2 | H54: 54.9 | I54: =SUM(C54:H54) -> 3434.8 | J54: 4.7 | K54: 0 | L54: 96.4 | M54: 996.8 | N54: =SUM(J54:M54) -> 1097.9 | O54: 4532.7 | P54: 成長量 | R54: =O54+R49 -> 4532.7

Sheet 長和町
A1: 第11表 市町村別・資源構成表 （千曲川上流）
A3: =MID(CELL("filename",$A$1),FIND("]",CELL("filename",$A$1))+1,31) -> 長和町 | O3: 単位 面積 : ha、蓄積 成長量 : ㎥
B4: 樹種 | C4: 針 葉 樹 | J4: 広 葉 樹 | O4: 計
C5: ス ギ | D5: ヒ ノ キ | E5: サ ワ ラ | F5: ア カ マ ツ | G5: カ ラ マ ツ | H5: そ の 他 針 | I5: 小 計 | J5: ク ヌ ギ | K5: ブ ナ | L5: ナ ラ | M5: そ の 他 広 | N5: 小 計
A6: 齢級
A7: 1 | B7: 面積 | G7: 51.47 | I7: 51.47 | L7: 2.03 | M7: 6.3 | N7: 8.33 | O7: =SUM(N7,I7) -> 59.8
B8: 蓄積 | G8: 0 | I8: 0 | L8: 0 | M8: 0 | N8: 0 | O8: =SUM(N8,I8) -> 0
B9: 成長 | G9: 0 | I9: 0 | L9: 0 | M9: 0 | N9: 0 | O9: 0
A10: 2 | B10: 面積 | G10: 21.38 | I10: 21.38 | L10: 0.25 | M10: 20.1 | N10: 20.35 | O10: 41.73
B11: 蓄積 | G11: 0 | I11: 0 | L11: 4 | M11: 287 | N11: 291 | O11: 291
B12: 成長 | G12: 0 | I12: 0 | L12: 0.6 | M12: 41.6 | N12: 42.2 | O12: 42.2
A13: 3 | B13: 面積 | I13: 0 | L13: 2.53 | M13: 6.86 | N13: 9.39 | O13: 9.39
B14: 蓄積 | I14: 0 | L14: 53 | M14: 140 | N14: 193 | O14: 193
B15: 成長 | I15: 0 | L15: 4.4 | M15: 12.2 | N15: 16.6 | O15: 16.6
A16: 4 | B16: 面積 | C16: 0.12 | D16: 0.55 | F16: 0.61 | G16: 5.72 | I16: 7 | M16: 6.39 | N16: 6.39 | O16: 13.39
B17: 蓄積 | C17: 21 | D17: 47 | F17: 48 | G17: 818 | I17: 934 | M17: 194 | N17: 194 | O17: 1128
B18: 成長 | C18: 1.7 | D18: 5 | F18: 3.9 | G18: 48.2 | I18: 58.8 | M18: 13.3 | N18: 13.3 | O18: 72.1
A19: 5 | B19: 面積 | C19: 0.15 | D19: 1.85 | F19: 0.37 | G19: 10.93 | I19: 13.3 | K19: 3.02 | L19: 5.07 | M19: 6.09 | N19: 14.18 | O19: 27.48
B20: 蓄積 | C20: 38 | D20: 601 | F20: 37 | G20: 2035 | I20: 2711 | K20: 75 | L20: 208 | M20: 365 | N20: 648 | O20: 3359
B21: 成長 | C21: 1.5 | D21: 42.8 | F21: 2.1 | G21: 94.6 | I21: 141 | K21: 5.9 | L21: 10.7 | M21: 18.9 | N21: 35.5 | O21: 176.5
A22: 6 | B22: 面積 | C22: 1.86 | D22: 21.95 | F22: 1.71 | G22: 26.89 | I22: 52.41 | L22: 20.39 | M22: 39.72 | N22: 60.11 | O22: 112.52
B23: 蓄積 | C23: 876 | D23: 7047 | F23: 251 | G23: 5266 | I23: 13440 | L23: 977 | M23: 2340 | N23: 3317 | O23: 16757
B24: 成長 | C24: 31.5 | D24: 388 | F24: 9.4 | G24: 120.9 | I24: 549.8 | L24: 39.8 | M24: 95.7 | N24: 135.5 | O24: 685.3
A25: 7 | B25: 面積 | C25: 6.72 | D25: 153.13 | F25: 5.09 | G25: 49.01 | I25: 213.95 | L25: 12.69 | M25: 80.89 | N25: 93.58 | O25: 307.53
B26: 蓄積 | C26: 6678 | D26: 34659 | F26: 935 | G26: 11550 | I26: 53822 | L26: 787 | M26: 4989 | N26: 5776 | O26: 59598
B27: 成長 | C27: 185.6 | D27: 1560.1 | F27: 22.3 | G27: 254.1 | I27: 2022.1 | L27: 24.5 | M27: 154.9 | N27: 179.4 | O27: 2201.5
A28: 8 | B28: 面積 | C28: 2.19 | D28: 17.81 | F28: 3.16 | G28: 12.29 | I28: 35.45 | L28: 27.96 | M28: 87.76 | N28: 115.72 | O28: 151.17
B29: 蓄積 | C29: 1032 | D29: 7507 | F29: 609 | G29: 3081 | I29: 12229 | L29: 1985 | M29: 6184 | N29: 8169 | O29: 20398
B30: 成長 | C30: 23.1 | D30: 278 | F30: 12.2 | G30: 64.7 | I30: 378 | L30: 60 | M30: 186 | N30: 246 | O30: 624
A31: 9 | B31: 面積 | C31: 7.25 | D31: 80.17 | F31: 29.77 | G31: 21.51 | H31: 0.66 | I31: 139.36 | J31: 0.2 | L31: 20.8 | M31: 49.03 | N31: 70.03 | O31: 209.39
B32: 蓄積 | C32: 3097 | D32: 25643 | F32: 5900 | G32: 6058 | H32: 682 | I32: 41380 | J32: 15 | L32: 1706 | M32: 3911 | N32: 5632 | O32: 47012
B33: 成長 | C33: 55.2 | D33: 770.8 | F33: 89.1 | G33: 109.1 | H33: 23.8 | I33: 1048 | J33: 0.4 | L33: 47.6 | M33: 109.1 | N33: 157.1 | O33: 1205.1
A34: 10 | B34: 面積 | C34: 8.91 | D34: 34.34 | F34: 78.27 | G34: 45.64 | H34: 0.47 | I34: 167.63 | L34: 15.23 | M34: 57.3 | N34: 72.53 | O34: 240.16
B35: 蓄積 | C35: 3521 | D35: 10309 | F35: 16464 | G35: 13882 | H35: 2803 | I35: 46979 | L35: 1416 | M35: 5177 | N35: 6593 | O35: 53572
B36: 成長 | C36: 53.1 | D36: 299.4 | F36: 213.8 | G36: 208.8 | H36: 84.2 | I36: 859.3 | L36: 36 | M36: 130.6 | N36: 166.6 | O36: 1025.9
A37: 11 | B37: 面積 | C37: 13.26 | D37: 14.39 | E37: 0.1 | F37: 95.97 | G37: 134.5 | H37: 4.67 | I37: 262.89 | L37: 11.32 | M37: 49.02 | N37: 60.34 | O37: 323.23
B38: 蓄積 | C38: 5493 | D38: 4787 | E38: 35 | F38: 20951 | G38: 42520 | H38: 1067 | I38: 74853 | L38: 1071 | M38: 4906 | N38: 5977 | O38: 80830 | P38: 伐 跡 | R38: 60.52
B39: 成長 | C39: 72 | D39: 114.9 | E39: 0.8 | F39: 232.1 | G39: 510.1 | H39: 24.4 | I39: 954.3 | L39: 20.8 | M39: 96.5 | N39: 117.3 | O39: 1071.6 | P39: 未立木地 | R39: 19.24
A40: 12 | B40: 面積 | C40: 18.3 | D40: 2.14 | E40: 2.94 | F40: 228.06 | G40: 548.25 | H40: 0.12 | I40: 799.81 | L40: 16.37 | M40: 100.32 | N40: 116.69 | O40: 916.5 | P40: 岩石地 | R40: 42.57
B41: 蓄積 | C41: 7762 | D41: 798 | E41: 1105 | F41: 52645 | G41: 179914 | H41: 33 | I41: 242257 | L41: 1768 | M41: 10347 | N41: 12115 | O41: 254372 | P41: 崩壊地 | R41: 14.78
B42: 成長 | C42: 86.2 | D42: 16.7 | E42: 23.1 | F42: 473 | G42: 1627.9 | H42: 0.6 | I42: 2227.5 | L42: 34.7 | M42: 200.1 | N42: 234.8 | O42: 2462.3 | P42: はげ山
A43: 13 | B43: 面積 | C43: 26.3 | D43: 2.52 | E43: 1.5 | F43: 356.86 | G43: 883.83 | I43: 1271.01 | L43: 22.42 | M43: 178.56 | N43: 200.98 | O43: 1471.99 | P43: 施設敷 | R43: 35.46
B44: 蓄積 | C44: 11356 | D44: 1008 | E44: 579 | F44: 83284 | G44: 301798 | I44: 398025 | L44: 2588 | M44: 19990 | N44: 22578 | O44: 420603 | P44: 林地開発 | R44: 16.89
B45: 成長 | C45: 123.9 | D45: 20 | E45: 12.1 | F45: 740.2 | G45: 2612.3 | I45: 3508.5 | L45: 39.5 | M45: 320.9 | N45: 360.4 | O45: 3868.9 | P45: 計 | R45: =SUM(R38:R44) -> 189.46
A46: 14 | B46: 面積 | C46: 24.04 | D46: 1.5 | E46: 0.45 | F46: 155.65 | G46: 881.47 | I46: 1063.11 | J46: 0.21 | L46: 44.86 | M46: 425.14 | N46: 470.21 | O46: 1533.32 | P46: 竹 林 | R46: 11.42
B47: 蓄積 | C47: 11193 | D47: 634 | E47: 189 | F47: 38808 | G47: 305145 | I47: 355969 | J47: 26 | L47: 5419 | M47: 50097 | N47: 55542 | O47: 411511 | P47: 更新 困難地 | Q47: 面積
B48: 成長 | C48: 100.4 | D48: 11.3 | E48: 3.6 | F48: 300.8 | G48: 2128.4 | I48: 2544.5 | J48: 0.3 | L48: 59.3 | M48: 553 | N48: 612.6 | O48: 3157.1 | Q48: 蓄積
A49: 15 以上 | B49: 面積 | C49: 45.48 | D49: 9.2 | E49: 24.32 | F49: 431.94 | G49: 604.36 | H49: 16.09 | I49: 1131.39 | J49: 0.72 | L49: 107.56 | M49: 741.42 | N49: 849.7 | O49: 1981.09 | Q49: 成長
B50: 蓄積 | C50: 22506 | D50: 4289 | E50: 11372 | F50: 113279 | G50: 220826 | H50: 6461 | I50: 378733 | J50: 92 | L50: 13585 | M50: 92544 | N50: 106221 | O50: 484954
B51: 成長 | C51: 80.4 | D51: 15.9 | E51: 29.7 | F51: 430.2 | G51: 912.7 | H51: 58.3 | I51: 1527.2 | J51: 0.8 | L51: 79.6 | M51: 549.6 | N51: 630 | O51: 2157.2 | P51: 総 合 計
A52: 計 | B52: 面積 | C52: =SUM(C7,C10,C13,C16,C19,C22,C25,C28,C31,C34,C37,C40,C43,C46,C49) -> 154.58 | D52: 339.55 | E52: 29.31 | F52: 1387.46 | G52: 3297.25 | H52: 22.01 | I52: =SUM(C52:H52) -> 5230.16 | J52: =SUM(J7,J10,J13,J16,J19,J22,J25,J28,J31,J34,J37,J40,J43,J46,J49) -> 1.13 | K52: =SUM(K7,K10,K13,K16,K19,K22,K25,K28,K31,K34,K37,K40,K43,K46,K49) -> 3.02 | L52: =SUM(L7,L10,L13,L16,L19,L22,L25,L28,L31,L34,L37,L40,L43,L46,L49) -> 309.48 | M52: =SUM(M7,M10,M13,M16,M19,M22,M25,M28,M31,M34,M37,M40,M43,M46,M49) -> 1854.9 | N52: =SUM(J52:M52) -> 2168.53 | O52: 7398.69 | P52: 面 積 | R52: =SUM(O52,R45,R47,R46) -> 7599.57
B53: 蓄積 | C53: 73573 | D53: 97329 | E53: 13280 | F53: 333211 | G53: 1092893 | H53: 11046 | I53: =SUM(C53:H53) -> 1621332 | J53: =SUM(J8,J11,J14,J17,J20,J23,J26,J29,J32,J35,J38,J41,J44,J47,J50) -> 133 | K53: 75 | L53: 31567 | M53: 201471 | N53: =SUM(J53:M53) -> 233246 | O53: 1854578 | P53: 蓄積 | R53: =O53+R48 -> 1854578
B54: 成長 | C54: 814.6 | D54: 3522.9 | E54: 69.3 | F54: 2529.1 | G54: 8691.8 | H54: 191.3 | I54: =SUM(C54:H54) -> 15819 | J54: 1.5 | K54: 5.9 | L54: 457.5 | M54: 2482.4 | N54: =SUM(J54:M54) -> 2947.3 | O54: 18766.3 | P54: 成長量 | R54: =O54+R49 -> 18766.3

Sheet 青木村
A1: 第11表 市町村別・資源構成表 （千曲川上流）
A3: =MID(CELL("filename",$A$1),FIND("]",CELL("filename",$A$1))+1,31) -> 青木村 | O3: 単位 面積 : ha、蓄積 成長量 : ㎥
B4: 樹種 | C4: 針 葉 樹 | J4: 広 葉 樹 | O4: 計
C5: ス ギ | D5: ヒ ノ キ | E5: サ ワ ラ | F5: ア カ マ ツ | G5: カ ラ マ ツ | H5: そ の 他 針 | I5: 小 計 | J5: ク ヌ ギ | K5: ブ ナ | L5: ナ ラ | M5: そ の 他 広 | N5: 小 計
A6: 齢級
A7: 1 | B7: 面積 | C7: 0.07 | D7: 0.03 | G7: 2.67 | I7: 2.77 | L7: 3.25 | M7: 0.28 | N7: 3.53 | O7: =SUM(N7,I7) -> 6.3
B8: 蓄積 | C8: 0 | D8: 0 | G8: 0 | I8: 0 | L8: 0 | M8: 0 | N8: 0 | O8: =SUM(N8,I8) -> 0
B9: 成長 | C9: 0 | D9: 0 | G9: 0 | I9: 0 | L9: 0 | M9: 0 | N9: 0 | O9: 0
A10: 2 | B10: 面積 | D10: 9.1 | G10: 2.46 | I10: 11.56 | L10: 1.27 | M10: 4.6 | N10: 5.87 | O10: 17.43
B11: 蓄積 | D11: 0 | G11: 0 | I11: 0 | L11: 14 | M11: 61 | N11: 75 | O11: 75
B12: 成長 | D12: 0 | G12: 0 | I12: 0 | L12: 1.7 | M12: 8 | N12: 9.7 | O12: 9.7
A13: 3 | B13: 面積 | D13: 5.35 | F13: 0.22 | I13: 5.57 | L13: 4.78 | M13: 8.08 | N13: 12.86 | O13: 18.43
B14: 蓄積 | D14: 191 | F14: 7 | I14: 198 | L14: 88 | M14: 152 | N14: 240 | O14: 438
B15: 成長 | D15: 42.6 | F15: 0.9 | I15: 43.5 | L15: 7.6 | M15: 13.3 | N15: 20.9 | O15: 64.4
A16: 4 | B16: 面積 | D16: 7.38 | G16: 0.26 | I16: 7.64 | L16: 2.59 | M16: 2.16 | N16: 4.75 | O16: 12.39
B17: 蓄積 | D17: 563 | G17: 37 | I17: 600 | L17: 83 | M17: 64 | N17: 147 | O17: 747
B18: 成長 | D18: 58.8 | G18: 2.2 | I18: 61 | L18: 6.3 | M18: 4.5 | N18: 10.8 | O18: 71.8
A19: 5 | B19: 面積 | C19: 0.34 | D19: 15.56 | F19: 5.29 | I19: 21.19 | L19: 0.08 | M19: 14.28 | N19: 14.36 | O19: 35.55
B20: 蓄積 | C20: 77 | D20: 1599 | F20: 278 | I20: 1954 | L20: 3 | M20: 504 | N20: 507 | O20: 2461
B21: 成長 | C21: 3.9 | D21: 113.4 | F21: 18.3 | I21: 135.6 | L21: 0.2 | M21: 26.3 | N21: 26.5 | O21: 162.1
A22: 6 | B22: 面積 | C22: 0.47 | D22: 7.42 | F22: 2.28 | G22: 0.18 | I22: 10.35 | L22: 2.68 | M22: 7.91 | N22: 10.59 | O22: 20.94
B23: 蓄積 | C23: 117 | D23: 2312 | F23: 308 | G23: 37 | I23: 2774 | L23: 136 | M23: 482 | N23: 618 | O23: 3392
B24: 成長 | C24: 4.2 | D24: 127.2 | F24: 11.4 | G24: 0.9 | I24: 143.7 | L24: 5.5 | M24: 19.7 | N24: 25.2 | O24: 168.9
A25: 7 | B25: 面積 | C25: 1.58 | D25: 24.65 | F25: 1.85 | G25: 1.59 | I25: 29.67 | L25: 13.66 | M25: 45.65 | N25: 59.31 | O25: 88.98
B26: 蓄積 | C26: 566 | D26: 4502 | F26: 305 | G26: 421 | I26: 5794 | L26: 840 | M26: 2852 | N26: 3692 | O26: 9486
B27: 成長 | C27: 15.9 | D27: 203.2 | F27: 7.4 | G27: 9.3 | I27: 235.8 | L27: 25.9 | M27: 88.5 | N27: 114.4 | O27: 350.2
A28: 8 | B28: 面積 | C28: 2.86 | D28: 13.38 | F28: 0.77 | G28: 0.89 | H28: 2.36 | I28: 20.26 | J28: 0.73 | L28: 28.1 | M28: 33.39 | N28: 62.22 | O28: 82.48
B29: 蓄積 | C29: 940 | D29: 2936 | F29: 111 | G29: 223 | H29: 365 | I29: 4575 | J29: 50 | L29: 1993 | M29: 2290 | N29: 4333 | O29: 8908
B30: 成長 | C30: 21.6 | D30: 109.1 | F30: 2.8 | G30: 4.7 | H30: 13.9 | I30: 152.1 | J30: 1.5 | L30: 60.3 | M30: 69.3 | N30: 131.1 | O30: 283.2
A31: 9 | B31: 面積 | C31: 4.55 | D31: 31.13 | F31: 3.03 | G31: 1.85 | I31: 40.56 | J31: 0.33 | L31: 19.98 | M31: 18.46 | N31: 38.77 | O31: 79.33
B32: 蓄積 | C32: 1661 | D32: 8007 | F32: 592 | G32: 524 | I32: 10784 | J32: 28 | L32: 1608 | M32: 1474 | N32: 3110 | O32: 13894
B33: 成長 | C33: 30.4 | D33: 240.5 | F33: 8.8 | G33: 9.4 | I33: 289.1 | J33: 0.8 | L33: 45 | M33: 41 | N33: 86.8 | O33: 375.9
A34: 10 | B34: 面積 | C34: 26.99 | D34: 33.37 | F34: 15.14 | G34: 13.94 | H34: 1.3 | I34: 90.74 | L34: 13.19 | M34: 16.57 | N34: 29.76 | O34: 120.5
B35: 蓄積 | C35: 10723 | D35: 10073 | F35: 3204 | G35: 3871 | H35: 297 | I35: 28168 | L35: 1221 | M35: 1520 | N35: 2741 | O35: 30909
B36: 成長 | C36: 161 | D36: 291.8 | F36: 41.9 | G36: 58.1 | H36: 8.9 | I36: 561.7 | L36: 31 | M36: 38.9 | N36: 69.9 | O36: 631.6
A37: 11 | B37: 面積 | C37: 64.51 | D37: 32.64 | F37: 84.27 | G37: 5.97 | H37: 2.05 | I37: 189.44 | L37: 7.85 | M37: 18.64 | N37: 26.49 | O37: 215.93
B38: 蓄積 | C38: 27215 | D38: 11012 | F38: 19065 | G38: 1829 | H38: 506 | I38: 59627 | L38: 797 | M38: 1843 | N38: 2640 | O38: 62267 | P38: 伐 跡 | R38: 5.22
B39: 成長 | C39: 354.9 | D39: 263.8 | F39: 208.3 | G39: 21.7 | H39: 11.2 | I39: 859.9 | L39: 16 | M39: 36.3 | N39: 52.3 | O39: 912.2 | P39: 未立木地 | R39: 2.48
A40: 12 | B40: 面積 | C40: 61.23 | D40: 18.12 | F40: 289.61 | G40: 50.58 | H40: 2.49 | I40: 422.03 | L40: 13.39 | M40: 36.57 | N40: 49.96 | O40: 471.99 | P40: 岩石地 | R40: 9.22
B41: 蓄積 | C41: 27528 | D41: 6678 | F41: 67558 | G41: 17259 | H41: 638 | I41: 119661 | L41: 1442 | M41: 3753 | N41: 5195 | O41: 124856 | P41: 崩壊地 | R41: 3.74
B42: 成長 | C42: 303.5 | D42: 139.8 | F42: 608.8 | G42: 156.3 | H42: 12.8 | I42: 1221.2 | L42: 28.4 | M42: 74.6 | N42: 103 | O42: 1324.2 | P42: はげ山 | R42: 0.52
A43: 13 | B43: 面積 | C43: 50.86 | D43: 0.43 | E43: 0.8 | F43: 336.29 | G43: 255.42 | H43: 2.01 | I43: 645.81 | J43: 0.8 | L43: 21.11 | M43: 42.3 | N43: 64.21 | O43: 710.02 | P43: 施設敷 | R43: 17.13
B44: 蓄積 | C44: 23250 | D44: 170 | E44: 237 | F44: 80426 | G44: 88642 | H44: 594 | I44: 193319 | J44: 93 | L44: 2433 | M44: 4897 | N44: 7423 | O44: 200742 | P44: 林地開発 | R44: 3.23
B45: 成長 | C45: 253.1 | D45: 3.7 | E45: 5.2 | F45: 714.7 | G45: 787.3 | H45: 11.2 | I45: 1775.2 | J45: 1.5 | L45: 38.4 | M45: 76.5 | N45: 116.4 | O45: 1891.6 | P45: 計 | R45: =SUM(R38:R44) -> 41.54
A46: 14 | B46: 面積 | C46: 69.9 | D46: 0.55 | E46: 0.03 | F46: 143.82 | G46: 262.15 | H46: 2.48 | I46: 478.93 | J46: 0.5 | L46: 47.9 | M46: 118.67 | N46: 167.07 | O46: 646 | P46: 竹 林 | R46: 20.65
B47: 蓄積 | C47: 33029 | D47: 231 | E47: 13 | F47: 35254 | G47: 93651 | H47: 772 | I47: 162950 | J47: 62 | L47: 5868 | M47: 14430 | N47: 20360 | O47: 183310 | P47: 更新 困難地 | Q47: 面積
B48: 成長 | C48: 297.4 | D48: 4.1 | E48: 0.2 | F48: 278.6 | G48: 648.6 | H48: 13.3 | I48: 1242.2 | J48: 0.6 | L48: 62.7 | M48: 157.5 | N48: 220.8 | O48: 1463 | Q48: 蓄積
A49: 15 以上 | B49: 面積 | C49: 132.29 | D49: 45.22 | E49: 0.21 | F49: 317.54 | G49: 168.12 | H49: 20.03 | I49: 683.41 | J49: 3.86 | L49: 140.47 | M49: 280.32 | N49: 424.65 | O49: 1108.06 | Q49: 成長
B50: 蓄積 | C50: 65153 | D50: 21823 | E50: 102 | F50: 83698 | G50: 62485 | H50: 7311 | I50: 240572 | J50: 500 | L50: 18270 | M50: 36566 | N50: 55336 | O50: 295908
B51: 成長 | C51: 275 | D51: 40.9 | E51: 0 | F51: 279.6 | G51: 304.9 | H51: 94.2 | I51: 994.6 | J51: 3.7 | L51: 119.6 | M51: 205.7 | N51: 329 | O51: 1323.6 | P51: 総 合 計
A52: 計 | B52: 面積 | C52: =SUM(C7,C10,C13,C16,C19,C22,C25,C28,C31,C34,C37,C40,C43,C46,C49) -> 415.65 | D52: 244.33 | E52: 1.04 | F52: 1200.11 | G52: 766.08 | H52: 32.72 | I52: =SUM(C52:H52) -> 2659.93 | J52: =SUM(J7,J10,J13,J16,J19,J22,J25,J28,J31,J34,J37,J40,J43,J46,J49) -> 6.22 | K52: =SUM(K7,K10,K13,K16,K19,K22,K25,K28,K31,K34,K37,K40,K43,K46,K49) -> 0 | L52: =SUM(L7,L10,L13,L16,L19,L22,L25,L28,L31,L34,L37,L40,L43,L46,L49) -> 320.3 | M52: =SUM(M7,M10,M13,M16,M19,M22,M25,M28,M31,M34,M37,M40,M43,M46,M49) -> 647.88 | N52: =SUM(J52:M52) -> 974.4 | O52: =SUM(N52,I52) -> 3634.33 | P52: 面 積 | R52: =SUM(O52,R45,R47,R46) -> 3696.52
B53: 蓄積 | C53: 190259 | D53: 70097 | E53: 352 | F53: 290806 | G53: 268979 | H53: 10483 | I53: =SUM(C53:H53) -> 830976 | J53: =SUM(J8,J11,J14,J17,J20,J23,J26,J29,J32,J35,J38,J41,J44,J47,J50) -> 733 | K53: 0 | L53: 34796 | M53: 70888 | N53: =SUM(J53:M53) -> 106417 | O53: =SUM(N53,I53) -> 937393 | P53: 蓄積 | R53: =O53+R48 -> 937393
B54: 成長 | C54: 1720.9 | D54: 1638.9 | E54: 5.4 | F54: 2181.5 | G54: 2003.4 | H54: 165.5 | I54: =SUM(C54:H54) -> 7715.6 | J54: 8.1 | K54: 0 | L54: 448.6 | M54: 860.1 | N54: =SUM(J54:M54) -> 1316.8 | O54: =SUM(N54,I54) -> 9032.4 | P54: 成長量 | R54: =O54+R49 -> 9032.4

Sheet 岡谷市
A1: 第11表 市町村別・資源構成表 （伊那谷）
A3: =MID(CELL("filename",$A$1),FIND("]",CELL("filename",$A$1))+1,31) -> 岡谷市 | O3: 単位 面積 : ha、蓄積 成長量 : ㎥
B4: 樹種 | C4: 針 葉 樹 | J4: 広 葉 樹 | O4: 計
C5: ス ギ | D5: ヒ ノ キ | E5: サ ワ ラ | F5: ア カ マ ツ | G5: カ ラ マ ツ | H5: そ の 他 針 | I5: 小 計 | J5: ク ヌ ギ | K5: ブ ナ | L5: ナ ラ | M5: そ の 他 広 | N5: 小 計
A6: 齢級
A7: 1 | B7: 面積 | C7: 0.08 | F7: 3.92 | G7: 21.49 | I7: 25.49 | L7: 0.45 | M7: 1.47 | N7: 1.92 | O7: =SUM(N7,I7) -> 27.41
B8: 蓄積 | C8: 0 | F8: 0 | G8: 0 | I8: 0 | L8: 0 | M8: 0 | N8: 0 | O8: =SUM(N8,I8) -> 0
B9: 成長 | C9: 0 | F9: 0 | G9: 0 | I9: 0 | L9: 0 | M9: 0 | N9: 0 | O9: 0
A10: 2 | B10: 面積 | F10: 4.46 | G10: 12.39 | I10: 16.85 | L10: 4.29 | M10: 0.05 | N10: 4.34 | O10: 21.19
B11: 蓄積 | F11: 0 | G11: 0 | I11: 0 | L11: 31 | M11: 0 | N11: 31 | O11: 31
B12: 成長 | F12: 0 | G12: 0 | I12: 0 | L12: 4 | M12: 0 | N12: 4 | O12: 4
A13: 3 | B13: 面積 | C13: 0.14 | I13: 0.14 | M13: 0.22 | N13: 0.22 | O13: 0.36
B14: 蓄積 | C14: 13 | I14: 13 | M14: 2 | N14: 2 | O14: 15
B15: 成長 | C15: 2.6 | I15: 2.6 | M15: 0.2 | N15: 0.2 | O15: 2.8
A16: 4 | B16: 面積 | C16: 0.04 | D16: 0.8 | G16: 12.79 | I16: 13.63 | M16: 6.29 | N16: 6.29 | O16: 19.92
B17: 蓄積 | C17: 5 | D17: 68 | G17: 774 | I17: 847 | M17: 153 | N17: 153 | O17: 1000
B18: 成長 | C18: 0.4 | D18: 6.2 | G18: 46.8 | I18: 53.4 | M18: 10.4 | N18: 10.4 | O18: 63.8
A19: 5 | B19: 面積 | C19: 0.09 | D19: 0.98 | I19: 1.07 | M19: 5.34 | N19: 5.34 | O19: 6.41
B20: 蓄積 | C20: 16 | D20: 660 | I20: 676 | M20: 208 | N20: 208 | O20: 884
B21: 成長 | C21: 0.8 | D21: 38.6 | I21: 39.4 | M21: 10.9 | N21: 10.9 | O21: 50.3
A22: 6 | B22: 面積 | D22: 12.96 | G22: 1.43 | H22: 0.03 | I22: 14.42 | L22: 4.39 | M22: 13.43 | N22: 17.82 | O22: 32.24
B23: 蓄積 | D23: 4776 | G23: 236 | H23: 34 | I23: 5046 | L23: 430 | M23: 824 | N23: 1254 | O23: 6300
B24: 成長 | D24: 205.5 | G24: 5.5 | H24: 1.7 | I24: 212.7 | L24: 16.5 | M24: 33.5 | N24: 50 | O24: 262.7
A25: 7 | B25: 面積 | C25: 0.26 | D25: 18.89 | F25: 2.75 | H25: 1.13 | I25: 23.03 | L25: 1.05 | M25: 6.46 | N25: 7.51 | O25: 30.54
B26: 蓄積 | C26: 59 | D26: 4217 | F26: 468 | H26: 86 | I26: 4830 | L26: 63 | M26: 399 | N26: 462 | O26: 5292
B27: 成長 | C27: 1.6 | D27: 137 | F27: 11.2 | H27: 4.1 | I27: 153.9 | L27: 2 | M27: 12 | N27: 14 | O27: 167.9
A28: 8 | B28: 面積 | C28: 0.28 | D28: 30.3 | F28: 6.29 | H28: 9.01 | I28: 45.88 | L28: 1.74 | M28: 4.4 | N28: 6.14 | O28: 52.02
B29: 蓄積 | C29: 70 | D29: 9148 | F29: 1129 | G29: 203 | H29: 934 | I29: 11484 | L29: 125 | M29: 305 | N29: 430 | O29: 11914
B30: 成長 | C30: 1.6 | D30: 239.1 | F30: 22.6 | G30: 4.3 | H30: 35.6 | I30: 303.2 | L30: 3.6 | M30: 9 | N30: 12.6 | O30: 315.8
A31: 9 | B31: 面積 | C31: 1.73 | D31: 66.78 | E31: 0.19 | F31: 13.26 | G31: 6.95 | H31: 10.46 | I31: 99.37 | M31: 2.59 | N31: 2.59 | O31: 101.96
B32: 蓄積 | C32: 480 | D32: 14934 | E32: 40 | F32: 2638 | G32: 1532 | H32: 1200 | I32: 20824 | M32: 219 | N32: 219 | O32: 21043
B33: 成長 | C33: 8.2 | D33: 315.4 | E33: 0.8 | F33: 39.8 | G33: 27.7 | H33: 39.4 | I33: 431.3 | M33: 6.3 | N33: 6.3 | O33: 437.6
A34: 10 | B34: 面積 | C34: 1 | D34: 33.05 | F34: 34.58 | G34: 23.61 | H34: 9.66 | I34: 101.9 | L34: 0.11 | M34: 4.38 | N34: 4.49 | O34: 106.39
B35: 蓄積 | C35: 302 | D35: 6835 | F35: 6843 | G35: 5773 | H35: 1236 | I35: 20989 | L35: 10 | M35: 404 | N35: 414 | O35: 21403
B36: 成長 | C36: 4.2 | D36: 128.9 | F36: 91.4 | G36: 86.8 | H36: 36.8 | I36: 348.1 | L36: 0.2 | M36: 10.3 | N36: 10.5 | O36: 358.6
A37: 11 | B37: 面積 | C37: 1.39 | D37: 21.9 | F37: 86.2 | G37: 80.24 | H37: 5.93 | I37: 195.66 | L37: 0.28 | M37: 10.18 | N37: 10.46 | O37: 206.12
B38: 蓄積 | C38: 461 | D38: 5264 | F38: 16888 | G38: 19777 | H38: 754 | I38: 43144 | L38: 29 | M38: 998 | N38: 1027 | O38: 44171 | P38: 伐 跡 | R38: 7.15
B39: 成長 | C39: 6.3 | D39: 85.4 | F39: 190.8 | G39: 277.1 | H39: 16.8 | I39: 576.4 | L39: 0.6 | M39: 19.4 | N39: 20 | O39: 596.4 | P39: 未立木地 | R39: 128.55
A40: 12 | B40: 面積 | C40: 5.16 | D40: 3.32 | F40: 181.38 | G40: 461.57 | H40: 5.08 | I40: 656.51 | L40: 1.31 | M40: 34.38 | N40: 35.69 | O40: 692.2 | P40: 岩石地 | R40: 3.04
B41: 蓄積 | C41: 1795 | D41: 792 | F41: 40398 | G41: 122369 | H41: 668 | I41: 166022 | L41: 140 | M41: 3696 | N41: 3836 | O41: 169858 | P41: 崩壊地 | R41: 19.19
B42: 成長 | C42: 23.4 | D42: 11.7 | F42: 368.3 | G42: 1566.6 | H42: 13.4 | I42: 1983.4 | L42: 2.8 | M42: 70.2 | N42: 73 | O42: 2056.4 | P42: はげ山 | R42: 0.16
A43: 13 | B43: 面積 | C43: 8.7 | D43: 4.54 | E43: 0.21 | F43: 166.84 | G43: 707.79 | H43: 28.37 | I43: 916.45 | L43: 2.61 | M43: 57.3 | N43: 59.91 | O43: 976.36 | P43: 施設敷 | R43: 20.22
B44: 蓄積 | C44: 3123 | D44: 1270 | E44: 57 | F44: 37067 | G44: 184041 | H44: 4084 | I44: 229642 | L44: 308 | M44: 6369 | N44: 6677 | O44: 236319 | P44: 林地開発
B45: 成長 | C45: 38.4 | D45: 16.8 | E45: 0.8 | F45: 333.7 | G45: 2241.5 | H45: 79.2 | I45: 2710.4 | L45: 4.5 | M45: 99.7 | N45: 104.2 | O45: 2814.6 | P45: 計 | R45: =SUM(R38:R44) -> 178.31
A46: 14 | B46: 面積 | C46: 15.08 | D46: 26.94 | E46: 0.41 | F46: 225.75 | G46: 820.26 | H46: 43.28 | I46: 1131.72 | L46: 7.27 | M46: 119.67 | N46: 126.94 | O46: 1258.66 | P46: 竹 林
B47: 蓄積 | C47: 5441 | D47: 7526 | E47: 122 | F47: 55227 | G47: 220046 | H47: 6464 | I47: 294826 | L47: 895 | M47: 14580 | N47: 15475 | O47: 310301 | P47: 更新 困難地 | Q47: 面積
B48: 成長 | C48: 54.8 | D48: 90.7 | E48: 1.4 | F48: 440.2 | G48: 2327.8 | H48: 109.1 | I48: 3024 | L48: 9.4 | M48: 158.8 | N48: 168.2 | O48: 3192.2 | Q48: 蓄積
A49: 15 以上 | B49: 面積 | C49: 38.96 | D49: 55.96 | E49: 12.67 | F49: 654.08 | G49: 753.92 | H49: 32.84 | I49: 1548.43 | J49: 0.01 | L49: 16.73 | M49: 398.99 | N49: 415.73 | O49: 1964.16 | Q49: 成長
B50: 蓄積 | C50: 15802 | D50: 17439 | E50: 3876 | F50: 175368 | G50: 212676 | H50: 4897 | I50: 430058 | J50: 1 | L50: 2199 | M50: 46705 | N50: 48905 | O50: 478963
B51: 成長 | C51: 25.8 | D51: 47.6 | E51: 6.2 | F51: 886.7 | G51: 1347.3 | H51: 43 | I51: 2356.6 | J51: 0 | L51: 16.6 | M51: 193.4 | N51: 210 | O51: 2566.6 | P51: 総 合 計
A52: 計 | B52: 面積 | C52: =SUM(C7,C10,C13,C16,C19,C22,C25,C28,C31,C34,C37,C40,C43,C46,C49) -> 72.91 | D52: 276.42 | E52: 13.48 | F52: 1379.51 | G52: 2902.44 | H52: 145.79 | I52: =SUM(C52:H52) -> 4790.55 | J52: =SUM(J7,J10,J13,J16,J19,J22,J25,J28,J31,J34,J37,J40,J43,J46,J49) -> 0.01 | K52: =SUM(K7,K10,K13,K16,K19,K22,K25,K28,K31,K34,K37,K40,K43,K46,K49) -> 0 | L52: =SUM(L7,L10,L13,L16,L19,L22,L25,L28,L31,L34,L37,L40,L43,L46,L49) -> 40.23 | M52: =SUM(M7,M10,M13,M16,M19,M22,M25,M28,M31,M34,M37,M40,M43,M46,M49) -> 665.15 | N52: =SUM(J52:M52) -> 705.39 | O52: 5495.94 | P52: 面 積 | R52: =SUM(O52,R45,R47,R46) -> 5674.25
B53: 蓄積 | C53: 27567 | D53: 72929 | E53: 4095 | F53: 336026 | G53: 767427 | H53: 20357 | I53: =SUM(C53:H53) -> 1228401 | J53: =SUM(J8,J11,J14,J17,J20,J23,J26,J29,J32,J35,J38,J41,J44,J47,J50) -> 1 | K53: 0 | L53: 4230 | M53: 74862 | N53: =SUM(J53:M53) -> 79093 | O53: 1307494 | P53: 蓄積 | R53: =O53+R48 -> 1307494
B54: 成長 | C54: 168.1 | D54: 1322.9 | E54: 9.2 | F54: 2384.7 | G54: 7931.4 | H54: 379.1 | I54: =SUM(C54:H54) -> 12195.4 | J54: 0 | K54: 0 | L54: 60.2 | M54: 634.1 | N54: =SUM(J54:M54) -> 694.3 | O54: 12889.7 | P54: 成長量 | R54: =O54+R49 -> 12889.7

Sheet 諏訪市
A1: 第11表 市町村別・資源構成表 （伊那谷）
A3: =MID(CELL("filename",$A$1),FIND("]",CELL("filename",$A$1))+1,31) -> 諏訪市 | O3: 単位 面積 : ha、蓄積 成長量 : ㎥
B4: 樹種 | C4: 針 葉 樹 | J4: 広 葉 樹 | O4: 計
C5: ス ギ | D5: ヒ ノ キ | E5: サ ワ ラ | F5: ア カ マ ツ | G5: カ ラ マ ツ | H5: そ の 他 針 | I5: 小 計 | J5: ク ヌ ギ | K5: ブ ナ | L5: ナ ラ | M5: そ の 他 広 | N5: 小 計
A6: 齢級
A7: 1 | B7: 面積 | F7: 1.15 | G7: 0.35 | I7: 1.5 | N7: 0 | O7: =SUM(N7,I7) -> 1.5
B8: 蓄積 | F8: 0 | G8: 0 | I8: 0 | N8: 0 | O8: =SUM(N8,I8) -> 0
B9: 成長 | F9: 0 | G9: 0 | I9: 0 | N9: 0 | O9: 0
A10: 2 | B10: 面積 | D10: 0.39 | F10: 1.69 | G10: 10.19 | I10: 12.27 | N10: 0 | O10: 12.27
B11: 蓄積 | D11: 0 | F11: 0 | G11: 0 | I11: 0 | N11: 0 | O11: 0
B12: 成長 | D12: 0 | F12: 0 | G12: 0 | I12: 0 | N12: 0 | O12: 0
A13: 3 | B13: 面積 | I13: 0 | N13: 0 | O13: 0
B14: 蓄積 | I14: 0 | N14: 0 | O14: 0
B15: 成長 | I15: 0 | N15: 0 | O15: 0
A16: 4 | B16: 面積 | I16: 0 | M16: 0.1 | N16: 0.1 | O16: 0.1
B17: 蓄積 | I17: 0 | M17: 3 | N17: 3 | O17: 3
B18: 成長 | I18: 0 | M18: 0.2 | N18: 0.2 | O18: 0.2
A19: 5 | B19: 面積 | F19: 1.03 | I19: 1.03 | M19: 5.4 | N19: 5.4 | O19: 6.43
B20: 蓄積 | D20: 245 | F20: 2489 | I20: 2734 | L20: 69 | M20: 287 | N20: 356 | O20: 3090
B21: 成長 | D21: 14.3 | F21: 125.3 | I21: 139.6 | L21: 3.4 | M21: 14.7 | N21: 18.1 | O21: 157.7
A22: 6 | B22: 面積 | I22: 0 | M22: 4.39 | N22: 4.39 | O22: 4.39
B23: 蓄積 | D23: 321 | G23: 186 | I23: 507 | L23: 167 | M23: 245 | N23: 412 | O23: 919
B24: 成長 | D24: 13.9 | G24: 4.3 | I24: 18.2 | L24: 6.4 | M24: 10 | N24: 16.4 | O24: 34.6
A25: 7 | B25: 面積 | D25: 3.13 | F25: 5.8 | G25: 0.89 | H25: 0.07 | I25: 9.89 | L25: 2.37 | M25: 8.53 | N25: 10.9 | O25: 20.79
B26: 蓄積 | D26: 3943 | F26: 744 | G26: 163 | H26: 6 | I26: 4856 | L26: 192 | M26: 509 | N26: 701 | O26: 5557
B27: 成長 | D27: 126.4 | F27: 17.8 | G27: 3.6 | H27: 0.3 | I27: 148.1 | L27: 6.7 | M27: 15.9 | N27: 22.6 | O27: 170.7
A28: 8 | B28: 面積 | D28: 4.19 | F28: 0.27 | H28: 7.54 | I28: 12 | L28: 3.11 | M28: 12.19 | N28: 15.3 | O28: 27.3
B29: 蓄積 | D29: 10354 | F29: 48 | H29: 784 | I29: 11186 | L29: 209 | M29: 875 | N29: 1084 | O29: 12270
B30: 成長 | D30: 270.4 | F30: 0.9 | H30: 29.1 | I30: 300.4 | L30: 6 | M30: 26.4 | N30: 32.4 | O30: 332.8
A31: 9 | B31: 面積 | C31: 0.11 | D31: 26.26 | F31: 11.16 | G31: 8.59 | H31: 31.24 | I31: 77.36 | L31: 3.03 | M31: 20.47 | N31: 23.5 | O31: 100.86
B32: 蓄積 | C32: 31 | D32: 10662 | F32: 2073 | G32: 1987 | H32: 3238 | I32: 17991 | L32: 247 | M32: 1633 | N32: 1880 | O32: 19871
B33: 成長 | C33: 0.5 | D33: 225.1 | F33: 32.2 | G33: 35.7 | H33: 102.5 | I33: 396 | L33: 6.7 | M33: 46.1 | N33: 52.8 | O33: 448.8
A34: 10 | B34: 面積 | C34: 0.65 | D34: 39.52 | E34: 0.42 | F34: 53.12 | G34: 35.38 | H34: 16.6 | I34: 145.69 | L34: 4.42 | M34: 19.7 | N34: 24.12 | O34: 169.81
B35: 蓄積 | C35: 175 | D35: 10082 | E35: 95 | F35: 11072 | G35: 8348 | H35: 1662 | I35: 31434 | L35: 395 | M35: 1784 | N35: 2179 | O35: 33613
B36: 成長 | C36: 2.3 | D36: 182.1 | E36: 1.7 | F36: 144.8 | G36: 126.5 | H36: 47.2 | I36: 504.6 | L36: 9.3 | M36: 45.8 | N36: 55.1 | O36: 559.7
A37: 11 | B37: 面積 | C37: 1.09 | D37: 24.3 | E37: 0.44 | F37: 117.08 | G37: 129.85 | H37: 12.14 | I37: 284.9 | L37: 4.59 | M37: 46.53 | N37: 51.12 | O37: 336.02
B38: 蓄積 | C38: 340 | D38: 6900 | E38: 107 | F38: 24834 | G38: 32574 | H38: 1811 | I38: 66566 | L38: 423 | M38: 4269 | N38: 4692 | O38: 71258 | P38: 伐 跡 | R38: 9.36
B39: 成長 | C39: 4.8 | D39: 111.7 | E39: 1.7 | F39: 276.6 | G39: 456.6 | H39: 37.1 | I39: 888.5 | L39: 8.1 | M39: 84.4 | N39: 92.5 | O39: 981 | P39: 未立木地 | R39: 819.04
A40: 12 | B40: 面積 | C40: 2.1 | D40: 13.51 | E40: 0.63 | F40: 221.32 | G40: 372.32 | H40: 25.11 | I40: 634.99 | L40: 3.7 | M40: 33.47 | N40: 37.17 | O40: 672.16 | P40: 岩石地 | R40: 15.12
B41: 蓄積 | C41: 620 | D41: 3522 | E41: 165 | F41: 49148 | G41: 102267 | H41: 3986 | I41: 159708 | L41: 391 | M41: 3425 | N41: 3816 | O41: 163524 | P41: 崩壊地 | R41: 5.68
B42: 成長 | C42: 7 | D42: 49.4 | E42: 2.2 | F42: 448.2 | G42: 1313.6 | H42: 76.4 | I42: 1896.8 | L42: 7.8 | M42: 65.8 | N42: 73.6 | O42: 1970.4 | P42: はげ山 | R42: 10.6
A43: 13 | B43: 面積 | C43: 1.44 | D43: 13.85 | E43: 1.02 | F43: 191.34 | G43: 923.12 | H43: 24.68 | I43: 1155.45 | L43: 2.4 | M43: 119.15 | N43: 121.55 | O43: 1277 | P43: 施設敷 | R43: 26.26
B44: 蓄積 | C44: 525 | D44: 3770 | E44: 281 | F44: 42944 | G44: 243178 | H44: 4435 | I44: 295133 | L44: 265 | M44: 11814 | N44: 12079 | O44: 307212 | P44: 林地開発
B45: 成長 | C45: 6.3 | D45: 49.7 | E45: 3.8 | F45: 390.8 | G45: 2993.1 | H45: 85.4 | I45: 3529.1 | L45: 4.2 | M45: 187.3 | N45: 191.5 | O45: 3720.6 | P45: 計 | R45: =SUM(R38:R44) -> 886.06
A46: 14 | B46: 面積 | C46: 3.52 | D46: 14.84 | E46: 9.02 | F46: 196.56 | G46: 927.69 | H46: 1.95 | I46: 1153.58 | L46: 12.53 | M46: 220.81 | N46: 233.34 | O46: 1386.92 | P46: 竹 林 | R46: 0.55
B47: 蓄積 | C47: 1267 | D47: 3810 | E47: 2589 | F47: 42153 | G47: 269495 | H47: 366 | I47: 319680 | L47: 1438 | M47: 22581 | N47: 24019 | O47: 343699 | P47: 更新 困難地 | Q47: 面積
B48: 成長 | C48: 12.5 | D48: 43.5 | E48: 31 | F48: 349.7 | G48: 2883.2 | H48: 5.7 | I48: 3325.6 | L48: 16.2 | M48: 250.7 | N48: 266.9 | O48: 3592.5 | Q48: 蓄積
A49: 15 以上 | B49: 面積 | C49: 8.71 | D49: 148.52 | E49: 45.64 | F49: 760.72 | G49: 662.36 | H49: 2.32 | I49: 1628.27 | L49: 52.02 | M49: 673.49 | N49: 725.51 | O49: 2353.78 | Q49: 成長
B50: 蓄積 | C50: 3242 | D50: 43633 | E50: 13284 | F50: 183056 | G50: 193943 | H50: 484 | I50: 437642 | L50: 6513 | M50: 80511 | N50: 87024 | O50: 524666
B51: 成長 | C51: 14 | D51: 154.1 | E51: 23.2 | F51: 810.8 | G51: 1158.5 | H51: 3.2 | I51: 2163.8 | L51: 29.9 | M51: 353.9 | N51: 383.8 | O51: 2547.6 | P51: 総 合 計
A52: 計 | B52: 面積 | C52: =SUM(C7,C10,C13,C16,C19,C22,C25,C28,C31,C34,C37,C40,C43,C46,C49) -> 17.62 | D52: 288.51 | E52: 57.17 | F52: 1561.24 | G52: 3070.74 | H52: 121.65 | I52: =SUM(C52:H52) -> 5116.93 | J52: =SUM(J7,J10,J13,J16,J19,J22,J25,J28,J31,J34,J37,J40,J43,J46,J49) -> 0 | K52: =SUM(K7,K10,K13,K16,K19,K22,K25,K28,K31,K34,K37,K40,K43,K46,K49) -> 0 | L52: =SUM(L7,L10,L13,L16,L19,L22,L25,L28,L31,L34,L37,L40,L43,L46,L49) -> 88.17 | M52: =SUM(M7,M10,M13,M16,M19,M22,M25,M28,M31,M34,M37,M40,M43,M46,M49) -> 1164.23 | N52: =SUM(J52:M52) -> 1252.4 | O52: 6369.33 | P52: 面 積 | R52: =SUM(O52,R45,R47,R46) -> 7255.94
B53: 蓄積 | C53: 6200 | D53: 97242 | E53: 16521 | F53: 358561 | G53: 852141 | H53: 16772 | I53: =SUM(C53:H53) -> 1347437 | J53: =SUM(J8,J11,J14,J17,J20,J23,J26,J29,J32,J35,J38,J41,J44,J47,J50) -> 0 | K53: 0 | L53: 10309 | M53: 127936 | N53: =SUM(J53:M53) -> 138245 | O53: 1485682 | P53: 蓄積 | R53: =O53+R48 -> 1485682
B54: 成長 | C54: 47.4 | D54: 1240.6 | E54: 63.6 | F54: 2597.1 | G54: 8975.1 | H54: 386.9 | I54: =SUM(C54:H54) -> 13310.7 | J54: 0 | K54: 0 | L54: 104.7 | M54: 1101.2 | N54: =SUM(J54:M54) -> 1205.9 | O54: 14516.6 | P54: 成長量 | R54: =O54+R49 -> 14516.6

Sheet 茅野市
A1: 第11表 市町村別・資源構成表 （伊那谷）
A3: =MID(CELL("filename",$A$1),FIND("]",CELL("filename",$A$1))+1,31) -> 茅野市 | O3: 単位 面積 : ha、蓄積 成長量 : ㎥
B4: 樹種 | C4: 針 葉 樹 | J4: 広 葉 樹 | O4: 計
C5: ス ギ | D5: ヒ ノ キ | E5: サ ワ ラ | F5: ア カ マ ツ | G5: カ ラ マ ツ | H5: そ の 他 針 | I5: 小 計 | J5: ク ヌ ギ | K5: ブ ナ | L5: ナ ラ | M5: そ の 他 広 | N5: 小 計
A6: 齢級
A7: 1 | B7: 面積 | F7: 4.59 | I7: 4.59 | L7: 0.15 | N7: 0.15 | O7: =SUM(N7,I7) -> 4.74
B8: 蓄積 | F8: 0 | I8: 0 | L8: 0 | N8: 0 | O8: =SUM(N8,I8) -> 0
B9: 成長 | F9: 0 | I9: 0 | L9: 0 | N9: 0 | O9: 0
A10: 2 | B10: 面積 | I10: 0 | N10: 0 | O10: 0
B11: 蓄積 | I11: 0 | N11: 0 | O11: 0
B12: 成長 | I12: 0 | N12: 0 | O12: 0
A13: 3 | B13: 面積 | I13: 0 | M13: 3.27 | N13: 3.27 | O13: 3.27
B14: 蓄積 | I14: 0 | M14: 63 | N14: 63 | O14: 63
B15: 成長 | I15: 0 | M15: 5.4 | N15: 5.4 | O15: 5.4
A16: 4 | B16: 面積 | D16: 0.07 | I16: 0.07 | M16: 5.82 | N16: 5.82 | O16: 5.89
B17: 蓄積 | D17: 6 | I17: 6 | M17: 129 | N17: 129 | O17: 135
B18: 成長 | D18: 0.5 | I18: 0.5 | M18: 8.9 | N18: 8.9 | O18: 9.4
A19: 5 | B19: 面積 | D19: 0.26 | F19: 0.06 | G19: 0.28 | H19: 1.26 | I19: 1.86 | L19: 0.43 | M19: 7.28 | N19: 7.71 | O19: 9.57
B20: 蓄積 | D20: 59 | F20: 8 | G20: 31 | H20: 117 | I20: 215 | L20: 18 | M20: 303 | N20: 321 | O20: 536
B21: 成長 | D21: 3.5 | F21: 0.4 | G21: 1.4 | H21: 7.4 | I21: 12.7 | L21: 0.9 | M21: 15.6 | N21: 16.5 | O21: 29.2
A22: 6 | B22: 面積 | D22: 0.39 | F22: 0.16 | H22: 10.62 | I22: 11.17 | M22: 44.11 | N22: 44.11 | O22: 55.28
B23: 蓄積 | D23: 495 | F23: 23 | H23: 844 | I23: 1362 | M23: 2202 | N23: 2202 | O23: 3564
B24: 成長 | D24: 21.4 | F24: 0.8 | H24: 42.7 | I24: 64.9 | M24: 90.3 | N24: 90.3 | O24: 155.2
A25: 7 | B25: 面積 | D25: 16.71 | F25: 0.67 | G25: 1.11 | H25: 7.13 | I25: 25.62 | L25: 0.32 | M25: 39.86 | N25: 40.18 | O25: 65.8
B26: 蓄積 | D26: 3799 | F26: 93 | G26: 160 | H26: 517 | I26: 4569 | L26: 19 | M26: 2128 | N26: 2147 | O26: 6716
B27: 成長 | D27: 121.8 | F27: 2.2 | G27: 3.6 | H27: 24 | I27: 151.6 | L27: 0.7 | M27: 66.7 | N27: 67.4 | O27: 219
A28: 8 | B28: 面積 | D28: 33.74 | F28: 0.43 | G28: 15.64 | H28: 16.8 | I28: 66.61 | L28: 2.31 | M28: 57.37 | N28: 59.68 | O28: 126.29
B29: 蓄積 | D29: 6175 | F29: 59 | G29: 2216 | H29: 1103 | I29: 9553 | L29: 40 | M29: 3256 | N29: 3296 | O29: 12849
B30: 成長 | D30: 161.2 | F30: 1.4 | G30: 50.4 | H30: 41.8 | I30: 254.8 | L30: 1.1 | M30: 98.8 | N30: 99.9 | O30: 354.7
A31: 9 | B31: 面積 | D31: 48.7 | E31: 1.21 | F31: 2.86 | G31: 27.81 | H31: 12.62 | I31: 93.2 | L31: 0.18 | M31: 57.12 | N31: 57.3 | O31: 150.5
B32: 蓄積 | D32: 10067 | E32: 245 | F32: 517 | G32: 5592 | H32: 1161 | I32: 17582 | L32: 14 | M32: 4244 | N32: 4258 | O32: 21840
B33: 成長 | D33: 211.4 | E33: 5.1 | F33: 7.9 | G33: 104 | H33: 38.6 | I33: 367 | L33: 0.4 | M33: 118 | N33: 118.4 | O33: 485.4
A34: 10 | B34: 面積 | C34: 0.3 | D34: 21.16 | E34: 0.22 | F34: 16.11 | G34: 50.68 | H34: 14.62 | I34: 103.09 | L34: 6.93 | M34: 203.9 | N34: 210.83 | O34: 313.92
B35: 蓄積 | C35: 84 | D35: 4740 | E35: 51 | F35: 3078 | G35: 11403 | H35: 1553 | I35: 20909 | L35: 463 | M35: 14680 | N35: 15143 | O35: 36052
B36: 成長 | C36: 1.3 | D36: 86.3 | E36: 0.9 | F36: 40.9 | G36: 173.3 | H36: 43.9 | I36: 346.6 | L36: 9.3 | M36: 374.4 | N36: 383.7 | O36: 730.3
A37: 11 | B37: 面積 | C37: 0.59 | D37: 1.62 | E37: 0.36 | F37: 77.92 | G37: 280.25 | H37: 12.96 | I37: 373.7 | L37: 6.64 | M37: 109.81 | N37: 116.45 | O37: 490.15
B38: 蓄積 | C38: 207 | D38: 395 | E38: 90 | F38: 16991 | G38: 67695 | H38: 1387 | I38: 86765 | L38: 583 | M38: 9558 | N38: 10141 | O38: 96906 | P38: 伐 跡 | R38: 20.26
B39: 成長 | C39: 2.8 | D39: 6.1 | E39: 1.5 | F39: 187.9 | G39: 949.9 | H39: 31.7 | I39: 1179.9 | L39: 11 | M39: 186.7 | N39: 197.7 | O39: 1377.6 | P39: 未立木地 | R39: 591.27
A40: 12 | B40: 面積 | C40: 0.63 | D40: 0.38 | E40: 0.29 | F40: 112.89 | G40: 699.41 | H40: 14.08 | I40: 827.68 | L40: 12.25 | M40: 296.3 | N40: 308.55 | O40: 1136.23 | P40: 岩石地 | R40: 21.14
B41: 蓄積 | C41: 220 | D41: 100 | E41: 79 | F41: 24982 | G41: 176662 | H41: 1947 | I41: 203990 | L41: 959 | M41: 25879 | N41: 26838 | O41: 230828 | P41: 崩壊地 | R41: 49.8
B42: 成長 | C42: 2.9 | D42: 1.4 | E42: 1.1 | F42: 229.5 | G42: 2243.2 | H42: 38.4 | I42: 2516.5 | L42: 16.7 | M42: 478.3 | N42: 495 | O42: 3011.5 | P42: はげ山 | R42: 0.75
A43: 13 | B43: 面積 | C43: 1.51 | D43: 0.75 | E43: 0.45 | F43: 99.51 | G43: 1255.62 | H43: 117.58 | I43: 1475.42 | L43: 105.65 | M43: 481.34 | N43: 586.99 | O43: 2062.41 | P43: 施設敷 | R43: 20.6
B44: 蓄積 | C44: 555 | D44: 208 | E44: 127 | F44: 23135 | G44: 325821 | H44: 16244 | I44: 366090 | L44: 10412 | M44: 46205 | N44: 56617 | O44: 422707 | P44: 林地開発
B45: 成長 | C45: 5.9 | D45: 2.9 | E45: 1.5 | F45: 204.8 | G45: 3955.8 | H45: 306.6 | I45: 4477.5 | L45: 141.4 | M45: 765 | N45: 906.4 | O45: 5383.9 | P45: 計 | R45: =SUM(R38:R44) -> 703.82
A46: 14 | B46: 面積 | C46: 1.16 | D46: 1.64 | E46: 7.09 | F46: 165.5 | G46: 1489.39 | H46: 111.48 | I46: 1776.26 | L46: 207.12 | M46: 807.69 | N46: 1014.81 | O46: 2791.07 | P46: 竹 林 | R46: 0.73
B47: 蓄積 | C47: 414 | D47: 475 | E47: 1683 | F47: 40291 | G47: 405440 | H47: 16137 | I47: 464440 | L47: 21154 | M47: 82111 | N47: 103265 | O47: 567705 | P47: 更新 困難地 | Q47: 面積
B48: 成長 | C48: 3.9 | D48: 5.5 | E48: 21.5 | F48: 317.1 | G48: 4299.9 | H48: 273.7 | I48: 4921.6 | L48: 260.5 | M48: 1022.9 | N48: 1283.4 | O48: 6205 | Q48: 蓄積
A49: 15 以上 | B49: 面積 | C49: 4.14 | D49: 2.93 | E49: 60.02 | F49: 902.08 | G49: 2419.53 | H49: 825.3 | I49: 4214 | J49: 0.13 | L49: 788.19 | M49: 2118.74 | N49: 2907.06 | O49: 7121.06 | Q49: 成長
B50: 蓄積 | C50: 1655 | D50: 915 | E50: 16341 | F50: 232138 | G50: 675738 | H50: 164136 | I50: 1090923 | J50: 12 | L50: 86229 | M50: 235313 | N50: 321554 | O50: 1412477
B51: 成長 | C51: 3.2 | D51: 1.6 | E51: 31.1 | F51: 1165.4 | G51: 2831.6 | H51: 1130.5 | I51: 5163.4 | J51: 0 | L51: 602.7 | M51: 1223.8 | N51: 1826.5 | O51: 6989.9 | P51: 総 合 計
A52: 計 | B52: 面積 | C52: =SUM(C7,C10,C13,C16,C19,C22,C25,C28,C31,C34,C37,C40,C43,C46,C49) -> 8.33 | D52: 128.35 | E52: 69.64 | F52: 1382.78 | G52: 6239.72 | H52: 1144.45 | I52: =SUM(C52:H52) -> 8973.27 | J52: =SUM(J7,J10,J13,J16,J19,J22,J25,J28,J31,J34,J37,J40,J43,J46,J49) -> 0.13 | K52: =SUM(K7,K10,K13,K16,K19,K22,K25,K28,K31,K34,K37,K40,K43,K46,K49) -> 0 | L52: =SUM(L7,L10,L13,L16,L19,L22,L25,L28,L31,L34,L37,L40,L43,L46,L49) -> 1130.17 | M52: =SUM(M7,M10,M13,M16,M19,M22,M25,M28,M31,M34,M37,M40,M43,M46,M49) -> 4232.61 | N52: =SUM(J52:M52) -> 5362.91 | O52: 14336.18 | P52: 面 積 | R52: =SUM(O52,R45,R47,R46) -> 15040.73
B53: 蓄積 | C53: 3135 | D53: 27434 | E53: 18616 | F53: 341315 | G53: 1670758 | H53: 205146 | I53: =SUM(C53:H53) -> 2266404 | J53: =SUM(J8,J11,J14,J17,J20,J23,J26,J29,J32,J35,J38,J41,J44,J47,J50) -> 12 | K53: 0 | L53: 119891 | M53: 426071 | N53: =SUM(J53:M53) -> 545974 | O53: 2812378 | P53: 蓄積 | R53: =O53+R48 -> 2812378
B54: 成長 | C54: 20 | D54: 623.6 | E54: 62.7 | F54: 2158.3 | G54: 14613.1 | H54: 1979.3 | I54: =SUM(C54:H54) -> 19457 | J54: 0 | K54: 0 | L54: 1044.7 | M54: 4454.8 | N54: =SUM(J54:M54) -> 5499.5 | O54: 24956.5 | P54: 成長量 | R54: =O54+R49 -> 24956.5

Sheet 下諏訪町
A1: 第11表 市町村別・資源構成表 （伊那谷）
A3: =MID(CELL("filename",$A$1),FIND("]",CELL("filename",$A$1))+1,31) -> 下諏訪町 | O3: 単位 面積 : ha、蓄積 成長量 : ㎥
B4: 樹種 | C4: 針 葉 樹 | J4: 広 葉 樹 | O4: 計
C5: ス ギ | D5: ヒ ノ キ | E5: サ ワ ラ | F5: ア カ マ ツ | G5: カ ラ マ ツ | H5: そ の 他 針 | I5: 小 計 | J5: ク ヌ ギ | K5: ブ ナ | L5: ナ ラ | M5: そ の 他 広 | N5: 小 計
A6: 齢級
A7: 1 | B7: 面積 | I7: 0 | M7: 0.08 | N7: 0.08 | O7: =SUM(N7,I7) -> 0.08
B8: 蓄積 | I8: 0 | M8: 0 | N8: 0 | O8: =SUM(N8,I8) -> 0
B9: 成長 | I9: 0 | M9: 0 | N9: 0 | O9: 0
A10: 2 | B10: 面積 | D10: 2.76 | I10: 2.76 | M10: 0.49 | N10: 0.49 | O10: 3.25
B11: 蓄積 | D11: 0 | I11: 0 | M11: 7 | N11: 7 | O11: 7
B12: 成長 | D12: 0 | I12: 0 | M12: 0.9 | N12: 0.9 | O12: 0.9
A13: 3 | B13: 面積 | I13: 0 | M13: 0.62 | N13: 0.62 | O13: 0.62
B14: 蓄積 | I14: 0 | M14: 16 | N14: 16 | O14: 16
B15: 成長 | I15: 0 | M15: 1.3 | N15: 1.3 | O15: 1.3
A16: 4 | B16: 面積 | G16: 2.4 | I16: 2.4 | M16: 2.2 | N16: 2.2 | O16: 4.6
B17: 蓄積 | D17: 314 | E17: 81 | G17: 226 | H17: 21 | I17: 642 | M17: 198 | N17: 198 | O17: 840
B18: 成長 | D18: 28.5 | E18: 7.3 | G18: 13.4 | H18: 1.7 | I18: 50.9 | M18: 13.4 | N18: 13.4 | O18: 64.3
A19: 5 | B19: 面積 | D19: 0.12 | I19: 0.12 | M19: 1.67 | N19: 1.67 | O19: 1.79
B20: 蓄積 | C20: 39 | D20: 2540 | H20: 186 | I20: 2765 | L20: 6 | M20: 107 | N20: 113 | O20: 2878
B21: 成長 | C21: 1.9 | D21: 147.4 | H21: 12.7 | I21: 162 | L21: 0.3 | M21: 5.7 | N21: 6 | O21: 168
A22: 6 | B22: 面積 | D22: 0.05 | I22: 0.05 | M22: 10.6 | N22: 10.6 | O22: 10.65
B23: 蓄積 | D23: 1139 | I23: 1139 | M23: 650 | N23: 650 | O23: 1789
B24: 成長 | D24: 49.2 | I24: 49.2 | M24: 26.4 | N24: 26.4 | O24: 75.6
A25: 7 | B25: 面積 | C25: 0.21 | D25: 2.22 | I25: 2.43 | M25: 3.25 | N25: 3.25 | O25: 5.68
B26: 蓄積 | C26: 70 | D26: 4012 | E26: 86 | H26: 422 | I26: 4590 | M26: 725 | N26: 725 | O26: 5315
B27: 成長 | C27: 1.8 | D27: 131.3 | E27: 2.8 | H27: 20 | I27: 155.9 | M27: 22.4 | N27: 22.4 | O27: 178.3
A28: 8 | B28: 面積 | C28: 0.17 | D28: 10.29 | F28: 1.03 | H28: 0.54 | I28: 12.03 | M28: 27.95 | N28: 27.95 | O28: 39.98
B29: 蓄積 | C29: 45 | D29: 4508 | F29: 185 | G29: 713 | H29: 50 | I29: 5501 | M29: 2175 | N29: 2175 | O29: 7676
B30: 成長 | C30: 1 | D30: 117.8 | F30: 3.6 | G30: 15.1 | H30: 1.9 | I30: 139.4 | M30: 65.5 | N30: 65.5 | O30: 204.9
A31: 9 | B31: 面積 | C31: 0.63 | D31: 30.1 | F31: 2.19 | G31: 1.61 | H31: 19.45 | I31: 53.98 | M31: 8.58 | N31: 8.58 | O31: 62.56
B32: 蓄積 | C32: 171 | D32: 6248 | F32: 311 | G32: 367 | H32: 2284 | I32: 9381 | M32: 704 | N32: 704 | O32: 10085
B33: 成長 | C33: 3 | D33: 137.9 | F33: 5.3 | G33: 6.7 | H33: 71.6 | I33: 224.5 | M33: 19.4 | N33: 19.4 | O33: 243.9
A34: 10 | B34: 面積 | C34: 1.89 | D34: 32.24 | E34: 0.51 | F34: 16.69 | G34: 31.64 | H34: 9.88 | I34: 92.85 | M34: 15.81 | N34: 15.81 | O34: 108.66
B35: 蓄積 | C35: 572 | D35: 6161 | E35: 112 | F35: 2872 | G35: 7304 | H35: 1259 | I35: 18280 | M35: 1384 | N35: 1384 | O35: 19664
B36: 成長 | C36: 8.2 | D36: 119.9 | E36: 2 | F36: 41.2 | G36: 110.5 | H36: 37.5 | I36: 319.3 | M36: 35.7 | N36: 35.7 | O36: 355
A37: 11 | B37: 面積 | C37: 2.17 | D37: 40.26 | E37: 0.03 | F37: 19.44 | G37: 123.27 | H37: 25.56 | I37: 210.73 | M37: 22.58 | N37: 22.58 | O37: 233.31
B38: 蓄積 | C38: 704 | D38: 9210 | E38: 7 | F38: 3928 | G38: 28618 | H38: 3821 | I38: 46288 | M38: 2235 | N38: 2235 | O38: 48523 | P38: 伐 跡 | R38: 10.48
B39: 成長 | C39: 9.9 | D39: 148.8 | E39: 0.1 | F39: 44.3 | G39: 401.4 | H39: 77.3 | I39: 681.8 | M39: 44.2 | N39: 44.2 | O39: 726 | P39: 未立木地 | R39: 77.48
A40: 12 | B40: 面積 | C40: 4.5 | D40: 2.99 | E40: 0.83 | F40: 17.21 | G40: 298.27 | H40: 0.44 | I40: 324.24 | M40: 36.12 | N40: 36.12 | O40: 360.36 | P40: 岩石地 | R40: 4.32
B41: 蓄積 | C41: 1573 | D41: 803 | E41: 207 | F41: 3984 | G41: 70510 | H41: 49 | I41: 77126 | M41: 3704 | N41: 3704 | O41: 80830 | P41: 崩壊地 | R41: 12.93
B42: 成長 | C42: 20.1 | D42: 11.3 | E42: 3 | F42: 36 | G42: 903.1 | H42: 1 | I42: 974.5 | M42: 68.9 | N42: 68.9 | O42: 1043.4 | P42: はげ山 | R42: 3.48
A43: 13 | B43: 面積 | C43: 7.26 | D43: 0.99 | E43: 3.59 | F43: 28.56 | G43: 463.38 | H43: 3.2 | I43: 506.98 | M43: 60.39 | N43: 60.39 | O43: 567.37 | P43: 施設敷 | R43: 17.72
B44: 蓄積 | C44: 2592 | D44: 271 | E44: 846 | F44: 6782 | G44: 122248 | H44: 368 | I44: 133107 | M44: 6662 | N44: 6662 | O44: 139769 | P44: 林地開発
B45: 成長 | C45: 33.7 | D45: 3.9 | E45: 12.2 | F45: 57 | G45: 1522.5 | H45: 7.4 | I45: 1636.7 | M45: 102.6 | N45: 102.6 | O45: 1739.3 | P45: 計 | R45: =SUM(R38:R44) -> 126.41
A46: 14 | B46: 面積 | C46: 9.93 | D46: 9.81 | E46: 12.88 | F46: 28.52 | G46: 420.08 | H46: 0.66 | I46: 481.88 | L46: 14.97 | M46: 249.37 | N46: 264.34 | O46: 746.22 | P46: 竹 林 | R46: 0.51
B47: 蓄積 | C47: 3696 | D47: 2838 | E47: 3645 | F47: 6611 | G47: 123432 | H47: 123 | I47: 140345 | L47: 1827 | M47: 20805 | N47: 22632 | O47: 162977 | P47: 更新 困難地 | Q47: 面積
B48: 成長 | C48: 36.1 | D48: 32.9 | E48: 43 | F48: 54.9 | G48: 1289.9 | H48: 2 | I48: 1458.8 | L48: 20.1 | M48: 244.5 | N48: 264.6 | O48: 1723.4 | Q48: 蓄積
A49: 15 以上 | B49: 面積 | C49: 43.05 | D49: 70.1 | E49: 70.74 | F49: 167.51 | G49: 475.5 | H49: 9.18 | I49: 836.08 | L49: 51.53 | M49: 859.4 | N49: 910.93 | O49: 1747.01 | Q49: 成長
B50: 蓄積 | C50: 17206 | D50: 21587 | E50: 21337 | F50: 45389 | G50: 139831 | H50: 2205 | I50: 247555 | L50: 6669 | M50: 108657 | N50: 115326 | O50: 362881
B51: 成長 | C51: 50.2 | D51: 70.3 | E51: 51.3 | F51: 210.5 | G51: 651.2 | H51: 19.2 | I51: 1052.7 | L51: 14.8 | M51: 396.4 | N51: 411.2 | O51: 1463.9 | P51: 総 合 計
A52: 計 | B52: 面積 | C52: =SUM(C7,C10,C13,C16,C19,C22,C25,C28,C31,C34,C37,C40,C43,C46,C49) -> 69.81 | D52: 201.93 | E52: 88.58 | F52: 281.15 | G52: 1816.15 | H52: 68.91 | I52: =SUM(C52:H52) -> 2526.53 | J52: =SUM(J7,J10,J13,J16,J19,J22,J25,J28,J31,J34,J37,J40,J43,J46,J49) -> 0 | K52: =SUM(K7,K10,K13,K16,K19,K22,K25,K28,K31,K34,K37,K40,K43,K46,K49) -> 0 | L52: =SUM(L7,L10,L13,L16,L19,L22,L25,L28,L31,L34,L37,L40,L43,L46,L49) -> 66.5 | M52: =SUM(M7,M10,M13,M16,M19,M22,M25,M28,M31,M34,M37,M40,M43,M46,M49) -> 1299.11 | N52: =SUM(J52:M52) -> 1365.61 | O52: 3892.14 | P52: 面 積 | R52: =SUM(O52,R45,R47,R46) -> 4019.06
B53: 蓄積 | C53: 26668 | D53: 59631 | E53: 26321 | F53: 70062 | G53: 493249 | H53: 10788 | I53: =SUM(C53:H53) -> 686719 | J53: =SUM(J8,J11,J14,J17,J20,J23,J26,J29,J32,J35,J38,J41,J44,J47,J50) -> 0 | K53: 0 | L53: 8502 | M53: 148029 | N53: =SUM(J53:M53) -> 156531 | O53: 843250 | P53: 蓄積 | R53: =O53+R48 -> 843250
B54: 成長 | C54: 165.9 | D54: 999.2 | E54: 121.7 | F54: 452.8 | G54: 4913.8 | H54: 252.3 | I54: =SUM(C54:H54) -> 6905.7 | J54: 0 | K54: 0 | L54: 35.2 | M54: 1047.3 | N54: =SUM(J54:M54) -> 1082.5 | O54: 7988.2 | P54: 成長量 | R54: =O54+R49 -> 7988.2

Sheet 富士見町
A1: 第11表 市町村別・資源構成表 （伊那谷）
A3: =MID(CELL("filename",$A$1),FIND("]",CELL("filename",$A$1))+1,31) -> 富士見町 | O3: 単位 面積 : ha、蓄積 成長量 : ㎥
B4: 樹種 | C4: 針 葉 樹 | J4: 広 葉 樹 | O4: 計
C5: ス ギ | D5: ヒ ノ キ | E5: サ ワ ラ | F5: ア カ マ ツ | G5: カ ラ マ ツ | H5: そ の 他 針 | I5: 小 計 | J5: ク ヌ ギ | K5: ブ ナ | L5: ナ ラ | M5: そ の 他 広 | N5: 小 計
A6: 齢級
A7: 1 | B7: 面積 | E7: 0.03 | G7: 1.22 | I7: 1.25 | L7: 0.45 | N7: 0.45 | O7: =SUM(N7,I7) -> 1.7
B8: 蓄積 | E8: 0 | G8: 0 | I8: 0 | L8: 0 | N8: 0 | O8: =SUM(N8,I8) -> 0
B9: 成長 | E9: 0 | G9: 0 | I9: 0 | L9: 0 | N9: 0 | O9: 0
A10: 2 | B10: 面積 | G10: 0.52 | I10: 0.52 | N10: 0 | O10: 0.52
B11: 蓄積 | G11: 0 | I11: 0 | N11: 0 | O11: 0
B12: 成長 | G12: 0 | I12: 0 | N12: 0 | O12: 0
A13: 3 | B13: 面積 | I13: 0 | M13: 4.54 | N13: 4.54 | O13: 4.54
B14: 蓄積 | I14: 0 | M14: 86 | N14: 86 | O14: 86
B15: 成長 | I15: 0 | M15: 7.7 | N15: 7.7 | O15: 7.7
A16: 4 | B16: 面積 | G16: 0.14 | I16: 0.14 | M16: 3.36 | N16: 3.36 | O16: 3.5
B17: 蓄積 | G17: 13 | I17: 13 | M17: 106 | N17: 106 | O17: 119
B18: 成長 | G18: 0.8 | I18: 0.8 | M18: 7.1 | N18: 7.1 | O18: 7.9
A19: 5 | B19: 面積 | D19: 0.24 | I19: 0.24 | M19: 8.58 | N19: 8.58 | O19: 8.82
B20: 蓄積 | D20: 28 | H20: 75 | I20: 103 | M20: 332 | N20: 332 | O20: 435
B21: 成長 | D21: 1.6 | H21: 5.1 | I21: 6.7 | M21: 17.5 | N21: 17.5 | O21: 24.2
A22: 6 | B22: 面積 | C22: 0.42 | D22: 0.4 | G22: 0.25 | I22: 1.07 | M22: 6.64 | N22: 6.64 | O22: 7.71
B23: 蓄積 | C23: 85 | D23: 2109 | G23: 43 | H23: 101 | I23: 2338 | L23: 10 | M23: 684 | N23: 694 | O23: 3032
B24: 成長 | C24: 3 | D24: 91.4 | G24: 0.9 | H24: 5.2 | I24: 100.5 | L24: 0.4 | M24: 27.5 | N24: 27.9 | O24: 128.4
A25: 7 | B25: 面積 | C25: 0.01 | D25: 4.66 | E25: 0.21 | H25: 1.61 | I25: 6.49 | L25: 0.6 | M25: 3.27 | N25: 3.87 | O25: 10.36
B26: 蓄積 | C26: 2 | D26: 1604 | E26: 36 | H26: 1867 | I26: 3509 | L26: 36 | M26: 720 | N26: 756 | O26: 4265
B27: 成長 | C27: 0.1 | D27: 51.5 | E27: 1.2 | H27: 87.7 | I27: 140.5 | L27: 1.2 | M27: 22.2 | N27: 23.4 | O27: 163.9
A28: 8 | B28: 面積 | C28: 0.12 | D28: 3.8 | E28: 0.21 | H28: 0.81 | I28: 4.94 | M28: 16.8 | N28: 16.8 | O28: 21.74
B29: 蓄積 | C29: 30 | D29: 3512 | E29: 38 | H29: 1095 | I29: 4675 | M29: 1148 | N29: 1148 | O29: 5823
B30: 成長 | C30: 0.7 | D30: 91.7 | E30: 1 | H30: 40.4 | I30: 133.8 | M30: 34 | N30: 34 | O30: 167.8
A31: 9 | B31: 面積 | C31: 0.97 | D31: 19.83 | E31: 0.74 | F31: 1.4 | G31: 1.55 | H31: 0.75 | I31: 25.24 | M31: 52.08 | N31: 52.08 | O31: 77.32
B32: 蓄積 | C32: 264 | D32: 4140 | E32: 160 | F32: 280 | G32: 358 | H32: 76 | I32: 5278 | M32: 3557 | N32: 3557 | O32: 8835
B33: 成長 | C33: 4.8 | D33: 86.7 | E33: 3.4 | F33: 4.3 | G33: 6.5 | H33: 2.3 | I33: 108 | M33: 91.4 | N33: 91.4 | O33: 199.4
A34: 10 | B34: 面積 | C34: 4.21 | D34: 19.27 | E34: 0.96 | F34: 9.94 | G34: 31.85 | H34: 5.78 | I34: 72.01 | M34: 43.85 | N34: 43.85 | O34: 115.86
B35: 蓄積 | C35: 1264 | D35: 4091 | E35: 219 | F35: 2073 | G35: 7611 | H35: 624 | I35: 15882 | M35: 3981 | N35: 3981 | O35: 19863
B36: 成長 | C36: 17.5 | D36: 73.9 | E36: 3.9 | F36: 26.3 | G36: 113.7 | H36: 17.5 | I36: 252.8 | M36: 100 | N36: 100 | O36: 352.8
A37: 11 | B37: 面積 | C37: 1.88 | D37: 0.53 | E37: 0.85 | F37: 22.65 | G37: 182.49 | H37: 45.98 | I37: 254.38 | M37: 37.43 | N37: 37.43 | O37: 291.81
B38: 蓄積 | C38: 624 | D38: 132 | E38: 211 | F38: 5027 | G38: 48978 | H38: 6714 | I38: 61686 | M38: 3652 | N38: 3652 | O38: 65338 | P38: 伐 跡 | R38: 23.85
B39: 成長 | C39: 8.2 | D39: 2.1 | E39: 3.1 | F39: 55.1 | G39: 686.7 | H39: 134.4 | I39: 889.6 | M39: 70.5 | N39: 70.5 | O39: 960.1 | P39: 未立木地 | R39: 99.95
A40: 12 | B40: 面積 | C40: 3.5 | D40: 1.44 | E40: 0.63 | F40: 67.95 | G40: 532.66 | H40: 53.77 | I40: 659.95 | M40: 80.21 | N40: 80.21 | O40: 740.16 | P40: 岩石地 | R40: 12.41
B41: 蓄積 | C41: 1194 | D41: 384 | E41: 171 | F41: 15486 | G41: 148047 | H41: 7675 | I41: 172957 | M41: 8614 | N41: 8614 | O41: 181571 | P41: 崩壊地 | R41: 113.02
B42: 成長 | C42: 15.2 | D42: 5.4 | E42: 2.4 | F42: 137.7 | G42: 1920 | H42: 146.9 | I42: 2227.6 | M42: 162.5 | N42: 162.5 | O42: 2390.1 | P42: はげ山
A43: 13 | B43: 面積 | C43: 10.51 | D43: 0.58 | E43: 1.41 | F43: 167.56 | G43: 733.56 | H43: 54.01 | I43: 967.63 | L43: 1.51 | M43: 87.52 | N43: 89.03 | O43: 1056.66 | P43: 施設敷 | R43: 12.39
B44: 蓄積 | C44: 3385 | D44: 160 | E44: 397 | F44: 39155 | G44: 205003 | H44: 8464 | I44: 256564 | L44: 177 | M44: 9863 | N44: 10040 | O44: 266604 | P44: 林地開発
B45: 成長 | C45: 42.9 | D45: 2 | E45: 4.8 | F45: 347.1 | G45: 2574.3 | H45: 151.3 | I45: 3122.4 | L45: 2.7 | M45: 146.4 | N45: 149.1 | O45: 3271.5 | P45: 計 | R45: =SUM(R38:R44) -> 261.62
A46: 14 | B46: 面積 | C46: 11.7 | D46: 1.6 | E46: 1.6 | F46: 320.41 | G46: 1048.4 | H46: 145.06 | I46: 1528.77 | L46: 0.24 | M46: 178.13 | N46: 178.37 | O46: 1707.14 | P46: 竹 林 | R46: 2.99
B47: 蓄積 | C47: 4009 | D47: 457 | E47: 458 | F47: 78551 | G47: 312958 | H47: 25973 | I47: 422406 | L47: 29 | M47: 21717 | N47: 21746 | O47: 444152 | P47: 更新 困難地 | Q47: 面積 | R47: 1.19
B48: 成長 | C48: 39.2 | D48: 5.4 | E48: 5.3 | F48: 625.2 | G48: 3307.1 | H48: 413.2 | I48: 4395.4 | L48: 0.3 | M48: 224 | N48: 224.3 | O48: 4619.7 | Q48: 蓄積 | R48: 229
A49: 15 以上 | B49: 面積 | C49: 19.98 | D49: 29.61 | E49: 12.42 | F49: 704.61 | G49: 957.52 | H49: 414.68 | I49: 2138.82 | J49: 0.17 | L49: 12.36 | M49: 1400.11 | N49: 1412.64 | O49: 3551.46 | Q49: 成長 | R49: 2.5
B50: 蓄積 | C50: 7485 | D50: 8351 | E50: 3724 | F50: 186569 | G50: 295749 | H50: 90472 | I50: 592350 | J50: 15 | L50: 1634 | M50: 179292 | N50: 180941 | O50: 773291
B51: 成長 | C51: 27.7 | D51: 4 | E51: 5.9 | F51: 978.5 | G51: 1935.3 | H51: 648.8 | I51: 3600.2 | J51: 0 | L51: 9.8 | M51: 401.3 | N51: 411.1 | O51: 4011.3 | P51: 総 合 計
A52: 計 | B52: 面積 | C52: =SUM(C7,C10,C13,C16,C19,C22,C25,C28,C31,C34,C37,C40,C43,C46,C49) -> 53.3 | D52: 81.96 | E52: 19.06 | F52: 1294.52 | G52: 3490.16 | H52: 722.45 | I52: =SUM(C52:H52) -> 5661.45 | J52: =SUM(J7,J10,J13,J16,J19,J22,J25,J28,J31,J34,J37,J40,J43,J46,J49) -> 0.17 | K52: =SUM(K7,K10,K13,K16,K19,K22,K25,K28,K31,K34,K37,K40,K43,K46,K49) -> 0 | L52: =SUM(L7,L10,L13,L16,L19,L22,L25,L28,L31,L34,L37,L40,L43,L46,L49) -> 15.16 | M52: =SUM(M7,M10,M13,M16,M19,M22,M25,M28,M31,M34,M37,M40,M43,M46,M49) -> 1922.52 | N52: =SUM(J52:M52) -> 1937.85 | O52: 7599.3 | P52: 面 積 | R52: =SUM(O52,R45,R47,R46) -> 7865.1
B53: 蓄積 | C53: 18342 | D53: 24968 | E53: 5414 | F53: 327141 | G53: 1018760 | H53: 143136 | I53: =SUM(C53:H53) -> 1537761 | J53: =SUM(J8,J11,J14,J17,J20,J23,J26,J29,J32,J35,J38,J41,J44,J47,J50) -> 15 | K53: 0 | L53: 1886 | M53: 233752 | N53: =SUM(J53:M53) -> 235653 | O53: 1773414 | P53: 蓄積 | R53: =O53+R48 -> 1773643
B54: 成長 | C54: 159.3 | D54: 415.7 | E54: 31 | F54: 2174.2 | G54: 10545.3 | H54: 1652.8 | I54: =SUM(C54:H54) -> 14978.3 | J54: 0 | K54: 0 | L54: 14.4 | M54: 1312.1 | N54: =SUM(J54:M54) -> 1326.5 | O54: 16304.8 | P54: 成長量 | R54: =O54+R49 -> 16307.3

Sheet 原村
A1: 第11表 市町村別・資源構成表 （伊那谷）
A3: =MID(CELL("filename",$A$1),FIND("]",CELL("filename",$A$1))+1,31) -> 原村 | O3: 単位 面積 : ha、蓄積 成長量 : ㎥
B4: 樹種 | C4: 針 葉 樹 | J4: 広 葉 樹 | O4: 計
C5: ス ギ | D5: ヒ ノ キ | E5: サ ワ ラ | F5: ア カ マ ツ | G5: カ ラ マ ツ | H5: そ の 他 針 | I5: 小 計 | J5: ク ヌ ギ | K5: ブ ナ | L5: ナ ラ | M5: そ の 他 広 | N5: 小 計
A6: 齢級
A7: 1 | B7: 面積 | G7: 1.6 | I7: 1.6 | N7: 0 | O7: =SUM(N7,I7) -> 1.6
B8: 蓄積 | G8: 0 | I8: 0 | N8: 0 | O8: =SUM(N8,I8) -> 0
B9: 成長 | G9: 0 | I9: 0 | N9: 0 | O9: 0
A10: 2 | B10: 面積 | I10: 0 | N10: 0 | O10: 0
B11: 蓄積 | I11: 0 | N11: 0 | O11: 0
B12: 成長 | I12: 0 | N12: 0 | O12: 0
A13: 3 | B13: 面積 | I13: 0 | M13: 0.61 | N13: 0.61 | O13: 0.61
B14: 蓄積 | I14: 0 | M14: 4 | N14: 4 | O14: 4
B15: 成長 | I15: 0 | M15: 0.4 | N15: 0.4 | O15: 0.4
A16: 4 | B16: 面積 | I16: 0 | M16: 1.17 | N16: 1.17 | O16: 1.17
B17: 蓄積 | I17: 0 | M17: 38 | N17: 38 | O17: 38
B18: 成長 | I18: 0 | M18: 2.6 | N18: 2.6 | O18: 2.6
A19: 5 | B19: 面積 | I19: 0 | L19: 0.38 | N19: 0.38 | O19: 0.38
B20: 蓄積 | H20: 716 | I20: 716 | L20: 12 | M20: 801 | N20: 813 | O20: 1529
B21: 成長 | H21: 46.5 | I21: 46.5 | L21: 0.6 | M21: 40.4 | N21: 41 | O21: 87.5
A22: 6 | B22: 面積 | D22: 0.11 | F22: 1.23 | H22: 0.24 | I22: 1.58 | M22: 4.65 | N22: 4.65 | O22: 6.23
B23: 蓄積 | D23: 14 | F23: 105 | H23: 2232 | I23: 2351 | L23: 1257 | M23: 328 | N23: 1585 | O23: 3936
B24: 成長 | D24: 0.6 | F24: 5.1 | H24: 112.3 | I24: 118 | L24: 48 | M24: 13.2 | N24: 61.2 | O24: 179.2
A25: 7 | B25: 面積 | D25: 0.14 | G25: 0.1 | H25: 0.26 | I25: 0.5 | M25: 4.44 | N25: 4.44 | O25: 4.94
B26: 蓄積 | D26: 22 | G26: 12 | H26: 16 | I26: 50 | M26: 180 | N26: 180 | O26: 230
B27: 成長 | D27: 0.7 | G27: 0.3 | H27: 0.8 | I27: 1.8 | M27: 5.8 | N27: 5.8 | O27: 7.6
A28: 8 | B28: 面積 | C28: 0.2 | D28: 0.93 | E28: 0.03 | F28: 0.1 | G28: 2.69 | H28: 2.74 | I28: 6.69 | M28: 8.3 | N28: 8.3 | O28: 14.99
B29: 蓄積 | C29: 50 | D29: 157 | E29: 6 | F29: 13 | G29: 544 | H29: 267 | I29: 1037 | M29: 477 | N29: 477 | O29: 1514
B30: 成長 | C30: 1.2 | D30: 4.2 | E30: 0.2 | F30: 0.4 | G30: 11.5 | H30: 10 | I30: 27.5 | M30: 14.5 | N30: 14.5 | O30: 42
A31: 9 | B31: 面積 | D31: 1.43 | E31: 0.04 | F31: 0.23 | G31: 1.11 | H31: 7.33 | I31: 10.14 | M31: 12.99 | N31: 12.99 | O31: 23.13
B32: 蓄積 | D32: 274 | E32: 7 | F32: 44 | G32: 209 | H32: 688 | I32: 1222 | M32: 920 | N32: 920 | O32: 2142
B33: 成長 | D33: 5.9 | E33: 0.2 | F33: 0.7 | G33: 4 | H33: 22.7 | I33: 33.5 | M33: 25.3 | N33: 25.3 | O33: 58.8
A34: 10 | B34: 面積 | D34: 0.35 | E34: 0.33 | F34: 1.98 | G34: 5.14 | H34: 1.53 | I34: 9.33 | M34: 14.45 | N34: 14.45 | O34: 23.78
B35: 蓄積 | D35: 76 | E35: 75 | F35: 324 | G35: 1122 | H35: 160 | I35: 1757 | M35: 914 | N35: 914 | O35: 2671
B36: 成長 | D36: 1.5 | E36: 1.4 | F36: 4.7 | G36: 17 | H36: 4.5 | I36: 29.1 | M36: 23.3 | N36: 23.3 | O36: 52.4
A37: 11 | B37: 面積 | D37: 0.16 | E37: 0.06 | F37: 4.96 | G37: 50.77 | H37: 7.5 | I37: 63.45 | L37: 0.24 | M37: 13.16 | N37: 13.4 | O37: 76.85
B38: 蓄積 | D38: 39 | E38: 15 | F38: 971 | G38: 9912 | H38: 916 | I38: 11853 | L38: 24 | M38: 1074 | N38: 1098 | O38: 12951 | P38: 伐 跡 | R38: 17
B39: 成長 | D39: 0.7 | E39: 0.2 | F39: 11 | G39: 139.1 | H39: 21.9 | I39: 172.9 | L39: 0.5 | M39: 21.2 | N39: 21.7 | O39: 194.6 | P39: 未立木地 | R39: 9.67
A40: 12 | B40: 面積 | D40: 0.01 | E40: 0.53 | F40: 8.54 | G40: 93.61 | H40: 4.81 | I40: 107.5 | L40: 0.14 | M40: 30.82 | N40: 30.96 | O40: 138.46 | P40: 岩石地 | R40: 31.03
B41: 蓄積 | D41: 3 | E41: 127 | F41: 1770 | G41: 21130 | H41: 652 | I41: 23682 | L41: 15 | M41: 2656 | N41: 2671 | O41: 26353 | P41: 崩壊地 | R41: 57.7
B42: 成長 | D42: 0 | E42: 1.9 | F42: 17 | G42: 262.5 | H42: 13.1 | I42: 294.5 | L42: 0.3 | M42: 48.5 | N42: 48.8 | O42: 343.3 | P42: はげ山
A43: 13 | B43: 面積 | E43: 0.29 | F43: 15.84 | G43: 107.99 | H43: 64.74 | I43: 188.86 | L43: 0.18 | M43: 70.81 | N43: 70.99 | O43: 259.85 | P43: 施設敷 | R43: 4.66
B44: 蓄積 | E44: 67 | F44: 3481 | G44: 26997 | H44: 8335 | I44: 38880 | L44: 22 | M44: 6792 | N44: 6814 | O44: 45694 | P44: 林地開発
B45: 成長 | E45: 1 | F45: 32.6 | G45: 326.5 | H45: 166.7 | I45: 526.8 | L45: 0.3 | M45: 113.6 | N45: 113.9 | O45: 640.7 | P45: 計 | R45: =SUM(R38:R44) -> 120.06
A46: 14 | B46: 面積 | D46: 0.1 | E46: 0.67 | F46: 32.05 | G46: 178.13 | H46: 71.73 | I46: 282.68 | M46: 66.39 | N46: 66.39 | O46: 349.07 | P46: 竹 林
B47: 蓄積 | D47: 29 | E47: 172 | F47: 6365 | G47: 43250 | H47: 9966 | I47: 59782 | M47: 6751 | N47: 6751 | O47: 66533 | P47: 更新 困難地 | Q47: 面積
B48: 成長 | D48: 0.3 | E48: 1.8 | F48: 54.5 | G48: 463.1 | H48: 169.4 | I48: 689.1 | M48: 87.4 | N48: 87.4 | O48: 776.5 | Q48: 蓄積
A49: 15 以上 | B49: 面積 | C49: 0.03 | D49: 0.12 | E49: 7.64 | F49: 242.62 | G49: 443.82 | H49: 24.11 | I49: 718.34 | L49: 0.34 | M49: 213.75 | N49: 214.09 | O49: 932.43 | Q49: 成長
B50: 蓄積 | C50: 11 | D50: 37 | E50: 2334 | F50: 57964 | G50: 105577 | H50: 4645 | I50: 170568 | L50: 44 | M50: 23678 | N50: 23722 | O50: 194290
B51: 成長 | C51: 0 | D51: 0.3 | E51: 8.3 | F51: 273.5 | G51: 625.7 | H51: 45.4 | I51: 953.2 | L51: 0.4 | M51: 75 | N51: 75.4 | O51: 1028.6 | P51: 総 合 計
A52: 計 | B52: 面積 | C52: =SUM(C7,C10,C13,C16,C19,C22,C25,C28,C31,C34,C37,C40,C43,C46,C49) -> 0.23 | D52: 3.35 | E52: 9.59 | F52: 307.55 | G52: 884.96 | H52: 184.99 | I52: =SUM(C52:H52) -> 1390.67 | J52: =SUM(J7,J10,J13,J16,J19,J22,J25,J28,J31,J34,J37,J40,J43,J46,J49) -> 0 | K52: =SUM(K7,K10,K13,K16,K19,K22,K25,K28,K31,K34,K37,K40,K43,K46,K49) -> 0 | L52: =SUM(L7,L10,L13,L16,L19,L22,L25,L28,L31,L34,L37,L40,L43,L46,L49) -> 1.28 | M52: =SUM(M7,M10,M13,M16,M19,M22,M25,M28,M31,M34,M37,M40,M43,M46,M49) -> 441.54 | N52: =SUM(J52:M52) -> 442.82 | O52: 1833.49 | P52: 面 積 | R52: =SUM(O52,R45,R47,R46) -> 1953.55
B53: 蓄積 | C53: 61 | D53: 651 | E53: 2803 | F53: 71037 | G53: 208753 | H53: 28593 | I53: =SUM(C53:H53) -> 311898 | J53: =SUM(J8,J11,J14,J17,J20,J23,J26,J29,J32,J35,J38,J41,J44,J47,J50) -> 0 | K53: 0 | L53: 1374 | M53: 44613 | N53: =SUM(J53:M53) -> 45987 | O53: 357885 | P53: 蓄積 | R53: =O53+R48 -> 357885
B54: 成長 | C54: 1.2 | D54: 14.2 | E54: 15 | F54: 399.5 | G54: 1849.7 | H54: 613.3 | I54: =SUM(C54:H54) -> 2892.9 | J54: 0 | K54: 0 | L54: 50.1 | M54: 471.2 | N54: =SUM(J54:M54) -> 521.3 | O54: 3414.2 | P54: 成長量 | R54: =O54+R49 -> 3414.2

Sheet 伊那市
A1: 第11表 市町村別・資源構成表 （伊那谷）
A3: =MID(CELL("filename",$A$1),FIND("]",CELL("filename",$A$1))+1,31) -> 伊那市 | O3: 単位 面積 : ha、蓄積 成長量 : ㎥
B4: 樹種 | C4: 針 葉 樹 | J4: 広 葉 樹 | O4: 計
C5: ス ギ | D5: ヒ ノ キ | E5: サ ワ ラ | F5: ア カ マ ツ | G5: カ ラ マ ツ | H5: そ の 他 針 | I5: 小 計 | J5: ク ヌ ギ | K5: ブ ナ | L5: ナ ラ | M5: そ の 他 広 | N5: 小 計
A6: 齢級
A7: 1 | B7: 面積 | D7: 16.55 | G7: 15.6 | I7: 32.15 | L7: 15.15 | M7: 3.27 | N7: 18.42 | O7: =SUM(N7,I7) -> 50.57
B8: 蓄積 | D8: 0 | G8: 0 | I8: 0 | L8: 0 | M8: 0 | N8: 0 | O8: =SUM(N8,I8) -> 0
B9: 成長 | D9: 0 | G9: 0 | I9: 0 | L9: 0 | M9: 0 | N9: 0 | O9: 0
A10: 2 | B10: 面積 | C10: 1.34 | D10: 8.32 | G10: 15.29 | I10: 24.95 | J10: 0.02 | L10: 4.24 | M10: 15.89 | N10: 20.15 | O10: 45.1
B11: 蓄積 | C11: 0 | D11: 0 | G11: 0 | I11: 0 | J11: 0 | L11: 49 | M11: 193 | N11: 242 | O11: 242
B12: 成長 | C12: 0 | D12: 0 | G12: 0 | I12: 0 | J12: 0 | L12: 6.5 | M12: 27 | N12: 33.5 | O12: 33.5
A13: 3 | B13: 面積 | D13: 2.45 | F13: 0.27 | G13: 0.43 | H13: 0.11 | I13: 3.26 | L13: 0.09 | M13: 1.48 | N13: 1.57 | O13: 4.83
B14: 蓄積 | D14: 599 | F14: 8 | G14: 16 | H14: 1 | I14: 624 | L14: 2 | M14: 35 | N14: 37 | O14: 661
B15: 成長 | D15: 115.1 | F15: 1.1 | G15: 0.9 | H15: 0.2 | I15: 117.3 | L15: 0.2 | M15: 3.3 | N15: 3.5 | O15: 120.8
A16: 4 | B16: 面積 | D16: 11.07 | F16: 0.83 | G16: 16.12 | I16: 28.02 | M16: 11.71 | N16: 11.71 | O16: 39.73
B17: 蓄積 | D17: 1088 | F17: 60 | G17: 1373 | I17: 2521 | M17: 386 | N17: 386 | O17: 2907
B18: 成長 | D18: 99.8 | F18: 5 | G18: 80.9 | I18: 185.7 | M18: 26.6 | N18: 26.6 | O18: 212.3
A19: 5 | B19: 面積 | D19: 38.05 | F19: 1.57 | G19: 17.18 | I19: 56.8 | J19: 0.42 | L19: 2.7 | M19: 26.31 | N19: 29.43 | O19: 86.23
B20: 蓄積 | D20: 4490 | F20: 181 | G20: 2323 | I20: 6994 | J20: 27 | L20: 109 | M20: 1084 | N20: 1220 | O20: 8214
B21: 成長 | D21: 261.7 | F21: 9.3 | G21: 106.8 | I21: 377.8 | J21: 0.9 | L21: 5.4 | M21: 57 | N21: 63.3 | O21: 441.1
A22: 6 | B22: 面積 | C22: 0.05 | D22: 55.09 | F22: 2.77 | G22: 52.45 | H22: 0.04 | I22: 110.4 | L22: 0.71 | M22: 45.42 | N22: 46.13 | O22: 156.53
B23: 蓄積 | C23: 10 | D23: 10205 | F23: 387 | G23: 7902 | H23: 3 | I23: 18507 | L23: 33 | M23: 2220 | N23: 2253 | O23: 20760
B24: 成長 | C24: 0.3 | D24: 439.8 | F24: 14.3 | G24: 182.4 | H24: 0.3 | I24: 637.1 | L24: 1.3 | M24: 90.4 | N24: 91.7 | O24: 728.8
A25: 7 | B25: 面積 | C25: 0.19 | D25: 49.01 | F25: 13.24 | G25: 72.4 | H25: 9.89 | I25: 144.73 | J25: 0.39 | L25: 14.58 | M25: 89.88 | N25: 104.85 | O25: 249.58
B26: 蓄積 | C26: 42 | D26: 8862 | F26: 2151 | G26: 14230 | H26: 759 | I26: 26044 | J26: 32 | L26: 887 | M26: 5261 | N26: 6180 | O26: 32224
B27: 成長 | C27: 1.1 | D27: 286.3 | F27: 51.7 | G27: 313 | H27: 35.1 | I27: 687.2 | J27: 0.1 | L27: 28.6 | M27: 163.1 | N27: 191.8 | O27: 879
A28: 8 | B28: 面積 | C28: 3.47 | D28: 152.16 | F28: 39.51 | G28: 162.64 | H28: 22.87 | I28: 380.65 | L28: 25.78 | M28: 190.74 | N28: 216.52 | O28: 597.17
B29: 蓄積 | C29: 1407 | D29: 32838 | F29: 7842 | G29: 30035 | H29: 2598 | I29: 74720 | L29: 1827 | M29: 12599 | N29: 14426 | O29: 89146
B30: 成長 | C30: 32.3 | D30: 857.8 | F30: 157.6 | G30: 647.2 | H30: 95.7 | I30: 1790.6 | L30: 52.9 | M30: 380.4 | N30: 433.3 | O30: 2223.9
A31: 9 | B31: 面積 | C31: 9.13 | D31: 204.61 | F31: 84.36 | G31: 301.02 | H31: 20.66 | I31: 619.78 | J31: 1.08 | L31: 24.33 | M31: 144.74 | N31: 170.15 | O31: 789.93
B32: 蓄積 | C32: 2523 | D32: 42536 | F32: 15923 | G32: 59227 | H32: 2322 | I32: 122531 | J32: 96 | L32: 1976 | M32: 11506 | N32: 13578 | O32: 136109
B33: 成長 | C33: 43.6 | D33: 898.3 | F33: 243.2 | G33: 1100 | H33: 69.7 | I33: 2354.8 | J33: 0.1 | L33: 53.2 | M33: 320.4 | N33: 373.7 | O33: 2728.5
A34: 10 | B34: 面積 | C34: 11.34 | D34: 213.68 | F34: 263.52 | G34: 785.93 | H34: 71.56 | I34: 1346.03 | J34: 0.18 | L34: 15.21 | M34: 379.88 | N34: 395.27 | O34: 1741.3
B35: 蓄積 | C35: 3425 | D35: 48665 | F35: 54269 | G35: 181306 | H35: 8798 | I35: 296463 | J35: 16 | L35: 1414 | M35: 32755 | N35: 34185 | O35: 330648
B36: 成長 | C36: 48 | D36: 880.2 | F36: 713 | G36: 2725.4 | H36: 260.4 | I36: 4627 | J36: 0 | L36: 34 | M36: 830.8 | N36: 864.8 | O36: 5491.8
A37: 11 | B37: 面積 | C37: 13.91 | D37: 275.62 | E37: 9.73 | F37: 798.61 | G37: 1288.2 | H37: 30.39 | I37: 2416.46 | J37: 0.55 | L37: 7.91 | M37: 319.96 | N37: 328.42 | O37: 2744.88
B38: 蓄積 | C38: 4447 | D38: 69905 | E38: 1669 | F38: 174987 | G38: 316980 | H38: 4090 | I38: 572078 | J38: 46 | L38: 813 | M38: 31223 | N38: 32082 | O38: 604160 | P38: 伐 跡 | R38: 25.98
B39: 成長 | C39: 62.4 | D39: 1122.6 | E39: 26.7 | F39: 1931.8 | G39: 4433.7 | H39: 90.1 | I39: 7667.3 | J39: 0 | L39: 16.4 | M39: 612.6 | N39: 629 | O39: 8296.3 | P39: 未立木地 | R39: 90.47
A40: 12 | B40: 面積 | C40: 45.61 | D40: 130.88 | E40: 0.92 | F40: 1307.83 | G40: 2728.7 | H40: 5.93 | I40: 4219.87 | J40: 0.4 | L40: 28.66 | M40: 556.17 | N40: 585.23 | O40: 4805.1 | P40: 岩石地 | R40: 60.28
B41: 蓄積 | C41: 15328 | D41: 34738 | E41: 223 | F41: 299118 | G41: 711516 | H41: 923 | I41: 1061846 | J41: 37 | L41: 3037 | M41: 57916 | N41: 60990 | O41: 1122836 | P41: 崩壊地 | R41: 204.06
B42: 成長 | C42: 195 | D42: 490.3 | E42: 3.1 | F42: 2724.6 | G42: 9087.7 | H42: 17.9 | I42: 12518.6 | J42: 0 | L42: 58.4 | M42: 1108.3 | N42: 1166.7 | O42: 13685.3 | P42: はげ山 | R42: 1.6
A43: 13 | B43: 面積 | C43: 59.47 | D43: 86.33 | E43: 4.97 | F43: 1184.84 | G43: 3295.91 | H43: 14.51 | I43: 4646.03 | J43: 1.49 | L43: 39.41 | M43: 642.55 | N43: 683.45 | O43: 5329.48 | P43: 施設敷 | R43: 73.45
B44: 蓄積 | C44: 20760 | D44: 24097 | E44: 1304 | F44: 277214 | G44: 861462 | H44: 1913 | I44: 1186750 | J44: 134 | L44: 4556 | M44: 72712 | N44: 77402 | O44: 1264152 | P44: 林地開発 | R44: 6.43
B45: 成長 | C45: 247.7 | D45: 332.7 | E45: 16.7 | F45: 2465.6 | G45: 10567.2 | H45: 35.2 | I45: 13665.1 | J45: 0 | L45: 68.5 | M45: 1122.3 | N45: 1190.8 | O45: 14855.9 | P45: 計 | R45: =SUM(R38:R44) -> 462.27
A46: 14 | B46: 面積 | C46: 77.39 | D46: 78.97 | E46: 6.35 | F46: 1046.65 | G46: 3645.43 | H46: 6.06 | I46: 4860.85 | J46: 3.37 | L46: 144.54 | M46: 1384.74 | N46: 1532.65 | O46: 6393.5 | P46: 竹 林 | R46: 104.34
B47: 蓄積 | C47: 28153 | D47: 21964 | E47: 1833 | F47: 253723 | G47: 1064608 | H47: 1079 | I47: 1371360 | J47: 305 | L47: 17713 | M47: 165787 | N47: 183805 | O47: 1555165 | P47: 更新 困難地 | Q47: 面積 | R47: 7.71
B48: 成長 | C48: 281.2 | D48: 262.1 | E48: 21.9 | F48: 2045 | G48: 11296.5 | H48: 17.1 | I48: 13923.8 | J48: 0 | L48: 189.9 | M48: 1805.3 | N48: 1995.2 | O48: 15919 | Q48: 蓄積 | R48: 1007
A49: 15 以上 | B49: 面積 | C49: 106.06 | D49: 414.8 | E49: 22.11 | F49: 2218.04 | G49: 2715.31 | H49: 346.89 | I49: 5823.21 | J49: 20.33 | L49: 299.3 | M49: 4364.51 | N49: 4684.14 | O49: 10507.35 | Q49: 成長 | R49: 0.3
B50: 蓄積 | C50: 41727 | D50: 127582 | E50: 6744 | F50: 592062 | G50: 815336 | H50: 69535 | I50: 1652986 | J50: 1824 | L50: 39301 | M50: 545914 | N50: 587039 | O50: 2240025
B51: 成長 | C51: 117.4 | D51: 381.3 | E51: 15.9 | F51: 3037.7 | G51: 5582.3 | H51: 528.5 | I51: 9663.1 | J51: 0 | L51: 177 | M51: 2217.3 | N51: 2394.3 | O51: 12057.4 | P51: 総 合 計
A52: 計 | B52: 面積 | C52: =SUM(C7,C10,C13,C16,C19,C22,C25,C28,C31,C34,C37,C40,C43,C46,C49) -> 327.96 | D52: 1737.59 | E52: 44.08 | F52: 6962.04 | G52: 15112.61 | H52: 528.91 | I52: =SUM(C52:H52) -> 24713.19 | J52: =SUM(J7,J10,J13,J16,J19,J22,J25,J28,J31,J34,J37,J40,J43,J46,J49) -> 28.23 | K52: =SUM(K7,K10,K13,K16,K19,K22,K25,K28,K31,K34,K37,K40,K43,K46,K49) -> 0 | L52: =SUM(L7,L10,L13,L16,L19,L22,L25,L28,L31,L34,L37,L40,L43,L46,L49) -> 622.61 | M52: =SUM(M7,M10,M13,M16,M19,M22,M25,M28,M31,M34,M37,M40,M43,M46,M49) -> 8177.25 | N52: =SUM(J52:M52) -> 8828.09 | O52: 33541.28 | P52: 面 積 | R52: =SUM(O52,R45,R47,R46) -> 34115.6
B53: 蓄積 | C53: 117822 | D53: 427569 | E53: 11773 | F53: 1677925 | G53: 4066314 | H53: 92021 | I53: =SUM(C53:H53) -> 6393424 | J53: =SUM(J8,J11,J14,J17,J20,J23,J26,J29,J32,J35,J38,J41,J44,J47,J50) -> 2517 | K53: 0 | L53: 71717 | M53: 939591 | N53: =SUM(J53:M53) -> 1013825 | O53: 7407249 | P53: 蓄積 | R53: =O53+R48 -> 7408256
B54: 成長 | C54: 1029 | D54: 6428 | E54: 84.3 | F54: 13399.9 | G54: 46124 | H54: 1150.2 | I54: =SUM(C54:H54) -> 68215.4 | J54: 1.1 | K54: 0 | L54: 692.3 | M54: 8764.8 | N54: =SUM(J54:M54) -> 9458.2 | O54: 77673.6 | P54: 成長量 | R54: =O54+R49 -> 77673.9

Sheet 駒ヶ根市
A1: 第11表 市町村別・資源構成表 （伊那谷）
A3: =MID(CELL("filename",$A$1),FIND("]",CELL("filename",$A$1))+1,31) -> 駒ヶ根市 | O3: 単位 面積 : ha、蓄積 成長量 : ㎥
B4: 樹種 | C4: 針 葉 樹 | J4: 広 葉 樹 | O4: 計
C5: ス ギ | D5: ヒ ノ キ | E5: サ ワ ラ | F5: ア カ マ ツ | G5: カ ラ マ ツ | H5: そ の 他 針 | I5: 小 計 | J5: ク ヌ ギ | K5: ブ ナ | L5: ナ ラ | M5: そ の 他 広 | N5: 小 計
A6: 齢級
A7: 1 | B7: 面積 | D7: 0.02 | G7: 1.65 | I7: 1.67 | N7: 0 | O7: =SUM(N7,I7) -> 1.67
B8: 蓄積 | D8: 0 | G8: 0 | I8: 0 | N8: 0 | O8: =SUM(N8,I8) -> 0
B9: 成長 | D9: 0 | G9: 0 | I9: 0 | N9: 0 | O9: 0
A10: 2 | B10: 面積 | D10: 4 | G10: 0.34 | I10: 4.34 | N10: 0 | O10: 4.34
B11: 蓄積 | D11: 0 | G11: 0 | I11: 0 | N11: 0 | O11: 0
B12: 成長 | D12: 0 | G12: 0 | I12: 0 | N12: 0 | O12: 0
A13: 3 | B13: 面積 | D13: 2.22 | I13: 2.22 | M13: 2.59 | N13: 2.59 | O13: 4.81
B14: 蓄積 | D14: 84 | I14: 84 | M14: 50 | N14: 50 | O14: 134
B15: 成長 | D15: 16.2 | I15: 16.2 | M15: 4.8 | N15: 4.8 | O15: 21
A16: 4 | B16: 面積 | D16: 5.4 | H16: 0.1 | I16: 5.5 | L16: 1.32 | M16: 4.48 | N16: 5.8 | O16: 11.3
B17: 蓄積 | D17: 377 | H17: 4 | I17: 381 | L17: 38 | M17: 242 | N17: 280 | O17: 661
B18: 成長 | D18: 34.9 | H18: 0.3 | I18: 35.2 | L18: 2.9 | M18: 16.2 | N18: 19.1 | O18: 54.3
A19: 5 | B19: 面積 | D19: 15.37 | F19: 2.11 | I19: 17.48 | M19: 2.82 | N19: 2.82 | O19: 20.3
B20: 蓄積 | D20: 1792 | F20: 264 | I20: 2056 | M20: 103 | N20: 103 | O20: 2159
B21: 成長 | D21: 103.9 | F21: 13.3 | I21: 117.2 | M21: 5.6 | N21: 5.6 | O21: 122.8
A22: 6 | B22: 面積 | D22: 7.79 | F22: 0.55 | H22: 1.6 | I22: 9.94 | M22: 5.09 | N22: 5.09 | O22: 15.03
B23: 蓄積 | D23: 2875 | F23: 46 | H23: 102 | I23: 3023 | M23: 248 | N23: 248 | O23: 3271
B24: 成長 | D24: 123.9 | F24: 1.7 | H24: 5.1 | I24: 130.7 | M24: 10.3 | N24: 10.3 | O24: 141
A25: 7 | B25: 面積 | C25: 0.42 | D25: 85.84 | F25: 0.59 | I25: 86.85 | J25: 0.17 | L25: 0.08 | M25: 7.47 | N25: 7.72 | O25: 94.57
B26: 蓄積 | C26: 95 | D26: 14877 | F26: 98 | I26: 15070 | J26: 14 | L26: 5 | M26: 449 | N26: 468 | O26: 15538
B27: 成長 | C27: 2.4 | D27: 478.5 | F27: 2.4 | I27: 483.3 | J27: 0 | L27: 0.2 | M27: 13.9 | N27: 14.1 | O27: 497.4
A28: 8 | B28: 面積 | C28: 1.38 | D28: 77.73 | F28: 6.35 | G28: 10.46 | H28: 1.23 | I28: 97.15 | J28: 0.58 | M28: 29.74 | N28: 30.32 | O28: 127.47
B29: 蓄積 | C29: 358 | D29: 14550 | F29: 1200 | G29: 2022 | H29: 123 | I29: 18253 | J29: 50 | M29: 2024 | N29: 2074 | O29: 20327
B30: 成長 | C30: 8.3 | D30: 379.9 | F30: 24.3 | G30: 42.7 | H30: 4.6 | I30: 459.8 | J30: 0.1 | M30: 61 | N30: 61.1 | O30: 520.9
A31: 9 | B31: 面積 | C31: 3.88 | D31: 84.19 | F31: 17.15 | G31: 10.05 | H31: 10.3 | I31: 125.57 | J31: 0.26 | M31: 22.79 | N31: 23.05 | O31: 148.62
B32: 蓄積 | C32: 1197 | D32: 17633 | F32: 3351 | G32: 1826 | H32: 1072 | I32: 25079 | J32: 23 | M32: 1883 | N32: 1906 | O32: 26985
B33: 成長 | C33: 21.6 | D33: 371.7 | F33: 51.1 | G33: 33.8 | H33: 34.1 | I33: 512.3 | J33: 0 | M33: 52.9 | N33: 52.9 | O33: 565.2
A34: 10 | B34: 面積 | C34: 3.39 | D34: 189.42 | F34: 85.28 | G34: 73.71 | H34: 8.27 | I34: 360.07 | M34: 34.42 | N34: 34.42 | O34: 394.49
B35: 蓄積 | C35: 1024 | D35: 42635 | F35: 17452 | G35: 15837 | H35: 849 | I35: 77797 | M35: 2915 | N35: 2915 | O35: 80712
B36: 成長 | C36: 14.2 | D36: 775.6 | F36: 229.9 | G36: 243 | H36: 24.2 | I36: 1286.9 | M36: 74.4 | N36: 74.4 | O36: 1361.3
A37: 11 | B37: 面積 | C37: 6.31 | D37: 140.21 | F37: 185.32 | G37: 172 | I37: 503.84 | J37: 0.53 | L37: 0.62 | M37: 67.71 | N37: 68.86 | O37: 572.7
B38: 蓄積 | C38: 2052 | D38: 34989 | F38: 40459 | G38: 43175 | I38: 120675 | J38: 48 | L38: 64 | M38: 6132 | N38: 6244 | O38: 126919 | P38: 伐 跡 | R38: 5.55
B39: 成長 | C39: 28.2 | D39: 560.5 | F39: 446.4 | G39: 603.6 | I39: 1638.7 | J39: 0 | L39: 1.3 | M39: 119.8 | N39: 121.1 | O39: 1759.8 | P39: 未立木地 | R39: 36.22
A40: 12 | B40: 面積 | C40: 24.56 | D40: 43.1 | F40: 410.91 | G40: 468.38 | I40: 946.95 | J40: 0.17 | L40: 0.46 | M40: 89.6 | N40: 90.23 | O40: 1037.18 | P40: 岩石地 | R40: 6.72
B41: 蓄積 | C41: 8532 | D41: 11541 | F41: 93070 | G41: 112582 | I41: 225725 | J41: 15 | L41: 49 | M41: 9440 | N41: 9504 | O41: 235229 | P41: 崩壊地 | R41: 106.33
B42: 成長 | C42: 111.4 | D42: 161.7 | F42: 856.4 | G42: 1414.9 | I42: 2544.4 | J42: 0 | L42: 1 | M42: 181.4 | N42: 182.4 | O42: 2726.8 | P42: はげ山 | R42: 2.1
A43: 13 | B43: 面積 | C43: 55.64 | D43: 66.89 | F43: 566.67 | G43: 587 | H43: 12.15 | I43: 1288.35 | J43: 0.44 | L43: 2.19 | M43: 242.69 | N43: 245.32 | O43: 1533.67 | P43: 施設敷 | R43: 14.28
B44: 蓄積 | C44: 19706 | D44: 16593 | F44: 132141 | G44: 143456 | H44: 1652 | I44: 313548 | J44: 39 | L44: 252 | M44: 26624 | N44: 26915 | O44: 340463 | P44: 林地開発
B45: 成長 | C45: 242.5 | D45: 237.4 | F45: 1185.5 | G45: 1743.7 | H45: 33 | I45: 3442.1 | J45: 0 | L45: 4.2 | M45: 423.8 | N45: 428 | O45: 3870.1 | P45: 計 | R45: =SUM(R38:R44) -> 171.2
A46: 14 | B46: 面積 | C46: 84.24 | D46: 53.84 | E46: 0.03 | F46: 492.09 | G46: 353.09 | I46: 983.29 | J46: 4.01 | L46: 5.46 | M46: 405.28 | N46: 414.75 | O46: 1398.04 | P46: 竹 林 | R46: 35.9
B47: 蓄積 | C47: 30906 | D47: 14951 | E47: 9 | F47: 119913 | G47: 95506 | I47: 261285 | J47: 358 | L47: 668 | M47: 48557 | N47: 49583 | O47: 310868 | P47: 更新 困難地 | Q47: 面積
B48: 成長 | C48: 309.4 | D48: 181.7 | E48: 0.1 | F48: 966.4 | G48: 1025.8 | I48: 2483.4 | J48: 0 | L48: 7.2 | M48: 533 | N48: 540.2 | O48: 3023.6 | Q48: 蓄積
A49: 15 以上 | B49: 面積 | C49: 105.14 | D49: 254.81 | E49: 1.92 | F49: 1130.74 | G49: 447.86 | H49: 25.44 | I49: 1965.91 | J49: 8.49 | L49: 19.08 | M49: 1535.41 | N49: 1562.98 | O49: 3528.89 | Q49: 成長
B50: 蓄積 | C50: 41118 | D50: 78108 | E50: 579 | F50: 302511 | G50: 123658 | H50: 5715 | I50: 551689 | J50: 725 | L50: 2508 | M50: 191009 | N50: 194242 | O50: 745931
B51: 成長 | C51: 206.1 | D51: 124.9 | E51: 0.5 | F51: 1559.4 | G51: 855.3 | H51: 25.6 | I51: 2771.8 | J51: 0 | L51: 16.4 | M51: 972.5 | N51: 988.9 | O51: 3760.7 | P51: 総 合 計
A52: 計 | B52: 面積 | C52: =SUM(C7,C10,C13,C16,C19,C22,C25,C28,C31,C34,C37,C40,C43,C46,C49) -> 284.96 | D52: 1030.83 | E52: 1.95 | F52: 2897.76 | G52: 2124.54 | H52: 59.09 | I52: =SUM(C52:H52) -> 6399.13 | J52: =SUM(J7,J10,J13,J16,J19,J22,J25,J28,J31,J34,J37,J40,J43,J46,J49) -> 14.65 | K52: =SUM(K7,K10,K13,K16,K19,K22,K25,K28,K31,K34,K37,K40,K43,K46,K49) -> 0 | L52: =SUM(L7,L10,L13,L16,L19,L22,L25,L28,L31,L34,L37,L40,L43,L46,L49) -> 29.21 | M52: =SUM(M7,M10,M13,M16,M19,M22,M25,M28,M31,M34,M37,M40,M43,M46,M49) -> 2450.09 | N52: =SUM(J52:M52) -> 2493.95 | O52: 8893.08 | P52: 面 積 | R52: =SUM(O52,R45,R47,R46) -> 9100.18
B53: 蓄積 | C53: 104988 | D53: 251005 | E53: 588 | F53: 710505 | G53: 538062 | H53: 9517 | I53: =SUM(C53:H53) -> 1614665 | J53: =SUM(J8,J11,J14,J17,J20,J23,J26,J29,J32,J35,J38,J41,J44,J47,J50) -> 1272 | K53: 0 | L53: 3584 | M53: 289676 | N53: =SUM(J53:M53) -> 294532 | O53: 1909197 | P53: 蓄積 | R53: =O53+R48 -> 1909197
B54: 成長 | C54: 944.1 | D54: 3550.8 | E54: 0.6 | F54: 5336.8 | G54: 5962.8 | H54: 126.9 | I54: =SUM(C54:H54) -> 15922 | J54: 0.1 | K54: 0 | L54: 33.2 | M54: 2469.6 | N54: =SUM(J54:M54) -> 2502.9 | O54: 18424.9 | P54: 成長量 | R54: =O54+R49 -> 18424.9

Sheet 辰野町
A1: 第11表 市町村別・資源構成表 （伊那谷）
A3: =MID(CELL("filename",$A$1),FIND("]",CELL("filename",$A$1))+1,31) -> 辰野町 | O3: 単位 面積 : ha、蓄積 成長量 : ㎥
B4: 樹種 | C4: 針 葉 樹 | J4: 広 葉 樹 | O4: 計
C5: ス ギ | D5: ヒ ノ キ | E5: サ ワ ラ | F5: ア カ マ ツ | G5: カ ラ マ ツ | H5: そ の 他 針 | I5: 小 計 | J5: ク ヌ ギ | K5: ブ ナ | L5: ナ ラ | M5: そ の 他 広 | N5: 小 計
A6: 齢級
A7: 1 | B7: 面積 | E7: 0.37 | G7: 1.89 | I7: 2.26 | M7: 0.9 | N7: 0.9 | O7: =SUM(N7,I7) -> 3.16
B8: 蓄積 | E8: 0 | G8: 0 | I8: 0 | M8: 0 | N8: 0 | O8: =SUM(N8,I8) -> 0
B9: 成長 | E9: 0 | G9: 0 | I9: 0 | M9: 0 | N9: 0 | O9: 0
A10: 2 | B10: 面積 | I10: 0 | M10: 7.77 | N10: 7.77 | O10: 7.77
B11: 蓄積 | I11: 0 | M11: 102 | N11: 102 | O11: 102
B12: 成長 | I12: 0 | M12: 14.5 | N12: 14.5 | O12: 14.5
A13: 3 | B13: 面積 | I13: 0 | M13: 0.11 | N13: 0.11 | O13: 0.11
B14: 蓄積 | I14: 0 | M14: 3 | N14: 3 | O14: 3
B15: 成長 | I15: 0 | M15: 0.3 | N15: 0.3 | O15: 0.3
A16: 4 | B16: 面積 | D16: 0.59 | I16: 0.59 | M16: 0.53 | N16: 0.53 | O16: 1.12
B17: 蓄積 | D17: 45 | I17: 45 | M17: 19 | N17: 19 | O17: 64
B18: 成長 | D18: 4 | I18: 4 | M18: 1.3 | N18: 1.3 | O18: 5.3
A19: 5 | B19: 面積 | C19: 0.16 | D19: 2.48 | F19: 0.1 | H19: 0.13 | I19: 2.87 | M19: 1 | N19: 1 | O19: 3.87
B20: 蓄積 | C20: 27 | D20: 261 | F20: 11 | H20: 5 | I20: 304 | M20: 30 | N20: 30 | O20: 334
B21: 成長 | C21: 1.3 | D21: 15.2 | F21: 0.6 | H21: 0.3 | I21: 17.4 | M21: 1.8 | N21: 1.8 | O21: 19.2
A22: 6 | B22: 面積 | D22: 7.93 | G22: 9.9 | I22: 17.83 | M22: 34.58 | N22: 34.58 | O22: 52.41
B23: 蓄積 | D23: 1114 | G23: 1624 | I23: 2738 | M23: 1570 | N23: 1570 | O23: 4308
B24: 成長 | D24: 47.9 | G24: 37.3 | I24: 85.2 | M24: 64.1 | N24: 64.1 | O24: 149.3
A25: 7 | B25: 面積 | C25: 0.85 | D25: 32.19 | F25: 1.36 | G25: 9.46 | I25: 43.86 | M25: 30.01 | N25: 30.01 | O25: 73.87
B26: 蓄積 | C26: 189 | D26: 7740 | F26: 231 | G26: 1693 | I26: 9853 | M26: 1875 | N26: 1875 | O26: 11728
B27: 成長 | C27: 4.9 | D27: 247.1 | F27: 5.6 | G27: 37.4 | I27: 295 | M27: 57.8 | N27: 57.8 | O27: 352.8
A28: 8 | B28: 面積 | C28: 0.67 | D28: 34.57 | F28: 6.24 | G28: 39.65 | H28: 2.68 | I28: 83.81 | M28: 27.37 | N28: 27.37 | O28: 111.18
B29: 蓄積 | C29: 145 | D29: 7231 | F29: 956 | G29: 7304 | H29: 262 | I29: 15898 | M29: 1878 | N29: 1878 | O29: 17776
B30: 成長 | C30: 3.3 | D30: 189 | F30: 23.1 | G30: 156.9 | H30: 9.7 | I30: 382 | M30: 56.9 | N30: 56.9 | O30: 438.9
A31: 9 | B31: 面積 | C31: 2.07 | D31: 36.2 | F31: 31.22 | G31: 53.36 | H31: 0.82 | I31: 123.67 | M31: 12.97 | N31: 12.97 | O31: 136.64
B32: 蓄積 | C32: 565 | D32: 7856 | F32: 5463 | G32: 10876 | H32: 98 | I32: 24858 | M32: 1057 | N32: 1057 | O32: 25915
B33: 成長 | C33: 9.6 | D33: 166.1 | F33: 85.9 | G33: 201 | H33: 2.9 | I33: 465.5 | M33: 29.7 | N33: 29.7 | O33: 495.2
A34: 10 | B34: 面積 | C34: 7.47 | D34: 82.24 | E34: 3.18 | F34: 80.3 | G34: 62.12 | H34: 29.41 | I34: 264.72 | L34: 0.5 | M34: 38 | N34: 38.5 | O34: 303.22
B35: 蓄積 | C35: 2251 | D35: 18702 | E35: 735 | F35: 16971 | G35: 14849 | H35: 3968 | I35: 57476 | L35: 47 | M35: 3319 | N35: 3366 | O35: 60842
B36: 成長 | C36: 31.8 | D36: 336.4 | E36: 13.2 | F36: 220.8 | G36: 222 | H36: 119 | I36: 943.2 | L36: 1.2 | M36: 84.2 | N36: 85.4 | O36: 1028.6
A37: 11 | B37: 面積 | C37: 20.36 | D37: 46.53 | E37: 1.23 | F37: 343.58 | G37: 84.47 | H37: 2.02 | I37: 498.19 | M37: 70.62 | N37: 70.62 | O37: 568.81
B38: 蓄積 | C38: 6664 | D38: 11389 | E38: 310 | F38: 76549 | G38: 22601 | H38: 303 | I38: 117816 | M38: 6769 | N38: 6769 | O38: 124585 | P38: 伐 跡 | R38: 2.31
B39: 成長 | C39: 92.6 | D39: 182.3 | E39: 5 | F39: 843.5 | G39: 316.6 | H39: 6 | I39: 1446 | M39: 133.2 | N39: 133.2 | O39: 1579.2 | P39: 未立木地 | R39: 28.26
A40: 12 | B40: 面積 | C40: 46.17 | D40: 11.07 | E40: 0.06 | F40: 847.56 | G40: 365.95 | H40: 1.84 | I40: 1272.65 | L40: 1.97 | M40: 89.41 | N40: 91.38 | O40: 1364.03 | P40: 岩石地 | R40: 35.87
B41: 蓄積 | C41: 15882 | D41: 2940 | E41: 16 | F41: 196259 | G41: 98323 | H41: 310 | I41: 313730 | L41: 211 | M41: 9575 | N41: 9786 | O41: 323516 | P41: 崩壊地 | R41: 17.63
B42: 成長 | C42: 206.6 | D42: 41.2 | E42: 0.2 | F42: 1768.3 | G42: 1260.6 | H42: 5.9 | I42: 3282.8 | L42: 4.2 | M42: 187.1 | N42: 191.3 | O42: 3474.1 | P42: はげ山 | R42: 3.01
A43: 13 | B43: 面積 | C43: 57.66 | D43: 21.56 | F43: 726.82 | G43: 793.78 | H43: 3.83 | I43: 1603.65 | L43: 2.04 | M43: 116.18 | N43: 118.22 | O43: 1721.87 | P43: 施設敷 | R43: 19.32
B44: 蓄積 | C44: 20811 | D44: 5846 | F44: 173171 | G44: 208134 | H44: 537 | I44: 408499 | L44: 235 | M44: 13382 | N44: 13617 | O44: 422116 | P44: 林地開発
B45: 成長 | C45: 253.3 | D45: 78.8 | F45: 1514.7 | G45: 2557.6 | H45: 10.6 | I45: 4415 | L45: 4 | M45: 188 | N45: 192 | O45: 4607 | P45: 計 | R45: =SUM(R38:R44) -> 106.4
A46: 14 | B46: 面積 | C46: 125.07 | D46: 22.52 | E46: 0.39 | F46: 976.57 | G46: 881.86 | H46: 4.75 | I46: 2011.16 | L46: 3.14 | M46: 261.81 | N46: 264.95 | O46: 2276.11 | P46: 竹 林 | R46: 9.18
B47: 蓄積 | C47: 46592 | D47: 6360 | E47: 113 | F47: 242061 | G47: 273740 | H47: 894 | I47: 569760 | L47: 376 | M47: 31743 | N47: 32119 | O47: 601879 | P47: 更新 困難地 | Q47: 面積
B48: 成長 | C48: 466.1 | D48: 75.3 | E48: 1.4 | F48: 1913.3 | G48: 2850.2 | H48: 14.2 | I48: 5320.5 | L48: 4.1 | M48: 343.9 | N48: 348 | O48: 5668.5 | Q48: 蓄積
A49: 15 以上 | B49: 面積 | C49: 116 | D49: 136.86 | E49: 19.12 | F49: 1772.02 | G49: 1127.82 | H49: 37.8 | I49: 3209.62 | J49: 0.22 | L49: 22.12 | M49: 879.16 | N49: 901.5 | O49: 4111.12 | Q49: 成長
B50: 蓄積 | C50: 45960 | D50: 41146 | E50: 5883 | F50: 477532 | G50: 354268 | H50: 9515 | I50: 934304 | J50: 19 | L50: 2927 | M50: 114718 | N50: 117664 | O50: 1051968
B51: 成長 | C51: 198.6 | D51: 118.7 | E51: 5 | F51: 2476.1 | G51: 2236.8 | H51: 80.3 | I51: 5115.5 | J51: 0 | L51: 6.5 | M51: 509.5 | N51: 516 | O51: 5631.5 | P51: 総 合 計
A52: 計 | B52: 面積 | C52: =SUM(C7,C10,C13,C16,C19,C22,C25,C28,C31,C34,C37,C40,C43,C46,C49) -> 376.48 | D52: 434.74 | E52: 24.35 | F52: 4785.77 | G52: 3430.26 | H52: 83.28 | I52: =SUM(C52:H52) -> 9134.88 | J52: =SUM(J7,J10,J13,J16,J19,J22,J25,J28,J31,J34,J37,J40,J43,J46,J49) -> 0.22 | K52: =SUM(K7,K10,K13,K16,K19,K22,K25,K28,K31,K34,K37,K40,K43,K46,K49) -> 0 | L52: =SUM(L7,L10,L13,L16,L19,L22,L25,L28,L31,L34,L37,L40,L43,L46,L49) -> 29.77 | M52: =SUM(M7,M10,M13,M16,M19,M22,M25,M28,M31,M34,M37,M40,M43,M46,M49) -> 1570.42 | N52: =SUM(J52:M52) -> 1600.41 | O52: 10735.29 | P52: 面 積 | R52: =SUM(O52,R45,R47,R46) -> 10850.87
B53: 蓄積 | C53: 139086 | D53: 110630 | E53: 7057 | F53: 1189204 | G53: 993412 | H53: 15892 | I53: =SUM(C53:H53) -> 2455281 | J53: =SUM(J8,J11,J14,J17,J20,J23,J26,J29,J32,J35,J38,J41,J44,J47,J50) -> 19 | K53: 0 | L53: 3796 | M53: 186040 | N53: =SUM(J53:M53) -> 189855 | O53: 2645136 | P53: 蓄積 | R53: =O53+R48 -> 2645136
B54: 成長 | C54: 1268.1 | D54: 1502 | E54: 24.8 | F54: 8851.9 | G54: 9876.4 | H54: 248.9 | I54: =SUM(C54:H54) -> 21772.1 | J54: 0 | K54: 0 | L54: 20 | M54: 1672.3 | N54: =SUM(J54:M54) -> 1692.3 | O54: 23464.4 | P54: 成長量 | R54: =O54+R49 -> 23464.4

Sheet 箕輪町
A1: 第11表 市町村別・資源構成表 （伊那谷）
A3: =MID(CELL("filename",$A$1),FIND("]",CELL("filename",$A$1))+1,31) -> 箕輪町 | O3: 単位 面積 : ha、蓄積 成長量 : ㎥
B4: 樹種 | C4: 針 葉 樹 | J4: 広 葉 樹 | O4: 計
C5: ス ギ | D5: ヒ ノ キ | E5: サ ワ ラ | F5: ア カ マ ツ | G5: カ ラ マ ツ | H5: そ の 他 針 | I5: 小 計 | J5: ク ヌ ギ | K5: ブ ナ | L5: ナ ラ | M5: そ の 他 広 | N5: 小 計
A6: 齢級
A7: 1 | B7: 面積 | I7: 0 | M7: 0.31 | N7: 0.31 | O7: =SUM(N7,I7) -> 0.31
B8: 蓄積 | I8: 0 | L8: 0 | M8: 0 | N8: 0 | O8: =SUM(N8,I8) -> 0
B9: 成長 | I9: 0 | L9: 0 | M9: 0 | N9: 0 | O9: 0
A10: 2 | B10: 面積 | I10: 0 | L10: 1.86 | M10: 0.1 | N10: 1.96 | O10: 1.96
B11: 蓄積 | I11: 0 | L11: 20 | M11: 1 | N11: 21 | O11: 21
B12: 成長 | I12: 0 | L12: 2.1 | M12: 0.1 | N12: 2.2 | O12: 2.2
A13: 3 | B13: 面積 | I13: 0 | M13: 2.01 | N13: 2.01 | O13: 2.01
B14: 蓄積 | D14: 41 | I14: 41 | M14: 50 | N14: 50 | O14: 91
B15: 成長 | D15: 7.9 | I15: 7.9 | M15: 4.4 | N15: 4.4 | O15: 12.3
A16: 4 | B16: 面積 | D16: 1.21 | E16: 0.11 | H16: 0.4 | I16: 1.72 | L16: 0.81 | M16: 1.46 | N16: 2.27 | O16: 3.99
B17: 蓄積 | D17: 259 | E17: 7 | G17: 72 | H17: 13 | I17: 351 | L17: 23 | M17: 51 | N17: 74 | O17: 425
B18: 成長 | D18: 24 | E18: 0.6 | G18: 4.2 | H18: 1.1 | I18: 29.9 | L18: 1.5 | M18: 3.5 | N18: 5 | O18: 34.9
A19: 5 | B19: 面積 | D19: 6.52 | G19: 7.65 | I19: 14.17 | L19: 0.45 | M19: 2.82 | N19: 3.27 | O19: 17.44
B20: 蓄積 | D20: 921 | G20: 669 | I20: 1590 | K20: 1 | L20: 17 | M20: 119 | N20: 137 | O20: 1727
B21: 成長 | D21: 53.7 | G21: 34.8 | I21: 88.5 | K21: 0.1 | L21: 0.8 | M21: 6.2 | N21: 7.1 | O21: 95.6
A22: 6 | B22: 面積 | D22: 10.32 | F22: 0.18 | G22: 5.72 | I22: 16.22 | M22: 16.43 | N22: 16.43 | O22: 32.65
B23: 蓄積 | D23: 2475 | F23: 18 | G23: 648 | I23: 3141 | M23: 854 | N23: 854 | O23: 3995
B24: 成長 | D24: 107.2 | F24: 0.7 | G24: 16.2 | I24: 124.1 | M24: 34.7 | N24: 34.7 | O24: 158.8
A25: 7 | B25: 面積 | C25: 0.8 | D25: 31 | F25: 18.21 | G25: 7.95 | I25: 57.96 | L25: 0.18 | M25: 15.16 | N25: 15.34 | O25: 73.3
B26: 蓄積 | C26: 163 | D26: 8637 | F26: 1440 | G26: 1008 | I26: 11248 | L26: 11 | M26: 933 | N26: 944 | O26: 12192
B27: 成長 | C27: 4.2 | D27: 284.1 | F27: 45.6 | G27: 23.2 | I27: 357.1 | L27: 0.4 | M27: 29 | N27: 29.4 | O27: 386.5
A28: 8 | B28: 面積 | C28: 1.97 | D28: 13.4 | F28: 1.65 | G28: 0.09 | I28: 17.11 | M28: 7.77 | N28: 7.77 | O28: 24.88
B29: 蓄積 | C29: 320 | D29: 3269 | F29: 251 | G29: 18 | I29: 3858 | M29: 556 | N29: 556 | O29: 4414
B30: 成長 | C30: 7.6 | D30: 85.8 | F30: 6.2 | G30: 0.4 | I30: 100 | M30: 16.7 | N30: 16.7 | O30: 116.7
A31: 9 | B31: 面積 | C31: 0.63 | D31: 48.44 | F31: 12.98 | G31: 14.58 | H31: 0.03 | I31: 76.66 | J31: 0.19 | L31: 0.07 | M31: 22.94 | N31: 23.2 | O31: 99.86
B32: 蓄積 | C32: 183 | D32: 10676 | F32: 2398 | G32: 2566 | H32: 3 | I32: 15826 | J32: 17 | L32: 6 | M32: 1863 | N32: 1886 | O32: 17712
B33: 成長 | C33: 3.1 | D33: 230.1 | F33: 37 | G33: 50.3 | H33: 0.1 | I33: 320.6 | J33: 0 | L33: 0.2 | M33: 52.5 | N33: 52.7 | O33: 373.3
A34: 10 | B34: 面積 | C34: 1.06 | D34: 58.25 | F34: 47.12 | G34: 75.92 | H34: 0.7 | I34: 183.05 | M34: 28.64 | N34: 28.64 | O34: 211.69
B35: 蓄積 | C35: 325 | D35: 12871 | F35: 9371 | G35: 13350 | H35: 96 | I35: 36013 | M35: 2614 | N35: 2614 | O35: 38627
B36: 成長 | C36: 4.5 | D36: 235.1 | F36: 125.2 | G36: 212.5 | H36: 2.8 | I36: 580.1 | M36: 65.8 | N36: 65.8 | O36: 645.9
A37: 11 | B37: 面積 | C37: 4.12 | D37: 55.49 | F37: 141.38 | G37: 38.99 | H37: 0.05 | I37: 240.03 | L37: 2.04 | M37: 50.08 | N37: 52.12 | O37: 292.15
B38: 蓄積 | C38: 1323 | D38: 13183 | F38: 30550 | G38: 10119 | H38: 7 | I38: 55182 | L38: 211 | M38: 4801 | N38: 5012 | O38: 60194 | P38: 伐 跡 | R38: 0.33
B39: 成長 | C39: 18.2 | D39: 213 | F39: 339.6 | G39: 142 | H39: 0.1 | I39: 712.9 | L39: 4.3 | M39: 93.8 | N39: 98.1 | O39: 811 | P39: 未立木地 | R39: 30.31
A40: 12 | B40: 面積 | C40: 6.5 | D40: 30.99 | E40: 0.54 | F40: 278.56 | G40: 105.69 | H40: 0.3 | I40: 422.58 | L40: 0.1 | M40: 22.44 | N40: 22.54 | O40: 445.12 | P40: 岩石地 | R40: 3.91
B41: 蓄積 | C41: 2244 | D41: 8087 | E41: 148 | F41: 63896 | G41: 29091 | H41: 50 | I41: 103516 | L41: 11 | M41: 2184 | N41: 2195 | O41: 105711 | P41: 崩壊地 | R41: 5.05
B42: 成長 | C42: 29.2 | D42: 113.5 | E42: 2 | F42: 581.8 | G42: 374.5 | H42: 0.9 | I42: 1101.9 | L42: 0.2 | M42: 41.9 | N42: 42.1 | O42: 1144 | P42: はげ山 | R42: 0.68
A43: 13 | B43: 面積 | C43: 10.41 | D43: 36.37 | E43: 0.17 | F43: 323.27 | G43: 456.51 | H43: 0.43 | I43: 827.16 | L43: 1.13 | M43: 42.08 | N43: 43.21 | O43: 870.37 | P43: 施設敷 | R43: 11.24
B44: 蓄積 | C44: 3640 | D44: 9155 | E44: 46 | F44: 75452 | G44: 128197 | H44: 81 | I44: 216571 | L44: 130 | M44: 4491 | N44: 4621 | O44: 221192 | P44: 林地開発
B45: 成長 | C45: 43.9 | D45: 123.5 | E45: 0.6 | F45: 670.2 | G45: 1568.4 | H45: 1.3 | I45: 2407.9 | L45: 2.2 | M45: 72.8 | N45: 75 | O45: 2482.9 | P45: 計 | R45: =SUM(R38:R44) -> 51.52
A46: 14 | B46: 面積 | C46: 16.65 | D46: 52.24 | E46: 0.38 | F46: 298.78 | G46: 673.76 | H46: 1.52 | I46: 1043.33 | J46: 0.49 | L46: 1.2 | M46: 117.74 | N46: 119.43 | O46: 1162.76 | P46: 竹 林 | R46: 0.66
B47: 蓄積 | C47: 6123 | D47: 12560 | E47: 103 | F47: 69549 | G47: 194584 | H47: 286 | I47: 283205 | J47: 44 | L47: 146 | M47: 12932 | N47: 13122 | O47: 296327 | P47: 更新 困難地 | Q47: 面積
B48: 成長 | C48: 61.7 | D48: 154.4 | E48: 1.3 | F48: 568.1 | G48: 2088 | H48: 4.5 | I48: 2878 | J48: 0 | L48: 1.6 | M48: 146.7 | N48: 148.3 | O48: 3026.3 | Q48: 蓄積
A49: 15 以上 | B49: 面積 | C49: 37.73 | D49: 101.43 | E49: 6.54 | F49: 553.04 | G49: 700.68 | H49: 9.46 | I49: 1408.88 | J49: 3.6 | L49: 2.59 | M49: 646.96 | N49: 653.15 | O49: 2062.03 | Q49: 成長
B50: 蓄積 | C50: 14857 | D50: 25192 | E50: 2032 | F50: 140030 | G50: 205873 | H50: 2095 | I50: 390079 | J50: 324 | L50: 341 | M50: 77341 | N50: 78006 | O50: 468085
B51: 成長 | C51: 50.5 | D51: 175.5 | E51: 4.3 | F51: 773.1 | G51: 1510.6 | H51: 19 | I51: 2533 | J51: 0 | L51: 1.8 | M51: 465.7 | N51: 467.5 | O51: 3000.5 | P51: 総 合 計
A52: 計 | B52: 面積 | C52: =SUM(C7,C10,C13,C16,C19,C22,C25,C28,C31,C34,C37,C40,C43,C46,C49) -> 79.87 | D52: 445.66 | E52: 7.74 | F52: 1675.17 | G52: 2087.54 | H52: 12.89 | I52: =SUM(C52:H52) -> 4308.87 | J52: =SUM(J7,J10,J13,J16,J19,J22,J25,J28,J31,J34,J37,J40,J43,J46,J49) -> 4.28 | K52: =SUM(K7,K10,K13,K16,K19,K22,K25,K28,K31,K34,K37,K40,K43,K46,K49) -> 0 | L52: =SUM(L7,L10,L13,L16,L19,L22,L25,L28,L31,L34,L37,L40,L43,L46,L49) -> 10.43 | M52: =SUM(M7,M10,M13,M16,M19,M22,M25,M28,M31,M34,M37,M40,M43,M46,M49) -> 976.94 | N52: =SUM(J52:M52) -> 991.65 | O52: 5300.52 | P52: 面 積 | R52: =SUM(O52,R45,R47,R46) -> 5352.7
B53: 蓄積 | C53: 29178 | D53: 107326 | E53: 2336 | F53: 392955 | G53: 586195 | H53: 2631 | I53: =SUM(C53:H53) -> 1120621 | J53: =SUM(J8,J11,J14,J17,J20,J23,J26,J29,J32,J35,J38,J41,J44,J47,J50) -> 385 | K53: 1 | L53: 916 | M53: 108790 | N53: =SUM(J53:M53) -> 110092 | O53: 1230713 | P53: 蓄積 | R53: =O53+R48 -> 1230713
B54: 成長 | C54: 222.9 | D54: 1807.8 | E54: 8.8 | F54: 3147.5 | G54: 6025.1 | H54: 29.8 | I54: =SUM(C54:H54) -> 11241.9 | J54: 0 | K54: 0.1 | L54: 15.1 | M54: 1033.8 | N54: =SUM(J54:M54) -> 1049 | O54: 12290.9 | P54: 成長量 | R54: =O54+R49 -> 12290.9

Sheet 飯島町
A1: 第11表 市町村別・資源構成表 （伊那谷）
A3: =MID(CELL("filename",$A$1),FIND("]",CELL("filename",$A$1))+1,31) -> 飯島町 | O3: 単位 面積 : ha、蓄積 成長量 : ㎥
B4: 樹種 | C4: 針 葉 樹 | J4: 広 葉 樹 | O4: 計
C5: ス ギ | D5: ヒ ノ キ | E5: サ ワ ラ | F5: ア カ マ ツ | G5: カ ラ マ ツ | H5: そ の 他 針 | I5: 小 計 | J5: ク ヌ ギ | K5: ブ ナ | L5: ナ ラ | M5: そ の 他 広 | N5: 小 計
A6: 齢級
A7: 1 | B7: 面積 | D7: 0.07 | I7: 0.07 | L7: 0.07 | M7: 0.02 | N7: 0.09 | O7: =SUM(N7,I7) -> 0.16
B8: 蓄積 | D8: 0 | I8: 0 | L8: 0 | M8: 0 | N8: 0 | O8: =SUM(N8,I8) -> 0
B9: 成長 | D9: 0 | I9: 0 | L9: 0 | M9: 0 | N9: 0 | O9: 0
A10: 2 | B10: 面積 | C10: 0.31 | D10: 3.21 | I10: 3.52 | M10: 0.78 | N10: 0.78 | O10: 4.3
B11: 蓄積 | C11: 0 | D11: 0 | I11: 0 | M11: 7 | N11: 7 | O11: 7
B12: 成長 | C12: 0 | D12: 0 | I12: 0 | M12: 1 | N12: 1 | O12: 1
A13: 3 | B13: 面積 | D13: 9.83 | I13: 9.83 | M13: 1.79 | N13: 1.79 | O13: 11.62
B14: 蓄積 | D14: 362 | I14: 362 | M14: 43 | N14: 43 | O14: 405
B15: 成長 | D15: 69.6 | I15: 69.6 | M15: 3.6 | N15: 3.6 | O15: 73.2
A16: 4 | B16: 面積 | D16: 13.07 | F16: 0.52 | I16: 13.59 | L16: 3.05 | M16: 1.9 | N16: 4.95 | O16: 18.54
B17: 蓄積 | D17: 1028 | F17: 45 | I17: 1073 | L17: 85 | M17: 56 | N17: 141 | O17: 1214
B18: 成長 | D18: 93.7 | F18: 3.7 | I18: 97.4 | L18: 6 | M18: 3.7 | N18: 9.7 | O18: 107.1
A19: 5 | B19: 面積 | D19: 11.75 | F19: 0.54 | I19: 12.29 | M19: 4.04 | N19: 4.04 | O19: 16.33
B20: 蓄積 | D20: 1256 | F20: 49 | I20: 1305 | M20: 171 | N20: 171 | O20: 1476
B21: 成長 | D21: 73 | F21: 2.5 | I21: 75.5 | M21: 9 | N21: 9 | O21: 84.5
A22: 6 | B22: 面積 | C22: 0.18 | D22: 16.02 | F22: 0.68 | G22: 5.73 | I22: 22.61 | M22: 5.8 | N22: 5.8 | O22: 28.41
B23: 蓄積 | C23: 34 | D23: 2444 | F23: 88 | G23: 318 | I23: 2884 | M23: 285 | N23: 285 | O23: 3169
B24: 成長 | C24: 1.2 | D24: 105 | F24: 3.3 | G24: 8 | I24: 117.5 | M24: 11.6 | N24: 11.6 | O24: 129.1
A25: 7 | B25: 面積 | C25: 0.02 | D25: 28.56 | F25: 0.49 | I25: 29.07 | M25: 4.94 | N25: 4.94 | O25: 34.01
B26: 蓄積 | C26: 5 | D26: 5597 | F26: 83 | I26: 5685 | M26: 315 | N26: 315 | O26: 6000
B27: 成長 | C27: 0.1 | D27: 182.9 | F27: 2 | I27: 185 | M27: 9.8 | N27: 9.8 | O27: 194.8
A28: 8 | B28: 面積 | C28: 0.56 | D28: 37.06 | F28: 0.33 | G28: 4.58 | I28: 42.53 | M28: 11.6 | N28: 11.6 | O28: 54.13
B29: 蓄積 | C29: 141 | D29: 6928 | F29: 58 | G29: 953 | I29: 8080 | M29: 751 | N29: 751 | O29: 8831
B30: 成長 | C30: 3.2 | D30: 181.4 | F30: 1.2 | G30: 20 | I30: 205.8 | M30: 22.7 | N30: 22.7 | O30: 228.5
A31: 9 | B31: 面積 | C31: 0.97 | D31: 87.97 | F31: 1.85 | H31: 18.16 | I31: 108.95 | L31: 0.13 | M31: 3.41 | N31: 3.54 | O31: 112.49
B32: 蓄積 | C32: 259 | D32: 18162 | F32: 374 | H32: 2143 | I32: 20938 | L32: 11 | M32: 254 | N32: 265 | O32: 21203
B33: 成長 | C33: 4.5 | D33: 382.4 | F33: 5.6 | H33: 64.3 | I33: 456.8 | L33: 0.3 | M33: 7.1 | N33: 7.4 | O33: 464.2
A34: 10 | B34: 面積 | C34: 2.93 | D34: 172.43 | F34: 5.07 | G34: 1.32 | I34: 181.75 | L34: 0.29 | M34: 11.21 | N34: 11.5 | O34: 193.25
B35: 蓄積 | C35: 895 | D35: 38535 | F35: 1053 | G35: 326 | I35: 40809 | L35: 28 | M35: 978 | N35: 1006 | O35: 41815
B36: 成長 | C36: 12.4 | D36: 702.9 | F36: 13.8 | G36: 4.9 | I36: 734 | L36: 0.7 | M36: 24.8 | N36: 25.5 | O36: 759.5
A37: 11 | B37: 面積 | C37: 3.44 | D37: 123.44 | F37: 40.69 | G37: 70.16 | I37: 237.73 | M37: 6.52 | N37: 6.52 | O37: 244.25
B38: 蓄積 | C38: 1102 | D38: 30039 | F38: 9056 | G38: 14770 | I38: 54967 | M38: 660 | N38: 660 | O38: 55627 | P38: 伐 跡 | R38: 1.01
B39: 成長 | C39: 15.2 | D39: 482.8 | F39: 99.6 | G39: 206.7 | I39: 804.3 | M39: 13.1 | N39: 13.1 | O39: 817.4 | P39: 未立木地 | R39: 13.83
A40: 12 | B40: 面積 | C40: 7.05 | D40: 31.03 | F40: 78.46 | G40: 84.75 | I40: 201.29 | J40: 0.63 | L40: 0.24 | M40: 23.78 | N40: 24.65 | O40: 225.94 | P40: 岩石地 | R40: 6.72
B41: 蓄積 | C41: 2445 | D41: 8152 | F41: 17878 | G41: 22218 | I41: 50693 | J41: 56 | L41: 26 | M41: 2232 | N41: 2314 | O41: 53007 | P41: 崩壊地 | R41: 73.09
B42: 成長 | C42: 31.7 | D42: 114.7 | F42: 162.9 | G42: 283.3 | I42: 592.6 | J42: 0 | L42: 0.5 | M42: 42 | N42: 42.5 | O42: 635.1 | P42: はげ山
A43: 13 | B43: 面積 | C43: 27.4 | D43: 26.4 | F43: 155.71 | G43: 147.79 | H43: 5.66 | I43: 362.96 | J43: 0.33 | L43: 3.73 | M43: 57.17 | N43: 61.23 | O43: 424.19 | P43: 施設敷 | R43: 3.75
B44: 蓄積 | C44: 9785 | D44: 7267 | F44: 36247 | G44: 38591 | H44: 979 | I44: 92869 | J44: 30 | L44: 430 | M44: 6272 | N44: 6732 | O44: 99601 | P44: 林地開発 | R44: 0.61
B45: 成長 | C45: 120.9 | D45: 98.4 | F45: 326.4 | G45: 478.8 | H45: 18.6 | I45: 1043.1 | J45: 0 | L45: 7.1 | M45: 101.3 | N45: 108.4 | O45: 1151.5 | P45: 計 | R45: =SUM(R38:R44) -> 99.01
A46: 14 | B46: 面積 | C46: 39.74 | D46: 36.02 | E46: 0.29 | F46: 142.12 | G46: 98.22 | H46: 0.43 | I46: 316.82 | J46: 1.61 | L46: 4.09 | M46: 168.55 | N46: 174.25 | O46: 491.07 | P46: 竹 林 | R46: 35.46
B47: 蓄積 | C47: 14654 | D47: 10149 | E47: 88 | F47: 34225 | G47: 28646 | H47: 64 | I47: 87826 | J47: 146 | L47: 500 | M47: 18823 | N47: 19469 | O47: 107295 | P47: 更新 困難地 | Q47: 面積
B48: 成長 | C48: 147.6 | D48: 120.3 | E48: 1 | F48: 274.6 | G48: 309.4 | H48: 1.1 | I48: 854 | J48: 0 | L48: 5.5 | M48: 221.8 | N48: 227.3 | O48: 1081.3 | Q48: 蓄積
A49: 15 以上 | B49: 面積 | C49: 35.41 | D49: 131.44 | E49: 1.36 | F49: 308.05 | G49: 157.77 | H49: 39.75 | I49: 673.78 | J49: 3.77 | K49: 7.88 | L49: 1.95 | M49: 584.28 | N49: 597.88 | O49: 1271.66 | Q49: 成長
B50: 蓄積 | C50: 13711 | D50: 40515 | E50: 404 | F50: 81205 | G50: 47991 | H50: 10224 | I50: 194050 | J50: 339 | K50: 1095 | L50: 254 | M50: 71273 | N50: 72961 | O50: 267011
B51: 成長 | C51: 68 | D51: 65.4 | E51: 0.6 | F51: 400 | G51: 376 | H51: 32.4 | I51: 942.4 | J51: 0 | K51: 0 | L51: 2.2 | M51: 296 | N51: 298.2 | O51: 1240.6 | P51: 総 合 計
A52: 計 | B52: 面積 | C52: =SUM(C7,C10,C13,C16,C19,C22,C25,C28,C31,C34,C37,C40,C43,C46,C49) -> 118.01 | D52: 728.3 | E52: 1.65 | F52: 734.51 | G52: 570.32 | H52: 64 | I52: =SUM(C52:H52) -> 2216.79 | J52: =SUM(J7,J10,J13,J16,J19,J22,J25,J28,J31,J34,J37,J40,J43,J46,J49) -> 6.34 | K52: =SUM(K7,K10,K13,K16,K19,K22,K25,K28,K31,K34,K37,K40,K43,K46,K49) -> 7.88 | L52: =SUM(L7,L10,L13,L16,L19,L22,L25,L28,L31,L34,L37,L40,L43,L46,L49) -> 13.55 | M52: =SUM(M7,M10,M13,M16,M19,M22,M25,M28,M31,M34,M37,M40,M43,M46,M49) -> 885.79 | N52: =SUM(J52:M52) -> 913.56 | O52: 3130.35 | P52: 面 積 | R52: =SUM(O52,R45,R47,R46) -> 3264.82
B53: 蓄積 | C53: 43031 | D53: 170434 | E53: 492 | F53: 180361 | G53: 153813 | H53: 13410 | I53: =SUM(C53:H53) -> 561541 | J53: =SUM(J8,J11,J14,J17,J20,J23,J26,J29,J32,J35,J38,J41,J44,J47,J50) -> 571 | K53: 1095 | L53: 1334 | M53: 102120 | N53: =SUM(J53:M53) -> 105120 | O53: 666661 | P53: 蓄積 | R53: =O53+R48 -> 666661
B54: 成長 | C54: 404.8 | D54: 2672.5 | E54: 1.6 | F54: 1295.6 | G54: 1687.1 | H54: 116.4 | I54: =SUM(C54:H54) -> 6178 | J54: 0 | K54: 0 | L54: 22.3 | M54: 767.5 | N54: =SUM(J54:M54) -> 789.8 | O54: 6967.8 | P54: 成長量 | R54: =O54+R49 -> 6967.8

Sheet 南箕輪村
A1: 第11表 市町村別・資源構成表 （伊那谷）
A3: =MID(CELL("filename",$A$1),FIND("]",CELL("filename",$A$1))+1,31) -> 南箕輪村 | O3: 単位 面積 : ha、蓄積 成長量 : ㎥
B4: 樹種 | C4: 針 葉 樹 | J4: 広 葉 樹 | O4: 計
C5: ス ギ | D5: ヒ ノ キ | E5: サ ワ ラ | F5: ア カ マ ツ | G5: カ ラ マ ツ | H5: そ の 他 針 | I5: 小 計 | J5: ク ヌ ギ | K5: ブ ナ | L5: ナ ラ | M5: そ の 他 広 | N5: 小 計
A6: 齢級
A7: 1 | B7: 面積 | D7: 0.31 | I7: 0.31 | L7: 0.06 | N7: 0.06 | O7: =SUM(N7,I7) -> 0.37
B8: 蓄積 | D8: 0 | I8: 0 | L8: 0 | N8: 0 | O8: =SUM(N8,I8) -> 0
B9: 成長 | D9: 0 | I9: 0 | L9: 0 | N9: 0 | O9: 0
A10: 2 | B10: 面積 | D10: 0.26 | I10: 0.26 | N10: 0 | O10: 0.26
B11: 蓄積 | D11: 0 | G11: 0 | I11: 0 | J11: 8 | M11: 5 | N11: 13 | O11: 13
B12: 成長 | D12: 0 | G12: 0 | I12: 0 | J12: 1.9 | M12: 0.7 | N12: 2.6 | O12: 2.6
A13: 3 | B13: 面積 | I13: 0 | M13: 0.3 | N13: 0.3 | O13: 0.3
B14: 蓄積 | D14: 12 | G14: 5 | I14: 17 | M14: 5 | N14: 5 | O14: 22
B15: 成長 | D15: 2.3 | G15: 0.5 | I15: 2.8 | M15: 0.5 | N15: 0.5 | O15: 3.3
A16: 4 | B16: 面積 | D16: 0.22 | I16: 0.22 | M16: 1 | N16: 1 | O16: 1.22
B17: 蓄積 | D17: 18 | I17: 18 | M17: 32 | N17: 32 | O17: 50
B18: 成長 | D18: 1.6 | I18: 1.6 | M18: 2.2 | N18: 2.2 | O18: 3.8
A19: 5 | B19: 面積 | D19: 3.54 | H19: 0.3 | I19: 3.84 | N19: 0 | O19: 3.84
B20: 蓄積 | D20: 353 | H20: 12 | I20: 365 | N20: 0 | O20: 365
B21: 成長 | D21: 20.5 | H21: 0.8 | I21: 21.3 | N21: 0 | O21: 21.3
A22: 6 | B22: 面積 | D22: 0.39 | I22: 0.39 | M22: 0.15 | N22: 0.15 | O22: 0.54
B23: 蓄積 | D23: 67 | I23: 67 | M23: 8 | N23: 8 | O23: 75
B24: 成長 | D24: 2.9 | I24: 2.9 | M24: 0.3 | N24: 0.3 | O24: 3.2
A25: 7 | B25: 面積 | D25: 1.76 | I25: 1.76 | M25: 0.07 | N25: 0.07 | O25: 1.83
B26: 蓄積 | D26: 4391 | I26: 4391 | M26: 5 | N26: 5 | O26: 4396
B27: 成長 | D27: 140.6 | I27: 140.6 | M27: 0.1 | N27: 0.1 | O27: 140.7
A28: 8 | B28: 面積 | D28: 2.49 | F28: 0.63 | I28: 3.12 | M28: 0.59 | N28: 0.59 | O28: 3.71
B29: 蓄積 | D29: 486 | F29: 112 | I29: 598 | M29: 43 | N29: 43 | O29: 641
B30: 成長 | D30: 12.7 | F30: 2.2 | I30: 14.9 | M30: 1.3 | N30: 1.3 | O30: 16.2
A31: 9 | B31: 面積 | D31: 0.84 | F31: 4.03 | G31: 0.04 | H31: 2.74 | I31: 7.65 | J31: 0.08 | M31: 1.69 | N31: 1.77 | O31: 9.42
B32: 蓄積 | D32: 1139 | F32: 779 | G32: 9 | H32: 280 | I32: 2207 | J32: 7 | M32: 133 | N32: 140 | O32: 2347
B33: 成長 | D33: 24 | F33: 11.7 | G33: 0.2 | H33: 8.9 | I33: 44.8 | J33: 0 | M33: 3.8 | N33: 3.8 | O33: 48.6
A34: 10 | B34: 面積 | D34: 5.67 | F34: 1 | G34: 0.17 | H34: 16.57 | I34: 23.41 | M34: 0.26 | N34: 0.26 | O34: 23.67
B35: 蓄積 | D35: 2210 | F35: 210 | G35: 43 | H35: 2088 | I35: 4551 | M35: 22 | N35: 22 | O35: 4573
B36: 成長 | D36: 39.7 | F36: 2.7 | G36: 0.6 | H36: 62.7 | I36: 105.7 | M36: 0.6 | N36: 0.6 | O36: 106.3
A37: 11 | B37: 面積 | D37: 1.1 | F37: 2.01 | G37: 66.11 | I37: 69.22 | M37: 3.16 | N37: 3.16 | O37: 72.38
B38: 蓄積 | D38: 1112 | F38: 486 | G38: 15828 | I38: 17426 | M38: 284 | N38: 284 | O38: 17710 | P38: 伐 跡 | R38: 0.6
B39: 成長 | D39: 17.7 | F39: 5.4 | G39: 221.8 | I39: 244.9 | M39: 5.5 | N39: 5.5 | O39: 250.4 | P39: 未立木地 | R39: 9.85
A40: 12 | B40: 面積 | C40: 1.11 | D40: 1.69 | E40: 0.06 | F40: 51.4 | G40: 370 | H40: 5.71 | I40: 429.97 | J40: 0.08 | M40: 16.38 | N40: 16.46 | O40: 446.43 | P40: 岩石地 | R40: 0.12
B41: 蓄積 | C41: 354 | D41: 713 | E41: 16 | F41: 11371 | G41: 86289 | H41: 776 | I41: 99519 | J41: 7 | M41: 1478 | N41: 1485 | O41: 101004 | P41: 崩壊地 | R41: 24.85
B42: 成長 | C42: 4.3 | D42: 10 | E42: 0.2 | F42: 102 | G42: 1092.1 | H42: 15.6 | I42: 1224.2 | J42: 0 | M42: 28 | N42: 28 | O42: 1252.2 | P42: はげ山
A43: 13 | B43: 面積 | C43: 1.73 | D43: 1.38 | F43: 42.28 | G43: 299.35 | H43: 4.84 | I43: 349.58 | J43: 0.11 | M43: 18.07 | N43: 18.18 | O43: 367.76 | P43: 施設敷 | R43: 2.58
B44: 蓄積 | C44: 589 | D44: 1828 | F44: 9110 | G44: 67635 | H44: 659 | I44: 79821 | J44: 10 | M44: 1848 | N44: 1858 | O44: 81679 | P44: 林地開発
B45: 成長 | C45: 6.6 | D45: 25.6 | F45: 85.3 | G45: 832.1 | H45: 13.1 | I45: 962.7 | J45: 0 | M45: 29.4 | N45: 29.4 | O45: 992.1 | P45: 計 | R45: =SUM(R38:R44) -> 38
A46: 14 | B46: 面積 | C46: 1.68 | D46: 7.73 | F46: 35.73 | G46: 329.31 | H46: 17.11 | I46: 391.56 | M46: 43.16 | N46: 43.16 | O46: 434.72 | P46: 竹 林 | R46: 0.84
B47: 蓄積 | C47: 626 | D47: 2289 | F47: 8124 | G47: 79897 | H47: 2529 | I47: 93465 | M47: 4186 | N47: 4186 | O47: 97651 | P47: 更新 困難地 | Q47: 面積
B48: 成長 | C48: 6.2 | D48: 26 | F48: 64.1 | G48: 876.4 | H48: 41.4 | I48: 1014.1 | M48: 51.8 | N48: 51.8 | O48: 1065.9 | Q48: 蓄積
A49: 15 以上 | B49: 面積 | C49: 4.47 | D49: 35.82 | E49: 1.71 | F49: 109.27 | G49: 311.08 | H49: 12.17 | I49: 474.52 | J49: 1.56 | L49: 0.13 | M49: 335.93 | N49: 337.62 | O49: 812.14 | Q49: 成長
B50: 蓄積 | C50: 1785 | D50: 21011 | E50: 535 | F50: 29585 | G50: 90017 | H50: 2205 | I50: 145138 | J50: 141 | L50: 17 | M50: 38510 | N50: 38668 | O50: 183806
B51: 成長 | C51: 5.6 | D51: 56.4 | E51: 0.9 | F51: 145.3 | G51: 722.9 | H51: 20.2 | I51: 951.3 | J51: 0 | L51: 0.1 | M51: 143.8 | N51: 143.9 | O51: 1095.2 | P51: 総 合 計
A52: 計 | B52: 面積 | C52: =SUM(C7,C10,C13,C16,C19,C22,C25,C28,C31,C34,C37,C40,C43,C46,C49) -> 8.99 | D52: 63.2 | E52: 1.77 | F52: 246.35 | G52: 1376.06 | H52: 59.44 | I52: =SUM(C52:H52) -> 1755.81 | J52: =SUM(J7,J10,J13,J16,J19,J22,J25,J28,J31,J34,J37,J40,J43,J46,J49) -> 1.83 | K52: =SUM(K7,K10,K13,K16,K19,K22,K25,K28,K31,K34,K37,K40,K43,K46,K49) -> 0 | L52: =SUM(L7,L10,L13,L16,L19,L22,L25,L28,L31,L34,L37,L40,L43,L46,L49) -> 0.19 | M52: =SUM(M7,M10,M13,M16,M19,M22,M25,M28,M31,M34,M37,M40,M43,M46,M49) -> 420.76 | N52: =SUM(J52:M52) -> 422.78 | O52: 2178.59 | P52: 面 積 | R52: =SUM(O52,R45,R47,R46) -> 2217.43
B53: 蓄積 | C53: 3354 | D53: 35629 | E53: 551 | F53: 59777 | G53: 339723 | H53: 8549 | I53: =SUM(C53:H53) -> 447583 | J53: =SUM(J8,J11,J14,J17,J20,J23,J26,J29,J32,J35,J38,J41,J44,J47,J50) -> 173 | K53: 0 | L53: 17 | M53: 46559 | N53: =SUM(J53:M53) -> 46749 | O53: 494332 | P53: 蓄積 | R53: =O53+R48 -> 494332
B54: 成長 | C54: 22.7 | D54: 380 | E54: 1.1 | F54: 418.7 | G54: 3746.6 | H54: 162.7 | I54: =SUM(C54:H54) -> 4731.8 | J54: 1.9 | K54: 0 | L54: 0.1 | M54: 268 | N54: =SUM(J54:M54) -> 270 | O54: 5001.8 | P54: 成長量 | R54: =O54+R49 -> 5001.8

Sheet 中川村
A1: 第11表 市町村別・資源構成表 （伊那谷）
A3: =MID(CELL("filename",$A$1),FIND("]",CELL("filename",$A$1))+1,31) -> 中川村 | O3: 単位 面積 : ha、蓄積 成長量 : ㎥
B4: 樹種 | C4: 針 葉 樹 | J4: 広 葉 樹 | O4: 計
C5: ス ギ | D5: ヒ ノ キ | E5: サ ワ ラ | F5: ア カ マ ツ | G5: カ ラ マ ツ | H5: そ の 他 針 | I5: 小 計 | J5: ク ヌ ギ | K5: ブ ナ | L5: ナ ラ | M5: そ の 他 広 | N5: 小 計
A6: 齢級
A7: 1 | B7: 面積 | G7: 5.78 | I7: 5.78 | M7: 0.37 | N7: 0.37 | O7: =SUM(N7,I7) -> 6.15
B8: 蓄積 | G8: 0 | I8: 0 | M8: 0 | N8: 0 | O8: =SUM(N8,I8) -> 0
B9: 成長 | G9: 0 | I9: 0 | M9: 0 | N9: 0 | O9: 0
A10: 2 | B10: 面積 | I10: 0 | M10: 0.47 | N10: 0.47 | O10: 0.47
B11: 蓄積 | I11: 0 | M11: 4 | N11: 4 | O11: 4
B12: 成長 | I12: 0 | M12: 0.5 | N12: 0.5 | O12: 0.5
A13: 3 | B13: 面積 | D13: 1.82 | G13: 8.47 | I13: 10.29 | M13: 0.41 | N13: 0.41 | O13: 10.7
B14: 蓄積 | D14: 100 | G14: 644 | I14: 744 | M14: 8 | N14: 8 | O14: 752
B15: 成長 | D15: 19.2 | G15: 59.4 | I15: 78.6 | M15: 0.7 | N15: 0.7 | O15: 79.3
A16: 4 | B16: 面積 | D16: 54.32 | F16: 0.14 | I16: 54.46 | K16: 0.61 | L16: 13.01 | M16: 8.69 | N16: 22.31 | O16: 76.77
B17: 蓄積 | D17: 4395 | F17: 2 | I17: 4397 | K17: 10 | L17: 405 | M17: 258 | N17: 673 | O17: 5070
B18: 成長 | D18: 401.5 | F18: 0.2 | I18: 401.7 | K18: 0.9 | L18: 26.7 | M18: 17.6 | N18: 45.2 | O18: 446.9
A19: 5 | B19: 面積 | D19: 53.1 | F19: 0.36 | G19: 18.79 | I19: 72.25 | M19: 1.86 | N19: 1.86 | O19: 74.11
B20: 蓄積 | D20: 5319 | F20: 16 | G20: 2569 | H20: 789 | I20: 8693 | M20: 79 | N20: 79 | O20: 8772
B21: 成長 | D21: 309.7 | F21: 0.9 | G21: 118.3 | H21: 53.6 | I21: 482.5 | M21: 4.2 | N21: 4.2 | O21: 486.7
A22: 6 | B22: 面積 | D22: 79.62 | G22: 32.6 | I22: 112.22 | M22: 1.77 | N22: 1.77 | O22: 113.99
B23: 蓄積 | D23: 14030 | G23: 4679 | I23: 18709 | M23: 79 | N23: 79 | O23: 18788
B24: 成長 | D24: 604.3 | G24: 108.4 | I24: 712.7 | M24: 3.1 | N24: 3.1 | O24: 715.8
A25: 7 | B25: 面積 | D25: 48.75 | F25: 1.7 | G25: 3.83 | H25: 0.24 | I25: 54.52 | M25: 14.36 | N25: 14.36 | O25: 68.88
B26: 蓄積 | D26: 11106 | F26: 384 | G26: 1103 | H26: 21 | I26: 12614 | M26: 828 | N26: 828 | O26: 13442
B27: 成長 | D27: 360 | F27: 9.2 | G27: 24.4 | H27: 1 | I27: 394.6 | M27: 25.9 | N27: 25.9 | O27: 420.5
A28: 8 | B28: 面積 | C28: 0.48 | D28: 31.69 | F28: 0.72 | G28: 2 | H28: 0.64 | I28: 35.53 | M28: 52.88 | N28: 52.88 | O28: 88.41
B29: 蓄積 | C29: 98 | D29: 6973 | F29: 765 | G29: 412 | H29: 595 | I29: 8843 | M29: 3568 | N29: 3568 | O29: 12411
B30: 成長 | C30: 2.2 | D30: 181.5 | F30: 15.4 | G30: 8.7 | H30: 21.8 | I30: 229.6 | M30: 108.2 | N30: 108.2 | O30: 337.8
A31: 9 | B31: 面積 | C31: 2.52 | D31: 64.57 | F31: 2.7 | H31: 1.48 | I31: 71.27 | M31: 21.72 | N31: 21.72 | O31: 92.99
B32: 蓄積 | C32: 680 | D32: 13159 | F32: 536 | H32: 128 | I32: 14503 | M32: 1723 | N32: 1723 | O32: 16226
B33: 成長 | C33: 11.8 | D33: 278.6 | F33: 8 | H33: 4.3 | I33: 302.7 | M33: 49.1 | N33: 49.1 | O33: 351.8
A34: 10 | B34: 面積 | C34: 5.41 | D34: 146.29 | F34: 17.87 | G34: 0.78 | I34: 170.35 | M34: 68.54 | N34: 68.54 | O34: 238.89
B35: 蓄積 | C35: 1636 | D35: 33395 | F35: 3767 | G35: 196 | I35: 38994 | M35: 5699 | N35: 5699 | O35: 44693
B36: 成長 | C36: 23 | D36: 602.4 | F36: 48.8 | G36: 2.9 | I36: 677.1 | M36: 145.7 | N36: 145.7 | O36: 822.8
A37: 11 | B37: 面積 | C37: 7.82 | D37: 101.57 | F37: 59.38 | G37: 5.88 | I37: 174.65 | M37: 37.5 | N37: 37.5 | O37: 212.15
B38: 蓄積 | C38: 2521 | D38: 24773 | F38: 13217 | G38: 1541 | I38: 42052 | M38: 3625 | N38: 3625 | O38: 45677 | P38: 伐 跡 | R38: 5.54
B39: 成長 | C39: 34.5 | D39: 398.1 | F39: 145.7 | G39: 21.8 | I39: 600.1 | M39: 71.7 | N39: 71.7 | O39: 671.8 | P39: 未立木地 | R39: 30.95
A40: 12 | B40: 面積 | C40: 26.25 | D40: 24.87 | F40: 235.48 | G40: 82.58 | I40: 369.18 | M40: 79.05 | N40: 79.05 | O40: 448.23 | P40: 岩石地 | R40: 6.36
B41: 蓄積 | C41: 9087 | D41: 6563 | F41: 53842 | G41: 21982 | I41: 91474 | M41: 8159 | N41: 8159 | O41: 99633 | P41: 崩壊地 | R41: 77.47
B42: 成長 | C42: 118 | D42: 91.9 | F42: 485.9 | G42: 282.5 | I42: 978.3 | M42: 157.7 | N42: 157.7 | O42: 1136 | P42: はげ山
A43: 13 | B43: 面積 | C43: 44.52 | D43: 23.96 | F43: 278.28 | G43: 276.5 | I43: 623.26 | J43: 2.06 | M43: 196.36 | N43: 198.42 | O43: 821.68 | P43: 施設敷 | R43: 21.36
B44: 蓄積 | C44: 15668 | D44: 9180 | F44: 63298 | G44: 75446 | I44: 163592 | J44: 185 | M44: 22267 | N44: 22452 | O44: 186044 | P44: 林地開発 | R44: 7.13
B45: 成長 | C45: 194.1 | D45: 125.6 | F45: 564.4 | G45: 936.3 | I45: 1820.4 | J45: 0 | M45: 358.1 | N45: 358.1 | O45: 2178.5 | P45: 計 | R45: =SUM(R38:R44) -> 148.81
A46: 14 | B46: 面積 | C46: 70.93 | D46: 28.06 | F46: 247.63 | G46: 116.92 | I46: 463.54 | J46: 0.43 | M46: 294.49 | N46: 294.92 | O46: 758.46 | P46: 竹 林 | R46: 70.21
B47: 蓄積 | C47: 25490 | D47: 8063 | F47: 59635 | G47: 35201 | I47: 128389 | J47: 40 | M47: 35129 | N47: 35169 | O47: 163558 | P47: 更新 困難地 | Q47: 面積
B48: 成長 | C48: 253.9 | D48: 96.9 | F48: 484.1 | G48: 382.7 | I48: 1217.6 | J48: 0 | M48: 389.5 | N48: 389.5 | O48: 1607.1 | Q48: 蓄積
A49: 15 以上 | B49: 面積 | C49: 56.39 | D49: 87.32 | E49: 0.08 | F49: 433.82 | G49: 63.73 | H49: 0.06 | I49: 641.4 | J49: 3.61 | M49: 1091.03 | N49: 1094.64 | O49: 1736.04 | Q49: 成長
B50: 蓄積 | C50: 21343 | D50: 26656 | E50: 25 | F50: 113215 | G50: 19300 | H50: 14 | I50: 180553 | J50: 321 | M50: 138889 | N50: 139210 | O50: 319763
B51: 成長 | C51: 119.7 | D51: 112.9 | E51: 0 | F51: 623.1 | G51: 145.6 | H51: 0.1 | I51: 1001.4 | J51: 0 | M51: 920.8 | N51: 920.8 | O51: 1922.2 | P51: 総 合 計
A52: 計 | B52: 面積 | C52: =SUM(C7,C10,C13,C16,C19,C22,C25,C28,C31,C34,C37,C40,C43,C46,C49) -> 214.32 | D52: 745.94 | E52: 0.08 | F52: 1278.08 | G52: 617.86 | H52: 2.42 | I52: =SUM(C52:H52) -> 2858.7 | J52: =SUM(J7,J10,J13,J16,J19,J22,J25,J28,J31,J34,J37,J40,J43,J46,J49) -> 6.1 | K52: =SUM(K7,K10,K13,K16,K19,K22,K25,K28,K31,K34,K37,K40,K43,K46,K49) -> 0.61 | L52: =SUM(L7,L10,L13,L16,L19,L22,L25,L28,L31,L34,L37,L40,L43,L46,L49) -> 13.01 | M52: =SUM(M7,M10,M13,M16,M19,M22,M25,M28,M31,M34,M37,M40,M43,M46,M49) -> 1869.5 | N52: =SUM(J52:M52) -> 1889.22 | O52: =SUM(N52,I52) -> 4747.92 | P52: 面 積 | R52: =SUM(O52,R45,R47,R46) -> 4966.94
B53: 蓄積 | C53: 76523 | D53: 163712 | E53: 25 | F53: 308677 | G53: 163073 | H53: 1547 | I53: =SUM(C53:H53) -> 713557 | J53: =SUM(J8,J11,J14,J17,J20,J23,J26,J29,J32,J35,J38,J41,J44,J47,J50) -> 546 | K53: 10 | L53: 405 | M53: 220315 | N53: =SUM(J53:M53) -> 221276 | O53: 934833 | P53: 蓄積 | R53: =O53+R48 -> 934833
B54: 成長 | C54: 757.2 | D54: 3582.6 | E54: 0 | F54: 2385.7 | G54: 2091 | H54: 80.8 | I54: =SUM(C54:H54) -> 8897.3 | J54: 0 | K54: 0.9 | L54: 26.7 | M54: 2252.8 | N54: =SUM(J54:M54) -> 2280.4 | O54: 11177.7 | P54: 成長量 | R54: =O54+R49 -> 11177.7

Sheet 宮田村
A1: 第11表 市町村別・資源構成表 （伊那谷）
A3: =MID(CELL("filename",$A$1),FIND("]",CELL("filename",$A$1))+1,31) -> 宮田村 | O3: 単位 面積 : ha、蓄積 成長量 : ㎥
B4: 樹種 | C4: 針 葉 樹 | J4: 広 葉 樹 | O4: 計
C5: ス ギ | D5: ヒ ノ キ | E5: サ ワ ラ | F5: ア カ マ ツ | G5: カ ラ マ ツ | H5: そ の 他 針 | I5: 小 計 | J5: ク ヌ ギ | K5: ブ ナ | L5: ナ ラ | M5: そ の 他 広 | N5: 小 計
A6: 齢級
A7: 1 | B7: 面積 | D7: 4.43 | I7: 4.43 | M7: 1.34 | N7: 1.34 | O7: =SUM(N7,I7) -> 5.77
B8: 蓄積 | D8: 0 | I8: 0 | M8: 0 | N8: 0 | O8: =SUM(N8,I8) -> 0
B9: 成長 | D9: 0 | I9: 0 | M9: 0 | N9: 0 | O9: 0
A10: 2 | B10: 面積 | I10: 0 | M10: 1.58 | N10: 1.58 | O10: 1.58
B11: 蓄積 | I11: 0 | M11: 15 | N11: 15 | O11: 15
B12: 成長 | I12: 0 | M12: 2.1 | N12: 2.1 | O12: 2.1
A13: 3 | B13: 面積 | D13: 0.43 | I13: 0.43 | M13: 0.17 | N13: 0.17 | O13: 0.6
B14: 蓄積 | D14: 24 | I14: 24 | M14: 4 | N14: 4 | O14: 28
B15: 成長 | D15: 4.6 | I15: 4.6 | M15: 0.3 | N15: 0.3 | O15: 4.9
A16: 4 | B16: 面積 | D16: 2.46 | F16: 0.14 | I16: 2.6 | M16: 1.17 | N16: 1.17 | O16: 3.77
B17: 蓄積 | D17: 192 | F17: 8 | I17: 200 | M17: 29 | N17: 29 | O17: 229
B18: 成長 | D18: 17.2 | F18: 0.7 | I18: 17.9 | M18: 2 | N18: 2 | O18: 19.9
A19: 5 | B19: 面積 | D19: 4.33 | I19: 4.33 | M19: 2.14 | N19: 2.14 | O19: 6.47
B20: 蓄積 | D20: 523 | I20: 523 | M20: 75 | N20: 75 | O20: 598
B21: 成長 | D21: 30 | I21: 30 | M21: 4.2 | N21: 4.2 | O21: 34.2
A22: 6 | B22: 面積 | D22: 17.39 | G22: 14.28 | I22: 31.67 | M22: 11.17 | N22: 11.17 | O22: 42.84
B23: 蓄積 | D23: 2209 | G23: 2208 | I23: 4417 | M23: 526 | N23: 526 | O23: 4943
B24: 成長 | D24: 94.8 | G24: 50.5 | I24: 145.3 | M24: 21.4 | N24: 21.4 | O24: 166.7
A25: 7 | B25: 面積 | C25: 0.03 | D25: 8.22 | I25: 8.25 | J25: 0.27 | K25: 1.56 | M25: 2.17 | N25: 4 | O25: 12.25
B26: 蓄積 | C26: 6 | D26: 3163 | I26: 3169 | J26: 22 | K26: 35 | M26: 133 | N26: 190 | O26: 3359
B27: 成長 | C27: 0.2 | D27: 105.8 | I27: 106 | J27: 0.1 | K27: 2 | M27: 4 | N27: 6.1 | O27: 112.1
A28: 8 | B28: 面積 | C28: 0.84 | D28: 8.97 | F28: 0.36 | G28: 20.6 | I28: 30.77 | M28: 5.03 | N28: 5.03 | O28: 35.8
B29: 蓄積 | C29: 211 | D29: 1980 | F29: 65 | G29: 4107 | I29: 6363 | M29: 345 | N29: 345 | O29: 6708
B30: 成長 | C30: 4.9 | D30: 51.9 | F30: 1.4 | G30: 86.3 | I30: 144.5 | M30: 10.4 | N30: 10.4 | O30: 154.9
A31: 9 | B31: 面積 | C31: 1.33 | D31: 11.39 | F31: 0.93 | G31: 8.51 | I31: 22.16 | J31: 0.07 | L31: 0.07 | M31: 6.38 | N31: 6.52 | O31: 28.68
B32: 蓄積 | C32: 371 | D32: 2362 | F32: 176 | G32: 1371 | I32: 4280 | J32: 7 | L32: 8 | M32: 511 | N32: 526 | O32: 4806
B33: 成長 | C33: 6.2 | D33: 49.7 | F33: 2.7 | G33: 27.3 | I33: 85.9 | J33: 0 | L33: 0.2 | M33: 14.4 | N33: 14.6 | O33: 100.5
A34: 10 | B34: 面積 | C34: 0.5 | D34: 19.67 | F34: 1.51 | G34: 31.67 | I34: 53.35 | M34: 7.12 | N34: 7.12 | O34: 60.47
B35: 蓄積 | C35: 152 | D35: 4420 | F35: 272 | G35: 7960 | I35: 12804 | M35: 541 | N35: 541 | O35: 13345
B36: 成長 | C36: 2.2 | D36: 80.3 | F36: 3.6 | G36: 119.5 | I36: 205.6 | M36: 13.7 | N36: 13.7 | O36: 219.3
A37: 11 | B37: 面積 | C37: 3.55 | D37: 31.9 | F37: 17.35 | G37: 27.13 | I37: 79.93 | L37: 0.16 | M37: 11.48 | N37: 11.64 | O37: 91.57
B38: 蓄積 | C38: 1168 | D38: 7762 | F38: 3877 | G38: 6933 | I38: 19740 | L38: 17 | M38: 1122 | N38: 1139 | O38: 20879 | P38: 伐 跡 | R38: 1.41
B39: 成長 | C39: 16.6 | D39: 123.7 | F39: 42.9 | G39: 97 | I39: 280.2 | L39: 0.3 | M39: 22.1 | N39: 22.4 | O39: 302.6 | P39: 未立木地 | R39: 13.25
A40: 12 | B40: 面積 | C40: 10.91 | D40: 17.02 | F40: 54.91 | G40: 85.27 | H40: 1.11 | I40: 169.22 | L40: 0.21 | M40: 14.64 | N40: 14.85 | O40: 184.07 | P40: 岩石地 | R40: 2.2
B41: 蓄積 | C41: 3750 | D41: 4492 | F41: 12796 | G41: 24003 | H41: 145 | I41: 45186 | L41: 22 | M41: 1533 | N41: 1555 | O41: 46741 | P41: 崩壊地 | R41: 4.95
B42: 成長 | C42: 48.5 | D42: 62.8 | F42: 116.1 | G42: 311 | H42: 2.9 | I42: 541.3 | L42: 0.4 | M42: 29.3 | N42: 29.7 | O42: 571 | P42: はげ山
A43: 13 | B43: 面積 | C43: 18.49 | D43: 7.17 | F43: 45.77 | G43: 141.35 | H43: 0.77 | I43: 213.55 | J43: 0.39 | L43: 0.36 | M43: 20.85 | N43: 21.6 | O43: 235.15 | P43: 施設敷 | R43: 2.05
B44: 蓄積 | C44: 6354 | D44: 1960 | F44: 10563 | G44: 38908 | H44: 114 | I44: 57899 | J44: 31 | L44: 41 | M44: 2118 | N44: 2190 | O44: 60089 | P44: 林地開発
B45: 成長 | C45: 77.9 | D45: 26.4 | F45: 96.1 | G45: 485.7 | H45: 1.9 | I45: 688 | J45: 0 | L45: 0.7 | M45: 34.6 | N45: 35.3 | O45: 723.3 | P45: 計 | R45: =SUM(R38:R44) -> 23.86
A46: 14 | B46: 面積 | C46: 17.83 | D46: 27.1 | F46: 25.79 | G46: 142.99 | I46: 213.71 | J46: 1.76 | L46: 0.24 | M46: 48.7 | N46: 50.7 | O46: 264.41 | P46: 竹 林 | R46: 2.61
B47: 蓄積 | C47: 5841 | D47: 6894 | F47: 6016 | G47: 37605 | I47: 56356 | J47: 163 | L47: 32 | M47: 5370 | N47: 5565 | O47: 61921 | P47: 更新 困難地 | Q47: 面積
B48: 成長 | C48: 56.4 | D48: 85.2 | F48: 50 | G48: 388.4 | I48: 580 | J48: 0 | L48: 0.3 | M48: 61.3 | N48: 61.6 | O48: 641.6 | Q48: 蓄積
A49: 15 以上 | B49: 面積 | C49: 16.18 | D49: 110.11 | E49: 9.57 | F49: 92.13 | G49: 172.86 | H49: 24.84 | I49: 425.69 | J49: 2.32 | L49: 0.63 | M49: 164.88 | N49: 167.83 | O49: 593.52 | Q49: 成長
B50: 蓄積 | C50: 6596 | D50: 32371 | E50: 2916 | F50: 24839 | G50: 51094 | H50: 4871 | I50: 122687 | J50: 205 | L50: 83 | M50: 19810 | N50: 20098 | O50: 142785
B51: 成長 | C51: 23.8 | D51: 63.3 | E51: 4 | F51: 139.3 | G51: 349.8 | H51: 57 | I51: 637.2 | J51: 0 | L51: 0.7 | M51: 131.8 | N51: 132.5 | O51: 769.7 | P51: 総 合 計
A52: 計 | B52: 面積 | C52: =SUM(C7,C10,C13,C16,C19,C22,C25,C28,C31,C34,C37,C40,C43,C46,C49) -> 69.66 | D52: 270.59 | E52: 9.57 | F52: 238.89 | G52: 644.66 | H52: 26.72 | I52: =SUM(C52:H52) -> 1260.09 | J52: =SUM(J7,J10,J13,J16,J19,J22,J25,J28,J31,J34,J37,J40,J43,J46,J49) -> 4.81 | K52: =SUM(K7,K10,K13,K16,K19,K22,K25,K28,K31,K34,K37,K40,K43,K46,K49) -> 1.56 | L52: =SUM(L7,L10,L13,L16,L19,L22,L25,L28,L31,L34,L37,L40,L43,L46,L49) -> 1.67 | M52: =SUM(M7,M10,M13,M16,M19,M22,M25,M28,M31,M34,M37,M40,M43,M46,M49) -> 298.82 | N52: =SUM(J52:M52) -> 306.86 | O52: 1566.95 | P52: 面 積 | R52: =SUM(O52,R45,R47,R46) -> 1593.42
B53: 蓄積 | C53: 24449 | D53: 68352 | E53: 2916 | F53: 58612 | G53: 174189 | H53: 5130 | I53: =SUM(C53:H53) -> 333648 | J53: =SUM(J8,J11,J14,J17,J20,J23,J26,J29,J32,J35,J38,J41,J44,J47,J50) -> 428 | K53: 35 | L53: 203 | M53: 32132 | N53: =SUM(J53:M53) -> 32798 | O53: 366446 | P53: 蓄積 | R53: =O53+R48 -> 366446
B54: 成長 | C54: 236.7 | D54: 795.7 | E54: 4 | F54: 452.8 | G54: 1915.5 | H54: 61.8 | I54: =SUM(C54:H54) -> 3466.5 | J54: 0.1 | K54: 2 | L54: 2.6 | M54: 351.6 | N54: =SUM(J54:M54) -> 356.3 | O54: 3822.8 | P54: 成長量 | R54: =O54+R49 -> 3822.8

Sheet 飯田市
A1: 第11表 市町村別・資源構成表 （伊那谷）
A3: =MID(CELL("filename",$A$1),FIND("]",CELL("filename",$A$1))+1,31) -> 飯田市 | O3: 単位 面積 : ha、蓄積 成長量 : ㎥
B4: 樹種 | C4: 針 葉 樹 | J4: 広 葉 樹 | O4: 計
C5: ス ギ | D5: ヒ ノ キ | E5: サ ワ ラ | F5: ア カ マ ツ | G5: カ ラ マ ツ | H5: そ の 他 針 | I5: 小 計 | J5: ク ヌ ギ | K5: ブ ナ | L5: ナ ラ | M5: そ の 他 広 | N5: 小 計
A6: 齢級
A7: 1 | B7: 面積 | D7: 7.45 | F7: 0.51 | G7: 17.01 | I7: 24.97 | N7: 0 | O7: =SUM(N7,I7) -> 24.97
B8: 蓄積 | D8: 0 | F8: 0 | G8: 0 | I8: 0 | N8: 0 | O8: =SUM(N8,I8) -> 0
B9: 成長 | D9: 0 | F9: 0 | G9: 0 | I9: 0 | N9: 0 | O9: 0
A10: 2 | B10: 面積 | D10: 4.8 | G10: 4.14 | I10: 8.94 | L10: 4 | M10: 0.62 | N10: 4.62 | O10: 13.56
B11: 蓄積 | D11: 0 | G11: 0 | I11: 0 | L11: 53 | M11: 11 | N11: 64 | O11: 64
B12: 成長 | D12: 0 | G12: 0 | I12: 0 | L12: 7.6 | M12: 1.5 | N12: 9.1 | O12: 9.1
A13: 3 | B13: 面積 | C13: 1.83 | D13: 15.88 | I13: 17.71 | L13: 1.57 | M13: 7.42 | N13: 8.99 | O13: 26.7
B14: 蓄積 | C14: 170 | D14: 845 | I14: 1015 | L14: 41 | M14: 148 | N14: 189 | O14: 1204
B15: 成長 | C15: 34.2 | D15: 181.8 | I15: 216 | L15: 3.5 | M15: 12.7 | N15: 16.2 | O15: 232.2
A16: 4 | B16: 面積 | C16: 1.05 | D16: 60.87 | F16: 3.22 | I16: 65.14 | L16: 0.62 | M16: 19.73 | N16: 20.35 | O16: 85.49
B17: 蓄積 | C17: 122 | D17: 5333 | F17: 248 | G17: 522 | I17: 6225 | L17: 18 | M17: 565 | N17: 583 | O17: 6808
B18: 成長 | C18: 9.9 | D18: 487.6 | F18: 20.4 | G18: 39.2 | I18: 557.1 | L18: 1.2 | M18: 37.2 | N18: 38.4 | O18: 595.5
A19: 5 | B19: 面積 | C19: 6.67 | D19: 94.8 | F19: 0.13 | I19: 101.6 | L19: 1.23 | M19: 28.03 | N19: 29.26 | O19: 130.86
B20: 蓄積 | C20: 1509 | D20: 16317 | F20: 12 | I20: 17838 | L20: 54 | M20: 1180 | N20: 1234 | O20: 19072
B21: 成長 | C21: 74 | D21: 1000.2 | F21: 0.7 | I21: 1074.9 | L21: 2.7 | M21: 56.8 | N21: 59.5 | O21: 1134.4
A22: 6 | B22: 面積 | C22: 8.59 | D22: 210.07 | E22: 0.51 | F22: 1.39 | G22: 2.37 | I22: 222.93 | L22: 1.4 | M22: 122.68 | N22: 124.08 | O22: 347.01
B23: 蓄積 | C23: 7214 | D23: 38281 | E23: 58 | F23: 185 | G23: 350 | I23: 46088 | L23: 342 | M23: 5910 | N23: 6252 | O23: 52340
B24: 成長 | C24: 265.5 | D24: 1636.3 | E24: 2.7 | F24: 6.9 | G24: 12.6 | I24: 1924 | L24: 12.8 | M24: 226.1 | N24: 238.9 | O24: 2162.9
A25: 7 | B25: 面積 | C25: 10.28 | D25: 439.42 | E25: 0.07 | F25: 10.45 | G25: 5.15 | H25: 2.47 | I25: 467.84 | J25: 1.93 | L25: 8.88 | M25: 322.39 | N25: 333.2 | O25: 801.04
B26: 蓄積 | C26: 2285 | D26: 82346 | E26: 12 | F26: 1639 | G26: 504 | H26: 776 | I26: 87562 | J26: 152 | L26: 488 | M26: 18665 | N26: 19305 | O26: 106867
B27: 成長 | C27: 60.1 | D27: 2822.2 | E27: 0.4 | F27: 39.2 | G27: 15 | H27: 33.9 | I27: 2970.8 | J27: 0.3 | L27: 16 | M27: 603 | N27: 619.3 | O27: 3590.1
A28: 8 | B28: 面積 | C28: 3.71 | D28: 379.66 | E28: 1.8 | F28: 5.01 | G28: 49.13 | H28: 28.75 | I28: 468.06 | J28: 0.71 | L28: 14.19 | M28: 214.58 | N28: 229.48 | O28: 697.54
B29: 蓄積 | C29: 818 | D29: 76047 | E29: 284 | F29: 902 | G29: 13269 | H29: 6404 | I29: 97724 | J29: 57 | L29: 1019 | M29: 13898 | N29: 14974 | O29: 112698
B30: 成長 | C30: 19.6 | D30: 2029.9 | E30: 8.5 | F30: 18.4 | G30: 333.5 | H30: 236.9 | I30: 2646.8 | J30: 0.1 | L30: 29.5 | M30: 396.2 | N30: 425.8 | O30: 3072.6
A31: 9 | B31: 面積 | C31: 16.13 | D31: 548.68 | F31: 9 | G31: 86.33 | H31: 57.4 | I31: 717.54 | L31: 9.32 | M31: 172.8 | N31: 182.12 | O31: 899.66
B32: 蓄積 | C32: 4371 | D32: 119498 | F32: 1759 | G32: 16666 | H32: 6852 | I32: 149146 | L32: 772 | M32: 13307 | N32: 14079 | O32: 163225
B33: 成長 | C33: 76.8 | D33: 2627.4 | F33: 26.9 | G33: 322.4 | H33: 223.2 | I33: 3276.7 | L33: 21.2 | M33: 355.7 | N33: 376.9 | O33: 3653.6
A34: 10 | B34: 面積 | C34: 72.82 | D34: 803.78 | E34: 1.83 | F34: 90.11 | G34: 346.34 | H34: 104.98 | I34: 1419.86 | L34: 10.1 | M34: 370.87 | N34: 380.97 | O34: 1800.83
B35: 蓄積 | C35: 21881 | D35: 178335 | E35: 416 | F35: 18500 | G35: 70210 | H35: 11936 | I35: 301278 | L35: 924 | M35: 30317 | N35: 31241 | O35: 332519
B36: 成長 | C36: 307.3 | D36: 3232 | E36: 7.6 | F36: 231.4 | G36: 1042.3 | H36: 327.2 | I36: 5147.8 | L36: 22.4 | M36: 705 | N36: 727.4 | O36: 5875.2
A37: 11 | B37: 面積 | C37: 219.06 | D37: 1000.73 | E37: 1.91 | F37: 517.88 | G37: 309.63 | H37: 156.31 | I37: 2205.52 | J37: 0.36 | K37: 15.48 | L37: 13.19 | M37: 695.65 | N37: 724.68 | O37: 2930.2
B38: 蓄積 | C38: 69411 | D38: 238127 | E38: 491 | F38: 106357 | G38: 69136 | H38: 20950 | I38: 504472 | J38: 29 | K38: 1510 | L38: 1340 | M38: 64409 | N38: 67288 | O38: 571760 | P38: 伐 跡 | R38: 3.29
B39: 成長 | C39: 944.6 | D39: 3900.6 | E39: 7.8 | F39: 1227.7 | G39: 958.5 | H39: 495.4 | I39: 7534.6 | J39: 0 | K39: 39.2 | L39: 26.9 | M39: 1244.7 | N39: 1310.8 | O39: 8845.4 | P39: 未立木地 | R39: 318
A40: 12 | B40: 面積 | C40: 477.14 | D40: 644.27 | F40: 1306.87 | G40: 989.7 | H40: 24.61 | I40: 3442.59 | J40: 1.69 | L40: 38.87 | M40: 1327.59 | N40: 1368.15 | O40: 4810.74 | P40: 岩石地 | R40: 85.56
B41: 蓄積 | C41: 161058 | D41: 161339 | F41: 291647 | G41: 245775 | H41: 3302 | I41: 863121 | J41: 136 | L41: 3944 | M41: 126242 | N41: 130322 | O41: 993443 | P41: 崩壊地 | R41: 621.27
B42: 成長 | C42: 2054.4 | D42: 2177.2 | F42: 3243.9 | G42: 3118.4 | H42: 62.8 | I42: 10656.7 | J42: 0 | L42: 77.6 | M42: 2356.6 | N42: 2434.2 | O42: 13090.9 | P42: はげ山 | R42: 1.62
A43: 13 | B43: 面積 | C43: 704.44 | D43: 393.37 | E43: 0.39 | F43: 754.58 | G43: 827.07 | H43: 15.69 | I43: 2695.54 | J43: 3.03 | K43: 3.82 | L43: 56.57 | M43: 1670.47 | N43: 1733.89 | O43: 4429.43 | P43: 施設敷 | R43: 83.31
B44: 蓄積 | C44: 241252 | D44: 100357 | E44: 106 | F44: 172284 | G44: 207847 | H44: 2311 | I44: 724157 | J44: 244 | K44: 416 | L44: 6407 | M44: 173727 | N44: 180794 | O44: 904951 | P44: 林地開発
B45: 成長 | C45: 2948.7 | D45: 1338.7 | E45: 1.4 | F45: 1837.9 | G45: 2585 | H45: 42.6 | I45: 8754.3 | J45: 0.1 | K45: 10 | L45: 96.3 | M45: 2793.8 | N45: 2900.2 | O45: 11654.5 | P45: 計 | R45: =SUM(R38:R44) -> 1113.05
A46: 14 | B46: 面積 | C46: 413.27 | D46: 300.36 | E46: 0.65 | F46: 447.99 | G46: 769.75 | H46: 10.87 | I46: 1942.89 | J46: 3.26 | L46: 85.47 | M46: 1818.44 | N46: 1907.17 | O46: 3850.06 | P46: 竹 林 | R46: 191.79
B47: 蓄積 | C47: 149664 | D47: 80509 | E47: 112 | F47: 104442 | G47: 201636 | H47: 1990 | I47: 538353 | J47: 227 | L47: 9995 | M47: 209316 | N47: 219538 | O47: 757891 | P47: 更新 困難地 | Q47: 面積
B48: 成長 | C48: 1471.3 | D48: 964.5 | E48: 1.3 | F48: 816 | G48: 2122.8 | H48: 31.7 | I48: 5407.6 | J48: 0 | L48: 124.7 | M48: 2596 | N48: 2720.7 | O48: 8128.3 | Q48: 蓄積
A49: 15 以上 | B49: 面積 | C49: 876.33 | D49: 908.32 | E49: 5.85 | F49: 1886.06 | G49: 988.67 | H49: 2107.07 | I49: 6772.3 | J49: 9.31 | K49: 91.37 | L49: 408.25 | M49: 10899.1 | N49: 11408.03 | O49: 18180.33 | Q49: 成長
B50: 蓄積 | C50: 340414 | D50: 264953 | E50: 1708 | F50: 485472 | G50: 276550 | H50: 422312 | I50: 1791409 | J50: 664 | K50: 16957 | L50: 50636 | M50: 1281169 | N50: 1349426 | O50: 3140835
B51: 成長 | C51: 1845.1 | D51: 894.2 | E51: 2.7 | F51: 2297.1 | G51: 1904.8 | H51: 1137.7 | I51: 8081.6 | J51: 0.1 | K51: 55.9 | L51: 344.9 | M51: 6540.2 | N51: 6941.1 | O51: 15022.7 | P51: 総 合 計
A52: 計 | B52: 面積 | C52: =SUM(C7,C10,C13,C16,C19,C22,C25,C28,C31,C34,C37,C40,C43,C46,C49) -> 2811.32 | D52: 5812.46 | E52: 13.01 | F52: 5033.2 | G52: 4395.29 | H52: 2508.15 | I52: =SUM(C52:H52) -> 20573.43 | J52: =SUM(J7,J10,J13,J16,J19,J22,J25,J28,J31,J34,J37,J40,J43,J46,J49) -> 20.29 | K52: =SUM(K7,K10,K13,K16,K19,K22,K25,K28,K31,K34,K37,K40,K43,K46,K49) -> 110.67 | L52: =SUM(L7,L10,L13,L16,L19,L22,L25,L28,L31,L34,L37,L40,L43,L46,L49) -> 653.66 | M52: =SUM(M7,M10,M13,M16,M19,M22,M25,M28,M31,M34,M37,M40,M43,M46,M49) -> 17670.37 | N52: =SUM(J52:M52) -> 18454.99 | O52: 39028.42 | P52: 面 積 | R52: =SUM(O52,R45,R47,R46) -> 40333.26
B53: 蓄積 | C53: 1000169 | D53: 1362287 | E53: 3187 | F53: 1183447 | G53: 1102465 | H53: 476833 | I53: =SUM(C53:H53) -> 5128388 | J53: =SUM(J8,J11,J14,J17,J20,J23,J26,J29,J32,J35,J38,J41,J44,J47,J50) -> 1509 | K53: 18883 | L53: 76033 | M53: 1938864 | N53: =SUM(J53:M53) -> 2035289 | O53: 7163677 | P53: 蓄積 | R53: =O53+R48 -> 7163677
B54: 成長 | C54: 10111.5 | D54: 23292.6 | E54: 32.4 | F54: 9766.5 | G54: 12454.5 | H54: 2591.4 | I54: =SUM(C54:H54) -> 58248.9 | J54: 0.6 | K54: 105.1 | L54: 787.3 | M54: 17925.5 | N54: =SUM(J54:M54) -> 18818.5 | O54: 77067.4 | P54: 成長量 | R54: =O54+R49 -> 77067.4

Sheet 松川町
A1: 第11表 市町村別・資源構成表 （伊那谷）
A3: =MID(CELL("filename",$A$1),FIND("]",CELL("filename",$A$1))+1,31) -> 松川町 | O3: 単位 面積 : ha、蓄積 成長量 : ㎥
B4: 樹種 | C4: 針 葉 樹 | J4: 広 葉 樹 | O4: 計
C5: ス ギ | D5: ヒ ノ キ | E5: サ ワ ラ | F5: ア カ マ ツ | G5: カ ラ マ ツ | H5: そ の 他 針 | I5: 小 計 | J5: ク ヌ ギ | K5: ブ ナ | L5: ナ ラ | M5: そ の 他 広 | N5: 小 計
A6: 齢級
A7: 1 | B7: 面積 | D7: 1.08 | I7: 1.08 | M7: 1 | N7: 1 | O7: =SUM(N7,I7) -> 2.08
B8: 蓄積 | D8: 0 | I8: 0 | M8: 0 | N8: 0 | O8: =SUM(N8,I8) -> 0
B9: 成長 | D9: 0 | I9: 0 | M9: 0 | N9: 0 | O9: 0
A10: 2 | B10: 面積 | C10: 0.37 | D10: 9.6 | I10: 9.97 | M10: 7.97 | N10: 7.97 | O10: 17.94
B11: 蓄積 | C11: 0 | D11: 0 | I11: 0 | M11: 95 | N11: 95 | O11: 95
B12: 成長 | C12: 0 | D12: 0 | I12: 0 | M12: 13.9 | N12: 13.9 | O12: 13.9
A13: 3 | B13: 面積 | C13: 0.51 | D13: 14.2 | I13: 14.71 | L13: 3.9 | M13: 0.19 | N13: 4.09 | O13: 18.8
B14: 蓄積 | C14: 47 | D14: 759 | I14: 806 | L14: 94 | M14: 4 | N14: 98 | O14: 904
B15: 成長 | C15: 9.5 | D15: 163.4 | I15: 172.9 | L15: 7.9 | M15: 0.3 | N15: 8.2 | O15: 181.1
A16: 4 | B16: 面積 | D16: 19.5 | I16: 19.5 | L16: 1.24 | M16: 1.13 | N16: 2.37 | O16: 21.87
B17: 蓄積 | D17: 1418 | I17: 1418 | L17: 37 | M17: 31 | N17: 68 | O17: 1486
B18: 成長 | D18: 129.2 | I18: 129.2 | L18: 2.4 | M18: 1.9 | N18: 4.3 | O18: 133.5
A19: 5 | B19: 面積 | D19: 8.98 | I19: 8.98 | M19: 1.22 | N19: 1.22 | O19: 10.2
B20: 蓄積 | D20: 3120 | I20: 3120 | M20: 52 | N20: 52 | O20: 3172
B21: 成長 | D21: 190.2 | I21: 190.2 | M21: 2.4 | N21: 2.4 | O21: 192.6
A22: 6 | B22: 面積 | D22: 11.03 | F22: 0.26 | G22: 0.08 | I22: 11.37 | L22: 0.33 | M22: 5.67 | N22: 6 | O22: 17.37
B23: 蓄積 | D23: 2765 | F23: 35 | G23: 12 | I23: 2812 | L23: 16 | M23: 274 | N23: 290 | O23: 3102
B24: 成長 | D24: 116 | F24: 1.3 | G24: 0.4 | I24: 117.7 | L24: 0.6 | M24: 10.4 | N24: 11 | O24: 128.7
A25: 7 | B25: 面積 | C25: 1.43 | D25: 28.41 | F25: 3.06 | I25: 32.9 | L25: 0.22 | M25: 11.66 | N25: 11.88 | O25: 44.78
B26: 蓄積 | C26: 306 | D26: 7550 | F26: 474 | I26: 8330 | L26: 14 | M26: 688 | N26: 702 | O26: 9032
B27: 成長 | C27: 7.9 | D27: 256.9 | F27: 11.4 | I27: 276.2 | L27: 0.5 | M27: 21.9 | N27: 22.4 | O27: 298.6
A28: 8 | B28: 面積 | C28: 0.34 | D28: 21.16 | F28: 1.94 | G28: 4.5 | H28: 1.04 | I28: 28.98 | L28: 0.97 | M28: 28.72 | N28: 29.69 | O28: 58.67
B29: 蓄積 | C29: 87 | D29: 3909 | F29: 355 | G29: 949 | H29: 108 | I29: 5408 | L29: 66 | M29: 1829 | N29: 1895 | O29: 7303
B30: 成長 | C30: 2 | D30: 101.9 | F30: 7.2 | G30: 21.8 | H30: 4 | I30: 136.9 | L30: 1.9 | M30: 52.2 | N30: 54.1 | O30: 191
A31: 9 | B31: 面積 | C31: 0.98 | D31: 74.4 | F31: 3.42 | G31: 6 | H31: 0.09 | I31: 84.89 | L31: 1.92 | M31: 14.82 | N31: 16.74 | O31: 101.63
B32: 蓄積 | C32: 236 | D32: 15477 | F32: 651 | G32: 1302 | H32: 11 | I32: 17677 | L32: 155 | M32: 1146 | N32: 1301 | O32: 18978
B33: 成長 | C33: 4 | D33: 340.3 | F33: 9.7 | G33: 27.4 | H33: 0.4 | I33: 381.8 | L33: 4.1 | M33: 30.5 | N33: 34.6 | O33: 416.4
A34: 10 | B34: 面積 | C34: 1.31 | D34: 63.02 | F34: 42.97 | G34: 7.25 | I34: 114.55 | L34: 0.87 | M34: 55.82 | N34: 56.69 | O34: 171.24
B35: 蓄積 | C35: 400 | D35: 14185 | F35: 8759 | G35: 1764 | I35: 25108 | L35: 82 | M35: 4772 | N35: 4854 | O35: 29962
B36: 成長 | C36: 5.7 | D36: 256.1 | F36: 105.3 | G36: 26.5 | I36: 393.6 | L36: 1.9 | M36: 112.3 | N36: 114.2 | O36: 507.8
A37: 11 | B37: 面積 | C37: 4.45 | D37: 81.49 | F37: 69.99 | G37: 29.41 | H37: 0.1 | I37: 185.44 | L37: 3.83 | M37: 55.48 | N37: 59.31 | O37: 244.75
B38: 蓄積 | C38: 1386 | D38: 19521 | F38: 14856 | G38: 8147 | H38: 15 | I38: 43925 | L38: 380 | M38: 5052 | N38: 5432 | O38: 49357 | P38: 伐 跡
B39: 成長 | C39: 19.3 | D39: 315.7 | F39: 168 | G39: 114.1 | H39: 0.4 | I39: 617.5 | L39: 7.7 | M39: 98.3 | N39: 106 | O39: 723.5 | P39: 未立木地 | R39: 15.97
A40: 12 | B40: 面積 | C40: 35.67 | D40: 40.04 | F40: 204.14 | G40: 16.28 | I40: 296.13 | L40: 5.05 | M40: 68.45 | N40: 73.5 | O40: 369.63 | P40: 岩石地 | R40: 1.43
B41: 蓄積 | C41: 12148 | D41: 10494 | F41: 45679 | G41: 4502 | I41: 72823 | L41: 532 | M41: 7083 | N41: 7615 | O41: 80438 | P41: 崩壊地 | R41: 71.12
B42: 成長 | C42: 158.2 | D42: 136.2 | F42: 505.4 | G42: 58.6 | I42: 858.4 | L42: 10.3 | M42: 136.5 | N42: 146.8 | O42: 1005.2 | P42: はげ山 | R42: 0.12
A43: 13 | B43: 面積 | C43: 25.95 | D43: 16.04 | F43: 227.77 | G43: 133.61 | H43: 2.07 | I43: 405.44 | L43: 12.01 | M43: 101.93 | N43: 113.94 | O43: 519.38 | P43: 施設敷 | R43: 0.54
B44: 蓄積 | C44: 9347 | D44: 4406 | F44: 52926 | G44: 31441 | H44: 389 | I44: 98509 | L44: 1396 | M44: 11549 | N44: 12945 | O44: 111454 | P44: 林地開発 | R44: 0.11
B45: 成長 | C45: 113 | D45: 55.7 | F45: 532 | G45: 375.4 | H45: 6.2 | I45: 1082.3 | L45: 19.9 | M45: 172.7 | N45: 192.6 | O45: 1274.9 | P45: 計 | R45: =SUM(R38:R44) -> 89.29
A46: 14 | B46: 面積 | C46: 29.32 | D46: 25.58 | F46: 184.59 | G46: 100.56 | H46: 2.18 | I46: 342.23 | L46: 19.49 | M46: 176.8 | N46: 196.29 | O46: 538.52 | P46: 竹 林 | R46: 47.3
B47: 蓄積 | C47: 11082 | D47: 7303 | F47: 45222 | G47: 28976 | H47: 435 | I47: 93018 | L47: 2390 | M47: 20260 | N47: 22650 | O47: 115668 | P47: 更新 困難地 | Q47: 面積
B48: 成長 | C48: 108.9 | D48: 86 | F48: 349 | G48: 288.4 | H48: 6.6 | I48: 838.9 | L48: 29 | M48: 262.3 | N48: 291.3 | O48: 1130.2 | Q48: 蓄積
A49: 15 以上 | B49: 面積 | C49: 34.28 | D49: 161.43 | E49: 7.65 | F49: 518.27 | G49: 101.76 | H49: 18.41 | I49: 841.8 | L49: 56.62 | M49: 545.11 | N49: 601.73 | O49: 1443.53 | Q49: 成長
B50: 蓄積 | C50: 13543 | D50: 49413 | E50: 2314 | F50: 139409 | G50: 32199 | H50: 4779 | I50: 241657 | L50: 7136 | M50: 69390 | N50: 76526 | O50: 318183
B51: 成長 | C51: 73.9 | D51: 235.4 | E51: 2.2 | F51: 622.9 | G51: 231.4 | H51: 41.9 | I51: 1207.7 | L51: 47.1 | M51: 301.5 | N51: 348.6 | O51: 1556.3 | P51: 総 合 計
A52: 計 | B52: 面積 | C52: =SUM(C7,C10,C13,C16,C19,C22,C25,C28,C31,C34,C37,C40,C43,C46,C49) -> 134.61 | D52: 575.96 | E52: 7.65 | F52: 1256.41 | G52: 399.45 | H52: 23.89 | I52: =SUM(C52:H52) -> 2397.97 | J52: =SUM(J7,J10,J13,J16,J19,J22,J25,J28,J31,J34,J37,J40,J43,J46,J49) -> 0 | K52: =SUM(K7,K10,K13,K16,K19,K22,K25,K28,K31,K34,K37,K40,K43,K46,K49) -> 0 | L52: =SUM(L7,L10,L13,L16,L19,L22,L25,L28,L31,L34,L37,L40,L43,L46,L49) -> 106.45 | M52: =SUM(M7,M10,M13,M16,M19,M22,M25,M28,M31,M34,M37,M40,M43,M46,M49) -> 1075.97 | N52: =SUM(J52:M52) -> 1182.42 | O52: 3580.39 | P52: 面 積 | R52: =SUM(O52,R45,R47,R46) -> 3716.98
B53: 蓄積 | C53: 48582 | D53: 140320 | E53: 2314 | F53: 308366 | G53: 109292 | H53: 5737 | I53: =SUM(C53:H53) -> 614611 | J53: =SUM(J8,J11,J14,J17,J20,J23,J26,J29,J32,J35,J38,J41,J44,J47,J50) -> 0 | K53: 0 | L53: 12298 | M53: 122225 | N53: =SUM(J53:M53) -> 134523 | O53: 749134 | P53: 蓄積 | R53: =O53+R48 -> 749134
B54: 成長 | C54: 502.4 | D54: 2383 | E54: 2.2 | F54: 2312.2 | G54: 1144 | H54: 59.5 | I54: =SUM(C54:H54) -> 6403.3 | J54: 0 | K54: 0 | L54: 133.3 | M54: 1217.1 | N54: =SUM(J54:M54) -> 1350.4 | O54: 7753.7 | P54: 成長量 | R54: =O54+R49 -> 7753.7

Sheet 高森町
A1: 第11表 市町村別・資源構成表 （伊那谷）
A3: =MID(CELL("filename",$A$1),FIND("]",CELL("filename",$A$1))+1,31) -> 高森町 | O3: 単位 面積 : ha、蓄積 成長量 : ㎥
B4: 樹種 | C4: 針 葉 樹 | J4: 広 葉 樹 | O4: 計
C5: ス ギ | D5: ヒ ノ キ | E5: サ ワ ラ | F5: ア カ マ ツ | G5: カ ラ マ ツ | H5: そ の 他 針 | I5: 小 計 | J5: ク ヌ ギ | K5: ブ ナ | L5: ナ ラ | M5: そ の 他 広 | N5: 小 計
A6: 齢級
A7: 1 | B7: 面積 | D7: 0.59 | I7: 0.59 | L7: 0.71 | M7: 0.82 | N7: 1.53 | O7: =SUM(N7,I7) -> 2.12
B8: 蓄積 | D8: 0 | I8: 0 | L8: 0 | M8: 0 | N8: 0 | O8: =SUM(N8,I8) -> 0
B9: 成長 | D9: 0 | I9: 0 | L9: 0 | M9: 0 | N9: 0 | O9: 0
A10: 2 | B10: 面積 | D10: 2.58 | I10: 2.58 | L10: 0.76 | M10: 0.24 | N10: 1 | O10: 3.58
B11: 蓄積 | D11: 0 | I11: 0 | L11: 7 | M11: 2 | N11: 9 | O11: 9
B12: 成長 | D12: 0 | I12: 0 | L12: 1 | M12: 0.3 | N12: 1.3 | O12: 1.3
A13: 3 | B13: 面積 | D13: 6.17 | I13: 6.17 | L13: 1.62 | M13: 0.48 | N13: 2.1 | O13: 8.27
B14: 蓄積 | D14: 382 | I14: 382 | L14: 26 | M14: 10 | N14: 36 | O14: 418
B15: 成長 | D15: 82.2 | I15: 82.2 | L15: 2.2 | M15: 0.9 | N15: 3.1 | O15: 85.3
A16: 4 | B16: 面積 | C16: 0.25 | D16: 30.96 | H16: 0.43 | I16: 31.64 | L16: 2.95 | M16: 5.73 | N16: 8.68 | O16: 40.32
B17: 蓄積 | C17: 28 | D17: 2342 | H17: 15 | I17: 2385 | L17: 93 | M17: 193 | N17: 286 | O17: 2671
B18: 成長 | C18: 2.2 | D18: 212.8 | H18: 1.2 | I18: 216.2 | L18: 6.1 | M18: 12.6 | N18: 18.7 | O18: 234.9
A19: 5 | B19: 面積 | D19: 13.35 | F19: 1.67 | I19: 15.02 | M19: 2.97 | N19: 2.97 | O19: 17.99
B20: 蓄積 | D20: 1602 | F20: 189 | I20: 1791 | M20: 129 | N20: 129 | O20: 1920
B21: 成長 | D21: 97.9 | F21: 9.8 | I21: 107.7 | M21: 6.4 | N21: 6.4 | O21: 114.1
A22: 6 | B22: 面積 | D22: 11.08 | I22: 11.08 | M22: 14.76 | N22: 14.76 | O22: 25.84
B23: 蓄積 | D23: 3681 | I23: 3681 | M23: 719 | N23: 719 | O23: 4400
B24: 成長 | D24: 154.7 | I24: 154.7 | M24: 27.3 | N24: 27.3 | O24: 182
A25: 7 | B25: 面積 | D25: 11.54 | F25: 0.09 | I25: 11.63 | M25: 4.33 | N25: 4.33 | O25: 15.96
B26: 蓄積 | D26: 2519 | F26: 15 | I26: 2534 | M26: 267 | N26: 267 | O26: 2801
B27: 成長 | D27: 85.9 | F27: 0.4 | I27: 86.3 | M27: 8.5 | N27: 8.5 | O27: 94.8
A28: 8 | B28: 面積 | C28: 0.95 | D28: 13.45 | F28: 3.02 | I28: 17.42 | L28: 1.24 | M28: 5.37 | N28: 6.61 | O28: 24.03
B29: 蓄積 | C29: 242 | D29: 2502 | F29: 568 | I29: 3312 | L29: 88 | M29: 354 | N29: 442 | O29: 3754
B30: 成長 | C30: 5.5 | D30: 64.9 | F30: 11.4 | I30: 81.8 | L30: 2.6 | M30: 10.3 | N30: 12.9 | O30: 94.7
A31: 9 | B31: 面積 | C31: 1.86 | D31: 48.32 | F31: 2.4 | H31: 0.5 | I31: 53.08 | L31: 0.05 | M31: 3.45 | N31: 3.5 | O31: 56.58
B32: 蓄積 | C32: 538 | D32: 10139 | F32: 466 | H32: 60 | I32: 11203 | L32: 4 | M32: 279 | N32: 283 | O32: 11486
B33: 成長 | C33: 9.1 | D33: 223 | F33: 7 | H33: 2 | I33: 241.1 | L33: 0.1 | M33: 7.5 | N33: 7.6 | O33: 248.7
A34: 10 | B34: 面積 | C34: 1.26 | D34: 111.47 | F34: 12.57 | G34: 0.08 | H34: 7.98 | I34: 133.36 | M34: 10.05 | N34: 10.05 | O34: 143.41
B35: 蓄積 | C35: 387 | D35: 25250 | F35: 2698 | G35: 21 | H35: 1073 | I35: 29429 | M35: 743 | N35: 743 | O35: 30172
B36: 成長 | C36: 5.4 | D36: 454.8 | F36: 32.5 | G36: 0.3 | H36: 29 | I36: 522 | M36: 17.8 | N36: 17.8 | O36: 539.8
A37: 11 | B37: 面積 | C37: 7.69 | D37: 96.83 | F37: 85.84 | G37: 5.07 | H37: 10.51 | I37: 205.94 | M37: 13.53 | N37: 13.53 | O37: 219.47
B38: 蓄積 | C38: 2470 | D38: 24013 | F38: 19070 | G38: 1393 | H38: 1600 | I38: 48546 | M38: 1047 | N38: 1047 | O38: 49593 | P38: 伐 跡
B39: 成長 | C39: 34.5 | D39: 384.1 | F39: 209.9 | G39: 19.5 | H39: 38.2 | I39: 686.2 | M39: 20 | N39: 20 | O39: 706.2 | P39: 未立木地 | R39: 6.85
A40: 12 | B40: 面積 | C40: 4.42 | D40: 29.57 | F40: 149.34 | G40: 17.75 | H40: 0.26 | I40: 201.34 | M40: 17.31 | N40: 17.31 | O40: 218.65 | P40: 岩石地 | R40: 0.93
B41: 蓄積 | C41: 1549 | D41: 7915 | F41: 33689 | G41: 4988 | H41: 44 | I41: 48185 | M41: 1801 | N41: 1801 | O41: 49986 | P41: 崩壊地 | R41: 38.18
B42: 成長 | C42: 20.2 | D42: 103 | F42: 370.3 | G42: 64.8 | H42: 0.8 | I42: 559.1 | M42: 32.7 | N42: 32.7 | O42: 591.8 | P42: はげ山
A43: 13 | B43: 面積 | C43: 8.77 | D43: 13.76 | F43: 166.55 | G43: 74.1 | I43: 263.18 | L43: 1.61 | M43: 51.65 | N43: 53.26 | O43: 316.44 | P43: 施設敷
B44: 蓄積 | C44: 3181 | D44: 3766 | F44: 38814 | G44: 21827 | I44: 67588 | L44: 186 | M44: 5418 | N44: 5604 | O44: 73192 | P44: 林地開発
B45: 成長 | C45: 38.4 | D45: 48.5 | F45: 403.1 | G45: 275.4 | I45: 765.4 | L45: 2.9 | M45: 84.5 | N45: 87.4 | O45: 852.8 | P45: 計 | R45: =SUM(R38:R44) -> 45.96
A46: 14 | B46: 面積 | C46: 13.73 | D46: 26.1 | F46: 113.89 | G46: 91.34 | H46: 0.82 | I46: 245.88 | L46: 1.35 | M46: 61.21 | N46: 62.56 | O46: 308.44 | P46: 竹 林 | R46: 26.92
B47: 蓄積 | C47: 5144 | D47: 7572 | F47: 28397 | G47: 26568 | H47: 157 | I47: 67838 | L47: 161 | M47: 7328 | N47: 7489 | O47: 75327 | P47: 更新 困難地 | Q47: 面積
B48: 成長 | C48: 51.6 | D48: 89.2 | F48: 216.8 | G48: 262.6 | H48: 2.4 | I48: 622.6 | L48: 1.9 | M48: 86.1 | N48: 88 | O48: 710.6 | Q48: 蓄積
A49: 15 以上 | B49: 面積 | C49: 22.78 | D49: 109.62 | E49: 1.61 | F49: 274.78 | G49: 155.56 | H49: 24.5 | I49: 588.85 | L49: 14.45 | M49: 414.21 | N49: 428.66 | O49: 1017.51 | Q49: 成長
B50: 蓄積 | C50: 9056 | D50: 33709 | E50: 454 | F50: 73522 | G50: 44297 | H50: 6413 | I50: 167451 | L50: 1899 | M50: 53137 | N50: 55036 | O50: 222487
B51: 成長 | C51: 42.1 | D51: 119.4 | E51: 0.5 | F51: 371.3 | G51: 338.1 | H51: 53.6 | I51: 925 | L51: 11 | M51: 192.5 | N51: 203.5 | O51: 1128.5 | P51: 総 合 計
A52: 計 | B52: 面積 | C52: =SUM(C7,C10,C13,C16,C19,C22,C25,C28,C31,C34,C37,C40,C43,C46,C49) -> 61.71 | D52: 525.39 | E52: 1.61 | F52: 810.15 | G52: 343.9 | H52: 45 | I52: =SUM(C52:H52) -> 1787.76 | J52: =SUM(J7,J10,J13,J16,J19,J22,J25,J28,J31,J34,J37,J40,J43,J46,J49) -> 0 | K52: =SUM(K7,K10,K13,K16,K19,K22,K25,K28,K31,K34,K37,K40,K43,K46,K49) -> 0 | L52: =SUM(L7,L10,L13,L16,L19,L22,L25,L28,L31,L34,L37,L40,L43,L46,L49) -> 24.74 | M52: =SUM(M7,M10,M13,M16,M19,M22,M25,M28,M31,M34,M37,M40,M43,M46,M49) -> 606.11 | N52: =SUM(J52:M52) -> 630.85 | O52: 2418.61 | P52: 面 積 | R52: =SUM(O52,R45,R47,R46) -> 2491.49
B53: 蓄積 | C53: 22595 | D53: 125392 | E53: 454 | F53: 197428 | G53: 99094 | H53: 9362 | I53: =SUM(C53:H53) -> 454325 | J53: =SUM(J8,J11,J14,J17,J20,J23,J26,J29,J32,J35,J38,J41,J44,J47,J50) -> 0 | K53: 0 | L53: 2464 | M53: 71427 | N53: =SUM(J53:M53) -> 73891 | O53: 528216 | P53: 蓄積 | R53: =O53+R48 -> 528216
B54: 成長 | C54: 209 | D54: 2120.4 | E54: 0.5 | F54: 1632.5 | G54: 960.7 | H54: 127.2 | I54: =SUM(C54:H54) -> 5050.3 | J54: 0 | K54: 0 | L54: 27.8 | M54: 507.4 | N54: =SUM(J54:M54) -> 535.2 | O54: 5585.5 | P54: 成長量 | R54: =O54+R49 -> 5585.5

Sheet 阿南町
A1: 第11表 市町村別・資源構成表 （伊那谷）
A3: =MID(CELL("filename",$A$1),FIND("]",CELL("filename",$A$1))+1,31) -> 阿南町 | O3: 単位 面積 : ha、蓄積 成長量 : ㎥
B4: 樹種 | C4: 針 葉 樹 | J4: 広 葉 樹 | O4: 計
C5: ス ギ | D5: ヒ ノ キ | E5: サ ワ ラ | F5: ア カ マ ツ | G5: カ ラ マ ツ | H5: そ の 他 針 | I5: 小 計 | J5: ク ヌ ギ | K5: ブ ナ | L5: ナ ラ | M5: そ の 他 広 | N5: 小 計
A6: 齢級
A7: 1 | B7: 面積 | G7: 1.16 | I7: 1.16 | N7: 0 | O7: =SUM(N7,I7) -> 1.16
B8: 蓄積 | G8: 0 | I8: 0 | N8: 0 | O8: =SUM(N8,I8) -> 0
B9: 成長 | G9: 0 | I9: 0 | N9: 0 | O9: 0
A10: 2 | B10: 面積 | G10: 4.91 | I10: 4.91 | L10: 0.26 | M10: 0.24 | N10: 0.5 | O10: 5.41
B11: 蓄積 | G11: 0 | I11: 0 | L11: 4 | M11: 3 | N11: 7 | O11: 7
B12: 成長 | G12: 0 | I12: 0 | L12: 0.6 | M12: 0.4 | N12: 1 | O12: 1
A13: 3 | B13: 面積 | D13: 1.04 | I13: 1.04 | M13: 8.24 | N13: 8.24 | O13: 9.28
B14: 蓄積 | D14: 47 | I14: 47 | M14: 186 | N14: 186 | O14: 233
B15: 成長 | D15: 10.2 | I15: 10.2 | M15: 15.8 | N15: 15.8 | O15: 26
A16: 4 | B16: 面積 | D16: 52.29 | F16: 0.13 | H16: 0.24 | I16: 52.66 | L16: 0.7 | M16: 16.67 | N16: 17.37 | O16: 70.03
B17: 蓄積 | D17: 4039 | F17: 11 | H17: 6 | I17: 4056 | L17: 24 | M17: 572 | N17: 596 | O17: 4652
B18: 成長 | D18: 368 | F18: 0.9 | H18: 0.4 | I18: 369.3 | L18: 1.6 | M18: 37.3 | N18: 38.9 | O18: 408.2
A19: 5 | B19: 面積 | C19: 0.55 | D19: 65.7 | E19: 0.07 | I19: 66.32 | M19: 14.43 | N19: 14.43 | O19: 80.75
B20: 蓄積 | C20: 82 | D20: 6945 | E20: 7 | I20: 7034 | M20: 565 | N20: 565 | O20: 7599
B21: 成長 | C21: 4 | D21: 423.8 | E21: 0.4 | I21: 428.2 | M21: 27.3 | N21: 27.3 | O21: 455.5
A22: 6 | B22: 面積 | C22: 1.54 | D22: 106.96 | F22: 0.7 | I22: 109.2 | M22: 10.48 | N22: 10.48 | O22: 119.68
B23: 蓄積 | C23: 301 | D23: 14096 | F23: 102 | I23: 14499 | M23: 527 | N23: 527 | O23: 15026
B24: 成長 | C24: 10.8 | D24: 593.4 | F24: 3.8 | I24: 608 | M24: 20 | N24: 20 | O24: 628
A25: 7 | B25: 面積 | C25: 1.16 | D25: 115.5 | F25: 4.71 | I25: 121.37 | L25: 0.33 | M25: 121.63 | N25: 121.96 | O25: 243.33
B26: 蓄積 | C26: 256 | D26: 19133 | F26: 770 | I26: 20159 | L26: 20 | M26: 7300 | N26: 7320 | O26: 27479
B27: 成長 | C27: 6.6 | D27: 650.7 | F27: 18.4 | I27: 675.7 | L27: 0.7 | M27: 236.2 | N27: 236.9 | O27: 912.6
A28: 8 | B28: 面積 | C28: 2.31 | D28: 186.66 | F28: 4.87 | H28: 5.29 | I28: 199.13 | L28: 7.68 | M28: 187.67 | N28: 195.35 | O28: 394.48
B29: 蓄積 | C29: 588 | D29: 34871 | F29: 865 | H29: 512 | I29: 36836 | L29: 575 | M29: 13405 | N29: 13980 | O29: 50816
B30: 成長 | C30: 13.7 | D30: 909.5 | F30: 17.5 | H30: 19 | I30: 959.7 | L30: 16.6 | M30: 387.5 | N30: 404.1 | O30: 1363.8
A31: 9 | B31: 面積 | C31: 4.13 | D31: 282.94 | E31: 0.19 | F31: 3.48 | H31: 1.84 | I31: 292.58 | L31: 5.38 | M31: 178.42 | N31: 183.8 | O31: 476.38
B32: 蓄積 | C32: 1179 | D32: 58947 | E32: 38 | F32: 674 | H32: 212 | I32: 61050 | L32: 444 | M32: 14434 | N32: 14878 | O32: 75928
B33: 成長 | C33: 20 | D33: 1296.1 | E33: 0.8 | F33: 10.3 | H33: 7.2 | I33: 1334.4 | L33: 11.8 | M33: 389.4 | N33: 401.2 | O33: 1735.6
A34: 10 | B34: 面積 | C34: 12.11 | D34: 434.24 | F34: 26.26 | H34: 1.33 | I34: 473.94 | L34: 5.07 | M34: 106.57 | N34: 111.64 | O34: 585.58
B35: 蓄積 | C35: 3668 | D35: 98672 | F35: 5338 | H35: 155 | I35: 107833 | L35: 464 | M35: 9124 | N35: 9588 | O35: 117421
B36: 成長 | C36: 51.6 | D36: 1778.6 | F36: 65.5 | H36: 4.3 | I36: 1900 | L36: 11.2 | M36: 214.7 | N36: 225.9 | O36: 2125.9
A37: 11 | B37: 面積 | C37: 49.96 | D37: 344.66 | F37: 107.19 | H37: 0.13 | I37: 501.94 | K37: 14.31 | L37: 7.39 | M37: 148.04 | N37: 169.74 | O37: 671.68
B38: 蓄積 | C38: 16153 | D38: 85357 | F38: 23772 | H38: 19 | I38: 125301 | K38: 1356 | L38: 744 | M38: 14160 | N38: 16260 | O38: 141561 | P38: 伐 跡 | R38: 6.61
B39: 成長 | C39: 225.1 | D39: 1367.5 | F39: 262.6 | H39: 0.5 | I39: 1855.7 | K39: 35.3 | L39: 14.7 | M39: 275.9 | N39: 325.9 | O39: 2181.6 | P39: 未立木地 | R39: 14.56
A40: 12 | B40: 面積 | C40: 131.63 | D40: 289.26 | F40: 228.36 | G40: 8.01 | I40: 657.26 | L40: 9.1 | M40: 210.74 | N40: 219.84 | O40: 877.1 | P40: 岩石地 | R40: 7.57
B41: 蓄積 | C41: 45851 | D41: 76523 | F41: 52394 | G41: 2311 | I41: 177079 | L41: 985 | M41: 22499 | N41: 23484 | O41: 200563 | P41: 崩壊地 | R41: 58.13
B42: 成長 | C42: 596 | D42: 1001.5 | F42: 583.2 | G42: 30 | I42: 2210.7 | L42: 18.6 | M42: 427.9 | N42: 446.5 | O42: 2657.2 | P42: はげ山
A43: 13 | B43: 面積 | C43: 219.85 | D43: 299.47 | F43: 395.14 | G43: 49.53 | H43: 1.43 | I43: 965.42 | L43: 30.05 | M43: 267.03 | N43: 297.08 | O43: 1262.5 | P43: 施設敷 | R43: 36.12
B44: 蓄積 | C44: 77928 | D44: 81424 | F44: 93124 | G44: 14994 | H44: 250 | I44: 267720 | L44: 3468 | M44: 30636 | N44: 34104 | O44: 301824 | P44: 林地開発
B45: 成長 | C45: 946.4 | D45: 1052 | F45: 992.6 | G45: 182.7 | H45: 4.7 | I45: 3178.4 | L45: 53.5 | M45: 471.8 | N45: 525.3 | O45: 3703.7 | P45: 計 | R45: =SUM(R38:R44) -> 122.99
A46: 14 | B46: 面積 | C46: 174.3 | D46: 189.02 | E46: 0.08 | F46: 178.95 | G46: 69.95 | H46: 0.21 | I46: 612.51 | L46: 43.4 | M46: 431.92 | N46: 475.32 | O46: 1087.83 | P46: 竹 林 | R46: 64.91
B47: 蓄積 | C47: 65382 | D47: 54143 | E47: 23 | F47: 44360 | G47: 19794 | H47: 39 | I47: 183741 | L47: 5203 | M47: 51074 | N47: 56277 | O47: 240018 | P47: 更新 困難地 | Q47: 面積
B48: 成長 | C48: 647.2 | D48: 647.8 | E48: 0.3 | F48: 351.6 | G48: 217.7 | H48: 0.6 | I48: 1865.2 | L48: 62.9 | M48: 624.6 | N48: 687.5 | O48: 2552.7 | Q48: 蓄積
A49: 15 以上 | B49: 面積 | C49: 233.93 | D49: 537.63 | E49: 5.86 | F49: 425.35 | G49: 80.93 | H49: 64.94 | I49: 1348.64 | K49: 29.18 | L49: 280.66 | M49: 2438.07 | N49: 2747.91 | O49: 4096.55 | Q49: 成長
B50: 蓄積 | C50: 93669 | D50: 168458 | E50: 1477 | F50: 114089 | G50: 23886 | H50: 14829 | I50: 416408 | K50: 4691 | L50: 36308 | M50: 309964 | N50: 350963 | O50: 767371
B51: 成長 | C51: 496.7 | D51: 713.1 | E51: 1.4 | F51: 547.7 | G51: 194.8 | H51: 97.1 | I51: 2050.8 | K51: 0 | L51: 242.8 | M51: 2069.7 | N51: 2312.5 | O51: 4363.3 | P51: 総 合 計
A52: 計 | B52: 面積 | C52: =SUM(C7,C10,C13,C16,C19,C22,C25,C28,C31,C34,C37,C40,C43,C46,C49) -> 831.47 | D52: 2905.37 | E52: 6.2 | F52: 1375.14 | G52: 214.49 | H52: 75.41 | I52: =SUM(C52:H52) -> 5408.08 | J52: =SUM(J7,J10,J13,J16,J19,J22,J25,J28,J31,J34,J37,J40,J43,J46,J49) -> 0 | K52: =SUM(K7,K10,K13,K16,K19,K22,K25,K28,K31,K34,K37,K40,K43,K46,K49) -> 43.49 | L52: =SUM(L7,L10,L13,L16,L19,L22,L25,L28,L31,L34,L37,L40,L43,L46,L49) -> 390.02 | M52: =SUM(M7,M10,M13,M16,M19,M22,M25,M28,M31,M34,M37,M40,M43,M46,M49) -> 4140.15 | N52: =SUM(J52:M52) -> 4573.66 | O52: 9981.74 | P52: 面 積 | R52: =SUM(O52,R45,R47,R46) -> 10169.64
B53: 蓄積 | C53: 305057 | D53: 702655 | E53: 1545 | F53: 335499 | G53: 60985 | H53: 16022 | I53: =SUM(C53:H53) -> 1421763 | J53: =SUM(J8,J11,J14,J17,J20,J23,J26,J29,J32,J35,J38,J41,J44,J47,J50) -> 0 | K53: 6047 | L53: 48239 | M53: 474449 | N53: =SUM(J53:M53) -> 528735 | O53: 1950498 | P53: 蓄積 | R53: =O53+R48 -> 1950498
B54: 成長 | C54: 3018.1 | D54: 10812.2 | E54: 2.9 | F54: 2854.1 | G54: 625.2 | H54: 133.8 | I54: =SUM(C54:H54) -> 17446.3 | J54: 0 | K54: 35.3 | L54: 435 | M54: 5198.5 | N54: =SUM(J54:M54) -> 5668.8 | O54: 23115.1 | P54: 成長量 | R54: =O54+R49 -> 23115.1

Sheet 阿智村
A1: 第11表 市町村別・資源構成表 （伊那谷）
A3: =MID(CELL("filename",$A$1),FIND("]",CELL("filename",$A$1))+1,31) -> 阿智村 | O3: 単位 面積 : ha、蓄積 成長量 : ㎥
B4: 樹種 | C4: 針 葉 樹 | J4: 広 葉 樹 | O4: 計
C5: ス ギ | D5: ヒ ノ キ | E5: サ ワ ラ | F5: ア カ マ ツ | G5: カ ラ マ ツ | H5: そ の 他 針 | I5: 小 計 | J5: ク ヌ ギ | K5: ブ ナ | L5: ナ ラ | M5: そ の 他 広 | N5: 小 計
A6: 齢級
A7: 1 | B7: 面積 | C7: 0.93 | D7: 0.27 | I7: 1.2 | M7: 1.78 | N7: 1.78 | O7: =SUM(N7,I7) -> 2.98
B8: 蓄積 | C8: 0 | D8: 0 | I8: 0 | M8: 0 | N8: 0 | O8: 0
B9: 成長 | C9: 0 | D9: 0 | I9: 0 | M9: 0 | N9: 0 | O9: 0
A10: 2 | B10: 面積 | C10: 0.12 | D10: 4.05 | G10: 1.01 | I10: 5.18 | L10: 2.44 | M10: 2.75 | N10: 5.19 | O10: 10.37
B11: 蓄積 | C11: 0 | D11: 0 | G11: 0 | I11: 0 | L11: 32 | M11: 30 | N11: 62 | O11: 62
B12: 成長 | C12: 0 | D12: 0 | G12: 0 | I12: 0 | L12: 4.6 | M12: 4.1 | N12: 8.7 | O12: 8.7
A13: 3 | B13: 面積 | D13: 3.23 | I13: 3.23 | L13: 1.37 | M13: 8.22 | N13: 9.59 | O13: 12.82
B14: 蓄積 | D14: 115 | I14: 115 | L14: 35 | M14: 178 | N14: 213 | O14: 328
B15: 成長 | D15: 26.1 | I15: 26.1 | L15: 3 | M15: 15.1 | N15: 18.1 | O15: 44.2
A16: 4 | B16: 面積 | D16: 26.85 | E16: 0.05 | I16: 26.9 | L16: 2.41 | M16: 11.98 | N16: 14.39 | O16: 41.29
B17: 蓄積 | D17: 1975 | E17: 5 | I17: 1980 | L17: 79 | M17: 306 | N17: 385 | O17: 2365
B18: 成長 | D18: 194.9 | E18: 0.5 | I18: 195.4 | L18: 5.3 | M18: 20.3 | N18: 25.6 | O18: 221
A19: 5 | B19: 面積 | C19: 0.4 | D19: 11.92 | I19: 12.32 | L19: 0.28 | M19: 15.51 | N19: 15.79 | O19: 28.11
B20: 蓄積 | C20: 65 | D20: 2096 | I20: 2161 | L20: 13 | M20: 623 | N20: 636 | O20: 2797
B21: 成長 | C21: 3.2 | D21: 128 | I21: 131.2 | L21: 0.6 | M21: 29.6 | N21: 30.2 | O21: 161.4
A22: 6 | B22: 面積 | C22: 0.72 | D22: 122.1 | F22: 0.11 | G22: 0.24 | I22: 123.17 | J22: 0.07 | L22: 1.92 | M22: 25.74 | N22: 27.73 | O22: 150.9
B23: 蓄積 | C23: 138 | D23: 19457 | F23: 15 | G23: 40 | I23: 19650 | J23: 5 | L23: 151 | M23: 1451 | N23: 1607 | O23: 21257
B24: 成長 | C24: 5 | D24: 818.7 | F24: 0.6 | G24: 1.4 | I24: 825.7 | J24: 0.1 | L24: 5.9 | M24: 54.7 | N24: 60.7 | O24: 886.4
A25: 7 | B25: 面積 | C25: 0.4 | D25: 352.04 | F25: 0.22 | G25: 1.58 | H25: 0.12 | I25: 354.36 | L25: 14.63 | M25: 73.63 | N25: 88.26 | O25: 442.62
B26: 蓄積 | C26: 95 | D26: 61327 | F26: 37 | G26: 300 | H26: 9 | I26: 61768 | L26: 1392 | M26: 5251 | N26: 6643 | O26: 68411
B27: 成長 | C27: 2.5 | D27: 2106 | F27: 0.9 | G27: 8.4 | H27: 0.4 | I27: 2118.2 | L27: 44.5 | M27: 169.3 | N27: 213.8 | O27: 2332
A28: 8 | B28: 面積 | C28: 1.84 | D28: 502.82 | F28: 1.13 | G28: 6.15 | H28: 0.06 | I28: 512 | L28: 9.51 | M28: 76.78 | N28: 86.29 | O28: 598.29
B29: 蓄積 | C29: 480 | D29: 92974 | F29: 189 | G29: 1042 | H29: 6 | I29: 94691 | L29: 685 | M29: 5358 | N29: 6043 | O29: 100734
B30: 成長 | C30: 11 | D30: 2438.9 | F30: 3.8 | G30: 25.9 | H30: 0.2 | I30: 2479.8 | L30: 19.4 | M30: 154.3 | N30: 173.7 | O30: 2653.5
A31: 9 | B31: 面積 | C31: 2.11 | D31: 383.66 | E31: 0.04 | F31: 0.7 | G31: 32.78 | H31: 0.07 | I31: 419.36 | L31: 14.39 | M31: 144.86 | N31: 159.25 | O31: 578.61
B32: 蓄積 | C32: 607 | D32: 78737 | E32: 9 | F32: 136 | G32: 6785 | H32: 8 | I32: 86282 | L32: 1213 | M32: 11408 | N32: 12621 | O32: 98903
B33: 成長 | C33: 10.6 | D33: 1729.6 | E33: 0.2 | F33: 2.1 | G33: 135.4 | H33: 0.3 | I33: 1878.2 | L33: 32.9 | M33: 305.5 | N33: 338.4 | O33: 2216.6
A34: 10 | B34: 面積 | C34: 22.41 | D34: 590.45 | F34: 9.42 | G34: 46.35 | H34: 10.17 | I34: 678.8 | L34: 20.59 | M34: 123.3 | N34: 143.89 | O34: 822.69
B35: 蓄積 | C35: 6555 | D35: 133554 | F35: 1855 | G35: 11355 | H35: 1283 | I35: 154602 | L35: 1808 | M35: 10497 | N35: 12305 | O35: 166907
B36: 成長 | C36: 91.2 | D36: 2411.2 | F36: 23.2 | G36: 170.7 | H36: 34.7 | I36: 2731 | L36: 43.1 | M36: 247.7 | N36: 290.8 | O36: 3021.8
A37: 11 | B37: 面積 | C37: 46.28 | D37: 498.33 | E37: 4.89 | F37: 212.64 | G37: 48.64 | H37: 3.19 | I37: 813.97 | L37: 26.95 | M37: 316.73 | N37: 343.68 | O37: 1157.65
B38: 蓄積 | C38: 14959 | D38: 123745 | E38: 1166 | F38: 46548 | G38: 11661 | H38: 383 | I38: 198462 | L38: 2790 | M38: 29366 | N38: 32156 | O38: 230618 | P38: 伐 跡 | R38: 11.13
B39: 成長 | C39: 207.5 | D39: 1978.9 | E39: 19.3 | F39: 518.8 | G39: 163.5 | H39: 8.8 | I39: 2896.8 | L39: 54.8 | M39: 572.6 | N39: 627.4 | O39: 3524.2 | P39: 未立木地 | R39: 90.12
A40: 12 | B40: 面積 | C40: 217.86 | D40: 291.16 | E40: 0.61 | F40: 852.19 | G40: 292.99 | H40: 32.32 | I40: 1687.13 | L40: 40.95 | M40: 360.3 | N40: 401.25 | O40: 2088.38 | P40: 岩石地 | R40: 56.15
B41: 蓄積 | C41: 73298 | D41: 77215 | E41: 164 | F41: 193638 | G41: 80133 | H41: 3357 | I41: 427805 | L41: 4373 | M41: 34964 | N41: 39337 | O41: 467142 | P41: 崩壊地 | R41: 352.07
B42: 成長 | C42: 941.6 | D42: 1001.8 | E42: 2.1 | F42: 2146.7 | G42: 1029.7 | H42: 63.7 | I42: 5185.6 | L42: 82.2 | M42: 660.1 | N42: 742.3 | O42: 5927.9 | P42: はげ山 | R42: 0.04
A43: 13 | B43: 面積 | C43: 269.15 | D43: 204.54 | E43: 0.97 | F43: 538.94 | G43: 676.77 | H43: 4.91 | I43: 1695.28 | L43: 84.88 | M43: 528.2 | N43: 613.08 | O43: 2308.36 | P43: 施設敷 | R43: 17.87
B44: 蓄積 | C44: 94988 | D44: 56190 | E44: 263 | F44: 122975 | G44: 186444 | H44: 541 | I44: 461401 | L44: 9709 | M44: 58440 | N44: 68149 | O44: 529550 | P44: 林地開発
B45: 成長 | C45: 1149.1 | D45: 719.6 | E45: 3.5 | F45: 1308.7 | G45: 2310.6 | H45: 9.4 | I45: 5500.9 | L45: 146.1 | M45: 883.1 | N45: 1029.2 | O45: 6530.1 | P45: 計 | R45: =SUM(R38:R44) -> 527.38
A46: 14 | B46: 面積 | C46: 239.06 | D46: 152.41 | E46: 0.57 | F46: 176.6 | G46: 1031.85 | H46: 9.92 | I46: 1610.41 | L46: 180.5 | M46: 1044.7 | N46: 1225.2 | O46: 2835.61 | P46: 竹 林 | R46: 51.9
B47: 蓄積 | C47: 87497 | D47: 41071 | E47: 168 | F47: 42279 | G47: 279871 | H47: 1684 | I47: 452570 | L47: 21538 | M47: 122448 | N47: 143986 | O47: 596556 | P47: 更新 困難地 | Q47: 面積
B48: 成長 | C48: 862.7 | D48: 493.1 | E48: 2 | F48: 334.3 | G48: 2939 | H48: 27.8 | I48: 4658.9 | L48: 265.2 | M48: 1523 | N48: 1788.2 | O48: 6447.1 | Q48: 蓄積
A49: 15 以上 | B49: 面積 | C49: 183.43 | D49: 367.55 | E49: 3.85 | F49: 180.82 | G49: 615.12 | H49: 299.05 | I49: 1649.82 | J49: 2.21 | L49: 510.55 | M49: 3518.67 | N49: 4031.43 | O49: 5681.25 | Q49: 成長
B50: 蓄積 | C50: 71892 | D50: 110606 | E50: 1207 | F50: 47624 | G50: 178846 | H50: 59939 | I50: 470114 | J50: 181 | L50: 64114 | M50: 428482 | N50: 492777 | O50: 962891
B51: 成長 | C51: 432.3 | D51: 443 | E51: 1.6 | F51: 236.1 | G51: 1346.5 | H51: 403.4 | I51: 2862.9 | J51: 0.1 | L51: 494.8 | M51: 3265.5 | N51: 3760.4 | O51: 6623.3 | P51: 総 合 計
A52: 計 | B52: 面積 | C52: =SUM(C7,C10,C13,C16,C19,C22,C25,C28,C31,C34,C37,C40,C43,C46,C49) -> 984.71 | D52: 3511.38 | E52: 10.98 | F52: 1972.77 | G52: 2753.48 | H52: 359.81 | I52: =SUM(C52:H52) -> 9593.13 | J52: =SUM(J7,J10,J13,J16,J19,J22,J25,J28,J31,J34,J37,J40,J43,J46,J49) -> 2.28 | K52: =SUM(K7,K10,K13,K16,K19,K22,K25,K28,K31,K34,K37,K40,K43,K46,K49) -> 0 | L52: =SUM(L7,L10,L13,L16,L19,L22,L25,L28,L31,L34,L37,L40,L43,L46,L49) -> 911.37 | M52: =SUM(M7,M10,M13,M16,M19,M22,M25,M28,M31,M34,M37,M40,M43,M46,M49) -> 6253.15 | N52: =SUM(J52:M52) -> 7166.8 | O52: 16759.93 | P52: 面 積 | R52: =SUM(O52,R45,R47,R46) -> 17339.21
B53: 蓄積 | C53: 350574 | D53: 799062 | E53: 2982 | F53: 455296 | G53: 756477 | H53: 67210 | I53: =SUM(C53:H53) -> 2431601 | J53: =SUM(J8,J11,J14,J17,J20,J23,J26,J29,J32,J35,J38,J41,J44,J47,J50) -> 186 | K53: 0 | L53: 107932 | M53: 708802 | N53: =SUM(J53:M53) -> 816920 | O53: 3248521 | P53: 蓄積 | R53: =O53+R48 -> 3248521
B54: 成長 | C54: 3716.7 | D54: 14489.8 | E54: 29.2 | F54: 4575.2 | G54: 8131.1 | H54: 548.7 | I54: =SUM(C54:H54) -> 31490.7 | J54: 0.2 | K54: 0 | L54: 1202.4 | M54: 7904.9 | N54: =SUM(J54:M54) -> 9107.5 | O54: 40598.2 | P54: 成長量 | R54: =O54+R49 -> 40598.2

Sheet 平谷村
A1: 第11表 市町村別・資源構成表 （伊那谷）
A3: =MID(CELL("filename",$A$1),FIND("]",CELL("filename",$A$1))+1,31) -> 平谷村 | O3: 単位 面積 : ha、蓄積 成長量 : ㎥
B4: 樹種 | C4: 針 葉 樹 | J4: 広 葉 樹 | O4: 計
C5: ス ギ | D5: ヒ ノ キ | E5: サ ワ ラ | F5: ア カ マ ツ | G5: カ ラ マ ツ | H5: そ の 他 針 | I5: 小 計 | J5: ク ヌ ギ | K5: ブ ナ | L5: ナ ラ | M5: そ の 他 広 | N5: 小 計
A6: 齢級
A7: 1 | B7: 面積 | D7: 0.24 | G7: 0.98 | I7: 1.22 | L7: 0.44 | M7: 0.6 | N7: 1.04 | O7: =SUM(N7,I7) -> 2.26
B8: 蓄積 | D8: 0 | G8: 0 | I8: 0 | L8: 0 | M8: 0 | N8: 0 | O8: =SUM(N8,I8) -> 0
B9: 成長 | D9: 0 | G9: 0 | I9: 0 | L9: 0 | M9: 0 | N9: 0 | O9: 0
A10: 2 | B10: 面積 | D10: 0.83 | I10: 0.83 | M10: 0.82 | N10: 0.82 | O10: 1.65
B11: 蓄積 | D11: 0 | I11: 0 | M11: 8 | N11: 8 | O11: 8
B12: 成長 | D12: 0 | I12: 0 | M12: 1.1 | N12: 1.1 | O12: 1.1
A13: 3 | B13: 面積 | I13: 0 | N13: 0 | O13: 0
B14: 蓄積 | D14: 104 | I14: 104 | N14: 0 | O14: 104
B15: 成長 | D15: 22.4 | I15: 22.4 | N15: 0 | O15: 22.4
A16: 4 | B16: 面積 | C16: 3.32 | D16: 8.8 | G16: 2.43 | I16: 14.55 | M16: 0.92 | N16: 0.92 | O16: 15.47
B17: 蓄積 | C17: 391 | D17: 507 | G17: 141 | I17: 1039 | M17: 31 | N17: 31 | O17: 1070
B18: 成長 | C18: 31.6 | D18: 50.8 | G18: 10.6 | I18: 93 | M18: 2 | N18: 2 | O18: 95
A19: 5 | B19: 面積 | D19: 6.92 | G19: 0.02 | I19: 6.94 | M19: 5.38 | N19: 5.38 | O19: 12.32
B20: 蓄積 | D20: 2433 | G20: 2 | I20: 2435 | M20: 184 | N20: 184 | O20: 2619
B21: 成長 | D21: 148.6 | G21: 0.1 | I21: 148.7 | M21: 9.1 | N21: 9.1 | O21: 157.8
A22: 6 | B22: 面積 | D22: 84.57 | H22: 4.1 | I22: 88.67 | M22: 25.98 | N22: 25.98 | O22: 114.65
B23: 蓄積 | D23: 13983 | H23: 200 | I23: 14183 | M23: 1201 | N23: 1201 | O23: 15384
B24: 成長 | D24: 590.6 | H24: 10.9 | I24: 601.5 | M24: 46.2 | N24: 46.2 | O24: 647.7
A25: 7 | B25: 面積 | D25: 173.39 | H25: 0.14 | I25: 173.53 | L25: 0.43 | M25: 17.18 | N25: 17.61 | O25: 191.14
B26: 蓄積 | D26: 27441 | H26: 11 | I26: 27452 | L26: 28 | M26: 930 | N26: 958 | O26: 28410
B27: 成長 | D27: 938.6 | H27: 0.5 | I27: 939.1 | L27: 0.9 | M27: 30.2 | N27: 31.1 | O27: 970.2
A28: 8 | B28: 面積 | C28: 0.28 | D28: 208.31 | G28: 6.22 | I28: 214.81 | M28: 49.93 | N28: 49.93 | O28: 264.74
B29: 蓄積 | C29: 70 | D29: 37196 | G29: 1178 | I29: 38444 | M29: 3189 | N29: 3189 | O29: 41633
B30: 成長 | C30: 1.6 | D30: 991.6 | G30: 27.9 | I30: 1021.1 | M30: 91.9 | N30: 91.9 | O30: 1113
A31: 9 | B31: 面積 | C31: 1.5 | D31: 272.5 | E31: 0.1 | F31: 0.19 | G31: 9.87 | I31: 284.16 | M31: 20.65 | N31: 20.65 | O31: 304.81
B32: 蓄積 | C32: 423 | D32: 54178 | E32: 20 | F32: 37 | G32: 2124 | I32: 56782 | M32: 1535 | N32: 1535 | O32: 58317
B33: 成長 | C33: 7.1 | D33: 1192.2 | E33: 0.4 | F33: 0.6 | G33: 44 | I33: 1244.3 | M33: 39 | N33: 39 | O33: 1283.3
A34: 10 | B34: 面積 | C34: 0.72 | D34: 262.46 | F34: 0.37 | G34: 21.15 | H34: 25.84 | I34: 310.54 | L34: 1.82 | M34: 127.8 | N34: 129.62 | O34: 440.16
B35: 蓄積 | C35: 150 | D35: 53876 | F35: 72 | G35: 5327 | H35: 2818 | I35: 62243 | L35: 140 | M35: 9969 | N35: 10109 | O35: 72352
B36: 成長 | C36: 2.2 | D36: 983.7 | F36: 0.9 | G36: 80 | H36: 77.3 | I36: 1144.1 | L36: 3.1 | M36: 223.2 | N36: 226.3 | O36: 1370.4
A37: 11 | B37: 面積 | C37: 4.84 | D37: 172.79 | F37: 14.91 | G37: 66.51 | I37: 259.05 | M37: 285.67 | N37: 285.67 | O37: 544.72
B38: 蓄積 | C38: 1610 | D38: 42311 | F38: 2964 | G38: 14391 | I38: 61276 | M38: 23599 | N38: 23599 | O38: 84875 | P38: 伐 跡 | R38: 0.29
B39: 成長 | C39: 22.3 | D39: 678.1 | F39: 34 | G39: 197.4 | I39: 931.8 | M39: 434.4 | N39: 434.4 | O39: 1366.2 | P39: 未立木地 | R39: 139.59
A40: 12 | B40: 面積 | C40: 28.32 | D40: 32.16 | F40: 60.64 | G40: 312.46 | I40: 433.58 | L40: 1.19 | M40: 360.47 | N40: 361.66 | O40: 795.24 | P40: 岩石地 | R40: 3.4
B41: 蓄積 | C41: 9388 | D41: 8417 | F41: 11883 | G41: 74688 | I41: 104376 | L41: 126 | M41: 30762 | N41: 30888 | O41: 135264 | P41: 崩壊地 | R41: 165.94
B42: 成長 | C42: 118.4 | D42: 110 | F42: 132.6 | G42: 938 | I42: 1299 | L42: 2.6 | M42: 564 | N42: 566.6 | O42: 1865.6 | P42: はげ山
A43: 13 | B43: 面積 | C43: 19.38 | D43: 20.32 | F43: 4.48 | G43: 586.37 | H43: 0.09 | I43: 630.64 | L43: 2.28 | M43: 396.4 | N43: 398.68 | O43: 1029.32 | P43: 施設敷 | R43: 27.57
B44: 蓄積 | C44: 6450 | D44: 5519 | F44: 1066 | G44: 140692 | H44: 16 | I44: 153743 | L44: 238 | M44: 40167 | N44: 40405 | O44: 194148 | P44: 林地開発
B45: 成長 | C45: 73.7 | D45: 71.6 | F45: 11.6 | G45: 1712 | H45: 0.3 | I45: 1869.2 | L45: 3.5 | M45: 601.7 | N45: 605.2 | O45: 2474.4 | P45: 計 | R45: =SUM(R38:R44) -> 336.79
A46: 14 | B46: 面積 | C46: 34.07 | D46: 24.73 | F46: 3.05 | G46: 650.19 | H46: 3.39 | I46: 715.43 | L46: 4.46 | M46: 435.65 | N46: 440.11 | O46: 1155.54 | P46: 竹 林
B47: 蓄積 | C47: 12289 | D47: 6745 | F47: 729 | G47: 197606 | H47: 502 | I47: 217871 | L47: 539 | M47: 49437 | N47: 49976 | O47: 267847 | P47: 更新 困難地 | Q47: 面積 | R47: 10.61
B48: 成長 | C48: 120.1 | D48: 81.2 | F48: 5.8 | G48: 2095.9 | H48: 9 | I48: 2312 | L48: 6.4 | M48: 644.7 | N48: 651.1 | O48: 2963.1 | Q48: 蓄積 | R48: 1284
A49: 15 以上 | B49: 面積 | C49: 15.13 | D49: 148.35 | E49: 2.13 | F49: 17.84 | G49: 330.6 | H49: 246.32 | I49: 760.37 | L49: 120.09 | M49: 1301.53 | N49: 1421.62 | O49: 2181.99 | Q49: 成長 | R49: 15.4
B50: 蓄積 | C50: 6029 | D50: 44043 | E50: 675 | F50: 4580 | G50: 106684 | H50: 45616 | I50: 207627 | L50: 15777 | M50: 147419 | N50: 163196 | O50: 370823
B51: 成長 | C51: 15.1 | D51: 102.1 | E51: 1.4 | F51: 24.4 | G51: 655.3 | H51: 383.9 | I51: 1182.2 | L51: 21.9 | M51: 664.5 | N51: 686.4 | O51: 1868.6 | P51: 総 合 計
A52: 計 | B52: 面積 | C52: =SUM(C7,C10,C13,C16,C19,C22,C25,C28,C31,C34,C37,C40,C43,C46,C49) -> 107.56 | D52: 1416.37 | E52: 2.23 | F52: 101.48 | G52: 1986.8 | H52: 279.88 | I52: =SUM(C52:H52) -> 3894.32 | J52: =SUM(J7,J10,J13,J16,J19,J22,J25,J28,J31,J34,J37,J40,J43,J46,J49) -> 0 | K52: =SUM(K7,K10,K13,K16,K19,K22,K25,K28,K31,K34,K37,K40,K43,K46,K49) -> 0 | L52: =SUM(L7,L10,L13,L16,L19,L22,L25,L28,L31,L34,L37,L40,L43,L46,L49) -> 130.71 | M52: =SUM(M7,M10,M13,M16,M19,M22,M25,M28,M31,M34,M37,M40,M43,M46,M49) -> 3028.98 | N52: =SUM(J52:M52) -> 3159.69 | O52: 7054.01 | P52: 面 積 | R52: =SUM(O52,R45,R47,R46) -> 7401.41
B53: 蓄積 | C53: 36800 | D53: 296753 | E53: 695 | F53: 21331 | G53: 542833 | H53: 49163 | I53: =SUM(C53:H53) -> 947575 | J53: =SUM(J8,J11,J14,J17,J20,J23,J26,J29,J32,J35,J38,J41,J44,J47,J50) -> 0 | K53: 0 | L53: 16848 | M53: 308431 | N53: =SUM(J53:M53) -> 325279 | O53: 1272854 | P53: 蓄積 | R53: =O53+R48 -> 1274138
B54: 成長 | C54: 392.1 | D54: 5961.5 | E54: 1.8 | F54: 209.9 | G54: 5761.2 | H54: 481.9 | I54: =SUM(C54:H54) -> 12808.4 | J54: 0 | K54: 0 | L54: 38.4 | M54: 3352 | N54: =SUM(J54:M54) -> 3390.4 | O54: 16198.8 | P54: 成長量 | R54: =O54+R49 -> 16214.2

Sheet 根羽村
A1: 第11表 市町村別・資源構成表 （伊那谷）
A3: =MID(CELL("filename",$A$1),FIND("]",CELL("filename",$A$1))+1,31) -> 根羽村 | O3: 単位 面積 : ha、蓄積 成長量 : ㎥
B4: 樹種 | C4: 針 葉 樹 | J4: 広 葉 樹 | O4: 計
C5: ス ギ | D5: ヒ ノ キ | E5: サ ワ ラ | F5: ア カ マ ツ | G5: カ ラ マ ツ | H5: そ の 他 針 | I5: 小 計 | J5: ク ヌ ギ | K5: ブ ナ | L5: ナ ラ | M5: そ の 他 広 | N5: 小 計
A6: 齢級
A7: 1 | B7: 面積 | C7: 4.8 | D7: 1.9 | I7: 6.7 | M7: 0.79 | N7: 0.79 | O7: =SUM(N7,I7) -> 7.49
B8: 蓄積 | C8: 0 | D8: 0 | I8: 0 | M8: 0 | N8: 0 | O8: =SUM(N8,I8) -> 0
B9: 成長 | C9: 0 | D9: 0 | I9: 0 | M9: 0 | N9: 0 | O9: 0
A10: 2 | B10: 面積 | G10: 1.27 | I10: 1.27 | M10: 7.28 | N10: 7.28 | O10: 8.55
B11: 蓄積 | G11: 0 | I11: 0 | M11: 114 | N11: 114 | O11: 114
B12: 成長 | G12: 0 | I12: 0 | M12: 15.8 | N12: 15.8 | O12: 15.8
A13: 3 | B13: 面積 | I13: 0 | M13: 9.95 | N13: 9.95 | O13: 9.95
B14: 蓄積 | I14: 0 | M14: 206 | N14: 206 | O14: 206
B15: 成長 | I15: 0 | M15: 17.7 | N15: 17.7 | O15: 17.7
A16: 4 | B16: 面積 | D16: 0.58 | H16: 0.2 | I16: 0.78 | M16: 3.71 | N16: 3.71 | O16: 4.49
B17: 蓄積 | D17: 41 | H17: 6 | I17: 47 | M17: 103 | N17: 103 | O17: 150
B18: 成長 | D18: 3.8 | H18: 0.5 | I18: 4.3 | M18: 6.8 | N18: 6.8 | O18: 11.1
A19: 5 | B19: 面積 | C19: 0.68 | D19: 1.58 | I19: 2.26 | K19: 0.56 | L19: 0.56 | N19: 1.12 | O19: 3.38
B20: 蓄積 | C20: 114 | D20: 187 | I20: 301 | K20: 14 | L20: 17 | M20: 80 | N20: 111 | O20: 412
B21: 成長 | C21: 5.7 | D21: 11.4 | I21: 17.1 | K21: 1 | L21: 0.8 | M21: 3.9 | N21: 5.7 | O21: 22.8
A22: 6 | B22: 面積 | C22: 0.94 | D22: 29.82 | F22: 7.62 | I22: 38.38 | M22: 6.46 | N22: 6.46 | O22: 44.84
B23: 蓄積 | C23: 219 | D23: 4265 | F23: 495 | I23: 4979 | M23: 335 | N23: 335 | O23: 5314
B24: 成長 | C24: 7.9 | D24: 179.7 | F24: 18.3 | I24: 205.9 | M24: 13 | N24: 13 | O24: 218.9
A25: 7 | B25: 面積 | C25: 3.75 | D25: 100.81 | G25: 4.83 | I25: 109.39 | L25: 6.35 | M25: 7.35 | N25: 13.7 | O25: 123.09
B26: 蓄積 | C26: 1014 | D26: 16029 | G26: 845 | I26: 17888 | L26: 411 | M26: 436 | N26: 847 | O26: 18735
B27: 成長 | C27: 26.3 | D27: 548.3 | G27: 23.7 | I27: 598.3 | L27: 13.2 | M27: 14 | N27: 27.2 | O27: 625.5
A28: 8 | B28: 面積 | C28: 8.88 | D28: 235.73 | I28: 244.61 | L28: 5.98 | M28: 37.77 | N28: 43.75 | O28: 288.36
B29: 蓄積 | C29: 2635 | D29: 42653 | I29: 45288 | L29: 418 | M29: 2722 | N29: 3140 | O29: 48428
B30: 成長 | C30: 60.4 | D30: 1118.6 | I30: 1179 | L30: 12.1 | M30: 78.9 | N30: 91 | O30: 1270
A31: 9 | B31: 面積 | C31: 47.17 | D31: 385.71 | F31: 0.76 | I31: 433.64 | L31: 7.07 | M31: 27.24 | N31: 34.31 | O31: 467.95
B32: 蓄積 | C32: 15372 | D32: 78691 | F32: 148 | I32: 94211 | L32: 570 | M32: 2176 | N32: 2746 | O32: 96957
B33: 成長 | C33: 258.7 | D33: 1730.7 | F33: 2.3 | I33: 1991.7 | L33: 15.3 | M33: 58.7 | N33: 74 | O33: 2065.7
A34: 10 | B34: 面積 | C34: 111.1 | D34: 483.62 | F34: 11.09 | I34: 605.81 | M34: 13.21 | N34: 13.21 | O34: 619.02
B35: 蓄積 | C35: 39011 | D35: 108868 | F35: 2291 | I35: 150170 | M35: 1216 | N35: 1216 | O35: 151386
B36: 成長 | C36: 579.4 | D36: 1966.3 | F36: 27.6 | I36: 2573.3 | M36: 28.9 | N36: 28.9 | O36: 2602.2
A37: 11 | B37: 面積 | C37: 281.18 | D37: 294.67 | F37: 69.91 | G37: 0.69 | I37: 646.45 | M37: 24.85 | N37: 24.85 | O37: 671.3
B38: 蓄積 | C38: 103451 | D38: 72266 | F38: 13209 | G38: 188 | I38: 189114 | M38: 2474 | N38: 2474 | O38: 191588 | P38: 伐 跡 | R38: 6.81
B39: 成長 | C39: 1329.5 | D39: 1160 | F39: 145.7 | G39: 2.6 | I39: 2637.8 | M39: 49.1 | N39: 49.1 | O39: 2686.9 | P39: 未立木地 | R39: 25.35
A40: 12 | B40: 面積 | C40: 489.99 | D40: 217.4 | F40: 133.22 | G40: 44.89 | H40: 0.81 | I40: 886.31 | L40: 0.33 | M40: 108.17 | N40: 108.5 | O40: 994.81 | P40: 岩石地
B41: 蓄積 | C41: 198165 | D41: 55981 | F41: 24876 | G41: 12953 | H41: 138 | I41: 292113 | L41: 38 | M41: 11169 | N41: 11207 | O41: 303320 | P41: 崩壊地 | R41: 63.68
B42: 成長 | C42: 2368.6 | D42: 733.6 | F42: 276.1 | G42: 168 | H42: 2.7 | I42: 3549 | L42: 0.6 | M42: 218.1 | N42: 218.7 | O42: 3767.7 | P42: はげ山
A43: 13 | B43: 面積 | C43: 687.3 | D43: 176.57 | E43: 3.2 | F43: 56.93 | G43: 87.23 | H43: 3.2 | I43: 1014.43 | L43: 3.1 | M43: 314.79 | N43: 317.89 | O43: 1332.32 | P43: 施設敷
B44: 蓄積 | C44: 289292 | D44: 48657 | E44: 870 | F44: 13485 | G44: 24910 | H44: 584 | I44: 377798 | L44: 357 | M44: 36275 | N44: 36632 | O44: 414430 | P44: 林地開発
B45: 成長 | C45: 3210.1 | D45: 619.8 | E45: 11.4 | F45: 145.2 | G45: 313.2 | H45: 9.4 | I45: 4309.1 | L45: 5.5 | M45: 511.4 | N45: 516.9 | O45: 4826 | P45: 計 | R45: =SUM(R38:R44) -> 95.84
A46: 14 | B46: 面積 | C46: 675.94 | D46: 89.36 | F46: 84.15 | G46: 75.55 | H46: 3.6 | I46: 928.6 | L46: 24.64 | M46: 405.21 | N46: 429.85 | O46: 1358.45 | P46: 竹 林 | R46: 7.95
B47: 蓄積 | C47: 296734 | D47: 25562 | F47: 19654 | G47: 22189 | H47: 678 | I47: 364817 | L47: 2969 | M47: 45781 | N47: 48750 | O47: 413567 | P47: 更新 困難地 | Q47: 面積
B48: 成長 | C48: 2507.5 | D48: 303.5 | F48: 155 | G48: 240.1 | H48: 10.9 | I48: 3217 | L48: 36.3 | M48: 595.8 | N48: 632.1 | O48: 3849.1 | Q48: 蓄積
A49: 15 以上 | B49: 面積 | C49: 714.33 | D49: 531.63 | E49: 4.07 | F49: 48.56 | G49: 16.01 | H49: 91.61 | I49: 1406.21 | L49: 26.39 | M49: 967.53 | N49: 993.92 | O49: 2400.13 | Q49: 成長
B50: 蓄積 | C50: 338715 | D50: 166431 | E50: 1281 | F50: 12631 | G50: 4889 | H50: 22015 | I50: 545962 | L50: 2935 | M50: 120154 | N50: 123089 | O50: 669051
B51: 成長 | C51: 246.6 | D51: 317.5 | E51: 1.9 | F51: 67.4 | G51: 39.5 | H51: 209.1 | I51: 882 | L51: 28.7 | M51: 644.4 | N51: 673.1 | O51: 1555.1 | P51: 総 合 計
A52: 計 | B52: 面積 | C52: =SUM(C7,C10,C13,C16,C19,C22,C25,C28,C31,C34,C37,C40,C43,C46,C49) -> 3026.06 | D52: 2549.38 | E52: 7.27 | F52: 412.24 | G52: 230.47 | H52: 99.42 | I52: =SUM(C52:H52) -> 6324.84 | J52: =SUM(J7,J10,J13,J16,J19,J22,J25,J28,J31,J34,J37,J40,J43,J46,J49) -> 0 | K52: =SUM(K7,K10,K13,K16,K19,K22,K25,K28,K31,K34,K37,K40,K43,K46,K49) -> 0.56 | L52: =SUM(L7,L10,L13,L16,L19,L22,L25,L28,L31,L34,L37,L40,L43,L46,L49) -> 74.42 | M52: =SUM(M7,M10,M13,M16,M19,M22,M25,M28,M31,M34,M37,M40,M43,M46,M49) -> 1934.31 | N52: =SUM(J52:M52) -> 2009.29 | O52: 8334.13 | P52: 面 積 | R52: =SUM(O52,R45,R47,R46) -> 8437.92
B53: 蓄積 | C53: 1284722 | D53: 619631 | E53: 2151 | F53: 86789 | G53: 65974 | H53: 23421 | I53: =SUM(C53:H53) -> 2082688 | J53: =SUM(J8,J11,J14,J17,J20,J23,J26,J29,J32,J35,J38,J41,J44,J47,J50) -> 0 | K53: 14 | L53: 7715 | M53: 223241 | N53: =SUM(J53:M53) -> 230970 | O53: 2313658 | P53: 蓄積 | R53: =O53+R48 -> 2313658
B54: 成長 | C54: 10600.7 | D54: 8693.2 | E54: 13.3 | F54: 837.6 | G54: 787.1 | H54: 232.6 | I54: =SUM(C54:H54) -> 21164.5 | J54: 0 | K54: 1 | L54: 112.5 | M54: 2256.5 | N54: =SUM(J54:M54) -> 2370 | O54: 23534.5 | P54: 成長量 | R54: =O54+R49 -> 23534.5

Sheet 下條村
A1: 第11表 市町村別・資源構成表 （伊那谷）
A3: =MID(CELL("filename",$A$1),FIND("]",CELL("filename",$A$1))+1,31) -> 下條村 | O3: 単位 面積 : ha、蓄積 成長量 : ㎥
B4: 樹種 | C4: 針 葉 樹 | J4: 広 葉 樹 | O4: 計
C5: ス ギ | D5: ヒ ノ キ | E5: サ ワ ラ | F5: ア カ マ ツ | G5: カ ラ マ ツ | H5: そ の 他 針 | I5: 小 計 | J5: ク ヌ ギ | K5: ブ ナ | L5: ナ ラ | M5: そ の 他 広 | N5: 小 計
A6: 齢級
A7: 1 | B7: 面積 | I7: 0 | N7: 0 | O7: =SUM(N7,I7) -> 0
B8: 蓄積 | I8: 0 | N8: 0 | O8: =SUM(N8,I8) -> 0
B9: 成長 | I9: 0 | N9: 0 | O9: 0
A10: 2 | B10: 面積 | I10: 0 | L10: 0.47 | M10: 1.47 | N10: 1.94 | O10: 1.94
B11: 蓄積 | I11: 0 | L11: 7 | M11: 17 | N11: 24 | O11: 24
B12: 成長 | I12: 0 | L12: 1 | M12: 2.3 | N12: 3.3 | O12: 3.3
A13: 3 | B13: 面積 | I13: 0 | M13: 2.14 | N13: 2.14 | O13: 2.14
B14: 蓄積 | I14: 0 | M14: 35 | N14: 35 | O14: 35
B15: 成長 | I15: 0 | M15: 3.3 | N15: 3.3 | O15: 3.3
A16: 4 | B16: 面積 | D16: 7.97 | F16: 0.23 | I16: 8.2 | M16: 0.43 | N16: 0.43 | O16: 8.63
B17: 蓄積 | D17: 611 | F17: 18 | I17: 629 | M17: 13 | N17: 13 | O17: 642
B18: 成長 | D18: 55.6 | F18: 1.5 | I18: 57.1 | M18: 0.8 | N18: 0.8 | O18: 57.9
A19: 5 | B19: 面積 | D19: 27.89 | I19: 27.89 | M19: 5.14 | N19: 5.14 | O19: 33.03
B20: 蓄積 | D20: 3335 | I20: 3335 | M20: 211 | N20: 211 | O20: 3546
B21: 成長 | D21: 203.7 | I21: 203.7 | M21: 10.1 | N21: 10.1 | O21: 213.8
A22: 6 | B22: 面積 | D22: 13.8 | I22: 13.8 | L22: 0.03 | M22: 1.06 | N22: 1.09 | O22: 14.89
B23: 蓄積 | D23: 4623 | I23: 4623 | L23: 2 | M23: 53 | N23: 55 | O23: 4678
B24: 成長 | D24: 194.2 | I24: 194.2 | L24: 0 | M24: 2.1 | N24: 2.1 | O24: 196.3
A25: 7 | B25: 面積 | C25: 0.15 | D25: 21.2 | I25: 21.35 | L25: 2.59 | M25: 13.74 | N25: 16.33 | O25: 37.68
B26: 蓄積 | C26: 34 | D26: 3339 | I26: 3373 | L26: 166 | M26: 845 | N26: 1011 | O26: 4384
B27: 成長 | C27: 0.9 | D27: 113.7 | I27: 114.6 | L27: 5.4 | M27: 27 | N27: 32.4 | O27: 147
A28: 8 | B28: 面積 | D28: 89.45 | F28: 0.18 | I28: 89.63 | M28: 6.63 | N28: 6.63 | O28: 96.26
B29: 蓄積 | D29: 16409 | F29: 32 | I29: 16441 | M29: 366 | N29: 366 | O29: 16807
B30: 成長 | D30: 430.6 | F30: 0.6 | I30: 431.2 | M30: 10.4 | N30: 10.4 | O30: 441.6
A31: 9 | B31: 面積 | C31: 0.07 | D31: 81.04 | F31: 0.4 | I31: 81.51 | L31: 0.34 | M31: 20.01 | N31: 20.35 | O31: 101.86
B32: 蓄積 | C32: 20 | D32: 16992 | F32: 70 | I32: 17082 | L32: 29 | M32: 1596 | N32: 1625 | O32: 18707
B33: 成長 | C33: 0.3 | D33: 374.3 | F33: 1.1 | I33: 375.7 | L33: 0.7 | M33: 43 | N33: 43.7 | O33: 419.4
A34: 10 | B34: 面積 | C34: 1.18 | D34: 85.94 | F34: 1.32 | I34: 88.44 | L34: 0.65 | M34: 26.99 | N34: 27.64 | O34: 116.08
B35: 蓄積 | C35: 311 | D35: 19759 | F35: 281 | I35: 20351 | L35: 60 | M35: 2444 | N35: 2504 | O35: 22855
B36: 成長 | C36: 4.5 | D36: 355.4 | F36: 3.5 | I36: 363.4 | L36: 1.5 | M36: 57.3 | N36: 58.8 | O36: 422.2
A37: 11 | B37: 面積 | C37: 3.54 | D37: 100.46 | F37: 46.15 | I37: 150.15 | L37: 1.13 | M37: 31.36 | N37: 32.49 | O37: 182.64
B38: 蓄積 | C38: 1114 | D38: 24989 | F38: 10324 | I38: 36427 | L38: 103 | M38: 3199 | N38: 3302 | O38: 39729 | P38: 伐 跡
B39: 成長 | C39: 15.3 | D39: 400 | F39: 113.9 | I39: 529.2 | L39: 1.9 | M39: 63.8 | N39: 65.7 | O39: 594.9 | P39: 未立木地 | R39: 6.78
A40: 12 | B40: 面積 | C40: 28.21 | D40: 61.03 | F40: 75.43 | G40: 1.56 | I40: 166.23 | L40: 1.8 | M40: 57.53 | N40: 59.33 | O40: 225.56 | P40: 岩石地 | R40: 0.57
B41: 蓄積 | C41: 9854 | D41: 16240 | F41: 17518 | G41: 448 | I41: 44060 | L41: 201 | M41: 6127 | N41: 6328 | O41: 50388 | P41: 崩壊地 | R41: 24.43
B42: 成長 | C42: 128.4 | D42: 211 | F42: 193.7 | G42: 5.8 | I42: 538.9 | L42: 3.5 | M42: 116.5 | N42: 120 | O42: 658.9 | P42: はげ山
A43: 13 | B43: 面積 | C43: 37.39 | D43: 57.5 | F43: 70.3 | G43: 5.13 | I43: 170.32 | L43: 9.67 | M43: 137.3 | N43: 146.97 | O43: 317.29 | P43: 施設敷 | R43: 0.33
B44: 蓄積 | C44: 13372 | D44: 15790 | F44: 16070 | G44: 1534 | I44: 46766 | L44: 1125 | M44: 15903 | N44: 17028 | O44: 63794 | P44: 林地開発
B45: 成長 | C45: 160.8 | D45: 200 | F45: 171 | G45: 19.5 | I45: 551.3 | L45: 17.7 | M45: 238.9 | N45: 256.6 | O45: 807.9 | P45: 計 | R45: =SUM(R38:R44) -> 32.11
A46: 14 | B46: 面積 | C46: 21.7 | D46: 29.26 | F46: 44.03 | G46: 8.55 | H46: 0.03 | I46: 103.57 | L46: 15.7 | M46: 240.22 | N46: 255.92 | O46: 359.49 | P46: 竹 林 | R46: 38.43
B47: 蓄積 | C47: 7992 | D47: 8419 | F47: 10944 | G47: 2604 | H47: 6 | I47: 29965 | L47: 1899 | M47: 29105 | N47: 31004 | O47: 60969 | P47: 更新 困難地 | Q47: 面積
B48: 成長 | C48: 78.2 | D48: 100.2 | F48: 86.3 | G48: 28.3 | H48: 0.1 | I48: 293.1 | L48: 22.6 | M48: 348.6 | N48: 371.2 | O48: 664.3 | Q48: 蓄積
A49: 15 以上 | B49: 面積 | C49: 38.51 | D49: 87.97 | F49: 166.86 | G49: 6.15 | H49: 1.7 | I49: 301.19 | L49: 37.69 | M49: 417.35 | N49: 455.04 | O49: 756.23 | Q49: 成長
B50: 蓄積 | C50: 15536 | D50: 27477 | F50: 44579 | G50: 2028 | H50: 390 | I50: 90010 | L50: 4867 | M50: 53688 | N50: 58555 | O50: 148565
B51: 成長 | C51: 59.3 | D51: 98.8 | F51: 224.3 | G51: 11 | H51: 0.1 | I51: 393.5 | L51: 48.8 | M51: 447.1 | N51: 495.9 | O51: 889.4 | P51: 総 合 計
A52: 計 | B52: 面積 | C52: =SUM(C7,C10,C13,C16,C19,C22,C25,C28,C31,C34,C37,C40,C43,C46,C49) -> 130.75 | D52: 663.51 | E52: 0 | F52: 404.9 | G52: 21.39 | H52: 1.73 | I52: =SUM(C52:H52) -> 1222.28 | J52: =SUM(J7,J10,J13,J16,J19,J22,J25,J28,J31,J34,J37,J40,J43,J46,J49) -> 0 | K52: =SUM(K7,K10,K13,K16,K19,K22,K25,K28,K31,K34,K37,K40,K43,K46,K49) -> 0 | L52: =SUM(L7,L10,L13,L16,L19,L22,L25,L28,L31,L34,L37,L40,L43,L46,L49) -> 70.07 | M52: =SUM(M7,M10,M13,M16,M19,M22,M25,M28,M31,M34,M37,M40,M43,M46,M49) -> 961.37 | N52: =SUM(J52:M52) -> 1031.44 | O52: 2253.72 | P52: 面 積 | R52: =SUM(O52,R45,R47,R46) -> 2324.26
B53: 蓄積 | C53: 48233 | D53: 157983 | E53: 0 | F53: 99836 | G53: 6614 | H53: 396 | I53: =SUM(C53:H53) -> 313062 | J53: =SUM(J8,J11,J14,J17,J20,J23,J26,J29,J32,J35,J38,J41,J44,J47,J50) -> 0 | K53: 0 | L53: 8459 | M53: 113602 | N53: =SUM(J53:M53) -> 122061 | O53: 435123 | P53: 蓄積 | R53: =O53+R48 -> 435123
B54: 成長 | C54: 447.7 | D54: 2737.5 | E54: 0 | F54: 795.9 | G54: 64.6 | H54: 0.2 | I54: =SUM(C54:H54) -> 4045.9 | J54: 0 | K54: 0 | L54: 103.1 | M54: 1371.2 | N54: =SUM(J54:M54) -> 1474.3 | O54: 5520.2 | P54: 成長量 | R54: =O54+R49 -> 5520.2

Sheet 売木村
A1: 第11表 市町村別・資源構成表 （伊那谷）
A3: =MID(CELL("filename",$A$1),FIND("]",CELL("filename",$A$1))+1,31) -> 売木村 | O3: 単位 面積 : ha、蓄積 成長量 : ㎥
B4: 樹種 | C4: 針 葉 樹 | J4: 広 葉 樹 | O4: 計
C5: ス ギ | D5: ヒ ノ キ | E5: サ ワ ラ | F5: ア カ マ ツ | G5: カ ラ マ ツ | H5: そ の 他 針 | I5: 小 計 | J5: ク ヌ ギ | K5: ブ ナ | L5: ナ ラ | M5: そ の 他 広 | N5: 小 計
A6: 齢級
A7: 1 | B7: 面積 | I7: 0 | M7: 0.63 | N7: 0.63 | O7: =SUM(N7,I7) -> 0.63
B8: 蓄積 | I8: 0 | M8: 0 | N8: 0 | O8: =SUM(N8,I8) -> 0
B9: 成長 | I9: 0 | M9: 0 | N9: 0 | O9: 0
A10: 2 | B10: 面積 | D10: 1.22 | I10: 1.22 | M10: 0.86 | N10: 0.86 | O10: 2.08
B11: 蓄積 | D11: 0 | I11: 0 | M11: 9 | N11: 9 | O11: 9
B12: 成長 | D12: 0 | I12: 0 | M12: 1.3 | N12: 1.3 | O12: 1.3
A13: 3 | B13: 面積 | I13: 0 | M13: 2.11 | N13: 2.11 | O13: 2.11
B14: 蓄積 | I14: 0 | M14: 43 | N14: 43 | O14: 43
B15: 成長 | I15: 0 | M15: 3.7 | N15: 3.7 | O15: 3.7
A16: 4 | B16: 面積 | C16: 0.08 | D16: 8.84 | I16: 8.92 | M16: 2.5 | N16: 2.5 | O16: 11.42
B17: 蓄積 | C17: 8 | D17: 1292 | I17: 1300 | M17: 70 | N17: 70 | O17: 1370
B18: 成長 | C18: 0.6 | D18: 117.4 | I18: 118 | M18: 4.5 | N18: 4.5 | O18: 122.5
A19: 5 | B19: 面積 | D19: 10.13 | G19: 0.06 | I19: 10.19 | L19: 0.07 | M19: 8.92 | N19: 8.99 | O19: 19.18
B20: 蓄積 | D20: 4135 | G20: 7 | I20: 4142 | L20: 3 | M20: 939 | N20: 942 | O20: 5084
B21: 成長 | D21: 252.3 | G21: 0.4 | I21: 252.7 | L21: 0.1 | M21: 45.8 | N21: 45.9 | O21: 298.6
A22: 6 | B22: 面積 | D22: 42.85 | I22: 42.85 | L22: 1.79 | M22: 12.02 | N22: 13.81 | O22: 56.66
B23: 蓄積 | D23: 6500 | I23: 6500 | L23: 345 | M23: 591 | N23: 936 | O23: 7436
B24: 成長 | D24: 273.3 | I24: 273.3 | L24: 13 | M24: 22.5 | N24: 35.5 | O24: 308.8
A25: 7 | B25: 面積 | D25: 68.66 | F25: 0.1 | I25: 68.76 | L25: 2.6 | M25: 12.55 | N25: 15.15 | O25: 83.91
B26: 蓄積 | D26: 11370 | F26: 16 | I26: 11386 | L26: 167 | M26: 794 | N26: 961 | O26: 12347
B27: 成長 | D27: 387.2 | F27: 0.4 | I27: 387.6 | L27: 5.3 | M27: 25.4 | N27: 30.7 | O27: 418.3
A28: 8 | B28: 面積 | D28: 65.83 | F28: 0.34 | G28: 0.28 | H28: 0.1 | I28: 66.55 | L28: 6.28 | M28: 13.3 | N28: 19.58 | O28: 86.13
B29: 蓄積 | D29: 12219 | F29: 64 | G29: 54 | H29: 10 | I29: 12347 | L29: 452 | M29: 911 | N29: 1363 | O29: 13710
B30: 成長 | D30: 318 | F30: 1.3 | G30: 1.2 | H30: 0.4 | I30: 320.9 | L30: 13.1 | M30: 26.2 | N30: 39.3 | O30: 360.2
A31: 9 | B31: 面積 | C31: 0.94 | D31: 203.58 | H31: 0.1 | I31: 204.62 | L31: 8.18 | M31: 17.17 | N31: 25.35 | O31: 229.97
B32: 蓄積 | C32: 267 | D32: 41981 | H32: 11 | I32: 42259 | L32: 673 | M32: 1384 | N32: 2057 | O32: 44316
B33: 成長 | C33: 4.5 | D33: 923.7 | H33: 0.4 | I33: 928.6 | L33: 18.1 | M33: 37.2 | N33: 55.3 | O33: 983.9
A34: 10 | B34: 面積 | C34: 0.25 | D34: 297.21 | I34: 297.46 | L34: 3.6 | M34: 23.67 | N34: 27.27 | O34: 324.73
B35: 蓄積 | C35: 74 | D35: 67601 | I35: 67675 | L35: 337 | M35: 1812 | N35: 2149 | O35: 69824
B36: 成長 | C36: 1 | D36: 1216.3 | I36: 1217.3 | L36: 8 | M36: 43.4 | N36: 51.4 | O36: 1268.7
A37: 11 | B37: 面積 | C37: 3.72 | D37: 311.54 | F37: 10.34 | G37: 0.54 | H37: 0.34 | I37: 326.48 | L37: 2.5 | M37: 11.01 | N37: 13.51 | O37: 339.99
B38: 蓄積 | C38: 1221 | D38: 75922 | F38: 2318 | G38: 161 | H38: 51 | I38: 79673 | L38: 251 | M38: 1096 | N38: 1347 | O38: 81020 | P38: 伐 跡 | R38: 8.33
B39: 成長 | C39: 17.2 | D39: 1217.4 | F39: 25.5 | G39: 2.4 | H39: 1.2 | I39: 1263.7 | L39: 5 | M39: 21.8 | N39: 26.8 | O39: 1290.5 | P39: 未立木地 | R39: 8.29
A40: 12 | B40: 面積 | C40: 12.77 | D40: 233.3 | E40: 0.69 | F40: 63.82 | G40: 10.53 | H40: 0.13 | I40: 321.24 | L40: 5.91 | M40: 31.07 | N40: 36.98 | O40: 358.22 | P40: 岩石地 | R40: 0.31
B41: 蓄積 | C41: 4460 | D41: 61036 | E41: 188 | F41: 14083 | G41: 2986 | H41: 22 | I41: 82775 | L41: 638 | M41: 3119 | N41: 3757 | O41: 86532 | P41: 崩壊地 | R41: 18.52
B42: 成長 | C42: 58 | D42: 798.5 | E42: 2.4 | F42: 154.9 | G42: 38.9 | H42: 0.4 | I42: 1053.1 | L42: 12.2 | M42: 60.2 | N42: 72.4 | O42: 1125.5 | P42: はげ山
A43: 13 | B43: 面積 | C43: 32.8 | D43: 186.91 | F43: 86.05 | G43: 41.8 | I43: 347.56 | L43: 25.91 | M43: 50.15 | N43: 76.06 | O43: 423.62 | P43: 施設敷 | R43: 5.35
B44: 蓄積 | C44: 11322 | D44: 50837 | F44: 19867 | G44: 12445 | I44: 94471 | L44: 3029 | M44: 5720 | N44: 8749 | O44: 103220 | P44: 林地開発
B45: 成長 | C45: 137.8 | D45: 651.6 | F45: 207.6 | G45: 152.8 | I45: 1149.8 | L45: 46.3 | M45: 87.3 | N45: 133.6 | O45: 1283.4 | P45: 計 | R45: =SUM(R38:R44) -> 40.8
A46: 14 | B46: 面積 | C46: 21.64 | D46: 126.2 | F46: 55.86 | G46: 145.44 | I46: 349.14 | L46: 36.83 | M46: 87.23 | N46: 124.06 | O46: 473.2 | P46: 竹 林 | R46: 0.13
B47: 蓄積 | C47: 8141 | D47: 36236 | F47: 13806 | G47: 39959 | I47: 98142 | L47: 4415 | M47: 10100 | N47: 14515 | O47: 112657 | P47: 更新 困難地 | Q47: 面積
B48: 成長 | C48: 81.4 | D48: 429 | F48: 108.7 | G48: 420.4 | I48: 1039.5 | L48: 53.3 | M48: 121.4 | N48: 174.7 | O48: 1214.2 | Q48: 蓄積
A49: 15 以上 | B49: 面積 | C49: 54.27 | D49: 513.59 | E49: 17.87 | F49: 103.08 | G49: 160.84 | H49: 4.68 | I49: 854.33 | L49: 136.25 | M49: 361.58 | N49: 497.83 | O49: 1352.16 | Q49: 成長
B50: 蓄積 | C50: 21622 | D50: 157422 | E50: 5664 | F50: 27374 | G50: 50998 | H50: 1162 | I50: 264242 | L50: 17712 | M50: 46863 | N50: 64575 | O50: 328817
B51: 成長 | C51: 115.5 | D51: 698 | E51: 5.8 | F51: 149.4 | G51: 389.5 | H51: 10.8 | I51: 1369 | L51: 147.4 | M51: 343.7 | N51: 491.1 | O51: 1860.1 | P51: 総 合 計
A52: 計 | B52: 面積 | C52: =SUM(C7,C10,C13,C16,C19,C22,C25,C28,C31,C34,C37,C40,C43,C46,C49) -> 126.47 | D52: 2069.86 | E52: 18.56 | F52: 319.59 | G52: 359.49 | H52: 5.35 | I52: =SUM(C52:H52) -> 2899.32 | J52: =SUM(J7,J10,J13,J16,J19,J22,J25,J28,J31,J34,J37,J40,J43,J46,J49) -> 0 | K52: =SUM(K7,K10,K13,K16,K19,K22,K25,K28,K31,K34,K37,K40,K43,K46,K49) -> 0 | L52: =SUM(L7,L10,L13,L16,L19,L22,L25,L28,L31,L34,L37,L40,L43,L46,L49) -> 229.92 | M52: =SUM(M7,M10,M13,M16,M19,M22,M25,M28,M31,M34,M37,M40,M43,M46,M49) -> 634.77 | N52: =SUM(J52:M52) -> 864.69 | O52: 3764.01 | P52: 面 積 | R52: =SUM(O52,R45,R47,R46) -> 3804.94
B53: 蓄積 | C53: 47115 | D53: 526551 | E53: 5852 | F53: 77528 | G53: 106610 | H53: 1256 | I53: =SUM(C53:H53) -> 764912 | J53: =SUM(J8,J11,J14,J17,J20,J23,J26,J29,J32,J35,J38,J41,J44,J47,J50) -> 0 | K53: 0 | L53: 28022 | M53: 73451 | N53: =SUM(J53:M53) -> 101473 | O53: 866385 | P53: 蓄積 | R53: =O53+R48 -> 866385
B54: 成長 | C54: 416 | D54: 7282.7 | E54: 8.2 | F54: 647.8 | G54: 1005.6 | H54: 13.2 | I54: =SUM(C54:H54) -> 9373.5 | J54: 0 | K54: 0 | L54: 321.8 | M54: 844.4 | N54: =SUM(J54:M54) -> 1166.2 | O54: 10539.7 | P54: 成長量 | R54: =O54+R49 -> 10539.7

Sheet 天龍村
A1: 第11表 市町村別・資源構成表 （伊那谷）
A3: =MID(CELL("filename",$A$1),FIND("]",CELL("filename",$A$1))+1,31) -> 天龍村 | O3: 単位 面積 : ha、蓄積 成長量 : ㎥
B4: 樹種 | C4: 針 葉 樹 | J4: 広 葉 樹 | O4: 計
C5: ス ギ | D5: ヒ ノ キ | E5: サ ワ ラ | F5: ア カ マ ツ | G5: カ ラ マ ツ | H5: そ の 他 針 | I5: 小 計 | J5: ク ヌ ギ | K5: ブ ナ | L5: ナ ラ | M5: そ の 他 広 | N5: 小 計
A6: 齢級
A7: 1 | B7: 面積 | I7: 0 | L7: 3.68 | N7: 3.68 | O7: =SUM(N7,I7) -> 3.68
B8: 蓄積 | I8: 0 | L8: 0 | N8: 0 | O8: =SUM(N8,I8) -> 0
B9: 成長 | I9: 0 | L9: 0 | N9: 0 | O9: 0
A10: 2 | B10: 面積 | D10: 3.76 | I10: 3.76 | L10: 0.38 | N10: 0.38 | O10: 4.14
B11: 蓄積 | D11: 0 | I11: 0 | L11: 4 | N11: 4 | O11: 4
B12: 成長 | D12: 0 | I12: 0 | L12: 0.6 | N12: 0.6 | O12: 0.6
A13: 3 | B13: 面積 | C13: 2.48 | D13: 0.82 | I13: 3.3 | M13: 2.53 | N13: 2.53 | O13: 5.83
B14: 蓄積 | C14: 241 | D14: 47 | I14: 288 | M14: 57 | N14: 57 | O14: 345
B15: 成長 | C15: 48.8 | D15: 10.1 | I15: 58.9 | M15: 4.8 | N15: 4.8 | O15: 63.7
A16: 4 | B16: 面積 | C16: 1.3 | D16: 62.77 | F16: 0.12 | I16: 64.19 | L16: 3.69 | M16: 55.93 | N16: 59.62 | O16: 123.81
B17: 蓄積 | C17: 188 | D17: 4157 | F17: 12 | I17: 4357 | L17: 125 | M17: 1514 | N17: 1639 | O17: 5996
B18: 成長 | C18: 14.6 | D18: 380.1 | F18: 1 | I18: 395.7 | L18: 8.2 | M18: 99.2 | N18: 107.4 | O18: 503.1
A19: 5 | B19: 面積 | C19: 0.81 | D19: 43.73 | E19: 0.05 | H19: 0.06 | I19: 44.65 | L19: 3.63 | M19: 34.07 | N19: 37.7 | O19: 82.35
B20: 蓄積 | C20: 481 | D20: 6247 | E20: 6 | H20: 3 | I20: 6737 | L20: 145 | M20: 1627 | N20: 1772 | O20: 8509
B21: 成長 | C21: 24.3 | D21: 381.2 | E21: 0.4 | H21: 0.2 | I21: 406.1 | L21: 7 | M21: 79.4 | N21: 86.4 | O21: 492.5
A22: 6 | B22: 面積 | C22: 6.67 | D22: 77.29 | I22: 83.96 | L22: 0.11 | M22: 18.74 | N22: 18.85 | O22: 102.81
B23: 蓄積 | C23: 1442 | D23: 11161 | I23: 12603 | L23: 6 | M23: 812 | N23: 818 | O23: 13421
B24: 成長 | C24: 53.5 | D24: 470.4 | I24: 523.9 | L24: 0.2 | M24: 30.6 | N24: 30.8 | O24: 554.7
A25: 7 | B25: 面積 | C25: 2.97 | D25: 140.59 | I25: 143.56 | L25: 0.27 | M25: 45.64 | N25: 45.91 | O25: 189.47
B26: 蓄積 | C26: 811 | D26: 23184 | I26: 23995 | L26: 18 | M26: 2429 | N26: 2447 | O26: 26442
B27: 成長 | C27: 21.2 | D27: 787.2 | I27: 808.4 | L27: 0.6 | M27: 78.6 | N27: 79.2 | O27: 887.6
A28: 8 | B28: 面積 | C28: 10.39 | D28: 166.34 | G28: 0.13 | H28: 0.15 | I28: 177.01 | L28: 5.79 | M28: 40.08 | N28: 45.87 | O28: 222.88
B29: 蓄積 | C29: 3091 | D29: 30193 | G29: 26 | H29: 14 | I29: 33324 | L29: 388 | M29: 2727 | N29: 3115 | O29: 36439
B30: 成長 | C30: 71.3 | D30: 793.8 | G30: 0.6 | H30: 0.5 | I30: 866.2 | L30: 10.9 | M30: 78.6 | N30: 89.5 | O30: 955.7
A31: 9 | B31: 面積 | C31: 58.81 | D31: 260.92 | F31: 0.22 | I31: 319.95 | L31: 1.38 | M31: 49.14 | N31: 50.52 | O31: 370.47
B32: 蓄積 | C32: 19259 | D32: 53324 | F32: 44 | I32: 72627 | L32: 114 | M32: 3630 | N32: 3744 | O32: 76371
B33: 成長 | C33: 325.5 | D33: 1172.8 | F33: 0.7 | I33: 1499 | L33: 3 | M33: 96.5 | N33: 99.5 | O33: 1598.5
A34: 10 | B34: 面積 | C34: 100.9 | D34: 311.01 | F34: 2.02 | H34: 0.53 | I34: 414.46 | L34: 4.85 | M34: 73.97 | N34: 78.82 | O34: 493.28
B35: 蓄積 | C35: 35838 | D35: 70011 | F35: 424 | H35: 74 | I35: 106347 | L35: 463 | M35: 6442 | N35: 6905 | O35: 113252
B36: 成長 | C36: 535 | D36: 1266.7 | F36: 5.2 | H36: 2 | I36: 1808.9 | L36: 11.1 | M36: 152 | N36: 163.1 | O36: 1972
A37: 11 | B37: 面積 | C37: 154.69 | D37: 285.8 | F37: 24.58 | I37: 465.07 | L37: 2.07 | M37: 100.5 | N37: 102.57 | O37: 567.64
B38: 蓄積 | C38: 58116 | D38: 69766 | F38: 5215 | I38: 133097 | L38: 208 | M38: 9547 | N38: 9755 | O38: 142852 | P38: 伐 跡 | R38: 3.35
B39: 成長 | C39: 748.6 | D39: 1122.7 | F39: 58.3 | I39: 1929.6 | L39: 4.1 | M39: 188.5 | N39: 192.6 | O39: 2122.2 | P39: 未立木地 | R39: 59.64
A40: 12 | B40: 面積 | C40: 320.49 | D40: 177.05 | E40: 0.15 | F40: 85.29 | I40: 582.98 | L40: 6.58 | M40: 156.09 | N40: 162.67 | O40: 745.65 | P40: 岩石地 | R40: 29.29
B41: 蓄積 | C41: 129971 | D41: 47030 | E41: 40 | F41: 19755 | I41: 196796 | L41: 717 | M41: 16559 | N41: 17276 | O41: 214072 | P41: 崩壊地 | R41: 109.86
B42: 成長 | C42: 1557.8 | D42: 614.3 | E42: 0.5 | F42: 218.8 | I42: 2391.4 | L42: 13.6 | M42: 314.3 | N42: 327.9 | O42: 2719.3 | P42: はげ山
A43: 13 | B43: 面積 | C43: 427.55 | D43: 206.97 | F43: 140.21 | G43: 9.98 | I43: 784.71 | L43: 21.1 | M43: 382.68 | N43: 403.78 | O43: 1188.49 | P43: 施設敷 | R43: 30.37
B44: 蓄積 | C44: 177647 | D44: 56748 | F44: 33585 | G44: 3071 | I44: 271051 | L44: 2471 | M44: 43761 | N44: 46232 | O44: 317283 | P44: 林地開発
B45: 成長 | C45: 2028.2 | D45: 725.8 | F45: 338.2 | G45: 35.3 | I45: 3127.5 | L45: 37.2 | M45: 666.9 | N45: 704.1 | O45: 3831.6 | P45: 計 | R45: =SUM(R38:R44) -> 232.51
A46: 14 | B46: 面積 | C46: 399.18 | D46: 151.01 | F46: 127.04 | G46: 23.86 | I46: 701.09 | L46: 48.69 | M46: 369.77 | N46: 418.46 | O46: 1119.55 | P46: 竹 林 | R46: 30.64
B47: 蓄積 | C47: 175018 | D47: 43561 | F47: 31396 | G47: 7492 | I47: 257467 | L47: 5824 | M47: 44167 | N47: 49991 | O47: 307458 | P47: 更新 困難地 | Q47: 面積
B48: 成長 | C48: 1513.8 | D48: 516.3 | F48: 246.3 | G48: 79.2 | I48: 2355.6 | L48: 71.8 | M48: 536.2 | N48: 608 | O48: 2963.6 | Q48: 蓄積
A49: 15 以上 | B49: 面積 | C49: 724.11 | D49: 462.49 | E49: 1.07 | F49: 184.89 | G49: 65.41 | H49: 94.93 | I49: 1532.9 | K49: 24.66 | L49: 175.38 | M49: 3008.24 | N49: 3208.28 | O49: 4741.18 | Q49: 成長
B50: 蓄積 | C50: 343155 | D50: 143905 | E50: 385 | F50: 49210 | G50: 19537 | H50: 21861 | I50: 578053 | K50: 3946 | L50: 22778 | M50: 379136 | N50: 405860 | O50: 983913
B51: 成長 | C51: 248.6 | D51: 333.2 | E51: 0.6 | F51: 222.4 | G51: 160.5 | H51: 211.9 | I51: 1177.2 | K51: 39.4 | L51: 121.3 | M51: 1754.5 | N51: 1915.2 | O51: 3092.4 | P51: 総 合 計
A52: 計 | B52: 面積 | C52: =SUM(C7,C10,C13,C16,C19,C22,C25,C28,C31,C34,C37,C40,C43,C46,C49) -> 2210.35 | D52: 2350.55 | E52: 1.27 | F52: 564.37 | G52: 99.38 | H52: 95.67 | I52: =SUM(C52:H52) -> 5321.59 | J52: =SUM(J7,J10,J13,J16,J19,J22,J25,J28,J31,J34,J37,J40,J43,J46,J49) -> 0 | K52: =SUM(K7,K10,K13,K16,K19,K22,K25,K28,K31,K34,K37,K40,K43,K46,K49) -> 24.66 | L52: =SUM(L7,L10,L13,L16,L19,L22,L25,L28,L31,L34,L37,L40,L43,L46,L49) -> 277.6 | M52: =SUM(M7,M10,M13,M16,M19,M22,M25,M28,M31,M34,M37,M40,M43,M46,M49) -> 4337.38 | N52: =SUM(J52:M52) -> 4639.64 | O52: 9961.23 | P52: 面 積 | R52: =SUM(O52,R45,R47,R46) -> 10224.38
B53: 蓄積 | C53: 945258 | D53: 559334 | E53: 431 | F53: 139641 | G53: 30126 | H53: 21952 | I53: =SUM(C53:H53) -> 1696742 | J53: =SUM(J8,J11,J14,J17,J20,J23,J26,J29,J32,J35,J38,J41,J44,J47,J50) -> 0 | K53: 3946 | L53: 33261 | M53: 512408 | N53: =SUM(J53:M53) -> 549615 | O53: 2246357 | P53: 蓄積 | R53: =O53+R48 -> 2246357
B54: 成長 | C54: 7191.2 | D54: 8574.6 | E54: 1.5 | F54: 1090.9 | G54: 275.6 | H54: 214.6 | I54: =SUM(C54:H54) -> 17348.4 | J54: 0 | K54: 39.4 | L54: 289.6 | M54: 4080.1 | N54: =SUM(J54:M54) -> 4409.1 | O54: 21757.5 | P54: 成長量 | R54: =O54+R49 -> 21757.5

Sheet 泰阜村
A1: 第11表 市町村別・資源構成表 （伊那谷）
A3: =MID(CELL("filename",$A$1),FIND("]",CELL("filename",$A$1))+1,31) -> 泰阜村 | O3: 単位 面積 : ha、蓄積 成長量 : ㎥
B4: 樹種 | C4: 針 葉 樹 | J4: 広 葉 樹 | O4: 計
C5: ス ギ | D5: ヒ ノ キ | E5: サ ワ ラ | F5: ア カ マ ツ | G5: カ ラ マ ツ | H5: そ の 他 針 | I5: 小 計 | J5: ク ヌ ギ | K5: ブ ナ | L5: ナ ラ | M5: そ の 他 広 | N5: 小 計
A6: 齢級
A7: 1 | B7: 面積 | I7: 0 | N7: 0 | O7: =SUM(N7,I7) -> 0
B8: 蓄積 | I8: 0 | N8: 0 | O8: =SUM(N8,I8) -> 0
B9: 成長 | I9: 0 | N9: 0 | O9: 0
A10: 2 | B10: 面積 | D10: 0.19 | I10: 0.19 | N10: 0 | O10: 0.19
B11: 蓄積 | D11: 0 | I11: 0 | N11: 0 | O11: 0
B12: 成長 | D12: 0 | I12: 0 | N12: 0 | O12: 0
A13: 3 | B13: 面積 | I13: 0 | M13: 1.61 | N13: 1.61 | O13: 1.61
B14: 蓄積 | I14: 0 | M14: 33 | N14: 33 | O14: 33
B15: 成長 | I15: 0 | M15: 2.7 | N15: 2.7 | O15: 2.7
A16: 4 | B16: 面積 | D16: 9.55 | F16: 0.22 | I16: 9.77 | L16: 0.25 | M16: 3.43 | N16: 3.68 | O16: 13.45
B17: 蓄積 | D17: 799 | F17: 21 | I17: 820 | L17: 6 | M17: 113 | N17: 119 | O17: 939
B18: 成長 | D18: 72.7 | F18: 1.8 | I18: 74.5 | L18: 0.4 | M18: 7.5 | N18: 7.9 | O18: 82.4
A19: 5 | B19: 面積 | D19: 12.83 | F19: 0.86 | I19: 13.69 | L19: 0.56 | M19: 4.94 | N19: 5.5 | O19: 19.19
B20: 蓄積 | D20: 1315 | F20: 98 | I20: 1413 | L20: 22 | M20: 196 | N20: 218 | O20: 1631
B21: 成長 | D21: 80.2 | F21: 5.1 | I21: 85.3 | L21: 1.1 | M21: 9.6 | N21: 10.7 | O21: 96
A22: 6 | B22: 面積 | D22: 27.35 | F22: 0.17 | I22: 27.52 | L22: 0.06 | M22: 6.02 | N22: 6.08 | O22: 33.6
B23: 蓄積 | D23: 3732 | F23: 25 | I23: 3757 | L23: 3 | M23: 309 | N23: 312 | O23: 4069
B24: 成長 | D24: 156.7 | F24: 0.9 | I24: 157.6 | L24: 0.1 | M24: 12 | N24: 12.1 | O24: 169.7
A25: 7 | B25: 面積 | D25: 34.49 | F25: 3.14 | I25: 37.63 | J25: 0.3 | L25: 2.72 | M25: 31.69 | N25: 34.71 | O25: 72.34
B26: 蓄積 | D26: 5389 | F26: 534 | I26: 5923 | J26: 24 | L26: 172 | M26: 1995 | N26: 2191 | O26: 8114
B27: 成長 | D27: 184.7 | F27: 12.8 | I27: 197.5 | J27: 0 | L27: 5.5 | M27: 64.2 | N27: 69.7 | O27: 267.2
A28: 8 | B28: 面積 | C28: 0.63 | D28: 141.84 | F28: 1.2 | I28: 143.67 | J28: 0.06 | L28: 8.13 | M28: 99.17 | N28: 107.36 | O28: 251.03
B29: 蓄積 | C29: 161 | D29: 26122 | F29: 205 | I29: 26488 | J29: 5 | L29: 554 | M29: 7102 | N29: 7661 | O29: 34149
B30: 成長 | C30: 3.7 | D30: 681.1 | F30: 4 | I30: 688.8 | J30: 0 | L30: 16.1 | M30: 204.8 | N30: 220.9 | O30: 909.7
A31: 9 | B31: 面積 | C31: 2.56 | D31: 162.38 | F31: 6.52 | G31: 0.16 | I31: 171.62 | J31: 0.29 | L31: 15.71 | M31: 65.96 | N31: 81.96 | O31: 253.58
B32: 蓄積 | C32: 728 | D32: 33879 | F32: 1197 | G32: 36 | I32: 35840 | J32: 24 | L32: 1309 | M32: 5301 | N32: 6634 | O32: 42474
B33: 成長 | C33: 12.4 | D33: 746.1 | F33: 18.6 | G33: 0.8 | I33: 777.9 | J33: 0 | L33: 35.5 | M33: 143.1 | N33: 178.6 | O33: 956.5
A34: 10 | B34: 面積 | C34: 4.58 | D34: 166.35 | F34: 8.6 | G34: 1.47 | I34: 181 | J34: 0.02 | K34: 3.86 | L34: 5.04 | M34: 96.49 | N34: 105.41 | O34: 286.41
B35: 蓄積 | C35: 1383 | D35: 37874 | F35: 1826 | G35: 354 | I35: 41437 | J35: 2 | K35: 304 | L35: 453 | M35: 8379 | N35: 9138 | O35: 50575
B36: 成長 | C36: 19.5 | D36: 683.8 | F36: 22 | G36: 5.3 | I36: 730.6 | J36: 0 | K36: 9.6 | L36: 10.8 | M36: 199 | N36: 219.4 | O36: 950
A37: 11 | B37: 面積 | C37: 14.43 | D37: 169.74 | F37: 112.84 | H37: 3.28 | I37: 300.29 | J37: 0.22 | K37: 3.28 | L37: 7.47 | M37: 131.33 | N37: 142.3 | O37: 442.59
B38: 蓄積 | C38: 4700 | D38: 42127 | F38: 25100 | H38: 479 | I38: 72406 | J38: 18 | K38: 302 | L38: 775 | M38: 13359 | N38: 14454 | O38: 86860 | P38: 伐 跡 | R38: 0.14
B39: 成長 | C39: 65.8 | D39: 673.7 | F39: 278 | H39: 11.4 | I39: 1028.9 | J39: 0 | K39: 7.8 | L39: 15.5 | M39: 267.1 | N39: 290.4 | O39: 1319.3 | P39: 未立木地 | R39: 5.37
A40: 12 | B40: 面積 | C40: 18.4 | D40: 62.01 | F40: 308.81 | G40: 35.41 | H40: 6.54 | I40: 431.17 | J40: 1.57 | K40: 2.2 | L40: 21.22 | M40: 277.96 | N40: 302.95 | O40: 734.12 | P40: 岩石地 | R40: 5.82
B41: 蓄積 | C41: 6340 | D41: 16467 | F41: 70709 | G41: 8489 | H41: 1110 | I41: 103115 | J41: 128 | K41: 240 | L41: 2348 | M41: 28099 | N41: 30815 | O41: 133930 | P41: 崩壊地 | R41: 34.2
B42: 成長 | C42: 82.2 | D42: 214.7 | F42: 779.8 | G42: 105.9 | H42: 21.1 | I42: 1203.7 | J42: 0 | K42: 5.8 | L42: 42 | M42: 533.8 | N42: 581.6 | O42: 1785.3 | P42: はげ山 | R42: 0.26
A43: 13 | B43: 面積 | C43: 34.56 | D43: 60.11 | F43: 243.07 | G43: 14.83 | H43: 1.06 | I43: 353.63 | J43: 0.62 | K43: 7.49 | L43: 29.96 | M43: 331.95 | N43: 370.02 | O43: 723.65 | P43: 施設敷 | R43: 2.25
B44: 蓄積 | C44: 12282 | D44: 16435 | F44: 58015 | G44: 4404 | H44: 184 | I44: 91320 | J44: 51 | K44: 575 | L44: 3508 | M44: 35478 | N44: 39612 | O44: 130932 | P44: 林地開発
B45: 成長 | C45: 155.7 | D45: 211.2 | F45: 620.2 | G45: 57.3 | H45: 3.5 | I45: 1047.9 | J45: 0 | K45: 13.7 | L45: 52.6 | M45: 558.1 | N45: 624.4 | O45: 1672.3 | P45: 計 | R45: =SUM(R38:R44) -> 48.04
A46: 14 | B46: 面積 | C46: 16.22 | D46: 26.04 | F46: 98.89 | G46: 0.15 | H46: 0.2 | I46: 141.5 | J46: 2.15 | L46: 65.31 | M46: 316.51 | N46: 383.97 | O46: 525.47 | P46: 竹 林 | R46: 29.35
B47: 蓄積 | C47: 6113 | D47: 7511 | F47: 24180 | G47: 47 | H47: 38 | I47: 37889 | J47: 176 | L47: 7938 | M47: 37339 | N47: 45453 | O47: 83342 | P47: 更新 困難地 | Q47: 面積
B48: 成長 | C48: 61.2 | D48: 88.6 | F48: 188.2 | G48: 0.4 | H48: 0.6 | I48: 339 | J48: 0 | L48: 95.2 | M48: 455.6 | N48: 550.8 | O48: 889.8 | Q48: 蓄積
A49: 15 以上 | B49: 面積 | C49: 35.57 | D49: 65.8 | F49: 249.33 | G49: 0.7 | H49: 57.94 | I49: 409.34 | J49: 0.64 | K49: 46.08 | L49: 299.61 | M49: 1409.74 | N49: 1756.07 | O49: 2165.41 | Q49: 成長
B50: 蓄積 | C50: 13993 | D50: 20410 | F50: 66235 | G50: 233 | H50: 11396 | I50: 112267 | J50: 53 | K50: 7158 | L50: 38523 | M50: 175209 | N50: 220943 | O50: 333210
B51: 成長 | C51: 83 | D51: 106.3 | F51: 336.4 | G51: 1.3 | H51: 75.1 | I51: 602.1 | J51: 0 | K51: 23.8 | L51: 246.3 | M51: 985.6 | N51: 1255.7 | O51: 1857.8 | P51: 総 合 計
A52: 計 | B52: 面積 | C52: =SUM(C7,C10,C13,C16,C19,C22,C25,C28,C31,C34,C37,C40,C43,C46,C49) -> 126.95 | D52: 938.68 | E52: 0 | F52: 1033.65 | G52: 52.72 | H52: 69.02 | I52: =SUM(C52:H52) -> 2221.02 | J52: =SUM(J7,J10,J13,J16,J19,J22,J25,J28,J31,J34,J37,J40,J43,J46,J49) -> 5.87 | K52: =SUM(K7,K10,K13,K16,K19,K22,K25,K28,K31,K34,K37,K40,K43,K46,K49) -> 62.91 | L52: =SUM(L7,L10,L13,L16,L19,L22,L25,L28,L31,L34,L37,L40,L43,L46,L49) -> 456.04 | M52: =SUM(M7,M10,M13,M16,M19,M22,M25,M28,M31,M34,M37,M40,M43,M46,M49) -> 2776.8 | N52: =SUM(J52:M52) -> 3301.62 | O52: 5522.64 | P52: 面 積 | R52: =SUM(O52,R45,R47,R46) -> 5600.03
B53: 蓄積 | C53: 45700 | D53: 212060 | E53: 0 | F53: 248145 | G53: 13563 | H53: 13207 | I53: =SUM(C53:H53) -> 532675 | J53: =SUM(J8,J11,J14,J17,J20,J23,J26,J29,J32,J35,J38,J41,J44,J47,J50) -> 481 | K53: 8579 | L53: 55611 | M53: 312912 | N53: =SUM(J53:M53) -> 377583 | O53: 910258 | P53: 蓄積 | R53: =O53+R48 -> 910258
B54: 成長 | C54: 483.5 | D54: 3899.8 | E54: 0 | F54: 2267.8 | G54: 171 | H54: 111.7 | I54: =SUM(C54:H54) -> 6933.8 | J54: 0 | K54: 60.7 | L54: 521.1 | M54: 3443.1 | N54: =SUM(J54:M54) -> 4024.9 | O54: 10958.7 | P54: 成長量 | R54: =O54+R49 -> 10958.7

Sheet 喬木村
A1: 第11表 市町村別・資源構成表 （伊那谷）
A3: =MID(CELL("filename",$A$1),FIND("]",CELL("filename",$A$1))+1,31) -> 喬木村 | O3: 単位 面積 : ha、蓄積 成長量 : ㎥
B4: 樹種 | C4: 針 葉 樹 | J4: 広 葉 樹 | O4: 計
C5: ス ギ | D5: ヒ ノ キ | E5: サ ワ ラ | F5: ア カ マ ツ | G5: カ ラ マ ツ | H5: そ の 他 針 | I5: 小 計 | J5: ク ヌ ギ | K5: ブ ナ | L5: ナ ラ | M5: そ の 他 広 | N5: 小 計
A6: 齢級
A7: 1 | B7: 面積 | I7: 0 | N7: 0 | O7: =SUM(N7,I7) -> 0
B8: 蓄積 | I8: 0 | N8: 0 | O8: =SUM(N8,I8) -> 0
B9: 成長 | I9: 0 | N9: 0 | O9: 0
A10: 2 | B10: 面積 | D10: 1.05 | H10: 0.22 | I10: 1.27 | L10: 0.07 | M10: 3.05 | N10: 3.12 | O10: 4.39
B11: 蓄積 | D11: 0 | H11: 0 | I11: 0 | L11: 1 | M11: 38 | N11: 39 | O11: 39
B12: 成長 | D12: 0 | H12: 0 | I12: 0 | L12: 0.1 | M12: 5.6 | N12: 5.7 | O12: 5.7
A13: 3 | B13: 面積 | D13: 2.77 | I13: 2.77 | L13: 0.5 | M13: 3.29 | N13: 3.79 | O13: 6.56
B14: 蓄積 | D14: 132 | I14: 132 | L14: 11 | M14: 86 | N14: 97 | O14: 229
B15: 成長 | D15: 28.4 | I15: 28.4 | L15: 1 | M15: 7.3 | N15: 8.3 | O15: 36.7
A16: 4 | B16: 面積 | D16: 14.63 | I16: 14.63 | L16: 0.07 | M16: 1.17 | N16: 1.24 | O16: 15.87
B17: 蓄積 | D17: 1136 | I17: 1136 | L17: 2 | M17: 28 | N17: 30 | O17: 1166
B18: 成長 | D18: 102.9 | I18: 102.9 | L18: 0.1 | M18: 1.9 | N18: 2 | O18: 104.9
A19: 5 | B19: 面積 | D19: 20.15 | F19: 0.28 | G19: 0.13 | H19: 0.27 | I19: 20.83 | L19: 0.02 | M19: 6.09 | N19: 6.11 | O19: 26.94
B20: 蓄積 | D20: 2095 | F20: 29 | G20: 16 | H20: 13 | I20: 2153 | L20: 1 | M20: 247 | N20: 248 | O20: 2401
B21: 成長 | D21: 127.6 | F21: 1.5 | G21: 0.9 | H21: 0.9 | I21: 130.9 | L21: 0 | M21: 11.6 | N21: 11.6 | O21: 142.5
A22: 6 | B22: 面積 | D22: 35.21 | F22: 0.01 | I22: 35.22 | L22: 2.8 | M22: 25.29 | N22: 28.09 | O22: 63.31
B23: 蓄積 | D23: 4729 | F23: 1 | I23: 4730 | L23: 137 | M23: 1334 | N23: 1471 | O23: 6201
B24: 成長 | D24: 199.1 | F24: 0 | I24: 199.1 | L24: 5.3 | M24: 49 | N24: 54.3 | O24: 253.4
A25: 7 | B25: 面積 | D25: 27.51 | F25: 0.05 | H25: 2.38 | I25: 29.94 | L25: 0.89 | M25: 2.05 | N25: 2.94 | O25: 32.88
B26: 蓄積 | D26: 5278 | F26: 8 | H26: 195 | I26: 5481 | L26: 53 | M26: 118 | N26: 171 | O26: 5652
B27: 成長 | D27: 179.3 | F27: 0.2 | H27: 8.6 | I27: 188.1 | L27: 1.7 | M27: 3.8 | N27: 5.5 | O27: 193.6
A28: 8 | B28: 面積 | C28: 0.12 | D28: 48.42 | F28: 0.96 | I28: 49.5 | J28: 0.13 | L28: 0.93 | M28: 11.04 | N28: 12.1 | O28: 61.6
B29: 蓄積 | C29: 31 | D29: 9090 | F29: 177 | I29: 9298 | J29: 10 | L29: 72 | M29: 825 | N29: 907 | O29: 10205
B30: 成長 | C30: 0.7 | D30: 241.4 | F30: 3.6 | I30: 245.7 | J30: 0 | L30: 2 | M30: 24 | N30: 26 | O30: 271.7
A31: 9 | B31: 面積 | C31: 0.81 | D31: 80.31 | F31: 10.99 | G31: 0.1 | I31: 92.21 | L31: 2.02 | M31: 20.99 | N31: 23.01 | O31: 115.22
B32: 蓄積 | C32: 237 | D32: 17183 | F32: 2152 | G32: 24 | I32: 19596 | L32: 160 | M32: 1607 | N32: 1767 | O32: 21363
B33: 成長 | C33: 4 | D33: 378.6 | F33: 32.4 | G33: 0.5 | I33: 415.5 | L33: 4.4 | M33: 43 | N33: 47.4 | O33: 462.9
A34: 10 | B34: 面積 | C34: 0.41 | D34: 164.05 | F34: 43.35 | G34: 1.61 | I34: 209.42 | L34: 0.74 | M34: 13.93 | N34: 14.67 | O34: 224.09
B35: 蓄積 | C35: 126 | D35: 36064 | F35: 8813 | G35: 401 | I35: 45404 | L35: 68 | M35: 1238 | N35: 1306 | O35: 46710
B36: 成長 | C36: 1.8 | D36: 655.6 | F36: 108.6 | G36: 6.1 | I36: 772.1 | L36: 1.5 | M36: 28.8 | N36: 30.3 | O36: 802.4
A37: 11 | B37: 面積 | C37: 3.23 | D37: 153.87 | F37: 155.32 | G37: 10.4 | I37: 322.82 | L37: 0.36 | M37: 30.63 | N37: 30.99 | O37: 353.81
B38: 蓄積 | C38: 1053 | D38: 38272 | F38: 34579 | G38: 2253 | I38: 76157 | L38: 36 | M38: 3103 | N38: 3139 | O38: 79296 | P38: 伐 跡
B39: 成長 | C39: 14.6 | D39: 611.9 | F39: 380.6 | G39: 31.7 | I39: 1038.8 | L39: 0.7 | M39: 61 | N39: 61.7 | O39: 1100.5 | P39: 未立木地 | R39: 1.75
A40: 12 | B40: 面積 | C40: 4.39 | D40: 43.24 | F40: 267.57 | G40: 98.06 | H40: 0.1 | I40: 413.36 | L40: 0.89 | M40: 52.91 | N40: 53.8 | O40: 467.16 | P40: 岩石地 | R40: 32.68
B41: 蓄積 | C41: 1536 | D41: 11369 | F41: 61771 | G41: 28157 | H41: 17 | I41: 102850 | L41: 99 | M41: 5337 | N41: 5436 | O41: 108286 | P41: 崩壊地 | R41: 37.49
B42: 成長 | C42: 20 | D42: 148.4 | F42: 681.2 | G42: 366 | H42: 0.3 | I42: 1215.9 | L42: 1.7 | M42: 101.1 | N42: 102.8 | O42: 1318.7 | P42: はげ山 | R42: 0.06
A43: 13 | B43: 面積 | C43: 4.61 | D43: 43.06 | F43: 98.31 | G43: 133.22 | H43: 2.55 | I43: 281.75 | L43: 4.47 | M43: 251.95 | N43: 256.42 | O43: 538.17 | P43: 施設敷 | R43: 1.03
B44: 蓄積 | C44: 1615 | D44: 11767 | F44: 23527 | G44: 39632 | H44: 479 | I44: 77020 | L44: 520 | M44: 27069 | N44: 27589 | O44: 104609 | P44: 林地開発
B45: 成長 | C45: 20.1 | D45: 149.9 | F45: 247.4 | G45: 510.8 | H45: 7.7 | I45: 935.9 | L45: 8.1 | M45: 421.9 | N45: 430 | O45: 1365.9 | P45: 計 | R45: =SUM(R38:R44) -> 73.01
A46: 14 | B46: 面積 | C46: 7.86 | D46: 60.81 | F46: 73.11 | G46: 164 | I46: 305.78 | L46: 25.91 | M46: 404.54 | N46: 430.45 | O46: 736.23 | P46: 竹 林 | R46: 43.6
B47: 蓄積 | C47: 2973 | D47: 17411 | F47: 18028 | G47: 45958 | I47: 84370 | L47: 3157 | M47: 46451 | N47: 49608 | O47: 133978 | P47: 更新 困難地 | Q47: 面積
B48: 成長 | C48: 28.7 | D48: 206 | F48: 139.5 | G48: 442.1 | I48: 816.3 | L48: 37.9 | M48: 591.8 | N48: 629.7 | O48: 1446 | Q48: 蓄積
A49: 15 以上 | B49: 面積 | C49: 16.85 | D49: 103.53 | E49: 0.16 | F49: 337.57 | G49: 187.48 | H49: 93.25 | I49: 738.84 | L49: 18.34 | M49: 733.06 | N49: 751.4 | O49: 1490.24 | Q49: 成長
B50: 蓄積 | C50: 6823 | D50: 32209 | E50: 51 | F50: 90840 | G50: 57427 | H50: 23311 | I50: 210661 | L50: 2386 | M50: 92887 | N50: 95273 | O50: 305934
B51: 成長 | C51: 27.5 | D51: 166 | E51: 0.3 | F51: 446.2 | G51: 427.9 | H51: 173.5 | I51: 1241.4 | L51: 21.6 | M51: 777 | N51: 798.6 | O51: 2040 | P51: 総 合 計
A52: 計 | B52: 面積 | C52: =SUM(C7,C10,C13,C16,C19,C22,C25,C28,C31,C34,C37,C40,C43,C46,C49) -> 38.28 | D52: 798.61 | E52: 0.16 | F52: 987.52 | G52: 595 | H52: 98.77 | I52: =SUM(C52:H52) -> 2518.34 | J52: =SUM(J7,J10,J13,J16,J19,J22,J25,J28,J31,J34,J37,J40,J43,J46,J49) -> 0.13 | K52: =SUM(K7,K10,K13,K16,K19,K22,K25,K28,K31,K34,K37,K40,K43,K46,K49) -> 0 | L52: =SUM(L7,L10,L13,L16,L19,L22,L25,L28,L31,L34,L37,L40,L43,L46,L49) -> 58.01 | M52: =SUM(M7,M10,M13,M16,M19,M22,M25,M28,M31,M34,M37,M40,M43,M46,M49) -> 1559.99 | N52: =SUM(J52:M52) -> 1618.13 | O52: 4136.47 | P52: 面 積 | R52: =SUM(O52,R45,R47,R46) -> 4253.08
B53: 蓄積 | C53: 14394 | D53: 186735 | E53: 51 | F53: 239925 | G53: 173868 | H53: 24015 | I53: =SUM(C53:H53) -> 638988 | J53: =SUM(J8,J11,J14,J17,J20,J23,J26,J29,J32,J35,J38,J41,J44,J47,J50) -> 10 | K53: 0 | L53: 6703 | M53: 180368 | N53: =SUM(J53:M53) -> 187081 | O53: 826069 | P53: 蓄積 | R53: =O53+R48 -> 826069
B54: 成長 | C54: 117.4 | D54: 3195.1 | E54: 0.3 | F54: 2041.2 | G54: 1786 | H54: 191 | I54: =SUM(C54:H54) -> 7331 | J54: 0 | K54: 0 | L54: 86.1 | M54: 2127.8 | N54: =SUM(J54:M54) -> 2213.9 | O54: 9544.9 | P54: 成長量 | R54: =O54+R49 -> 9544.9

Sheet 豊丘村
A1: 第11表 市町村別・資源構成表 （伊那谷）
A3: =MID(CELL("filename",$A$1),FIND("]",CELL("filename",$A$1))+1,31) -> 豊丘村 | O3: 単位 面積 : ha、蓄積 成長量 : ㎥
B4: 樹種 | C4: 針 葉 樹 | J4: 広 葉 樹 | O4: 計
C5: ス ギ | D5: ヒ ノ キ | E5: サ ワ ラ | F5: ア カ マ ツ | G5: カ ラ マ ツ | H5: そ の 他 針 | I5: 小 計 | J5: ク ヌ ギ | K5: ブ ナ | L5: ナ ラ | M5: そ の 他 広 | N5: 小 計
A6: 齢級
A7: 1 | B7: 面積 | I7: 0 | N7: 0 | O7: =SUM(N7,I7) -> 0
B8: 蓄積 | I8: 0 | N8: 0 | O8: =SUM(N8,I8) -> 0
B9: 成長 | I9: 0 | N9: 0 | O9: 0
A10: 2 | B10: 面積 | D10: 3.95 | I10: 3.95 | N10: 0 | O10: 3.95
B11: 蓄積 | D11: 0 | I11: 0 | N11: 0 | O11: 0
B12: 成長 | D12: 0 | I12: 0 | N12: 0 | O12: 0
A13: 3 | B13: 面積 | D13: 1.26 | I13: 1.26 | M13: 0.15 | N13: 0.15 | O13: 1.41
B14: 蓄積 | D14: 65 | I14: 65 | M14: 3 | N14: 3 | O14: 68
B15: 成長 | D15: 13.7 | I15: 13.7 | M15: 0.3 | N15: 0.3 | O15: 14
A16: 4 | B16: 面積 | D16: 11.15 | F16: 1.14 | I16: 12.29 | L16: 2.91 | M16: 0.76 | N16: 3.67 | O16: 15.96
B17: 蓄積 | D17: 871 | F17: 98 | I17: 969 | L17: 104 | M17: 19 | N17: 123 | O17: 1092
B18: 成長 | D18: 80 | F18: 8 | I18: 88 | L18: 6.7 | M18: 1.2 | N18: 7.9 | O18: 95.9
A19: 5 | B19: 面積 | D19: 18.05 | F19: 0.85 | H19: 0.02 | I19: 18.92 | L19: 1.29 | M19: 25.6 | N19: 26.89 | O19: 45.81
B20: 蓄積 | D20: 1818 | F20: 46 | H20: 1 | I20: 1865 | L20: 51 | M20: 843 | N20: 894 | O20: 2759
B21: 成長 | D21: 111 | F21: 2.4 | H21: 0.1 | I21: 113.5 | L21: 2.2 | M21: 36.8 | N21: 39 | O21: 152.5
A22: 6 | B22: 面積 | D22: 40.97 | F22: 2.07 | G22: 2.7 | I22: 45.74 | L22: 0.32 | M22: 62.42 | N22: 62.74 | O22: 108.48
B23: 蓄積 | D23: 7462 | F23: 276 | G23: 396 | I23: 8134 | L23: 16 | M23: 3148 | N23: 3164 | O23: 11298
B24: 成長 | D24: 313.4 | F24: 10.2 | G24: 14.3 | I24: 337.9 | L24: 0.6 | M24: 118.9 | N24: 119.5 | O24: 457.4
A25: 7 | B25: 面積 | C25: 0.39 | D25: 9.29 | F25: 20.42 | I25: 30.1 | L25: 0.27 | M25: 138.27 | N25: 138.54 | O25: 168.64
B26: 蓄積 | C26: 89 | D26: 1768 | F26: 3175 | I26: 5032 | L26: 16 | M26: 8210 | N26: 8226 | O26: 13258
B27: 成長 | C27: 2.4 | D27: 60.2 | F27: 76 | I27: 138.6 | L27: 0.6 | M27: 265.3 | N27: 265.9 | O27: 404.5
A28: 8 | B28: 面積 | C28: 1.14 | D28: 33.15 | F28: 8.25 | G28: 11.12 | H28: 9.3 | I28: 62.96 | J28: 0.05 | L28: 2.54 | M28: 22.27 | N28: 24.86 | O28: 87.82
B29: 蓄積 | C29: 293 | D29: 6253 | F29: 1521 | G29: 1733 | H29: 921 | I29: 10721 | J29: 4 | L29: 173 | M29: 1541 | N29: 1718 | O29: 12439
B30: 成長 | C30: 6.8 | D30: 164.3 | F30: 30.4 | G30: 43.8 | H30: 34 | I30: 279.3 | J30: 0 | L30: 4.9 | M30: 43.5 | N30: 48.4 | O30: 327.7
A31: 9 | B31: 面積 | C31: 0.07 | D31: 60.6 | F31: 14.05 | G31: 15.68 | I31: 90.4 | L31: 0.8 | M31: 42.81 | N31: 43.61 | O31: 134.01
B32: 蓄積 | C32: 19 | D32: 12630 | F32: 2621 | G32: 2545 | I32: 17815 | L32: 67 | M32: 3110 | N32: 3177 | O32: 20992
B33: 成長 | C33: 0.3 | D33: 278.2 | F33: 40.2 | G33: 44.2 | I33: 362.9 | L33: 1.8 | M33: 81.9 | N33: 83.7 | O33: 446.6
A34: 10 | B34: 面積 | C34: 1.34 | D34: 121.45 | F34: 71.93 | G34: 2.77 | I34: 197.49 | L34: 0.58 | M34: 19.06 | N34: 19.64 | O34: 217.13
B35: 蓄積 | C35: 392 | D35: 27915 | F35: 15052 | G35: 679 | I35: 44038 | L35: 53 | M35: 1663 | N35: 1716 | O35: 45754
B36: 成長 | C36: 5.7 | D36: 505.7 | F36: 181.6 | G36: 10.2 | I36: 703.2 | L36: 1.2 | M36: 38.8 | N36: 40 | O36: 743.2
A37: 11 | B37: 面積 | C37: 2.18 | D37: 140.85 | F37: 197.77 | G37: 7.96 | I37: 348.76 | L37: 0.76 | M37: 43.45 | N37: 44.21 | O37: 392.97
B38: 蓄積 | C38: 709 | D38: 34737 | F38: 43479 | G38: 2177 | I38: 81102 | L38: 80 | M38: 4347 | N38: 4427 | O38: 85529 | P38: 伐 跡
B39: 成長 | C39: 9.7 | D39: 556.7 | F39: 483.5 | G39: 30.6 | I39: 1080.5 | L39: 1.7 | M39: 85.8 | N39: 87.5 | O39: 1168 | P39: 未立木地 | R39: 11.77
A40: 12 | B40: 面積 | C40: 8.83 | D40: 66.7 | F40: 261.8 | G40: 120.41 | I40: 457.74 | J40: 0.12 | L40: 3.47 | M40: 116.05 | N40: 119.64 | O40: 577.38 | P40: 岩石地 | R40: 9.46
B41: 蓄積 | C41: 3005 | D41: 17731 | F41: 59362 | G41: 34601 | I41: 114699 | J41: 10 | L41: 366 | M41: 12288 | N41: 12664 | O41: 127363 | P41: 崩壊地 | R41: 37.91
B42: 成長 | C42: 38.5 | D42: 230.8 | F42: 657 | G42: 449.9 | I42: 1376.2 | J42: 0 | L42: 6.6 | M42: 238.8 | N42: 245.4 | O42: 1621.6 | P42: はげ山 | R42: 1.75
A43: 13 | B43: 面積 | C43: 25.85 | D43: 64.12 | F43: 217.59 | G43: 37.57 | I43: 345.13 | J43: 0.31 | L43: 11.87 | M43: 122.67 | N43: 134.85 | O43: 479.98 | P43: 施設敷 | R43: 7.12
B44: 蓄積 | C44: 9245 | D44: 17606 | F44: 51547 | G44: 11367 | I44: 89765 | J44: 25 | L44: 1313 | M44: 13799 | N44: 15137 | O44: 104902 | P44: 林地開発
B45: 成長 | C45: 112.9 | D45: 224.2 | F45: 531.5 | G45: 137.6 | I45: 1006.2 | J45: 0 | L45: 20.2 | M45: 206.1 | N45: 226.3 | O45: 1232.5 | P45: 計 | R45: =SUM(R38:R44) -> 68.01
A46: 14 | B46: 面積 | C46: 24.07 | D46: 97.97 | F46: 210.86 | G46: 238.44 | H46: 0.35 | I46: 571.69 | J46: 0.31 | L46: 30.37 | M46: 228.56 | N46: 259.24 | O46: 830.93 | P46: 竹 林 | R46: 55.57
B47: 蓄積 | C47: 8912 | D47: 28145 | F47: 51897 | G47: 74738 | H47: 66 | I47: 163758 | J47: 25 | L47: 3625 | M47: 27090 | N47: 30740 | O47: 194498 | P47: 更新 困難地 | Q47: 面積
B48: 成長 | C48: 88.6 | D48: 335.6 | F48: 400.5 | G48: 786.5 | H48: 1.1 | I48: 1612.3 | J48: 0 | L48: 45 | M48: 326.9 | N48: 371.9 | O48: 1984.2 | Q48: 蓄積
A49: 15 以上 | B49: 面積 | C49: 18.86 | D49: 125.01 | F49: 600.86 | G49: 217.42 | H49: 66.02 | I49: 1028.17 | J49: 0.9 | L49: 45.79 | M49: 689.69 | N49: 736.38 | O49: 1764.55 | Q49: 成長
B50: 蓄積 | C50: 7526 | D50: 37402 | F50: 156163 | G50: 71026 | H50: 18441 | I50: 290558 | J50: 68 | L50: 5611 | M50: 87523 | N50: 93202 | O50: 383760
B51: 成長 | C51: 29.1 | D51: 154.8 | F51: 790.9 | G51: 525.6 | H51: 76.7 | I51: 1577.1 | J51: 0 | L51: 53 | M51: 495.6 | N51: 548.6 | O51: 2125.7 | P51: 総 合 計
A52: 計 | B52: 面積 | C52: =SUM(C7,C10,C13,C16,C19,C22,C25,C28,C31,C34,C37,C40,C43,C46,C49) -> 82.73 | D52: 794.52 | E52: 0 | F52: 1607.59 | G52: 654.07 | H52: 75.69 | I52: =SUM(C52:H52) -> 3214.6 | J52: =SUM(J7,J10,J13,J16,J19,J22,J25,J28,J31,J34,J37,J40,J43,J46,J49) -> 1.69 | K52: =SUM(K7,K10,K13,K16,K19,K22,K25,K28,K31,K34,K37,K40,K43,K46,K49) -> 0 | L52: =SUM(L7,L10,L13,L16,L19,L22,L25,L28,L31,L34,L37,L40,L43,L46,L49) -> 100.97 | M52: =SUM(M7,M10,M13,M16,M19,M22,M25,M28,M31,M34,M37,M40,M43,M46,M49) -> 1511.76 | N52: =SUM(J52:M52) -> 1614.42 | O52: 4829.02 | P52: 面 積 | R52: =SUM(O52,R45,R47,R46) -> 4952.6
B53: 蓄積 | C53: 30190 | D53: 194403 | E53: 0 | F53: 385237 | G53: 199262 | H53: 19429 | I53: =SUM(C53:H53) -> 828521 | J53: =SUM(J8,J11,J14,J17,J20,J23,J26,J29,J32,J35,J38,J41,J44,J47,J50) -> 132 | K53: 0 | L53: 11475 | M53: 163584 | N53: =SUM(J53:M53) -> 175191 | O53: 1003712 | P53: 蓄積 | R53: =O53+R48 -> 1003712
B54: 成長 | C54: 294 | D54: 3028.6 | E54: 0 | F54: 3212.2 | G54: 2042.7 | H54: 111.9 | I54: =SUM(C54:H54) -> 8689.4 | J54: 0 | K54: 0 | L54: 144.5 | M54: 1939.9 | N54: =SUM(J54:M54) -> 2084.4 | O54: 10773.8 | P54: 成長量 | R54: =O54+R49 -> 10773.8

Sheet 大鹿村
A1: 第11表 市町村別・資源構成表 （伊那谷）
A3: =MID(CELL("filename",$A$1),FIND("]",CELL("filename",$A$1))+1,31) -> 大鹿村 | O3: 単位 面積 : ha、蓄積 成長量 : ㎥
B4: 樹種 | C4: 針 葉 樹 | J4: 広 葉 樹 | O4: 計
C5: ス ギ | D5: ヒ ノ キ | E5: サ ワ ラ | F5: ア カ マ ツ | G5: カ ラ マ ツ | H5: そ の 他 針 | I5: 小 計 | J5: ク ヌ ギ | K5: ブ ナ | L5: ナ ラ | M5: そ の 他 広 | N5: 小 計
A6: 齢級
A7: 1 | B7: 面積 | I7: 0 | N7: 0 | O7: =SUM(N7,I7) -> 0
B8: 蓄積 | I8: 0 | N8: 0 | O8: =SUM(N8,I8) -> 0
B9: 成長 | I9: 0 | N9: 0 | O9: 0
A10: 2 | B10: 面積 | I10: 0 | N10: 0 | O10: 0
B11: 蓄積 | I11: 0 | N11: 0 | O11: 0
B12: 成長 | I12: 0 | N12: 0 | O12: 0
A13: 3 | B13: 面積 | I13: 0 | M13: 2.2 | N13: 2.2 | O13: 2.2
B14: 蓄積 | I14: 0 | M14: 44 | N14: 44 | O14: 44
B15: 成長 | I15: 0 | M15: 3.9 | N15: 3.9 | O15: 3.9
A16: 4 | B16: 面積 | D16: 5.62 | E16: 9.13 | I16: 14.75 | M16: 0.17 | N16: 0.17 | O16: 14.92
B17: 蓄積 | D17: 433 | E17: 679 | I17: 1112 | M17: 6 | N17: 6 | O17: 1118
B18: 成長 | D18: 39.5 | E18: 64.2 | I18: 103.7 | M18: 0.4 | N18: 0.4 | O18: 104.1
A19: 5 | B19: 面積 | D19: 11.15 | I19: 11.15 | M19: 0.78 | N19: 0.78 | O19: 11.93
B20: 蓄積 | D20: 961 | I20: 961 | M20: 34 | N20: 34 | O20: 995
B21: 成長 | D21: 59.1 | I21: 59.1 | M21: 1.6 | N21: 1.6 | O21: 60.7
A22: 6 | B22: 面積 | D22: 44.42 | I22: 44.42 | M22: 5.9 | N22: 5.9 | O22: 50.32
B23: 蓄積 | D23: 6285 | I23: 6285 | M23: 277 | N23: 277 | O23: 6562
B24: 成長 | D24: 264.5 | I24: 264.5 | M24: 10.5 | N24: 10.5 | O24: 275
A25: 7 | B25: 面積 | C25: 0.25 | D25: 20.96 | G25: 4.8 | I25: 26.01 | L25: 9.13 | M25: 14.77 | N25: 23.9 | O25: 49.91
B26: 蓄積 | C26: 55 | D26: 3048 | G26: 848 | I26: 3951 | L26: 590 | M26: 887 | N26: 1477 | O26: 5428
B27: 成長 | C27: 1.4 | D27: 105.6 | G27: 23.7 | I27: 130.7 | L27: 19 | M27: 28.6 | N27: 47.6 | O27: 178.3
A28: 8 | B28: 面積 | C28: 1.27 | D28: 140.93 | F28: 0.22 | G28: 59.14 | H28: 1.44 | I28: 203 | L28: 1.5 | M28: 46.15 | N28: 47.65 | O28: 250.65
B29: 蓄積 | C29: 319 | D29: 25461 | F29: 42 | G29: 11797 | H29: 79 | I29: 37698 | L29: 102 | M29: 3210 | N29: 3312 | O29: 41010
B30: 成長 | C30: 7.3 | D30: 675.6 | F30: 0.9 | G30: 275.8 | H30: 2.9 | I30: 962.5 | L30: 3 | M30: 92.1 | N30: 95.1 | O30: 1057.6
A31: 9 | B31: 面積 | C31: 8.37 | D31: 301.19 | F31: 2.57 | G31: 124.53 | I31: 436.66 | M31: 64.52 | N31: 64.52 | O31: 501.18
B32: 蓄積 | C32: 2386 | D32: 62461 | F32: 517 | G32: 26704 | I32: 92068 | M32: 4449 | N32: 4449 | O32: 96517
B33: 成長 | C33: 40.6 | D33: 1373.7 | F33: 7.8 | G33: 543.7 | I33: 1965.8 | M33: 115.2 | N33: 115.2 | O33: 2081
A34: 10 | B34: 面積 | C34: 15.78 | D34: 350.32 | F34: 20.56 | G34: 452.25 | H34: 2.8 | I34: 841.71 | M34: 105.55 | N34: 105.55 | O34: 947.26
B35: 蓄積 | C35: 4720 | D35: 79799 | F35: 4309 | G35: 112385 | H35: 366 | I35: 201579 | M35: 9292 | N35: 9292 | O35: 210871
B36: 成長 | C36: 66.3 | D36: 1438.6 | F36: 51.6 | G36: 1685.8 | H36: 9.9 | I36: 3252.2 | M36: 220.6 | N36: 220.6 | O36: 3472.8
A37: 11 | B37: 面積 | C37: 57.06 | D37: 287.13 | F37: 158.04 | G37: 890.06 | I37: 1392.29 | L37: 0.36 | M37: 223.47 | N37: 223.83 | O37: 1616.12
B38: 蓄積 | C38: 18554 | D38: 70900 | F38: 34518 | G38: 230346 | I38: 354318 | L38: 36 | M38: 21924 | N38: 21960 | O38: 376278 | P38: 伐 跡 | R38: 1.14
B39: 成長 | C39: 257.9 | D39: 1138.3 | F39: 384.6 | G39: 3224.3 | I39: 5005.1 | L39: 0.7 | M39: 432.8 | N39: 433.5 | O39: 5438.6 | P39: 未立木地 | R39: 137.91
A40: 12 | B40: 面積 | C40: 125.94 | D40: 48.8 | F40: 271.85 | G40: 1179.7 | H40: 9.86 | I40: 1636.15 | L40: 1.96 | M40: 347.29 | N40: 349.25 | O40: 1985.4 | P40: 岩石地 | R40: 102.27
B41: 蓄積 | C41: 42438 | D41: 12775 | F41: 62881 | G41: 329693 | H41: 1447 | I41: 449234 | L41: 208 | M41: 33619 | N41: 33827 | O41: 483061 | P41: 崩壊地 | R41: 406.02
B42: 成長 | C42: 549.4 | D42: 166.7 | F42: 695.3 | G42: 4268.9 | H42: 27.5 | I42: 5707.8 | L42: 4.2 | M42: 631.8 | N42: 636 | O42: 6343.8 | P42: はげ山
A43: 13 | B43: 面積 | C43: 138.98 | D43: 20.14 | E43: 0.12 | F43: 244.32 | G43: 928.81 | H43: 122.9 | I43: 1455.27 | L43: 0.35 | M43: 449.49 | N43: 449.84 | O43: 1905.11 | P43: 施設敷 | R43: 48.07
B44: 蓄積 | C44: 49309 | D44: 5423 | E44: 33 | F44: 58079 | G44: 258024 | H44: 16477 | I44: 387345 | L44: 34 | M44: 48085 | N44: 48119 | O44: 435464 | P44: 林地開発 | R44: 11.49
B45: 成長 | C45: 589.7 | D45: 70.6 | E45: 0.4 | F45: 609.1 | G45: 3247 | H45: 305.8 | I45: 4822.6 | L45: 0.5 | M45: 762.6 | N45: 763.1 | O45: 5585.7 | P45: 計 | R45: =SUM(R38:R44) -> 706.9
A46: 14 | B46: 面積 | C46: 147.5 | D46: 14.62 | E46: 0.47 | F46: 75.63 | G46: 882.88 | H46: 70.18 | I46: 1191.28 | L46: 3.62 | M46: 436.94 | N46: 440.56 | O46: 1631.84 | P46: 竹 林 | R46: 29.77
B47: 蓄積 | C47: 55131 | D47: 4199 | E47: 136 | F47: 18735 | G47: 233167 | H47: 9785 | I47: 321153 | L47: 443 | M47: 50843 | N47: 51286 | O47: 372439 | P47: 更新 困難地 | Q47: 面積
B48: 成長 | C48: 542.3 | D48: 49.9 | E48: 1.5 | F48: 145.8 | G48: 2430.6 | H48: 169.6 | I48: 3339.7 | L48: 5.3 | M48: 632.1 | N48: 637.4 | O48: 3977.1 | Q48: 蓄積
A49: 15 以上 | B49: 面積 | C49: 159.73 | D49: 63.24 | E49: 2.55 | F49: 138.14 | G49: 479.57 | H49: 683.66 | I49: 1526.89 | L49: 45.72 | M49: 4187.76 | N49: 4233.48 | O49: 5760.37 | Q49: 成長
B50: 蓄積 | C50: 63070 | D50: 18616 | E50: 805 | F50: 36970 | G50: 144108 | H50: 153889 | I50: 417458 | L50: 5349 | M50: 495896 | N50: 501245 | O50: 918703
B51: 成長 | C51: 408.1 | D51: 72.1 | E51: 1.4 | F51: 131.1 | G51: 1125.4 | H51: 607.4 | I51: 2345.5 | L51: 49.3 | M51: 1650.7 | N51: 1700 | O51: 4045.5 | P51: 総 合 計
A52: 計 | B52: 面積 | C52: =SUM(C7,C10,C13,C16,C19,C22,C25,C28,C31,C34,C37,C40,C43,C46,C49) -> 654.88 | D52: 1308.52 | E52: 12.27 | F52: 911.33 | G52: 5001.74 | H52: 890.84 | I52: =SUM(C52:H52) -> 8779.58 | J52: =SUM(J7,J10,J13,J16,J19,J22,J25,J28,J31,J34,J37,J40,J43,J46,J49) -> 0 | K52: =SUM(K7,K10,K13,K16,K19,K22,K25,K28,K31,K34,K37,K40,K43,K46,K49) -> 0 | L52: =SUM(L7,L10,L13,L16,L19,L22,L25,L28,L31,L34,L37,L40,L43,L46,L49) -> 62.64 | M52: =SUM(M7,M10,M13,M16,M19,M22,M25,M28,M31,M34,M37,M40,M43,M46,M49) -> 5884.99 | N52: =SUM(J52:M52) -> 5947.63 | O52: 14727.21 | P52: 面 積 | R52: =SUM(O52,R45,R47,R46) -> 15463.88
B53: 蓄積 | C53: 235982 | D53: 290361 | E53: 1653 | F53: 216051 | G53: 1347072 | H53: 182043 | I53: =SUM(C53:H53) -> 2273162 | J53: =SUM(J8,J11,J14,J17,J20,J23,J26,J29,J32,J35,J38,J41,J44,J47,J50) -> 0 | K53: 0 | L53: 6762 | M53: 668566 | N53: =SUM(J53:M53) -> 675328 | O53: 2948490 | P53: 蓄積 | R53: =O53+R48 -> 2948490
B54: 成長 | C54: 2463 | D54: 5454.2 | E54: 67.5 | F54: 2026.2 | G54: 16825.2 | H54: 1123.1 | I54: =SUM(C54:H54) -> 27959.2 | J54: 0 | K54: 0 | L54: 82 | M54: 4582.9 | N54: =SUM(J54:M54) -> 4664.9 | O54: 32624.1 | P54: 成長量 | R54: =O54+R49 -> 32624.1

Sheet 上松町
A1: 第11表 市町村別・資源構成表 （木曽谷）
A3: =MID(CELL("filename",$A$1),FIND("]",CELL("filename",$A$1))+1,31) -> 上松町 | O3: 単位 面積 : ha、蓄積 成長量 : ㎥
B4: 樹種 | C4: 針 葉 樹 | J4: 広 葉 樹 | O4: 計
C5: ス ギ | D5: ヒ ノ キ | E5: サ ワ ラ | F5: ア カ マ ツ | G5: カ ラ マ ツ | H5: そ の 他 針 | I5: 小 計 | J5: ク ヌ ギ | K5: ブ ナ | L5: ナ ラ | M5: そ の 他 広 | N5: 小 計
A6: 齢級
A7: 1 | B7: 面積 | C7: 0.2 | D7: 0.21 | G7: 8.06 | I7: 8.47 | M7: 1.38 | N7: 1.38 | O7: =SUM(N7,I7) -> 9.85
B8: 蓄積 | C8: 0 | D8: 0 | G8: 0 | I8: 0 | M8: 0 | N8: 0 | O8: =SUM(N8,I8) -> 0
B9: 成長 | C9: 0 | D9: 0 | G9: 0 | I9: 0 | M9: 0 | N9: 0 | O9: 0
A10: 2 | B10: 面積 | D10: 0.63 | G10: 4.7 | I10: 5.33 | M10: 0.25 | N10: 0.25 | O10: 5.58
B11: 蓄積 | D11: 0 | G11: 0 | I11: 0 | M11: 2 | N11: 2 | O11: 2
B12: 成長 | D12: 0 | G12: 0 | I12: 0 | M12: 0.3 | N12: 0.3 | O12: 0.3
A13: 3 | B13: 面積 | D13: 3.1 | I13: 3.1 | L13: 0.19 | M13: 2.54 | N13: 2.73 | O13: 5.83
B14: 蓄積 | D14: 127 | I14: 127 | L14: 3 | M14: 49 | N14: 52 | O14: 179
B15: 成長 | D15: 24.3 | I15: 24.3 | L15: 0.3 | M15: 4.7 | N15: 5 | O15: 29.3
A16: 4 | B16: 面積 | D16: 13.02 | F16: 0.13 | I16: 13.15 | L16: 0.27 | M16: 4.28 | N16: 4.55 | O16: 17.7
B17: 蓄積 | D17: 862 | F17: 9 | I17: 871 | L17: 9 | M17: 141 | N17: 150 | O17: 1021
B18: 成長 | D18: 80 | F18: 0.7 | I18: 80.7 | L18: 0.6 | M18: 9.6 | N18: 10.2 | O18: 90.9
A19: 5 | B19: 面積 | D19: 15.05 | F19: 0.66 | H19: 0.11 | I19: 15.82 | M19: 3.89 | N19: 3.89 | O19: 19.71
B20: 蓄積 | D20: 1503 | F20: 60 | H20: 5 | I20: 1568 | M20: 139 | N20: 139 | O20: 1707
B21: 成長 | D21: 88.7 | F21: 3 | H21: 0.3 | I21: 92 | M21: 7.8 | N21: 7.8 | O21: 99.8
A22: 6 | B22: 面積 | D22: 24.41 | F22: 0.09 | I22: 24.5 | M22: 17.17 | N22: 17.17 | O22: 41.67
B23: 蓄積 | D23: 3110 | F23: 13 | I23: 3123 | M23: 744 | N23: 744 | O23: 3867
B24: 成長 | D24: 133.9 | F24: 0.5 | I24: 134.4 | M24: 30.5 | N24: 30.5 | O24: 164.9
A25: 7 | B25: 面積 | C25: 0.2 | D25: 30.76 | F25: 0.52 | I25: 31.48 | M25: 32.22 | N25: 32.22 | O25: 63.7
B26: 蓄積 | C26: 45 | D26: 4741 | F26: 89 | I26: 4875 | M26: 1746 | N26: 1746 | O26: 6621
B27: 成長 | C27: 1.2 | D27: 154.4 | F27: 2.1 | I27: 157.7 | M27: 54 | N27: 54 | O27: 211.7
A28: 8 | B28: 面積 | C28: 0.33 | D28: 44.94 | F28: 2.77 | G28: 0.34 | I28: 48.38 | M28: 31.51 | N28: 31.51 | O28: 79.89
B29: 蓄積 | C29: 77 | D29: 7884 | F29: 430 | G29: 69 | I29: 8460 | M29: 1819 | N29: 1819 | O29: 10279
B30: 成長 | C30: 1.8 | D30: 206.7 | F30: 10.2 | G30: 1.4 | I30: 220.1 | M30: 54.6 | N30: 54.6 | O30: 274.7
A31: 9 | B31: 面積 | C31: 3.91 | D31: 76.63 | E31: 0.27 | F31: 5 | G31: 0.03 | I31: 85.84 | L31: 0.48 | M31: 34.33 | N31: 34.81 | O31: 120.65
B32: 蓄積 | C32: 1073 | D32: 14930 | E32: 56 | F32: 914 | G32: 7 | I32: 16980 | L32: 41 | M32: 2506 | N32: 2547 | O32: 19527
B33: 成長 | C33: 18.5 | D33: 321.9 | E33: 1.2 | F33: 14 | G33: 0.1 | I33: 355.7 | L33: 1.1 | M33: 68.6 | N33: 69.7 | O33: 425.4
A34: 10 | B34: 面積 | C34: 5.96 | D34: 85.22 | E34: 2.37 | F34: 5.74 | G34: 0.8 | H34: 2.03 | I34: 102.12 | L34: 2.39 | M34: 56.76 | N34: 59.15 | O34: 161.27
B35: 蓄積 | C35: 1751 | D35: 18043 | E35: 548 | F35: 1184 | G35: 184 | H35: 229 | I35: 21939 | L35: 196 | M35: 4426 | N35: 4622 | O35: 26561
B36: 成長 | C36: 25 | D36: 335.2 | E36: 10 | F36: 15.7 | G36: 2.8 | H36: 6.6 | I36: 395.3 | L36: 4.5 | M36: 113.8 | N36: 118.3 | O36: 513.6
A37: 11 | B37: 面積 | C37: 15.94 | D37: 62.04 | E37: 3.24 | F37: 38.97 | G37: 3.85 | H37: 0.4 | I37: 124.44 | M37: 75.58 | N37: 75.58 | O37: 200.02
B38: 蓄積 | C38: 4968 | D38: 14497 | E38: 771 | F38: 7995 | G38: 960 | H38: 45 | I38: 29236 | M38: 6582 | N38: 6582 | O38: 35818 | P38: 伐 跡 | R38: 0.32
B39: 成長 | C39: 67.5 | D39: 236.2 | E39: 12.5 | F39: 89.9 | G39: 13.4 | H39: 1.1 | I39: 420.6 | M39: 125.9 | N39: 125.9 | O39: 546.5 | P39: 未立木地 | R39: 9.37
A40: 12 | B40: 面積 | C40: 55.71 | D40: 112.79 | E40: 4.41 | F40: 118.28 | G40: 27.91 | H40: 0.03 | I40: 319.13 | L40: 4.5 | M40: 186.18 | N40: 190.68 | O40: 509.81 | P40: 岩石地 | R40: 0.42
B41: 蓄積 | C41: 17486 | D41: 27995 | E41: 1151 | F41: 25932 | G41: 7156 | H41: 5 | I41: 79725 | L41: 440 | M41: 17654 | N41: 18094 | O41: 97819 | P41: 崩壊地 | R41: 5.8
B42: 成長 | C42: 215.3 | D42: 402.6 | E42: 16.3 | F42: 244.2 | G42: 90.6 | H42: 0.1 | I42: 969.1 | L42: 8.1 | M42: 326.6 | N42: 334.7 | O42: 1303.8 | P42: はげ山
A43: 13 | B43: 面積 | C43: 72.13 | D43: 72.31 | E43: 8.27 | F43: 158.19 | G43: 141.75 | H43: 0.85 | I43: 453.5 | L43: 7.73 | M43: 366.96 | N43: 374.69 | O43: 828.19 | P43: 施設敷 | R43: 13.56
B44: 蓄積 | C44: 23064 | D44: 18967 | E44: 2154 | F44: 35413 | G44: 36384 | H44: 116 | I44: 116098 | L44: 864 | M44: 37368 | N44: 38232 | O44: 154330 | P44: 林地開発
B45: 成長 | C45: 271.5 | D45: 266.9 | E45: 29.3 | F45: 326.1 | G45: 448.6 | H45: 2.3 | I45: 1344.7 | L45: 11.8 | M45: 596.7 | N45: 608.5 | O45: 1953.2 | P45: 計 | R45: =SUM(R38:R44) -> 29.47
A46: 14 | B46: 面積 | C46: 64.38 | D46: 49.49 | E46: 6.7 | F46: 147.81 | G46: 112.14 | H46: 0.21 | I46: 380.73 | L46: 22.17 | M46: 519.82 | N46: 541.99 | O46: 922.72 | P46: 竹 林 | R46: 7.44
B47: 蓄積 | C47: 21940 | D47: 13536 | E47: 1774 | F47: 32910 | G47: 29020 | H47: 37 | I47: 99217 | L47: 2359 | M47: 56056 | N47: 58415 | O47: 157632 | P47: 更新 困難地 | Q47: 面積
B48: 成長 | C48: 212.8 | D48: 163.6 | E48: 22.2 | F48: 285.6 | G48: 315.5 | H48: 0.6 | I48: 1000.3 | L48: 28.5 | M48: 694.5 | N48: 723 | O48: 1723.3 | Q48: 蓄積
A49: 15 以上 | B49: 面積 | C49: 67.22 | D49: 153.42 | E49: 21.93 | F49: 335.74 | G49: 28.57 | H49: 31.11 | I49: 637.99 | L49: 52.42 | M49: 1244.32 | N49: 1296.74 | O49: 1934.73 | Q49: 成長
B50: 蓄積 | C50: 24913 | D50: 45826 | E50: 6444 | F50: 85282 | G50: 8460 | H50: 6832 | I50: 177757 | L50: 6165 | M50: 145560 | N50: 151725 | O50: 329482
B51: 成長 | C51: 92.1 | D51: 117 | E51: 15.7 | F51: 447.9 | G51: 52.2 | H51: 64.5 | I51: 789.4 | L51: 43 | M51: 927.8 | N51: 970.8 | O51: 1760.2 | P51: 総 合 計
A52: 計 | B52: 面積 | C52: =SUM(C7,C10,C13,C16,C19,C22,C25,C28,C31,C34,C37,C40,C43,C46,C49) -> 285.98 | D52: 744.02 | E52: 47.19 | F52: 813.9 | G52: 328.15 | H52: 34.74 | I52: =SUM(C52:H52) -> 2253.98 | J52: =SUM(J7,J10,J13,J16,J19,J22,J25,J28,J31,J34,J37,J40,J43,J46,J49) -> 0 | K52: =SUM(K7,K10,K13,K16,K19,K22,K25,K28,K31,K34,K37,K40,K43,K46,K49) -> 0 | L52: =SUM(L7,L10,L13,L16,L19,L22,L25,L28,L31,L34,L37,L40,L43,L46,L49) -> 90.15 | M52: =SUM(M7,M10,M13,M16,M19,M22,M25,M28,M31,M34,M37,M40,M43,M46,M49) -> 2577.19 | N52: =SUM(J52:M52) -> 2667.34 | O52: 4921.32 | P52: 面 積 | R52: =SUM(O52,R45,R47,R46) -> 4958.23
